Workbook

Sheet □ＭＥＮＵ
F10: 安全アンケート集計システム

Sheet 基本情報_集計
A1: 項目 | B1: 値 | D1: No. | E1: 自社階層 | F1: 階層 | H1: No. | I1: 属性２ | J1: 属性３ | K1: 属性４ | L1: 属性５ | M1: 属性６ | N1: 属性７ | O1: 属性８ | P1: 属性９ | Q1: 属性１０ | W1: 項目 | X1: 値 | Z1: 棄却 | AG1: =IF(AG3="","",VLOOKUP(AG3,OFFSET(lst属性,0,0,,2),2,0)) ->  | AI1: =IF(AI3="","",VLOOKUP(AI3,OFFSET(lst属性,0,0,,2),2,0)) ->  | AJ1: =IF(AJ3="","",VLOOKUP(AJ3,OFFSET(lst属性,0,0,,2),2,0)) -> 1 | AM1: 【属性 実績】 | AN1: 3 | AO1: 1
A2: 会社の正式名称 | D2: 1 | E2: 経営者層 | F2: 1 | H2: 1 | W2: 設問数 | X2: 58 | Z2: <>1 | AG2: 単純集計 | AI2: クロス集計 | AM2: 階層別 | AN2: 3
A3: グラフに表示する 会社名の表示 | D3: 2 | E3: 管理職層 | F3: 2 | H3: 2 | W3: 棄却分母 | X3: 40 | AG3: 支店事業部 | AI3: 支店事業部 | AJ3: 自社階層
D4: 3 | E4: 一般職層 | F4: 3 | H4: 3 | W4: 欠損値 棄却範囲（を超える） | X4: 0.1
D5: 4 | H5: 4 | W5: 回答の集中 棄却範囲（を超える） | X5: 0.8
D6: 5 | H6: 5
D7: 6 | H7: 6 | W7: 欠損値10%以上（件） | X7: 2
D8: 7 | H8: 7 | W8: 回答の集中80%以上（件） | X8: 1
D9: 8 | H9: 8 | W9: サンプル数 計 | X9: 78 | AB9: 経営者層、管理職層、現業職層の３層のみで集計する場合は、チェックマークを外してください。
D10: 9 | H10: 9 | W10: 有効とするサンプル数 計 | X10: 75 | AB10: ３層に合わせて自社の階層でも集計を行う場合は、チェックマークを入れてください。
D11: 10 | H11: 10 | W11: 無効とするサンプル数 計 | X11: =件数サンプル数-件数有効数 -> 3
D12: 11 | H12: 11 | Z12: =$E$1 -> 自社階層 | AA12: 1
D13: 12 | H13: 12 | Z13: =$F$1 -> 階層 | AA13: 2
D14: 13 | H14: 13 | Z14: =$I$1 -> 属性２ | AA14: 3
D15: 14 | H15: 14 | Z15: =$J$1 -> 属性３ | AA15: 4
D16: 15 | H16: 15 | Z16: =K1 -> 属性４ | AA16: 5
D17: 16 | H17: 16 | Z17: =L1 -> 属性５ | AA17: 6
D18: 17 | H18: 17 | Z18: =M1 -> 属性６ | AA18: 7
D19: 18 | H19: 18 | Z19: =N1 -> 属性７ | AA19: 8
D20: 19 | H20: 19 | Z20: =O1 -> 属性８ | AA20: 9
D21: 20 | H21: 20 | Z21: =P1 -> 属性９ | AA21: 10
H22: 21 | Z22: =Q1 -> 属性１０ | AA22: 11
H23: 22
H24: 23
H25: 24
H26: 25
H27: 26
H28: 27
H29: 28
H30: 29
H31: 30

Sheet 入力
A1: No. | B1: =基本情報_集計!E1 -> 自社階層 | C1: =基本情報_集計!I1 -> 属性２ | D1: =基本情報_集計!J1 -> 属性３ | E1: =基本情報_集計!K1 -> 属性４ | F1: =基本情報_集計!L1 -> 属性５ | G1: =基本情報_集計!M1 -> 属性６ | H1: =基本情報_集計!N1 -> 属性７ | I1: =基本情報_集計!O1 -> 属性８ | J1: =基本情報_集計!P1 -> 属性９ | K1: =基本情報_集計!Q1 -> 属性１０ | L1: 問1 | M1: 問2 | N1: 問3 | O1: 問4 | P1: 問5 | Q1: 問6 | R1: 問7 | S1: 問8 | T1: 問9 | U1: 問10 | V1: 問11 | W1: 問12 | X1: 問13 | Y1: 問14 | Z1: 問15 | AA1: 問16 | AB1: 問17 | AC1: 問18 | AD1: 問19 | AE1: 問20 | AF1: 問21 | AG1: 問22 | AH1: 問23 | AI1: 問24 | AJ1: 問25 | AK1: 問26 | AL1: 問27 | AM1: 問28 | AN1: 問29 | AO1: 問30 | AP1: 問31 | AQ1: 問32 | AR1: 問33 | AS1: 問34 | AT1: 問35 | AU1: 問36 | AV1: 問37 | AW1: 問38 | AX1: 問39 | AY1: 問40 | AZ1: 問41 | BA1: 問42 | BB1: 問43 | BC1: 問44 | BD1: 問45 | BE1: 問46 | BF1: 問47 | BG1: 問48 | BH1: 問49 | BI1: 問50 | BJ1: 問51 | BK1: 問52 | BL1: 問53 | BM1: 問54 | BN1: 問55 | BO1: 問56 | BP1: 問57 | BQ1: 問58
A2: 1
A3: =IF(L3="","",A2+1) -> 
A67: =IF(L67="","",A66+1) -> 
A131: =IF(L131="","",A130+1) -> 
A195: =IF(L195="","",A194+1) -> 
A259: =IF(L259="","",A258+1) -> 
A323: =IF(L323="","",A322+1) -> 
A387: =IF(L387="","",A386+1) -> 
A451: =IF(L451="","",A450+1) -> 
A515: =IF(L515="","",A514+1) -> 
A579: =IF(L579="","",A578+1) -> 
A643: =IF(L643="","",A642+1) -> 
A707: =IF(L707="","",A706+1) -> 
A771: =IF(L771="","",A770+1) -> 
A835: =IF(L835="","",A834+1) -> 
A899: =IF(L899="","",A898+1) -> 
A963: =IF(L963="","",A962+1) -> 
A1027: =IF(L1027="","",A1026+1) -> 
A1091: =IF(L1091="","",A1090+1) -> 
A1155: =IF(L1155="","",A1154+1) -> 
A1219: =IF(L1219="","",A1218+1) -> 
A1283: =IF(L1283="","",A1282+1) -> 
A1347: =IF(L1347="","",A1346+1) -> 
A1411: =IF(L1411="","",A1410+1) -> 
A1475: =IF(L1475="","",A1474+1) -> 
A1539: =IF(L1539="","",A1538+1) -> 
A1603: =IF(L1603="","",A1602+1) -> 
A1667: =IF(L1667="","",A1666+1) -> 
A1731: =IF(L1731="","",A1730+1) -> 
A1795: =IF(L1795="","",A1794+1) -> 
A1859: =IF(L1859="","",A1858+1) -> 
A1923: =IF(L1923="","",A1922+1) -> 
A1987: =IF(L1987="","",A1986+1) -> 
A2001: =IF(L2001="","",A2000+1) -> 
A2065: =IF(L2065="","",A2064+1) -> 
A2129: =IF(L2129="","",A2128+1) -> 
A2193: =IF(L2193="","",A2192+1) -> 
A2257: =IF(L2257="","",A2256+1) -> 
A2321: =IF(L2321="","",A2320+1) -> 
A2385: =IF(L2385="","",A2384+1) -> 
A2449: =IF(L2449="","",A2448+1) -> 
A2513: =IF(L2513="","",A2512+1) -> 
A2577: =IF(L2577="","",A2576+1) -> 
A2641: =IF(L2641="","",A2640+1) -> 
A2705: =IF(L2705="","",A2704+1) -> 
A2769: =IF(L2769="","",A2768+1) -> 
A2833: =IF(L2833="","",A2832+1) -> 
A2897: =IF(L2897="","",A2896+1) -> 
A2961: =IF(L2961="","",A2960+1) -> 
A3025: =IF(L3025="","",A3024+1) -> 
A3089: =IF(L3089="","",A3088+1) -> 
A3153: =IF(L3153="","",A3152+1) -> 
A3217: =IF(L3217="","",A3216+1) -> 
A3281: =IF(L3281="","",A3280+1) -> 
A3345: =IF(L3345="","",A3344+1) -> 
A3409: =IF(L3409="","",A3408+1) -> 
A3473: =IF(L3473="","",A3472+1) -> 
A3537: =IF(L3537="","",A3536+1) -> 
A3601: =IF(L3601="","",A3600+1) -> 
A3665: =IF(L3665="","",A3664+1) -> 
A3729: =IF(L3729="","",A3728+1) -> 
A3793: =IF(L3793="","",A3792+1) -> 
A3857: =IF(L3857="","",A3856+1) -> 
A3921: =IF(L3921="","",A3920+1) -> 
A3985: =IF(L3985="","",A3984+1) -> 
A4049: =IF(L4049="","",A4048+1) -> 
A4113: =IF(L4113="","",A4112+1) -> 
A4177: =IF(L4177="","",A4176+1) -> 
A4241: =IF(L4241="","",A4240+1) -> 
A4305: =IF(L4305="","",A4304+1) -> 
A4369: =IF(L4369="","",A4368+1) -> 
A4433: =IF(L4433="","",A4432+1) -> 
A4497: =IF(L4497="","",A4496+1) -> 
A4561: =IF(L4561="","",A4560+1) -> 
A4625: =IF(L4625="","",A4624+1) -> 
A4689: =IF(L4689="","",A4688+1) -> 
A4753: =IF(L4753="","",A4752+1) -> 
A4817: =IF(L4817="","",A4816+1) -> 
A4881: =IF(L4881="","",A4880+1) -> 
A4945: =IF(L4945="","",A4944+1) -> 

Sheet 棄却前データ
A1: No. | B1: =基本情報_集計!$E$1 -> 自社階層 | C1: =基本情報_集計!$I$1 -> 属性２ | D1: =基本情報_集計!$J$1 -> 属性３ | E1: =基本情報_集計!$K$1 -> 属性４ | F1: =基本情報_集計!$L$1 -> 属性５ | G1: =基本情報_集計!$M$1 -> 属性６ | H1: =基本情報_集計!$N$1 -> 属性７ | I1: =基本情報_集計!$O$1 -> 属性８ | J1: =基本情報_集計!$P$1 -> 属性９ | K1: =基本情報_集計!$Q$1 -> 属性１０ | L1: 問1 | M1: 問2 | N1: 問3 | O1: 問4 | P1: 問5 | Q1: 問6 | R1: 問7 | S1: 問8 | T1: 問9 | U1: 問10 | V1: 問11 | W1: 問12 | X1: 問13 | Y1: 問14 | Z1: 問15 | AA1: 問16 | AB1: 問17 | AC1: 問18 | AD1: 問19 | AE1: 問20 | AF1: 問21 | AG1: 問22 | AH1: 問23 | AI1: 問24 | AJ1: 問25 | AK1: 問26 | AL1: 問27 | AM1: 問28 | AN1: 問29 | AO1: 問30 | AP1: 問31 | AQ1: 問32 | AR1: 問33 | AS1: 問34 | AT1: 問35 | AU1: 問36 | AV1: 問37 | AW1: 問38 | AX1: 問39 | AY1: 問40 | AZ1: 問41 | BA1: 問42 | BB1: 問43 | BC1: 問44 | BD1: 問45 | BE1: 問46 | BF1: 問47 | BG1: 問48 | BH1: 問49 | BI1: 問50 | BJ1: 問51 | BK1: 問52 | BL1: 問53 | BM1: 問54 | BN1: 問55 | BO1: 問56 | BP1: 問57 | BQ1: 問58 | BR1: 階層 | BS1: [999] | BT1: [1] | BU1: [2] | BV1: [3] | BW1: [4] | BX1: [5] | BY1: 欠損値 | BZ1: 回答集中 | CA1: 棄却 | CE1: No. | CF1: =基本情報_集計!$E$1 -> 自社階層 | CG1: =基本情報_集計!$I$1 -> 属性２ | CH1: =基本情報_集計!$J$1 -> 属性３ | CI1: =基本情報_集計!$K$1 -> 属性４ | CJ1: =基本情報_集計!$L$1 -> 属性５ | CK1: =基本情報_集計!$M$1 -> 属性６ | CL1: =基本情報_集計!$N$1 -> 属性７ | CM1: =基本情報_集計!$O$1 -> 属性８ | CN1: =基本情報_集計!$P$1 -> 属性９ | CO1: =基本情報_集計!$Q$1 -> 属性１０ | CP1: 問1 | CQ1: 問2 | CR1: 問3 | CS1: 問4 | CT1: 問5 | CU1: 問6 | CV1: 問7 | CW1: 問8 | CX1: 問9 | CY1: 問10 | CZ1: 問11 | DA1: 問12 | DB1: 問13 | DC1: 問14 | DD1: 問15 | DE1: 問16 | DF1: 問17 | DG1: 問18 | DH1: 問19 | DI1: 問20 | DJ1: 問21 | DK1: 問22 | DL1: 問23 | DM1: 問24 | DN1: 問25 | DO1: 問26 | DP1: 問27 | DQ1: 問28 | DR1: 問29 | DS1: 問30 | DT1: 問31 | DU1: 問32 | DV1: 問33 | DW1: 問34 | DX1: 問35 | DY1: 問36 | DZ1: 問37 | EA1: 問38 | EB1: 問39 | EC1: 問40 | ED1: 問41 | EE1: 問42 | EF1: 問43 | EG1: 問44 | EH1: 問45 | EI1: 問46 | EJ1: 問47 | EK1: 問48 | EL1: 問49 | EM1: 問50 | EN1: 問51 | EO1: 問52 | EP1: 問53 | EQ1: 問54 | ER1: 問55 | ES1: 問56 | ET1: 問57 | EU1: 問58 | EV1: 階層 | EW1: [999] | EX1: [1] | EY1: [2] | EZ1: [3] | FA1: [4] | FB1: [5] | FC1: 欠損値 | FD1: 回答集中 | FE1: 棄却
A2: 1 | L2: 5 | M2: 4 | N2: 4 | O2: 5 | P2: 4 | Q2: 4 | R2: 4 | S2: 4 | T2: 4 | U2: 4 | V2: 4 | W2: 5 | X2: 5 | Y2: 5 | Z2: 4 | AA2: 4 | AB2: 5 | AC2: 5 | AD2: 5 | AE2: 5 | AF2: 5 | AG2: 5 | AH2: 5 | AI2: 4 | AJ2: 3 | AK2: 3 | AL2: 3 | AM2: 4 | AN2: 5 | AO2: 5 | AP2: 5 | AQ2: 4 | AR2: 4 | AS2: 4 | AT2: 3 | AU2: 5 | AV2: 5 | AW2: 5 | AX2: 3 | AY2: 5 | AZ2: 5 | BA2: 5 | BB2: 5 | BC2: 4 | BD2: 5 | BE2: 5 | BF2: 5 | BG2: 5 | BH2: 5 | BI2: 5 | BJ2: 5 | BK2: 4 | BL2: 5 | BM2: 4 | BN2: 4 | BO2: 4 | BP2: 5 | BQ2: 5 | BR2: 3 | BS2: 0 | BT2: 0 | BU2: 0 | BV2: 0.08620689655 | BW2: 0.3620689655 | BX2: 0.5517241379 | CE2: 1 | CF2: 3 | CG2: 4 | CH2: 5 | CI2: 5 | CP2: 5 | CQ2: 4 | CR2: 4 | CS2: 5 | CT2: 4 | CU2: 4 | CV2: 4 | CW2: 4 | CX2: 4 | CY2: 4 | CZ2: 4 | DA2: 5 | DB2: 5 | DC2: 5 | DD2: 4 | DE2: 4 | DF2: 5 | DG2: 5 | DH2: 5 | DI2: 5 | DJ2: 5 | DK2: 5 | DL2: 5 | DM2: 4 | DN2: 3 | DO2: 3 | DP2: 3 | DQ2: 4 | DR2: 5 | DS2: 5 | DT2: 5 | DU2: 4 | DV2: 4 | DW2: 4 | DX2: 3 | DY2: 5 | DZ2: 5 | EA2: 5 | EB2: 3 | EC2: 5 | ED2: 5 | EE2: 5 | EF2: 5 | EG2: 4 | EH2: 5 | EI2: 5 | EJ2: 5 | EK2: 5 | EL2: 5 | EM2: 5 | EN2: 5 | EO2: 4 | EP2: 5 | EQ2: 4 | ER2: 4 | ES2: 4 | ET2: 5 | EU2: 5 | EV2: 3 | EW2: 0 | EX2: 0 | EY2: 0 | EZ2: 0.08620689655 | FA2: 0.3620689655 | FB2: 0.5517241379
A3: 2 | L3: 4 | M3: 4 | N3: 5 | O3: 5 | P3: 5 | Q3: 4 | R3: 5 | S3: 5 | T3: 5 | U3: 5 | V3: 5 | W3: 5 | X3: 5 | Y3: 5 | Z3: 5 | AA3: 5 | AB3: 5 | AC3: 5 | AD3: 5 | AE3: 5 | AF3: 5 | AG3: 5 | AH3: 5 | AI3: 4 | AJ3: 3 | AK3: 5 | AL3: 5 | AM3: 4 | AN3: 5 | AO3: 5 | AP3: 3 | AQ3: 4 | AR3: 4 | AS3: 4 | AT3: 4 | AU3: 3 | AV3: 5 | AW3: 4 | AX3: 3 | AY3: 5 | AZ3: 5 | BA3: 5 | BB3: 5 | BC3: 999 | BD3: 3 | BE3: 5 | BF3: 5 | BG3: 5 | BH3: 3 | BI3: 3 | BJ3: 4 | BK3: 4 | BL3: 3 | BM3: 3 | BN3: 4 | BO3: 4 | BP3: 5 | BQ3: 5 | BR3: 3 | BS3: 0 | BT3: 0 | BU3: 0 | BV3: 0.1551724138 | BW3: 0.2413793103 | BX3: 0.5862068966 | CE3: 2 | CF3: 3 | CG3: 8 | CH3: 6 | CI3: 5 | CP3: 4 | CQ3: 4 | CR3: 5 | CS3: 5 | CT3: 5 | CU3: 4 | CV3: 5 | CW3: 5 | CX3: 5 | CY3: 5 | CZ3: 5 | DA3: 5 | DB3: 5 | DC3: 5 | DD3: 5 | DE3: 5 | DF3: 5 | DG3: 5 | DH3: 5 | DI3: 5 | DJ3: 5 | DK3: 5 | DL3: 5 | DM3: 4 | DN3: 3 | DO3: 5 | DP3: 5 | DQ3: 4 | DR3: 5 | DS3: 5 | DT3: 3 | DU3: 4 | DV3: 4 | DW3: 4 | DX3: 4 | DY3: 3 | DZ3: 5 | EA3: 4 | EB3: 3 | EC3: 5 | ED3: 5 | EE3: 5 | EF3: 5 | EG3: n | EH3: 3 | EI3: 5 | EJ3: 5 | EK3: 5 | EL3: 3 | EM3: 3 | EN3: 4 | EO3: 4 | EP3: 3 | EQ3: 3 | ER3: 4 | ES3: 4 | ET3: 5 | EU3: 5 | EV3: 3 | EW3: 0 | EX3: 0 | EY3: 0 | EZ3: 0.1551724138 | FA3: 0.2413793103 | FB3: 0.5862068966
A4: 3 | L4: 3 | M4: 2 | N4: 3 | O4: 3 | P4: 4 | Q4: 3 | R4: 1 | S4: 4 | T4: 2 | U4: 5 | V4: 5 | W4: 5 | X4: 4 | Y4: 4 | Z4: 3 | AA4: 5 | AB4: 5 | AC4: 4 | AD4: 5 | AE4: 4 | AF4: 5 | AG4: 5 | AH4: 2 | AI4: 3 | AJ4: 4 | AK4: 4 | AL4: 3 | AM4: 4 | AN4: 3 | AO4: 3 | AP4: 3 | AQ4: 4 | AR4: 4 | AS4: 3 | AT4: 4 | AU4: 5 | AV4: 5 | AW4: 4 | AX4: 3 | AY4: 1 | AZ4: 5 | BA4: 4 | BB4: 5 | BC4: 2 | BD4: 3 | BE4: 2 | BF4: 3 | BG4: 3 | BH4: 1 | BI4: 4 | BJ4: 2 | BK4: 4 | BL4: 2 | BM4: 1 | BN4: 1 | BO4: 1 | BP4: 1 | BQ4: 3 | BR4: 3 | BS4: 0 | BT4: 0.1206896552 | BU4: 0.1206896552 | BV4: 0.275862069 | BW4: 0.275862069 | BX4: 0.2068965517 | CE4: 3 | CF4: 3 | CG4: 8 | CH4: 6 | CI4: 5 | CP4: 3 | CQ4: 2 | CR4: 3 | CS4: 3 | CT4: 4 | CU4: 3 | CV4: 1 | CW4: 4 | CX4: 2 | CY4: 5 | CZ4: 5 | DA4: 5 | DB4: 4 | DC4: 4 | DD4: 3 | DE4: 5 | DF4: 5 | DG4: 4 | DH4: 5 | DI4: 4 | DJ4: 5 | DK4: 5 | DL4: 2 | DM4: 3 | DN4: 4 | DO4: 4 | DP4: 3 | DQ4: 4 | DR4: 3 | DS4: 3 | DT4: 3 | DU4: 4 | DV4: 4 | DW4: 3 | DX4: 4 | DY4: 5 | DZ4: 5 | EA4: 4 | EB4: 3 | EC4: 1 | ED4: 5 | EE4: 4 | EF4: 5 | EG4: 2 | EH4: 3 | EI4: 2 | EJ4: 3 | EK4: 3 | EL4: 1 | EM4: 4 | EN4: 2 | EO4: 4 | EP4: 2 | EQ4: 1 | ER4: 1 | ES4: 1 | ET4: 1 | EU4: 3 | EV4: 3 | EW4: 0 | EX4: 0.1206896552 | EY4: 0.1206896552 | EZ4: 0.275862069 | FA4: 0.275862069 | FB4: 0.2068965517
A5: 4 | L5: 4 | M5: 3 | N5: 4 | O5: 4 | P5: 5 | Q5: 2 | R5: 3 | S5: 4 | T5: 2 | U5: 2 | V5: 5 | W5: 3 | X5: 3 | Y5: 4 | Z5: 3 | AA5: 5 | AB5: 2 | AC5: 2 | AD5: 4 | AE5: 4 | AF5: 2 | AG5: 4 | AH5: 3 | AI5: 1 | AJ5: 2 | AK5: 4 | AL5: 3 | AM5: 4 | AN5: 3 | AO5: 5 | AP5: 3 | AQ5: 3 | AR5: 5 | AS5: 4 | AT5: 5 | AU5: 3 | AV5: 4 | AW5: 5 | AX5: 4 | AY5: 2 | AZ5: 2 | BA5: 2 | BB5: 4 | BC5: 3 | BD5: 5 | BE5: 4 | BF5: 4 | BG5: 5 | BH5: 2 | BI5: 2 | BJ5: 1 | BK5: 1 | BL5: 3 | BM5: 2 | BN5: 1 | BO5: 2 | BP5: 1 | BQ5: 3 | BR5: 3 | BS5: 0 | BT5: 0.08620689655 | BU5: 0.2413793103 | BV5: 0.2413793103 | BW5: 0.275862069 | BX5: 0.1551724138 | CE5: 4 | CF5: 3 | CG5: 8 | CH5: 3 | CI5: 2 | CP5: 4 | CQ5: 3 | CR5: 4 | CS5: 4 | CT5: 5 | CU5: 2 | CV5: 3 | CW5: 4 | CX5: 2 | CY5: 2 | CZ5: 5 | DA5: 3 | DB5: 3 | DC5: 4 | DD5: 3 | DE5: 5 | DF5: 2 | DG5: 2 | DH5: 4 | DI5: 4 | DJ5: 2 | DK5: 4 | DL5: 3 | DM5: 1 | DN5: 2 | DO5: 4 | DP5: 3 | DQ5: 4 | DR5: 3 | DS5: 5 | DT5: 3 | DU5: 3 | DV5: 5 | DW5: 4 | DX5: 5 | DY5: 3 | DZ5: 4 | EA5: 5 | EB5: 4 | EC5: 2 | ED5: 2 | EE5: 2 | EF5: 4 | EG5: 3 | EH5: 5 | EI5: 4 | EJ5: 4 | EK5: 5 | EL5: 2 | EM5: 2 | EN5: 1 | EO5: 1 | EP5: 3 | EQ5: 2 | ER5: 1 | ES5: 2 | ET5: 1 | EU5: 3 | EV5: 3 | EW5: 0 | EX5: 0.08620689655 | EY5: 0.2413793103 | EZ5: 0.2413793103 | FA5: 0.275862069 | FB5: 0.1551724138
A6: 5 | L6: 5 | M6: 4 | N6: 4 | O6: 4 | P6: 4 | Q6: 5 | R6: 5 | S6: 5 | T6: 5 | U6: 5 | V6: 5 | W6: 5 | X6: 5 | Y6: 5 | Z6: 5 | AA6: 5 | AB6: 5 | AC6: 5 | AD6: 5 | AE6: 5 | AF6: 5 | AG6: 5 | AH6: 5 | AI6: 1 | AJ6: 1 | AK6: 5 | AL6: 3 | AM6: 5 | AN6: 3 | AO6: 5 | AP6: 3 | AQ6: 4 | AR6: 4 | AS6: 4 | AT6: 4 | AU6: 4 | AV6: 5 | AW6: 4 | AX6: 4 | AY6: 999 | AZ6: 5 | BA6: 5 | BB6: 5 | BC6: 5 | BD6: 5 | BE6: 5 | BF6: 5 | BG6: 5 | BH6: 999 | BI6: 999 | BJ6: 999 | BK6: 999 | BL6: 4 | BM6: 4 | BN6: 5 | BO6: 3 | BP6: 5 | BQ6: 5 | BR6: 1 | BS6: 0.1 | BT6: 0.03448275862 | BU6: 0 | BV6: 0.06896551724 | BW6: 0.224137931 | BX6: 0.5862068966 | BY6: 1 | CA6: 1 | CE6: 6 | CF6: 1 | CG6: 1 | CH6: 1 | CI6: 5 | CP6: 4 | CQ6: 4 | CR6: 4 | CS6: 4 | CT6: 4 | CU6: 4 | CV6: 3 | CW6: 4 | CX6: 3 | CY6: 3 | CZ6: 3 | DA6: 3 | DB6: 3 | DC6: 3 | DD6: 3 | DE6: 4 | DF6: 4 | DG6: 3 | DH6: 4 | DI6: 4 | DJ6: 4 | DK6: 4 | DL6: 4 | DM6: 4 | DN6: 4 | DO6: 4 | DP6: 3 | DQ6: 4 | DR6: 5 | DS6: 4 | DT6: 3 | DU6: 5 | DV6: 4 | DW6: 4 | DX6: 4 | DY6: 3 | DZ6: 4 | EA6: 4 | EB6: 4 | EC6: 3 | ED6: 4 | EE6: 4 | EF6: 4 | EG6: 4 | EH6: 4 | EI6: 4 | EJ6: 3 | EK6: 4 | EL6: 3 | EM6: 4 | EN6: 4 | EO6: 4 | EP6: 4 | EQ6: 4 | ER6: 4 | ES6: 4 | ET6: 4 | EU6: 4 | EV6: 1 | EW6: 0 | EX6: 0 | EY6: 0 | EZ6: 0.2586206897 | FA6: 0.7068965517 | FB6: 0.03448275862
A7: 6 | L7: 4 | M7: 4 | N7: 4 | O7: 4 | P7: 4 | Q7: 4 | R7: 3 | S7: 4 | T7: 3 | U7: 3 | V7: 3 | W7: 3 | X7: 3 | Y7: 3 | Z7: 3 | AA7: 4 | AB7: 4 | AC7: 3 | AD7: 4 | AE7: 4 | AF7: 4 | AG7: 4 | AH7: 4 | AI7: 4 | AJ7: 4 | AK7: 4 | AL7: 3 | AM7: 4 | AN7: 5 | AO7: 4 | AP7: 3 | AQ7: 5 | AR7: 4 | AS7: 4 | AT7: 4 | AU7: 3 | AV7: 4 | AW7: 4 | AX7: 4 | AY7: 3 | AZ7: 4 | BA7: 4 | BB7: 4 | BC7: 4 | BD7: 4 | BE7: 4 | BF7: 3 | BG7: 4 | BH7: 3 | BI7: 4 | BJ7: 4 | BK7: 4 | BL7: 4 | BM7: 4 | BN7: 4 | BO7: 4 | BP7: 4 | BQ7: 4 | BR7: 1 | BS7: 0 | BT7: 0 | BU7: 0 | BV7: 0.2586206897 | BW7: 0.7068965517 | BX7: 0.03448275862 | CE7: 7 | CF7: 3 | CG7: 2 | CH7: 3 | CI7: 2 | CP7: 3 | CQ7: 3 | CR7: 3 | CS7: 2 | CT7: 3 | CU7: 2 | CV7: 2 | CW7: 2 | CX7: 1 | CY7: 1 | CZ7: 1 | DA7: 1 | DB7: 2 | DC7: 3 | DD7: 3 | DE7: 3 | DF7: 3 | DG7: 2 | DH7: 2 | DI7: 2 | DJ7: 2 | DK7: 3 | DL7: 3 | DM7: 3 | DN7: 3 | DO7: 3 | DP7: 3 | DQ7: 4 | DR7: 4 | DS7: 3 | DT7: 2 | DU7: 2 | DV7: 3 | DW7: 3 | DX7: 2 | DY7: 3 | DZ7: 4 | EA7: 5 | EB7: 3 | EC7: 1 | ED7: 3 | EE7: 2 | EF7: 2 | EG7: 1 | EH7: 2 | EI7: 2 | EJ7: 2 | EK7: 2 | EL7: 1 | EM7: 1 | EN7: 1 | EO7: 1 | EP7: 2 | EQ7: 1 | ER7: 1 | ES7: 1 | ET7: 1 | EU7: 1 | EV7: 3 | EW7: 0 | EX7: 0.2586206897 | EY7: 0.3275862069 | EZ7: 0.3448275862 | FA7: 0.05172413793 | FB7: 0.01724137931
A8: 7 | L8: 3 | M8: 3 | N8: 3 | O8: 2 | P8: 3 | Q8: 2 | R8: 2 | S8: 2 | T8: 1 | U8: 1 | V8: 1 | W8: 1 | X8: 2 | Y8: 3 | Z8: 3 | AA8: 3 | AB8: 3 | AC8: 2 | AD8: 2 | AE8: 2 | AF8: 2 | AG8: 3 | AH8: 3 | AI8: 3 | AJ8: 3 | AK8: 3 | AL8: 3 | AM8: 4 | AN8: 4 | AO8: 3 | AP8: 2 | AQ8: 2 | AR8: 3 | AS8: 3 | AT8: 2 | AU8: 3 | AV8: 4 | AW8: 5 | AX8: 3 | AY8: 1 | AZ8: 3 | BA8: 2 | BB8: 2 | BC8: 1 | BD8: 2 | BE8: 2 | BF8: 2 | BG8: 2 | BH8: 1 | BI8: 1 | BJ8: 1 | BK8: 1 | BL8: 2 | BM8: 1 | BN8: 1 | BO8: 1 | BP8: 1 | BQ8: 1 | BR8: 3 | BS8: 0 | BT8: 0.2586206897 | BU8: 0.3275862069 | BV8: 0.3448275862 | BW8: 0.05172413793 | BX8: 0.01724137931 | CE8: 8 | CF8: 3 | CG8: 2 | CH8: 3 | CI8: 5 | CP8: 2 | CQ8: 3 | CR8: 3 | CS8: 2 | CT8: 3 | CU8: 2 | CV8: 2 | CW8: 4 | CX8: 3 | CY8: 2 | CZ8: 2 | DA8: 2 | DB8: 2 | DC8: 4 | DD8: 3 | DE8: 3 | DF8: 3 | DG8: 2 | DH8: 4 | DI8: 3 | DJ8: 2 | DK8: 4 | DL8: 3 | DM8: 3 | DN8: 2 | DO8: 4 | DP8: 3 | DQ8: 4 | DR8: 1 | DS8: 4 | DT8: 3 | DU8: 3 | DV8: 5 | DW8: 3 | DX8: 4 | DY8: 3 | DZ8: 4 | EA8: 3 | EB8: 3 | EC8: 2 | ED8: 2 | EE8: 4 | EF8: 3 | EG8: 2 | EH8: 3 | EI8: 2 | EJ8: 4 | EK8: 2 | EL8: 2 | EM8: 3 | EN8: 2 | EO8: 2 | EP8: 2 | EQ8: 2 | ER8: 2 | ES8: 2 | ET8: 2 | EU8: 2 | EV8: 3 | EW8: 0 | EX8: 0.01724137931 | EY8: 0.4310344828 | EZ8: 0.3448275862 | FA8: 0.1896551724 | FB8: 0.01724137931
A9: 8 | L9: 2 | M9: 3 | N9: 3 | O9: 2 | P9: 3 | Q9: 2 | R9: 2 | S9: 4 | T9: 3 | U9: 2 | V9: 2 | W9: 2 | X9: 2 | Y9: 4 | Z9: 3 | AA9: 3 | AB9: 3 | AC9: 2 | AD9: 4 | AE9: 3 | AF9: 2 | AG9: 4 | AH9: 3 | AI9: 3 | AJ9: 2 | AK9: 4 | AL9: 3 | AM9: 4 | AN9: 1 | AO9: 4 | AP9: 3 | AQ9: 3 | AR9: 5 | AS9: 3 | AT9: 4 | AU9: 3 | AV9: 4 | AW9: 3 | AX9: 3 | AY9: 2 | AZ9: 2 | BA9: 4 | BB9: 3 | BC9: 2 | BD9: 3 | BE9: 2 | BF9: 4 | BG9: 2 | BH9: 2 | BI9: 3 | BJ9: 2 | BK9: 2 | BL9: 2 | BM9: 2 | BN9: 2 | BO9: 2 | BP9: 2 | BQ9: 2 | BR9: 3 | BS9: 0 | BT9: 0.01724137931 | BU9: 0.4310344828 | BV9: 0.3448275862 | BW9: 0.1896551724 | BX9: 0.01724137931 | CE9: 9 | CF9: 3 | CG9: 2 | CH9: 6 | CI9: 5 | CP9: 5 | CQ9: 5 | CR9: 5 | CS9: 5 | CT9: 5 | CU9: 5 | CV9: 5 | CW9: 5 | CX9: 5 | CY9: 5 | CZ9: 5 | DA9: 4 | DB9: 5 | DC9: 5 | DD9: 5 | DE9: 5 | DF9: 5 | DG9: 4 | DH9: 4 | DI9: 4 | DJ9: 4 | DK9: 5 | DL9: 5 | DM9: 5 | DN9: 4 | DO9: 5 | DP9: 2 | DQ9: 4 | DR9: 4 | DS9: 3 | DT9: 5 | DU9: 5 | DV9: 5 | DW9: 5 | DX9: 5 | DY9: 4 | DZ9: 4 | EA9: 4 | EB9: 4 | EC9: 4 | ED9: 5 | EE9: 5 | EF9: 5 | EG9: 5 | EH9: 5 | EI9: 5 | EJ9: 5 | EK9: 5 | EL9: 5 | EM9: 5 | EN9: 5 | EO9: 5 | EP9: 5 | EQ9: 5 | ER9: 5 | ES9: 5 | ET9: 5 | EU9: 5 | EV9: 3 | EW9: 0 | EX9: 0 | EY9: 0.01724137931 | EZ9: 0.01724137931 | FA9: 0.224137931 | FB9: 0.7413793103
A10: 9 | L10: 5 | M10: 5 | N10: 5 | O10: 5 | P10: 5 | Q10: 5 | R10: 5 | S10: 5 | T10: 5 | U10: 5 | V10: 5 | W10: 4 | X10: 5 | Y10: 5 | Z10: 5 | AA10: 5 | AB10: 5 | AC10: 4 | AD10: 4 | AE10: 4 | AF10: 4 | AG10: 5 | AH10: 5 | AI10: 5 | AJ10: 4 | AK10: 5 | AL10: 2 | AM10: 4 | AN10: 4 | AO10: 3 | AP10: 5 | AQ10: 5 | AR10: 5 | AS10: 5 | AT10: 5 | AU10: 4 | AV10: 4 | AW10: 4 | AX10: 4 | AY10: 4 | AZ10: 5 | BA10: 5 | BB10: 5 | BC10: 5 | BD10: 5 | BE10: 5 | BF10: 5 | BG10: 5 | BH10: 5 | BI10: 5 | BJ10: 5 | BK10: 5 | BL10: 5 | BM10: 5 | BN10: 5 | BO10: 5 | BP10: 5 | BQ10: 5 | BR10: 3 | BS10: 0 | BT10: 0 | BU10: 0.01724137931 | BV10: 0.01724137931 | BW10: 0.224137931 | BX10: 0.7413793103 | CE10: 10 | CF10: 3 | CG10: 2 | CH10: 3 | CI10: 5 | CP10: 2 | CQ10: 2 | CR10: 3 | CS10: 3 | CT10: 3 | CU10: 2 | CV10: 1 | CW10: 3 | CX10: 1 | CY10: 4 | CZ10: 3 | DA10: 2 | DB10: 2 | DC10: 4 | DD10: 2 | DE10: 3 | DF10: 2 | DG10: 3 | DH10: 3 | DI10: 3 | DJ10: 3 | DK10: 2 | DL10: 3 | DM10: 2 | DN10: 1 | DO10: 5 | DP10: 5 | DQ10: 4 | DR10: 4 | DS10: 4 | DT10: 3 | DU10: 5 | DV10: 4 | DW10: 4 | DX10: 3 | DY10: 5 | DZ10: 4 | EA10: 4 | EB10: 3 | EC10: 1 | ED10: 4 | EE10: 4 | EF10: 3 | EG10: 1 | EH10: 3 | EI10: 4 | EJ10: 3 | EK10: 3 | EL10: 2 | EM10: 3 | EN10: 2 | EO10: 3 | EP10: 3 | EQ10: 1 | ER10: 2 | ES10: 2 | ET10: 2 | EU10: 2 | EV10: 3 | EW10: 0 | EX10: 0.1034482759 | EY10: 0.2586206897 | EZ10: 0.3620689655 | FA10: 0.2068965517 | FB10: 0.06896551724
A11: 10 | L11: 2 | M11: 2 | N11: 3 | O11: 3 | P11: 3 | Q11: 2 | R11: 1 | S11: 3 | T11: 1 | U11: 4 | V11: 3 | W11: 2 | X11: 2 | Y11: 4 | Z11: 2 | AA11: 3 | AB11: 2 | AC11: 3 | AD11: 3 | AE11: 3 | AF11: 3 | AG11: 2 | AH11: 3 | AI11: 2 | AJ11: 1 | AK11: 5 | AL11: 5 | AM11: 4 | AN11: 4 | AO11: 4 | AP11: 3 | AQ11: 5 | AR11: 4 | AS11: 4 | AT11: 3 | AU11: 5 | AV11: 4 | AW11: 4 | AX11: 3 | AY11: 1 | AZ11: 4 | BA11: 4 | BB11: 3 | BC11: 1 | BD11: 3 | BE11: 4 | BF11: 3 | BG11: 3 | BH11: 2 | BI11: 3 | BJ11: 2 | BK11: 3 | BL11: 3 | BM11: 1 | BN11: 2 | BO11: 2 | BP11: 2 | BQ11: 2 | BR11: 3 | BS11: 0 | BT11: 0.1034482759 | BU11: 0.2586206897 | BV11: 0.3620689655 | BW11: 0.2068965517 | BX11: 0.06896551724 | CE11: 11 | CF11: 3 | CG11: 2 | CH11: 3 | CI11: 5 | CP11: 1 | CQ11: 2 | CR11: 2 | CS11: 2 | CT11: 3 | CU11: 1 | CV11: 1 | CW11: 3 | CX11: 2 | CY11: 2 | CZ11: 4 | DA11: 5 | DB11: 5 | DC11: 4 | DD11: 4 | DE11: 4 | DF11: 4 | DG11: 1 | DH11: 5 | DI11: 5 | DJ11: 5 | DK11: 4 | DL11: 1 | DM11: 1 | DN11: 1 | DO11: 4 | DP11: 3 | DQ11: 4 | DR11: 2 | DS11: 1 | DT11: 1 | DU11: 4 | DV11: 1 | DW11: 1 | DX11: 2 | DY11: 3 | DZ11: 3 | EA11: 2 | EB11: 4 | EC11: 3 | ED11: 3 | EE11: 1 | EF11: 3 | EG11: 1 | EH11: 1 | EI11: 3 | EJ11: 3 | EK11: 3 | EL11: 3 | EM11: 4 | EN11: 3 | EO11: 3 | EP11: 2 | EQ11: 3 | ER11: 3 | ES11: 3 | ET11: 3 | EU11: 3 | EV11: 3 | EW11: 0 | EX11: 0.2413793103 | EY11: 0.1551724138 | EZ11: 0.3275862069 | FA11: 0.1896551724 | FB11: 0.08620689655
A12: 11 | L12: 1 | M12: 2 | N12: 2 | O12: 2 | P12: 3 | Q12: 1 | R12: 1 | S12: 3 | T12: 2 | U12: 2 | V12: 4 | W12: 5 | X12: 5 | Y12: 4 | Z12: 4 | AA12: 4 | AB12: 4 | AC12: 1 | AD12: 5 | AE12: 5 | AF12: 5 | AG12: 4 | AH12: 1 | AI12: 1 | AJ12: 1 | AK12: 4 | AL12: 3 | AM12: 4 | AN12: 2 | AO12: 1 | AP12: 1 | AQ12: 4 | AR12: 1 | AS12: 1 | AT12: 2 | AU12: 3 | AV12: 3 | AW12: 2 | AX12: 4 | AY12: 3 | AZ12: 3 | BA12: 1 | BB12: 3 | BC12: 1 | BD12: 1 | BE12: 3 | BF12: 3 | BG12: 3 | BH12: 3 | BI12: 4 | BJ12: 3 | BK12: 3 | BL12: 2 | BM12: 3 | BN12: 3 | BO12: 3 | BP12: 3 | BQ12: 3 | BR12: 3 | BS12: 0 | BT12: 0.2413793103 | BU12: 0.1551724138 | BV12: 0.3275862069 | BW12: 0.1896551724 | BX12: 0.08620689655 | CE12: 12 | CF12: 3 | CG12: 2 | CH12: 3 | CI12: 5 | CP12: 1 | CQ12: 4 | CR12: 4 | CS12: 3 | CT12: 3 | CU12: 4 | CV12: 3 | CW12: 4 | CX12: 3 | CY12: 4 | CZ12: 5 | DA12: 4 | DB12: 5 | DC12: 5 | DD12: 5 | DE12: 4 | DF12: 5 | DG12: 5 | DH12: 5 | DI12: 4 | DJ12: 4 | DK12: 5 | DL12: 4 | DM12: 5 | DN12: 3 | DO12: 5 | DP12: 5 | DQ12: 5 | DR12: 5 | DS12: 5 | DT12: 5 | DU12: 4 | DV12: 5 | DW12: 3 | DX12: 4 | DY12: 5 | DZ12: 5 | EA12: 4 | EB12: 5 | EC12: 1 | ED12: 4 | EE12: 4 | EF12: 3 | EG12: 3 | EH12: 3 | EI12: 1 | EJ12: 4 | EK12: 4 | EL12: 1 | EM12: 1 | EN12: 1 | EO12: 1 | EP12: 1 | EQ12: 3 | ER12: 1 | ES12: 1 | ET12: 1 | EU12: 1 | EV12: 3 | EW12: 0 | EX12: 0.2068965517 | EY12: 0 | EZ12: 0.1724137931 | FA12: 0.2931034483 | FB12: 0.3275862069
A13: 12 | L13: 1 | M13: 4 | N13: 4 | O13: 3 | P13: 3 | Q13: 4 | R13: 3 | S13: 4 | T13: 3 | U13: 4 | V13: 5 | W13: 4 | X13: 5 | Y13: 5 | Z13: 5 | AA13: 4 | AB13: 5 | AC13: 5 | AD13: 5 | AE13: 4 | AF13: 4 | AG13: 5 | AH13: 4 | AI13: 5 | AJ13: 3 | AK13: 5 | AL13: 5 | AM13: 5 | AN13: 5 | AO13: 5 | AP13: 5 | AQ13: 4 | AR13: 5 | AS13: 3 | AT13: 4 | AU13: 5 | AV13: 5 | AW13: 4 | AX13: 5 | AY13: 1 | AZ13: 4 | BA13: 4 | BB13: 3 | BC13: 3 | BD13: 3 | BE13: 1 | BF13: 4 | BG13: 4 | BH13: 1 | BI13: 1 | BJ13: 1 | BK13: 1 | BL13: 1 | BM13: 3 | BN13: 1 | BO13: 1 | BP13: 1 | BQ13: 1 | BR13: 3 | BS13: 0 | BT13: 0.2068965517 | BU13: 0 | BV13: 0.1724137931 | BW13: 0.2931034483 | BX13: 0.3275862069 | CE13: 13 | CF13: 3 | CG13: 2 | CH13: 3 | CI13: 5 | CP13: 2 | CQ13: 4 | CR13: 3 | CS13: 4 | CT13: 4 | CU13: 2 | CV13: 2 | CW13: 3 | CX13: 3 | CY13: 4 | CZ13: 4 | DA13: n | DB13: n | DC13: 4 | DD13: 4 | DE13: 4 | DF13: 4 | DG13: 4 | DH13: 4 | DI13: 4 | DJ13: 3 | DK13: 4 | DL13: 4 | DM13: 4 | DN13: 2 | DO13: 5 | DP13: 5 | DQ13: 5 | DR13: 3 | DS13: 5 | DT13: 5 | DU13: 4 | DV13: 3 | DW13: 4 | DX13: 4 | DY13: 5 | DZ13: 3 | EA13: 4 | EB13: 3 | EC13: 3 | ED13: 5 | EE13: 4 | EF13: 4 | EG13: 3 | EH13: 3 | EI13: 4 | EJ13: 4 | EK13: 4 | EL13: 3 | EM13: 4 | EN13: 3 | EO13: 3 | EP13: 4 | EQ13: n | ER13: 3 | ES13: 3 | ET13: 3 | EU13: 2 | EV13: 3 | EW13: 0.075 | EX13: 0 | EY13: 0.08620689655 | EZ13: 0.2931034483 | FA13: 0.4482758621 | FB13: 0.1206896552
A14: 13 | L14: 2 | M14: 4 | N14: 3 | O14: 4 | P14: 4 | Q14: 2 | R14: 2 | S14: 3 | T14: 3 | U14: 4 | V14: 4 | W14: 999 | X14: 999 | Y14: 4 | Z14: 4 | AA14: 4 | AB14: 4 | AC14: 4 | AD14: 4 | AE14: 4 | AF14: 3 | AG14: 4 | AH14: 4 | AI14: 4 | AJ14: 2 | AK14: 5 | AL14: 5 | AM14: 5 | AN14: 3 | AO14: 5 | AP14: 5 | AQ14: 4 | AR14: 3 | AS14: 4 | AT14: 4 | AU14: 5 | AV14: 3 | AW14: 4 | AX14: 3 | AY14: 3 | AZ14: 5 | BA14: 4 | BB14: 4 | BC14: 3 | BD14: 3 | BE14: 4 | BF14: 4 | BG14: 4 | BH14: 3 | BI14: 4 | BJ14: 3 | BK14: 3 | BL14: 4 | BM14: 999 | BN14: 3 | BO14: 3 | BP14: 3 | BQ14: 2 | BR14: 3 | BS14: 0.075 | BT14: 0 | BU14: 0.08620689655 | BV14: 0.2931034483 | BW14: 0.4482758621 | BX14: 0.1206896552 | CE14: 14 | CF14: 3 | CG14: 2 | CH14: 3 | CI14: 5 | CP14: 1 | CQ14: 2 | CR14: 3 | CS14: 4 | CT14: 5 | CU14: 4 | CV14: 3 | CW14: 2 | CX14: 1 | CY14: 2 | CZ14: 2 | DA14: 2 | DB14: 2 | DC14: 2 | DD14: 2 | DE14: 2 | DF14: 2 | DG14: 2 | DH14: 2 | DI14: 2 | DJ14: 3 | DK14: 3 | DL14: 3 | DM14: 3 | DN14: 3 | DO14: 4 | DP14: 2 | DQ14: 3 | DR14: 4 | DS14: 3 | DT14: 5 | DU14: 2 | DV14: 1 | DW14: 4 | DX14: 3 | DY14: 5 | DZ14: 1 | EA14: 5 | EB14: 3 | EC14: 4 | ED14: 5 | EE14: 5 | EF14: 5 | EG14: 5 | EH14: 5 | EI14: 5 | EJ14: 5 | EK14: 5 | EL14: 5 | EM14: 5 | EN14: 4 | EO14: 3 | EP14: 2 | EQ14: 1 | ER14: 2 | ES14: 3 | ET14: 4 | EU14: 5 | EV14: 3 | EW14: 0 | EX14: 0.08620689655 | EY14: 0.2931034483 | EZ14: 0.224137931 | FA14: 0.1379310345 | FB14: 0.2586206897
A15: 14 | L15: 1 | M15: 2 | N15: 3 | O15: 4 | P15: 5 | Q15: 4 | R15: 3 | S15: 2 | T15: 1 | U15: 2 | V15: 2 | W15: 2 | X15: 2 | Y15: 2 | Z15: 2 | AA15: 2 | AB15: 2 | AC15: 2 | AD15: 2 | AE15: 2 | AF15: 3 | AG15: 3 | AH15: 3 | AI15: 3 | AJ15: 3 | AK15: 4 | AL15: 2 | AM15: 3 | AN15: 4 | AO15: 3 | AP15: 5 | AQ15: 2 | AR15: 1 | AS15: 4 | AT15: 3 | AU15: 5 | AV15: 1 | AW15: 5 | AX15: 3 | AY15: 4 | AZ15: 5 | BA15: 5 | BB15: 5 | BC15: 5 | BD15: 5 | BE15: 5 | BF15: 5 | BG15: 5 | BH15: 5 | BI15: 5 | BJ15: 4 | BK15: 3 | BL15: 2 | BM15: 1 | BN15: 2 | BO15: 3 | BP15: 4 | BQ15: 5 | BR15: 3 | BS15: 0 | BT15: 0.08620689655 | BU15: 0.2931034483 | BV15: 0.224137931 | BW15: 0.1379310345 | BX15: 0.2586206897 | CE15: 15 | CF15: 3 | CG15: 2 | CH15: 3 | CI15: 5 | CP15: 5 | CQ15: 5 | CR15: 4 | CS15: 4 | CT15: 5 | CU15: 4 | CV15: 4 | CW15: 5 | CX15: 4 | CY15: 5 | CZ15: 4 | DA15: 4 | DB15: 4 | DC15: 5 | DD15: 4 | DE15: 5 | DF15: 4 | DG15: 5 | DH15: 4 | DI15: 4 | DJ15: 5 | DK15: 5 | DL15: 5 | DM15: 4 | DN15: 4 | DO15: 4 | DP15: 4 | DQ15: 5 | DR15: 5 | DS15: 3 | DT15: 4 | DU15: 5 | DV15: 4 | DW15: 5 | DX15: 4 | DY15: 3 | DZ15: 5 | EA15: 4 | EB15: 3 | EC15: 4 | ED15: 5 | EE15: 5 | EF15: 5 | EG15: 5 | EH15: 5 | EI15: 5 | EJ15: 4 | EK15: 5 | EL15: 3 | EM15: 5 | EN15: 4 | EO15: 4 | EP15: 4 | EQ15: 4 | ER15: 4 | ES15: 4 | ET15: 4 | EU15: 4 | EV15: 3 | EW15: 0 | EX15: 0 | EY15: 0 | EZ15: 0.06896551724 | FA15: 0.5172413793 | FB15: 0.4137931034
A16: 15 | L16: 5 | M16: 5 | N16: 4 | O16: 4 | P16: 5 | Q16: 4 | R16: 4 | S16: 5 | T16: 4 | U16: 5 | V16: 4 | W16: 4 | X16: 4 | Y16: 5 | Z16: 4 | AA16: 5 | AB16: 4 | AC16: 5 | AD16: 4 | AE16: 4 | AF16: 5 | AG16: 5 | AH16: 5 | AI16: 4 | AJ16: 4 | AK16: 4 | AL16: 4 | AM16: 5 | AN16: 5 | AO16: 3 | AP16: 4 | AQ16: 5 | AR16: 4 | AS16: 5 | AT16: 4 | AU16: 3 | AV16: 5 | AW16: 4 | AX16: 3 | AY16: 4 | AZ16: 5 | BA16: 5 | BB16: 5 | BC16: 5 | BD16: 5 | BE16: 5 | BF16: 4 | BG16: 5 | BH16: 3 | BI16: 5 | BJ16: 4 | BK16: 4 | BL16: 4 | BM16: 4 | BN16: 4 | BO16: 4 | BP16: 4 | BQ16: 4 | BR16: 3 | BS16: 0 | BT16: 0 | BU16: 0 | BV16: 0.06896551724 | BW16: 0.5172413793 | BX16: 0.4137931034 | CE16: 16 | CF16: 3 | CG16: 4 | CH16: 4 | CI16: 1 | CP16: 2 | CQ16: 2 | CR16: 2 | CS16: 3 | CT16: 2 | CU16: 2 | CV16: 1 | CW16: 2 | CX16: 3 | CY16: 3 | CZ16: 4 | DA16: 2 | DB16: 3 | DC16: 5 | DD16: 3 | DE16: 4 | DF16: 4 | DG16: 4 | DH16: 3 | DI16: 2 | DJ16: 3 | DK16: 4 | DL16: 4 | DM16: 3 | DN16: 4 | DO16: 4 | DP16: 3 | DQ16: 4 | DR16: 3 | DS16: 3 | DT16: 4 | DU16: 5 | DV16: 4 | DW16: 4 | DX16: 5 | DY16: 5 | DZ16: 4 | EA16: 4 | EB16: 3 | EC16: 3 | ED16: 4 | EE16: 2 | EF16: 2 | EG16: 4 | EH16: 3 | EI16: 4 | EJ16: 4 | EK16: 4 | EL16: 2 | EM16: 3 | EN16: 2 | EO16: 3 | EP16: 3 | EQ16: 3 | ER16: 2 | ES16: 3 | ET16: 3 | EU16: 1 | EV16: 3 | EW16: 0 | EX16: 0.03448275862 | EY16: 0.224137931 | EZ16: 0.3448275862 | FA16: 0.3275862069 | FB16: 0.06896551724
A17: 16 | L17: 2 | M17: 2 | N17: 2 | O17: 3 | P17: 2 | Q17: 2 | R17: 1 | S17: 2 | T17: 3 | U17: 3 | V17: 4 | W17: 2 | X17: 3 | Y17: 5 | Z17: 3 | AA17: 4 | AB17: 4 | AC17: 4 | AD17: 3 | AE17: 2 | AF17: 3 | AG17: 4 | AH17: 4 | AI17: 3 | AJ17: 4 | AK17: 4 | AL17: 3 | AM17: 4 | AN17: 3 | AO17: 3 | AP17: 4 | AQ17: 5 | AR17: 4 | AS17: 4 | AT17: 5 | AU17: 5 | AV17: 4 | AW17: 4 | AX17: 3 | AY17: 3 | AZ17: 4 | BA17: 2 | BB17: 2 | BC17: 4 | BD17: 3 | BE17: 4 | BF17: 4 | BG17: 4 | BH17: 2 | BI17: 3 | BJ17: 2 | BK17: 3 | BL17: 3 | BM17: 3 | BN17: 2 | BO17: 3 | BP17: 3 | BQ17: 1 | BR17: 3 | BS17: 0 | BT17: 0.03448275862 | BU17: 0.224137931 | BV17: 0.3448275862 | BW17: 0.3275862069 | BX17: 0.06896551724 | CE17: 17 | CF17: 3 | CG17: 4 | CH17: 4 | CI17: 2 | CP17: 2 | CQ17: 2 | CR17: 2 | CS17: 1 | CT17: 1 | CU17: 1 | CV17: 1 | CW17: 1 | CX17: 1 | CY17: 2 | CZ17: 3 | DA17: 3 | DB17: 3 | DC17: 5 | DD17: 4 | DE17: 1 | DF17: 4 | DG17: 3 | DH17: 4 | DI17: 3 | DJ17: 3 | DK17: 3 | DL17: 2 | DM17: 2 | DN17: 2 | DO17: 4 | DP17: 3 | DQ17: 4 | DR17: 3 | DS17: 3 | DT17: 3 | DU17: 4 | DV17: 4 | DW17: 4 | DX17: 3 | DY17: 3 | DZ17: 4 | EA17: 4 | EB17: 3 | EC17: 1 | ED17: 2 | EE17: 2 | EF17: 2 | EG17: 1 | EH17: 2 | EI17: 4 | EJ17: 1 | EK17: 1 | EL17: 1 | EM17: 4 | EN17: 3 | EO17: 1 | EP17: 3 | EQ17: 1 | ER17: 1 | ES17: 1 | ET17: 1 | EU17: 2 | EV17: 3 | EW17: 0 | EX17: 0.2931034483 | EY17: 0.2068965517 | EZ17: 0.275862069 | FA17: 0.2068965517 | FB17: 0.01724137931
A18: 17 | L18: 2 | M18: 2 | N18: 2 | O18: 1 | P18: 1 | Q18: 1 | R18: 1 | S18: 1 | T18: 1 | U18: 2 | V18: 3 | W18: 3 | X18: 3 | Y18: 5 | Z18: 4 | AA18: 1 | AB18: 4 | AC18: 3 | AD18: 4 | AE18: 3 | AF18: 3 | AG18: 3 | AH18: 2 | AI18: 2 | AJ18: 2 | AK18: 4 | AL18: 3 | AM18: 4 | AN18: 3 | AO18: 3 | AP18: 3 | AQ18: 4 | AR18: 4 | AS18: 4 | AT18: 3 | AU18: 3 | AV18: 4 | AW18: 4 | AX18: 3 | AY18: 1 | AZ18: 2 | BA18: 2 | BB18: 2 | BC18: 1 | BD18: 2 | BE18: 4 | BF18: 1 | BG18: 1 | BH18: 1 | BI18: 4 | BJ18: 3 | BK18: 1 | BL18: 3 | BM18: 1 | BN18: 1 | BO18: 1 | BP18: 1 | BQ18: 2 | BR18: 3 | BS18: 0 | BT18: 0.2931034483 | BU18: 0.2068965517 | BV18: 0.275862069 | BW18: 0.2068965517 | BX18: 0.01724137931 | CE18: 18 | CF18: 3 | CG18: 4 | CH18: 4 | CI18: 2 | CP18: 1 | CQ18: 3 | CR18: 3 | CS18: 3 | CT18: 3 | CU18: 1 | CV18: 2 | CW18: 1 | CX18: 2 | CY18: 1 | CZ18: 1 | DA18: 3 | DB18: 2 | DC18: 3 | DD18: 2 | DE18: 1 | DF18: 4 | DG18: 3 | DH18: 3 | DI18: 3 | DJ18: 2 | DK18: 3 | DL18: 3 | DM18: 4 | DN18: 3 | DO18: 4 | DP18: 3 | DQ18: 4 | DR18: 5 | DS18: 5 | DT18: 5 | DU18: 2 | DV18: 4 | DW18: 3 | DX18: 2 | DY18: 3 | DZ18: 5 | EA18: 4 | EB18: 4 | EC18: 3 | ED18: 1 | EE18: 2 | EF18: 1 | EG18: 1 | EH18: 3 | EI18: 2 | EJ18: 1 | EK18: 1 | EL18: 1 | EM18: 1 | EN18: 2 | EO18: 1 | EP18: 1 | EQ18: 1 | ER18: 1 | ES18: 1 | ET18: 1 | EU18: 1 | EV18: 3 | EW18: 0 | EX18: 0.3448275862 | EY18: 0.1724137931 | EZ18: 0.2931034483 | FA18: 0.1206896552 | FB18: 0.06896551724
A19: 18 | L19: 1 | M19: 3 | N19: 3 | O19: 3 | P19: 3 | Q19: 1 | R19: 2 | S19: 1 | T19: 2 | U19: 1 | V19: 1 | W19: 3 | X19: 2 | Y19: 3 | Z19: 2 | AA19: 1 | AB19: 4 | AC19: 3 | AD19: 3 | AE19: 3 | AF19: 2 | AG19: 3 | AH19: 3 | AI19: 4 | AJ19: 3 | AK19: 4 | AL19: 3 | AM19: 4 | AN19: 5 | AO19: 5 | AP19: 5 | AQ19: 2 | AR19: 4 | AS19: 3 | AT19: 2 | AU19: 3 | AV19: 5 | AW19: 4 | AX19: 4 | AY19: 3 | AZ19: 1 | BA19: 2 | BB19: 1 | BC19: 1 | BD19: 3 | BE19: 2 | BF19: 1 | BG19: 1 | BH19: 1 | BI19: 1 | BJ19: 2 | BK19: 1 | BL19: 1 | BM19: 1 | BN19: 1 | BO19: 1 | BP19: 1 | BQ19: 1 | BR19: 3 | BS19: 0 | BT19: 0.3448275862 | BU19: 0.1724137931 | BV19: 0.2931034483 | BW19: 0.1206896552 | BX19: 0.06896551724 | CE19: 19 | CF19: 3 | CG19: 4 | CH19: 4 | CI19: 5 | CP19: 2 | CQ19: 3 | CR19: 4 | CS19: 2 | CT19: 2 | CU19: 3 | CV19: 2 | CW19: 3 | CX19: 4 | CY19: 3 | CZ19: 5 | DA19: 4 | DB19: 4 | DC19: 4 | DD19: 3 | DE19: 3 | DF19: 4 | DG19: 2 | DH19: 4 | DI19: 2 | DJ19: 4 | DK19: 5 | DL19: 3 | DM19: 4 | DN19: 3 | DO19: 4 | DP19: 3 | DQ19: 4 | DR19: 3 | DS19: 4 | DT19: 4 | DU19: 4 | DV19: 4 | DW19: 3 | DX19: 3 | DY19: 5 | DZ19: 5 | EA19: 5 | EB19: 3 | EC19: 3 | ED19: 4 | EE19: 2 | EF19: 3 | EG19: 3 | EH19: 4 | EI19: 3 | EJ19: 3 | EK19: 3 | EL19: 3 | EM19: 3 | EN19: 4 | EO19: 2 | EP19: 4 | EQ19: 3 | ER19: 2 | ES19: 3 | ET19: 2 | EU19: 2 | EV19: 3 | EW19: 0 | EX19: 0 | EY19: 0.1896551724 | EZ19: 0.3965517241 | FA19: 0.3275862069 | FB19: 0.08620689655
A20: 19 | L20: 2 | M20: 3 | N20: 4 | O20: 2 | P20: 2 | Q20: 3 | R20: 2 | S20: 3 | T20: 4 | U20: 3 | V20: 5 | W20: 4 | X20: 4 | Y20: 4 | Z20: 3 | AA20: 3 | AB20: 4 | AC20: 2 | AD20: 4 | AE20: 2 | AF20: 4 | AG20: 5 | AH20: 3 | AI20: 4 | AJ20: 3 | AK20: 4 | AL20: 3 | AM20: 4 | AN20: 3 | AO20: 4 | AP20: 4 | AQ20: 4 | AR20: 4 | AS20: 3 | AT20: 3 | AU20: 5 | AV20: 5 | AW20: 5 | AX20: 3 | AY20: 3 | AZ20: 4 | BA20: 2 | BB20: 3 | BC20: 3 | BD20: 4 | BE20: 3 | BF20: 3 | BG20: 3 | BH20: 3 | BI20: 3 | BJ20: 4 | BK20: 2 | BL20: 4 | BM20: 3 | BN20: 2 | BO20: 3 | BP20: 2 | BQ20: 2 | BR20: 3 | BS20: 0 | BT20: 0 | BU20: 0.1896551724 | BV20: 0.3965517241 | BW20: 0.3275862069 | BX20: 0.08620689655 | CE20: 20 | CF20: 3 | CG20: 4 | CH20: 4 | CI20: 5 | CP20: 4 | CQ20: 4 | CR20: 3 | CS20: 2 | CT20: 3 | CU20: 3 | CV20: 2 | CW20: 3 | CX20: 3 | CY20: 3 | CZ20: 3 | DA20: 3 | DB20: 3 | DC20: 4 | DD20: 3 | DE20: 3 | DF20: 3 | DG20: 3 | DH20: 4 | DI20: 4 | DJ20: 3 | DK20: 3 | DL20: 3 | DM20: 3 | DN20: 3 | DO20: 4 | DP20: 2 | DQ20: 3 | DR20: 4 | DS20: 4 | DT20: 3 | DU20: 4 | DV20: 4 | DW20: 4 | DX20: 2 | DY20: 3 | DZ20: 4 | EA20: 3 | EB20: 1 | EC20: 3 | ED20: 3 | EE20: 3 | EF20: 2 | EG20: n | EH20: 3 | EI20: 4 | EJ20: 3 | EK20: 3 | EL20: 2 | EM20: 3 | EN20: 2 | EO20: 2 | EP20: 4 | EQ20: 3 | ER20: 3 | ES20: 3 | ET20: 3 | EU20: 3 | EV20: 3 | EW20: 0 | EX20: 0.01724137931 | EY20: 0.1379310345 | EZ20: 0.5862068966 | FA20: 0.2413793103 | FB20: 0
A21: 20 | L21: 4 | M21: 4 | N21: 3 | O21: 2 | P21: 3 | Q21: 3 | R21: 2 | S21: 3 | T21: 3 | U21: 3 | V21: 3 | W21: 3 | X21: 3 | Y21: 4 | Z21: 3 | AA21: 3 | AB21: 3 | AC21: 3 | AD21: 4 | AE21: 4 | AF21: 3 | AG21: 3 | AH21: 3 | AI21: 3 | AJ21: 3 | AK21: 4 | AL21: 2 | AM21: 3 | AN21: 4 | AO21: 4 | AP21: 3 | AQ21: 4 | AR21: 4 | AS21: 4 | AT21: 2 | AU21: 3 | AV21: 4 | AW21: 3 | AX21: 1 | AY21: 3 | AZ21: 3 | BA21: 3 | BB21: 2 | BC21: 999 | BD21: 3 | BE21: 4 | BF21: 3 | BG21: 3 | BH21: 2 | BI21: 3 | BJ21: 2 | BK21: 2 | BL21: 4 | BM21: 3 | BN21: 3 | BO21: 3 | BP21: 3 | BQ21: 3 | BR21: 3 | BS21: 0 | BT21: 0.01724137931 | BU21: 0.1379310345 | BV21: 0.5862068966 | BW21: 0.2413793103 | BX21: 0 | CE21: 21 | CF21: 3 | CG21: 4 | CH21: 4 | CI21: 4 | CP21: 3 | CQ21: 3 | CR21: 3 | CS21: 4 | CT21: 4 | CU21: 3 | CV21: 2 | CW21: 2 | CX21: 3 | CY21: 2 | CZ21: 2 | DA21: 2 | DB21: 2 | DC21: 3 | DD21: 3 | DE21: 4 | DF21: 4 | DG21: 3 | DH21: 4 | DI21: 4 | DJ21: 2 | DK21: 4 | DL21: 4 | DM21: 4 | DN21: 3 | DO21: 3 | DP21: 5 | DQ21: 4 | DR21: 4 | DS21: 4 | DT21: 2 | DU21: 4 | DV21: 5 | DW21: 4 | DX21: 4 | DY21: 3 | DZ21: 4 | EA21: 3 | EB21: 3 | EC21: 3 | ED21: 5 | EE21: 3 | EF21: 2 | EG21: 2 | EH21: 3 | EI21: 4 | EJ21: 2 | EK21: 2 | EL21: 2 | EM21: 4 | EN21: 3 | EO21: 2 | EP21: 4 | EQ21: 2 | ER21: 3 | ES21: 2 | ET21: 2 | EU21: 2 | EV21: 3 | EW21: 0 | EX21: 0 | EY21: 0.3103448276 | EZ21: 0.3103448276 | FA21: 0.3275862069 | FB21: 0.05172413793
A22: 21 | L22: 3 | M22: 3 | N22: 3 | O22: 4 | P22: 4 | Q22: 3 | R22: 2 | S22: 2 | T22: 3 | U22: 2 | V22: 2 | W22: 2 | X22: 2 | Y22: 3 | Z22: 3 | AA22: 4 | AB22: 4 | AC22: 3 | AD22: 4 | AE22: 4 | AF22: 2 | AG22: 4 | AH22: 4 | AI22: 4 | AJ22: 3 | AK22: 3 | AL22: 5 | AM22: 4 | AN22: 4 | AO22: 4 | AP22: 2 | AQ22: 4 | AR22: 5 | AS22: 4 | AT22: 4 | AU22: 3 | AV22: 4 | AW22: 3 | AX22: 3 | AY22: 3 | AZ22: 5 | BA22: 3 | BB22: 2 | BC22: 2 | BD22: 3 | BE22: 4 | BF22: 2 | BG22: 2 | BH22: 2 | BI22: 4 | BJ22: 3 | BK22: 2 | BL22: 4 | BM22: 2 | BN22: 3 | BO22: 2 | BP22: 2 | BQ22: 2 | BR22: 3 | BS22: 0 | BT22: 0 | BU22: 0.3103448276 | BV22: 0.3103448276 | BW22: 0.3275862069 | BX22: 0.05172413793 | CE22: 22 | CF22: 3 | CG22: 4 | CH22: 4 | CI22: 5 | CP22: 2 | CQ22: 4 | CR22: 3 | CS22: 2 | CT22: 3 | CU22: 3 | CV22: 3 | CW22: 4 | CX22: 3 | CY22: 3 | CZ22: 3 | DA22: 2 | DB22: 3 | DC22: 4 | DD22: 3 | DE22: 4 | DF22: 2 | DG22: 2 | DH22: 3 | DI22: 2 | DJ22: 4 | DK22: 4 | DL22: 3 | DM22: 4 | DN22: 3 | DO22: 2 | DP22: 3 | DQ22: 5 | DR22: 3 | DS22: 3 | DT22: 3 | DU22: 3 | DV22: 3 | DW22: 4 | DX22: 3 | DY22: 3 | DZ22: 4 | EA22: 3 | EB22: 3 | EC22: 3 | ED22: 4 | EE22: 4 | EF22: 3 | EG22: 3 | EH22: 4 | EI22: 3 | EJ22: 3 | EK22: 4 | EL22: 2 | EM22: 4 | EN22: 3 | EO22: 3 | EP22: 3 | EQ22: 3 | ER22: 4 | ES22: 3 | ET22: 3 | EU22: 3 | EV22: 3 | EW22: 0 | EX22: 0 | EY22: 0.1379310345 | EZ22: 0.5862068966 | FA22: 0.2586206897 | FB22: 0.01724137931
A23: 22 | L23: 2 | M23: 4 | N23: 3 | O23: 2 | P23: 3 | Q23: 3 | R23: 3 | S23: 4 | T23: 3 | U23: 3 | V23: 3 | W23: 2 | X23: 3 | Y23: 4 | Z23: 3 | AA23: 4 | AB23: 2 | AC23: 2 | AD23: 3 | AE23: 2 | AF23: 4 | AG23: 4 | AH23: 3 | AI23: 4 | AJ23: 3 | AK23: 2 | AL23: 3 | AM23: 5 | AN23: 3 | AO23: 3 | AP23: 3 | AQ23: 3 | AR23: 3 | AS23: 4 | AT23: 3 | AU23: 3 | AV23: 4 | AW23: 3 | AX23: 3 | AY23: 3 | AZ23: 4 | BA23: 4 | BB23: 3 | BC23: 3 | BD23: 4 | BE23: 3 | BF23: 3 | BG23: 4 | BH23: 2 | BI23: 4 | BJ23: 3 | BK23: 3 | BL23: 3 | BM23: 3 | BN23: 4 | BO23: 3 | BP23: 3 | BQ23: 3 | BR23: 3 | BS23: 0 | BT23: 0 | BU23: 0.1379310345 | BV23: 0.5862068966 | BW23: 0.2586206897 | BX23: 0.01724137931 | CE23: 23 | CF23: 3 | CG23: 4 | CH23: 4 | CI23: 5 | CP23: 1 | CQ23: 2 | CR23: 3 | CS23: 3 | CT23: 2 | CU23: 2 | CV23: 2 | CW23: 1 | CX23: 4 | CY23: 3 | CZ23: 3 | DA23: 2 | DB23: 2 | DC23: 3 | DD23: 2 | DE23: 4 | DF23: 4 | DG23: 1 | DH23: 3 | DI23: 2 | DJ23: 2 | DK23: 3 | DL23: 2 | DM23: 2 | DN23: 2 | DO23: 5 | DP23: 3 | DQ23: 5 | DR23: 3 | DS23: 5 | DT23: 3 | DU23: 4 | DV23: 5 | DW23: 4 | DX23: 4 | DY23: 5 | DZ23: 5 | EA23: 5 | EB23: 3 | EC23: n | ED23: 4 | EE23: 2 | EF23: 1 | EG23: 1 | EH23: 2 | EI23: 2 | EJ23: 2 | EK23: 2 | EL23: 1 | EM23: 1 | EN23: 2 | EO23: 2 | EP23: 2 | EQ23: 1 | ER23: 2 | ES23: 3 | ET23: 1 | EU23: 1 | EV23: 3 | EW23: 0 | EX23: 0.1724137931 | EY23: 0.3620689655 | EZ23: 0.2068965517 | FA23: 0.1206896552 | FB23: 0.1206896552
A24: 23 | L24: 1 | M24: 2 | N24: 3 | O24: 3 | P24: 2 | Q24: 2 | R24: 2 | S24: 1 | T24: 4 | U24: 3 | V24: 3 | W24: 2 | X24: 2 | Y24: 3 | Z24: 2 | AA24: 4 | AB24: 4 | AC24: 1 | AD24: 3 | AE24: 2 | AF24: 2 | AG24: 3 | AH24: 2 | AI24: 2 | AJ24: 2 | AK24: 5 | AL24: 3 | AM24: 5 | AN24: 3 | AO24: 5 | AP24: 3 | AQ24: 4 | AR24: 5 | AS24: 4 | AT24: 4 | AU24: 5 | AV24: 5 | AW24: 5 | AX24: 3 | AY24: 999 | AZ24: 4 | BA24: 2 | BB24: 1 | BC24: 1 | BD24: 2 | BE24: 2 | BF24: 2 | BG24: 2 | BH24: 1 | BI24: 1 | BJ24: 2 | BK24: 2 | BL24: 2 | BM24: 1 | BN24: 2 | BO24: 3 | BP24: 1 | BQ24: 1 | BR24: 3 | BS24: 0 | BT24: 0.1724137931 | BU24: 0.3620689655 | BV24: 0.2068965517 | BW24: 0.1206896552 | BX24: 0.1206896552 | CE24: 24 | CF24: 3 | CG24: 4 | CH24: 4 | CI24: 1 | CP24: 4 | CQ24: 4 | CR24: 5 | CS24: 5 | CT24: 5 | CU24: 4 | CV24: 3 | CW24: 3 | CX24: 2 | CY24: 4 | CZ24: 4 | DA24: 4 | DB24: 5 | DC24: 4 | DD24: 4 | DE24: 4 | DF24: 5 | DG24: 4 | DH24: 4 | DI24: 2 | DJ24: 3 | DK24: 5 | DL24: 4 | DM24: 3 | DN24: 3 | DO24: 4 | DP24: 3 | DQ24: 5 | DR24: 3 | DS24: 5 | DT24: 5 | DU24: 4 | DV24: 4 | DW24: 5 | DX24: 4 | DY24: 3 | DZ24: 4 | EA24: 4 | EB24: 3 | EC24: 4 | ED24: 4 | EE24: 5 | EF24: 4 | EG24: 4 | EH24: 5 | EI24: 5 | EJ24: 4 | EK24: 3 | EL24: 4 | EM24: 4 | EN24: 5 | EO24: 3 | EP24: 4 | EQ24: 4 | ER24: 3 | ES24: 3 | ET24: 3 | EU24: 3 | EV24: 3 | EW24: 0 | EX24: 0 | EY24: 0.03448275862 | EZ24: 0.2586206897 | FA24: 0.4655172414 | FB24: 0.2413793103
A25: 24 | L25: 4 | M25: 4 | N25: 5 | O25: 5 | P25: 5 | Q25: 4 | R25: 3 | S25: 3 | T25: 2 | U25: 4 | V25: 4 | W25: 4 | X25: 5 | Y25: 4 | Z25: 4 | AA25: 4 | AB25: 5 | AC25: 4 | AD25: 4 | AE25: 2 | AF25: 3 | AG25: 5 | AH25: 4 | AI25: 3 | AJ25: 3 | AK25: 4 | AL25: 3 | AM25: 5 | AN25: 3 | AO25: 5 | AP25: 5 | AQ25: 4 | AR25: 4 | AS25: 5 | AT25: 4 | AU25: 3 | AV25: 4 | AW25: 4 | AX25: 3 | AY25: 4 | AZ25: 4 | BA25: 5 | BB25: 4 | BC25: 4 | BD25: 5 | BE25: 5 | BF25: 4 | BG25: 3 | BH25: 4 | BI25: 4 | BJ25: 5 | BK25: 3 | BL25: 4 | BM25: 4 | BN25: 3 | BO25: 3 | BP25: 3 | BQ25: 3 | BR25: 3 | BS25: 0 | BT25: 0 | BU25: 0.03448275862 | BV25: 0.2586206897 | BW25: 0.4655172414 | BX25: 0.2413793103 | CE25: 25 | CF25: 3 | CG25: 4 | CH25: 4 | CI25: 1 | CP25: 1 | CQ25: 3 | CR25: 3 | CS25: 3 | CT25: 3 | CU25: 3 | CV25: 2 | CW25: 3 | CX25: 3 | CY25: 1 | CZ25: 2 | DA25: 2 | DB25: 2 | DC25: 4 | DD25: 3 | DE25: 3 | DF25: 3 | DG25: 3 | DH25: 3 | DI25: 3 | DJ25: 1 | DK25: 3 | DL25: 3 | DM25: 1 | DN25: 1 | DO25: 3 | DP25: 3 | DQ25: 5 | DR25: 1 | DS25: 1 | DT25: 2 | DU25: 4 | DV25: 2 | DW25: 5 | DX25: 5 | DY25: 1 | DZ25: 5 | EA25: 2 | EB25: 1 | EC25: 3 | ED25: 3 | EE25: 3 | EF25: 3 | EG25: 3 | EH25: 3 | EI25: 3 | EJ25: 3 | EK25: 3 | EL25: 1 | EM25: 1 | EN25: 1 | EO25: 1 | EP25: 1 | EQ25: 1 | ER25: 1 | ES25: 1 | ET25: 1 | EU25: 1 | EV25: 3 | EW25: 0 | EX25: 0.3275862069 | EY25: 0.1206896552 | EZ25: 0.4482758621 | FA25: 0.03448275862 | FB25: 0.06896551724
A26: 25 | L26: 1 | M26: 3 | N26: 3 | O26: 3 | P26: 3 | Q26: 3 | R26: 2 | S26: 3 | T26: 3 | U26: 1 | V26: 2 | W26: 2 | X26: 2 | Y26: 4 | Z26: 3 | AA26: 3 | AB26: 3 | AC26: 3 | AD26: 3 | AE26: 3 | AF26: 1 | AG26: 3 | AH26: 3 | AI26: 1 | AJ26: 1 | AK26: 3 | AL26: 3 | AM26: 5 | AN26: 1 | AO26: 1 | AP26: 2 | AQ26: 4 | AR26: 2 | AS26: 5 | AT26: 5 | AU26: 1 | AV26: 5 | AW26: 2 | AX26: 1 | AY26: 3 | AZ26: 3 | BA26: 3 | BB26: 3 | BC26: 3 | BD26: 3 | BE26: 3 | BF26: 3 | BG26: 3 | BH26: 1 | BI26: 1 | BJ26: 1 | BK26: 1 | BL26: 1 | BM26: 1 | BN26: 1 | BO26: 1 | BP26: 1 | BQ26: 1 | BR26: 3 | BS26: 0 | BT26: 0.3275862069 | BU26: 0.1206896552 | BV26: 0.4482758621 | BW26: 0.03448275862 | BX26: 0.06896551724 | CE26: 26 | CF26: 3 | CG26: 4 | CH26: 4 | CI26: 1 | CP26: 4 | CQ26: 2 | CR26: 4 | CS26: 4 | CT26: 3 | CU26: 3 | CV26: 4 | CW26: 3 | CX26: 3 | CY26: 4 | CZ26: 5 | DA26: 3 | DB26: 3 | DC26: 5 | DD26: 3 | DE26: 4 | DF26: 3 | DG26: 2 | DH26: 4 | DI26: 3 | DJ26: 3 | DK26: 4 | DL26: 3 | DM26: 3 | DN26: 3 | DO26: 3 | DP26: 3 | DQ26: 4 | DR26: 4 | DS26: 4 | DT26: 4 | DU26: 4 | DV26: 4 | DW26: 2 | DX26: 5 | DY26: 4 | DZ26: 4 | EA26: 4 | EB26: 4 | EC26: n | ED26: n | EE26: n | EF26: 3 | EG26: 3 | EH26: 3 | EI26: 3 | EJ26: 3 | EK26: 3 | EL26: 3 | EM26: 4 | EN26: 3 | EO26: 4 | EP26: 3 | EQ26: 3 | ER26: 3 | ES26: 3 | ET26: 3 | EU26: 3 | EV26: 3 | EW26: 0 | EX26: 0 | EY26: 0.05172413793 | EZ26: 0.5 | FA26: 0.3448275862 | FB26: 0.05172413793
A27: 26 | L27: 4 | M27: 2 | N27: 4 | O27: 4 | P27: 3 | Q27: 3 | R27: 4 | S27: 3 | T27: 3 | U27: 4 | V27: 5 | W27: 3 | X27: 3 | Y27: 5 | Z27: 3 | AA27: 4 | AB27: 3 | AC27: 2 | AD27: 4 | AE27: 3 | AF27: 3 | AG27: 4 | AH27: 3 | AI27: 3 | AJ27: 3 | AK27: 3 | AL27: 3 | AM27: 4 | AN27: 4 | AO27: 4 | AP27: 4 | AQ27: 4 | AR27: 4 | AS27: 2 | AT27: 5 | AU27: 4 | AV27: 4 | AW27: 4 | AX27: 4 | AY27: 999 | AZ27: 999 | BA27: 999 | BB27: 3 | BC27: 3 | BD27: 3 | BE27: 3 | BF27: 3 | BG27: 3 | BH27: 3 | BI27: 4 | BJ27: 3 | BK27: 4 | BL27: 3 | BM27: 3 | BN27: 3 | BO27: 3 | BP27: 3 | BQ27: 3 | BR27: 3 | BS27: 0 | BT27: 0 | BU27: 0.05172413793 | BV27: 0.5 | BW27: 0.3448275862 | BX27: 0.05172413793 | CE27: 27 | CF27: 3 | CG27: 4 | CH27: 4 | CI27: 5 | CP27: 2 | CQ27: 2 | CR27: 2 | CS27: 3 | CT27: 3 | CU27: 2 | CV27: 1 | CW27: 2 | CX27: 2 | CY27: 3 | CZ27: 3 | DA27: 3 | DB27: 3 | DC27: 4 | DD27: 3 | DE27: 5 | DF27: 4 | DG27: 3 | DH27: 3 | DI27: 3 | DJ27: 4 | DK27: 4 | DL27: 3 | DM27: 3 | DN27: 4 | DO27: 3 | DP27: 3 | DQ27: 5 | DR27: 3 | DS27: 5 | DT27: 3 | DU27: 4 | DV27: 4 | DW27: 4 | DX27: 5 | DY27: 3 | DZ27: 4 | EA27: 4 | EB27: 4 | EC27: 2 | ED27: 4 | EE27: 3 | EF27: 3 | EG27: 2 | EH27: 3 | EI27: 4 | EJ27: 3 | EK27: 2 | EL27: 2 | EM27: 3 | EN27: 3 | EO27: 3 | EP27: 4 | EQ27: 2 | ER27: 2 | ES27: 2 | ET27: 2 | EU27: 2 | EV27: 3 | EW27: 0 | EX27: 0.01724137931 | EY27: 0.2586206897 | EZ27: 0.4137931034 | FA27: 0.2413793103 | FB27: 0.06896551724
A28: 27 | L28: 2 | M28: 2 | N28: 2 | O28: 3 | P28: 3 | Q28: 2 | R28: 1 | S28: 2 | T28: 2 | U28: 3 | V28: 3 | W28: 3 | X28: 3 | Y28: 4 | Z28: 3 | AA28: 5 | AB28: 4 | AC28: 3 | AD28: 3 | AE28: 3 | AF28: 4 | AG28: 4 | AH28: 3 | AI28: 3 | AJ28: 4 | AK28: 3 | AL28: 3 | AM28: 5 | AN28: 3 | AO28: 5 | AP28: 3 | AQ28: 4 | AR28: 4 | AS28: 4 | AT28: 5 | AU28: 3 | AV28: 4 | AW28: 4 | AX28: 4 | AY28: 2 | AZ28: 4 | BA28: 3 | BB28: 3 | BC28: 2 | BD28: 3 | BE28: 4 | BF28: 3 | BG28: 2 | BH28: 2 | BI28: 3 | BJ28: 3 | BK28: 3 | BL28: 4 | BM28: 2 | BN28: 2 | BO28: 2 | BP28: 2 | BQ28: 2 | BR28: 3 | BS28: 0 | BT28: 0.01724137931 | BU28: 0.2586206897 | BV28: 0.4137931034 | BW28: 0.2413793103 | BX28: 0.06896551724 | CE28: 28 | CF28: 3 | CG28: 4 | CH28: 4 | CI28: 5 | CP28: 2 | CQ28: 4 | CR28: 2 | CS28: 2 | CT28: 2 | CU28: 2 | CV28: 2 | CW28: 2 | CX28: 3 | CY28: 2 | CZ28: 2 | DA28: 2 | DB28: 3 | DC28: 4 | DD28: 3 | DE28: 3 | DF28: 4 | DG28: 4 | DH28: 4 | DI28: 4 | DJ28: 4 | DK28: 4 | DL28: 4 | DM28: 2 | DN28: 2 | DO28: 5 | DP28: 3 | DQ28: 4 | DR28: 3 | DS28: 3 | DT28: 3 | DU28: 4 | DV28: 4 | DW28: 3 | DX28: 4 | DY28: 3 | DZ28: 4 | EA28: 3 | EB28: 3 | EC28: n | ED28: 5 | EE28: 2 | EF28: 2 | EG28: 2 | EH28: 3 | EI28: 3 | EJ28: 3 | EK28: 3 | EL28: 2 | EM28: 3 | EN28: 2 | EO28: 3 | EP28: 4 | EQ28: 2 | ER28: 2 | ES28: 3 | ET28: 2 | EU28: 3 | EV28: 3 | EW28: 0 | EX28: 0 | EY28: 0.3448275862 | EZ28: 0.3448275862 | FA28: 0.2586206897 | FB28: 0.03448275862
A29: 28 | L29: 2 | M29: 4 | N29: 2 | O29: 2 | P29: 2 | Q29: 2 | R29: 2 | S29: 2 | T29: 3 | U29: 2 | V29: 2 | W29: 2 | X29: 3 | Y29: 4 | Z29: 3 | AA29: 3 | AB29: 4 | AC29: 4 | AD29: 4 | AE29: 4 | AF29: 4 | AG29: 4 | AH29: 4 | AI29: 2 | AJ29: 2 | AK29: 5 | AL29: 3 | AM29: 4 | AN29: 3 | AO29: 3 | AP29: 3 | AQ29: 4 | AR29: 4 | AS29: 3 | AT29: 4 | AU29: 3 | AV29: 4 | AW29: 3 | AX29: 3 | AY29: 999 | AZ29: 5 | BA29: 2 | BB29: 2 | BC29: 2 | BD29: 3 | BE29: 3 | BF29: 3 | BG29: 3 | BH29: 2 | BI29: 3 | BJ29: 2 | BK29: 3 | BL29: 4 | BM29: 2 | BN29: 2 | BO29: 3 | BP29: 2 | BQ29: 3 | BR29: 3 | BS29: 0 | BT29: 0 | BU29: 0.3448275862 | BV29: 0.3448275862 | BW29: 0.2586206897 | BX29: 0.03448275862 | CE29: 29 | CF29: 3 | CG29: 4 | CH29: 4 | CI29: 5 | CP29: 3 | CQ29: 3 | CR29: 3 | CS29: 2 | CT29: 2 | CU29: 3 | CV29: 2 | CW29: 2 | CX29: 3 | CY29: 2 | CZ29: 2 | DA29: 2 | DB29: 2 | DC29: 4 | DD29: 2 | DE29: 4 | DF29: 3 | DG29: 2 | DH29: 2 | DI29: 2 | DJ29: 3 | DK29: 2 | DL29: 3 | DM29: 3 | DN29: 3 | DO29: 3 | DP29: 3 | DQ29: 3 | DR29: 1 | DS29: 2 | DT29: 3 | DU29: 5 | DV29: 3 | DW29: 3 | DX29: 2 | DY29: 2 | DZ29: 1 | EA29: 2 | EB29: 3 | EC29: 3 | ED29: 4 | EE29: 2 | EF29: 2 | EG29: 2 | EH29: 3 | EI29: 2 | EJ29: 2 | EK29: 2 | EL29: 2 | EM29: 2 | EN29: 3 | EO29: 3 | EP29: 4 | EQ29: 3 | ER29: 4 | ES29: 2 | ET29: 2 | EU29: 3 | EV29: 3 | EW29: 0 | EX29: 0.03448275862 | EY29: 0.4655172414 | EZ29: 0.3965517241 | FA29: 0.08620689655 | FB29: 0.01724137931
A30: 29 | L30: 3 | M30: 3 | N30: 3 | O30: 2 | P30: 2 | Q30: 3 | R30: 2 | S30: 2 | T30: 3 | U30: 2 | V30: 2 | W30: 2 | X30: 2 | Y30: 4 | Z30: 2 | AA30: 4 | AB30: 3 | AC30: 2 | AD30: 2 | AE30: 2 | AF30: 3 | AG30: 2 | AH30: 3 | AI30: 3 | AJ30: 3 | AK30: 3 | AL30: 3 | AM30: 3 | AN30: 1 | AO30: 2 | AP30: 3 | AQ30: 5 | AR30: 3 | AS30: 3 | AT30: 2 | AU30: 2 | AV30: 1 | AW30: 2 | AX30: 3 | AY30: 3 | AZ30: 4 | BA30: 2 | BB30: 2 | BC30: 2 | BD30: 3 | BE30: 2 | BF30: 2 | BG30: 2 | BH30: 2 | BI30: 2 | BJ30: 3 | BK30: 3 | BL30: 4 | BM30: 3 | BN30: 4 | BO30: 2 | BP30: 2 | BQ30: 3 | BR30: 3 | BS30: 0 | BT30: 0.03448275862 | BU30: 0.4655172414 | BV30: 0.3965517241 | BW30: 0.08620689655 | BX30: 0.01724137931 | CE30: 30 | CF30: 3 | CG30: 4 | CH30: 4 | CI30: 1 | CP30: 2 | CQ30: 3 | CR30: 3 | CS30: 4 | CT30: 4 | CU30: 2 | CV30: 2 | CW30: 2 | CX30: 4 | CY30: 4 | CZ30: 4 | DA30: 3 | DB30: 3 | DC30: 4 | DD30: 4 | DE30: 4 | DF30: 2 | DG30: 2 | DH30: 4 | DI30: 3 | DJ30: 3 | DK30: 4 | DL30: 4 | DM30: 4 | DN30: 2 | DO30: 5 | DP30: 3 | DQ30: 4 | DR30: 2 | DS30: 1 | DT30: 5 | DU30: 4 | DV30: 1 | DW30: 2 | DX30: 2 | DY30: 3 | DZ30: 3 | EA30: 4 | EB30: 3 | EC30: 2 | ED30: 4 | EE30: 3 | EF30: 3 | EG30: 2 | EH30: 4 | EI30: 4 | EJ30: 3 | EK30: 2 | EL30: 2 | EM30: 3 | EN30: 3 | EO30: 3 | EP30: 4 | EQ30: 2 | ER30: 2 | ES30: 3 | ET30: 2 | EU30: 3 | EV30: 3 | EW30: 0 | EX30: 0.03448275862 | EY30: 0.2931034483 | EZ30: 0.3103448276 | FA30: 0.3275862069 | FB30: 0.03448275862
A31: 30 | L31: 2 | M31: 3 | N31: 3 | O31: 4 | P31: 4 | Q31: 2 | R31: 2 | S31: 2 | T31: 4 | U31: 4 | V31: 4 | W31: 3 | X31: 3 | Y31: 4 | Z31: 4 | AA31: 4 | AB31: 2 | AC31: 2 | AD31: 4 | AE31: 3 | AF31: 3 | AG31: 4 | AH31: 4 | AI31: 4 | AJ31: 2 | AK31: 5 | AL31: 3 | AM31: 4 | AN31: 2 | AO31: 1 | AP31: 5 | AQ31: 4 | AR31: 1 | AS31: 2 | AT31: 2 | AU31: 3 | AV31: 3 | AW31: 4 | AX31: 3 | AY31: 2 | AZ31: 4 | BA31: 3 | BB31: 3 | BC31: 2 | BD31: 4 | BE31: 4 | BF31: 3 | BG31: 2 | BH31: 2 | BI31: 3 | BJ31: 3 | BK31: 3 | BL31: 4 | BM31: 2 | BN31: 2 | BO31: 3 | BP31: 2 | BQ31: 3 | BR31: 3 | BS31: 0 | BT31: 0.03448275862 | BU31: 0.2931034483 | BV31: 0.3103448276 | BW31: 0.3275862069 | BX31: 0.03448275862 | CE31: 31 | CF31: 1 | CG31: 4 | CH31: 1 | CI31: 4 | CP31: 5 | CQ31: 4 | CR31: 4 | CS31: 3 | CT31: 5 | CU31: 3 | CV31: 3 | CW31: 4 | CX31: 3 | CY31: 5 | CZ31: 5 | DA31: 5 | DB31: 5 | DC31: 5 | DD31: 5 | DE31: 4 | DF31: 4 | DG31: 4 | DH31: 5 | DI31: 5 | DJ31: 5 | DK31: 5 | DL31: 5 | DM31: 5 | DN31: 5 | DO31: 4 | DP31: 3 | DQ31: 5 | DR31: 5 | DS31: 5 | DT31: 5 | DU31: 4 | DV31: 4 | DW31: 4 | DX31: 3 | DY31: 5 | DZ31: 5 | EA31: 5 | EB31: 3 | EC31: 5 | ED31: 5 | EE31: 4 | EF31: 4 | EG31: 3 | EH31: 3 | EI31: 5 | EJ31: 4 | EK31: 4 | EL31: 5 | EM31: 5 | EN31: 5 | EO31: 5 | EP31: 4 | EQ31: 5 | ER31: 5 | ES31: 5 | ET31: 5 | EU31: 5 | EV31: 1 | EW31: 0 | EX31: 0 | EY31: 0 | EZ31: 0.1551724138 | FA31: 0.2586206897 | FB31: 0.5862068966
A32: 31 | L32: 5 | M32: 4 | N32: 4 | O32: 3 | P32: 5 | Q32: 3 | R32: 3 | S32: 4 | T32: 3 | U32: 5 | V32: 5 | W32: 5 | X32: 5 | Y32: 5 | Z32: 5 | AA32: 4 | AB32: 4 | AC32: 4 | AD32: 5 | AE32: 5 | AF32: 5 | AG32: 5 | AH32: 5 | AI32: 5 | AJ32: 5 | AK32: 4 | AL32: 3 | AM32: 5 | AN32: 5 | AO32: 5 | AP32: 5 | AQ32: 4 | AR32: 4 | AS32: 4 | AT32: 3 | AU32: 5 | AV32: 5 | AW32: 5 | AX32: 3 | AY32: 5 | AZ32: 5 | BA32: 4 | BB32: 4 | BC32: 3 | BD32: 3 | BE32: 5 | BF32: 4 | BG32: 4 | BH32: 5 | BI32: 5 | BJ32: 5 | BK32: 5 | BL32: 4 | BM32: 5 | BN32: 5 | BO32: 5 | BP32: 5 | BQ32: 5 | BR32: 1 | BS32: 0 | BT32: 0 | BU32: 0 | BV32: 0.1551724138 | BW32: 0.2586206897 | BX32: 0.5862068966 | CE32: 32 | CF32: 3 | CG32: 4 | CH32: 5 | CI32: 5 | CP32: 2 | CQ32: 1 | CR32: 1 | CS32: 1 | CT32: 2 | CU32: 1 | CV32: 1 | CW32: 2 | CX32: 1 | CY32: 2 | CZ32: 2 | DA32: 2 | DB32: 3 | DC32: 5 | DD32: 4 | DE32: 2 | DF32: 4 | DG32: 3 | DH32: 4 | DI32: 3 | DJ32: 4 | DK32: 4 | DL32: 3 | DM32: 1 | DN32: 2 | DO32: 2 | DP32: 3 | DQ32: 4 | DR32: 3 | DS32: 3 | DT32: 1 | DU32: 5 | DV32: 4 | DW32: 2 | DX32: 2 | DY32: 1 | DZ32: 4 | EA32: 1 | EB32: 4 | EC32: 1 | ED32: 5 | EE32: 2 | EF32: 2 | EG32: 1 | EH32: 2 | EI32: 3 | EJ32: 2 | EK32: 2 | EL32: 2 | EM32: 2 | EN32: 2 | EO32: 2 | EP32: 3 | EQ32: 1 | ER32: 2 | ES32: 2 | ET32: 1 | EU32: 1 | EV32: 3 | EW32: 0 | EX32: 0.2586206897 | EY32: 0.3793103448 | EZ32: 0.1551724138 | FA32: 0.1551724138 | FB32: 0.05172413793
A33: 32 | L33: 2 | M33: 1 | N33: 1 | O33: 1 | P33: 2 | Q33: 1 | R33: 1 | S33: 2 | T33: 1 | U33: 2 | V33: 2 | W33: 2 | X33: 3 | Y33: 5 | Z33: 4 | AA33: 2 | AB33: 4 | AC33: 3 | AD33: 4 | AE33: 3 | AF33: 4 | AG33: 4 | AH33: 3 | AI33: 1 | AJ33: 2 | AK33: 2 | AL33: 3 | AM33: 4 | AN33: 3 | AO33: 3 | AP33: 1 | AQ33: 5 | AR33: 4 | AS33: 2 | AT33: 2 | AU33: 1 | AV33: 4 | AW33: 1 | AX33: 4 | AY33: 1 | AZ33: 5 | BA33: 2 | BB33: 2 | BC33: 1 | BD33: 2 | BE33: 3 | BF33: 2 | BG33: 2 | BH33: 2 | BI33: 2 | BJ33: 2 | BK33: 2 | BL33: 3 | BM33: 1 | BN33: 2 | BO33: 2 | BP33: 1 | BQ33: 1 | BR33: 3 | BS33: 0 | BT33: 0.2586206897 | BU33: 0.3793103448 | BV33: 0.1551724138 | BW33: 0.1551724138 | BX33: 0.05172413793 | CE33: 33 | CF33: 3 | CG33: 4 | CH33: 5 | CI33: 5 | CP33: 2 | CQ33: 2 | CR33: 2 | CS33: 3 | CT33: 3 | CU33: 2 | CV33: 2 | CW33: 2 | CX33: 2 | CY33: 3 | CZ33: 3 | DA33: 4 | DB33: 3 | DC33: 3 | DD33: 3 | DE33: 4 | DF33: 3 | DG33: 3 | DH33: 3 | DI33: 3 | DJ33: 3 | DK33: 3 | DL33: 2 | DM33: 3 | DN33: 4 | DO33: 4 | DP33: 3 | DQ33: 4 | DR33: 3 | DS33: 3 | DT33: 3 | DU33: 5 | DV33: 3 | DW33: 3 | DX33: 5 | DY33: 2 | DZ33: 4 | EA33: 3 | EB33: 1 | EC33: 2 | ED33: 1 | EE33: 2 | EF33: 3 | EG33: 3 | EH33: 3 | EI33: 3 | EJ33: 3 | EK33: 3 | EL33: 2 | EM33: 1 | EN33: 2 | EO33: 2 | EP33: 2 | EQ33: 2 | ER33: 2 | ES33: 2 | ET33: 2 | EU33: 3 | EV33: 3 | EW33: 0 | EX33: 0.05172413793 | EY33: 0.3275862069 | EZ33: 0.4827586207 | FA33: 0.1034482759 | FB33: 0.03448275862
A34: 33 | L34: 2 | M34: 2 | N34: 2 | O34: 3 | P34: 3 | Q34: 2 | R34: 2 | S34: 2 | T34: 2 | U34: 3 | V34: 3 | W34: 4 | X34: 3 | Y34: 3 | Z34: 3 | AA34: 4 | AB34: 3 | AC34: 3 | AD34: 3 | AE34: 3 | AF34: 3 | AG34: 3 | AH34: 2 | AI34: 3 | AJ34: 4 | AK34: 4 | AL34: 3 | AM34: 4 | AN34: 3 | AO34: 3 | AP34: 3 | AQ34: 5 | AR34: 3 | AS34: 3 | AT34: 5 | AU34: 2 | AV34: 4 | AW34: 3 | AX34: 1 | AY34: 2 | AZ34: 1 | BA34: 2 | BB34: 3 | BC34: 3 | BD34: 3 | BE34: 3 | BF34: 3 | BG34: 3 | BH34: 2 | BI34: 1 | BJ34: 2 | BK34: 2 | BL34: 2 | BM34: 2 | BN34: 2 | BO34: 2 | BP34: 2 | BQ34: 3 | BR34: 3 | BS34: 0 | BT34: 0.05172413793 | BU34: 0.3275862069 | BV34: 0.4827586207 | BW34: 0.1034482759 | BX34: 0.03448275862 | CE34: 34 | CF34: 3 | CG34: 4 | CH34: 5 | CI34: 5 | CP34: 4 | CQ34: 4 | CR34: 4 | CS34: 3 | CT34: 4 | CU34: 2 | CV34: 4 | CW34: 3 | CX34: 4 | CY34: 4 | CZ34: 4 | DA34: 4 | DB34: 3 | DC34: 5 | DD34: 4 | DE34: 4 | DF34: 4 | DG34: 4 | DH34: 4 | DI34: 4 | DJ34: 4 | DK34: 4 | DL34: 4 | DM34: 3 | DN34: 5 | DO34: 5 | DP34: 4 | DQ34: 5 | DR34: 4 | DS34: 5 | DT34: 5 | DU34: 4 | DV34: n | DW34: 4 | DX34: 4 | DY34: 5 | DZ34: 5 | EA34: 5 | EB34: 5 | EC34: 3 | ED34: 5 | EE34: 4 | EF34: 4 | EG34: 3 | EH34: 3 | EI34: 4 | EJ34: 4 | EK34: 4 | EL34: 4 | EM34: 4 | EN34: 4 | EO34: 4 | EP34: 3 | EQ34: 3 | ER34: 4 | ES34: 4 | ET34: 4 | EU34: 4 | EV34: 3 | EW34: 0.025 | EX34: 0 | EY34: 0.01724137931 | EZ34: 0.1551724138 | FA34: 0.6206896552 | FB34: 0.1896551724
A35: 34 | L35: 4 | M35: 4 | N35: 4 | O35: 3 | P35: 4 | Q35: 2 | R35: 4 | S35: 3 | T35: 4 | U35: 4 | V35: 4 | W35: 4 | X35: 3 | Y35: 5 | Z35: 4 | AA35: 4 | AB35: 4 | AC35: 4 | AD35: 4 | AE35: 4 | AF35: 4 | AG35: 4 | AH35: 4 | AI35: 3 | AJ35: 5 | AK35: 5 | AL35: 4 | AM35: 5 | AN35: 4 | AO35: 5 | AP35: 5 | AQ35: 4 | AR35: 999 | AS35: 4 | AT35: 4 | AU35: 5 | AV35: 5 | AW35: 5 | AX35: 5 | AY35: 3 | AZ35: 5 | BA35: 4 | BB35: 4 | BC35: 3 | BD35: 3 | BE35: 4 | BF35: 4 | BG35: 4 | BH35: 4 | BI35: 4 | BJ35: 4 | BK35: 4 | BL35: 3 | BM35: 3 | BN35: 4 | BO35: 4 | BP35: 4 | BQ35: 4 | BR35: 3 | BS35: 0.025 | BT35: 0 | BU35: 0.01724137931 | BV35: 0.1551724138 | BW35: 0.6206896552 | BX35: 0.1896551724 | CE35: 35 | CF35: 3 | CG35: 4 | CH35: 5 | CI35: 5 | CP35: 3 | CQ35: 4 | CR35: 1 | CS35: 1 | CT35: 1 | CU35: 1 | CV35: 1 | CW35: 3 | CX35: 3 | CY35: 5 | CZ35: 3 | DA35: 3 | DB35: 3 | DC35: 5 | DD35: 5 | DE35: 3 | DF35: 5 | DG35: 5 | DH35: 5 | DI35: 5 | DJ35: 5 | DK35: 5 | DL35: 4 | DM35: 3 | DN35: 3 | DO35: 4 | DP35: 3 | DQ35: 5 | DR35: 2 | DS35: 4 | DT35: 5 | DU35: 5 | DV35: 4 | DW35: 4 | DX35: 5 | DY35: 5 | DZ35: 1 | EA35: 1 | EB35: 2 | EC35: 1 | ED35: 5 | EE35: 1 | EF35: 1 | EG35: 1 | EH35: 4 | EI35: 1 | EJ35: 1 | EK35: 1 | EL35: 1 | EM35: 3 | EN35: 4 | EO35: 2 | EP35: 3 | EQ35: 2 | ER35: 2 | ES35: 2 | ET35: 2 | EU35: 2 | EV35: 3 | EW35: 0 | EX35: 0.2586206897 | EY35: 0.1379310345 | EZ35: 0.2068965517 | FA35: 0.1379310345 | FB35: 0.2586206897
A36: 35 | L36: 3 | M36: 4 | N36: 1 | O36: 1 | P36: 1 | Q36: 1 | R36: 1 | S36: 3 | T36: 3 | U36: 5 | V36: 3 | W36: 3 | X36: 3 | Y36: 5 | Z36: 5 | AA36: 3 | AB36: 5 | AC36: 5 | AD36: 5 | AE36: 5 | AF36: 5 | AG36: 5 | AH36: 4 | AI36: 3 | AJ36: 3 | AK36: 4 | AL36: 3 | AM36: 5 | AN36: 2 | AO36: 4 | AP36: 5 | AQ36: 5 | AR36: 4 | AS36: 4 | AT36: 5 | AU36: 5 | AV36: 1 | AW36: 1 | AX36: 2 | AY36: 1 | AZ36: 5 | BA36: 1 | BB36: 1 | BC36: 1 | BD36: 4 | BE36: 1 | BF36: 1 | BG36: 1 | BH36: 1 | BI36: 3 | BJ36: 4 | BK36: 2 | BL36: 3 | BM36: 2 | BN36: 2 | BO36: 2 | BP36: 2 | BQ36: 2 | BR36: 3 | BS36: 0 | BT36: 0.2586206897 | BU36: 0.1379310345 | BV36: 0.2068965517 | BW36: 0.1379310345 | BX36: 0.2586206897 | CE36: 36 | CF36: 3 | CG36: 4 | CH36: 5 | CI36: 5 | CP36: 4 | CQ36: 4 | CR36: 3 | CS36: 3 | CT36: 2 | CU36: 1 | CV36: 1 | CW36: 1 | CX36: 1 | CY36: 5 | CZ36: 5 | DA36: 1 | DB36: 1 | DC36: 5 | DD36: 3 | DE36: 4 | DF36: 3 | DG36: 3 | DH36: 4 | DI36: 3 | DJ36: 4 | DK36: 4 | DL36: 4 | DM36: 1 | DN36: 5 | DO36: 4 | DP36: 3 | DQ36: 3 | DR36: 4 | DS36: 3 | DT36: 4 | DU36: 4 | DV36: 5 | DW36: 4 | DX36: 4 | DY36: 5 | DZ36: 4 | EA36: 3 | EB36: 4 | EC36: 2 | ED36: 5 | EE36: 2 | EF36: 3 | EG36: 1 | EH36: 3 | EI36: 3 | EJ36: 3 | EK36: 2 | EL36: 2 | EM36: 2 | EN36: 1 | EO36: 4 | EP36: 3 | EQ36: 1 | ER36: 2 | ES36: 2 | ET36: 1 | EU36: 2 | EV36: 3 | EW36: 0 | EX36: 0.1896551724 | EY36: 0.1551724138 | EZ36: 0.2586206897 | FA36: 0.275862069 | FB36: 0.1206896552
A37: 36 | L37: 4 | M37: 4 | N37: 3 | O37: 3 | P37: 2 | Q37: 1 | R37: 1 | S37: 1 | T37: 1 | U37: 5 | V37: 5 | W37: 1 | X37: 1 | Y37: 5 | Z37: 3 | AA37: 4 | AB37: 3 | AC37: 3 | AD37: 4 | AE37: 3 | AF37: 4 | AG37: 4 | AH37: 4 | AI37: 1 | AJ37: 5 | AK37: 4 | AL37: 3 | AM37: 3 | AN37: 4 | AO37: 3 | AP37: 4 | AQ37: 4 | AR37: 5 | AS37: 4 | AT37: 4 | AU37: 5 | AV37: 4 | AW37: 3 | AX37: 4 | AY37: 2 | AZ37: 5 | BA37: 2 | BB37: 3 | BC37: 1 | BD37: 3 | BE37: 3 | BF37: 3 | BG37: 2 | BH37: 2 | BI37: 2 | BJ37: 1 | BK37: 4 | BL37: 3 | BM37: 1 | BN37: 2 | BO37: 2 | BP37: 1 | BQ37: 2 | BR37: 3 | BS37: 0 | BT37: 0.1896551724 | BU37: 0.1551724138 | BV37: 0.2586206897 | BW37: 0.275862069 | BX37: 0.1206896552 | CE37: 37 | CF37: 3 | CG37: 4 | CH37: 5 | CI37: 5 | CP37: 2 | CQ37: 3 | CR37: 2 | CS37: 2 | CT37: 2 | CU37: 2 | CV37: 2 | CW37: 2 | CX37: 3 | CY37: 3 | CZ37: 4 | DA37: 2 | DB37: 3 | DC37: 4 | DD37: 3 | DE37: 3 | DF37: 3 | DG37: 3 | DH37: 3 | DI37: 4 | DJ37: 3 | DK37: 4 | DL37: 2 | DM37: 4 | DN37: 2 | DO37: 2 | DP37: 3 | DQ37: 3 | DR37: 3 | DS37: 3 | DT37: 2 | DU37: 3 | DV37: 3 | DW37: 3 | DX37: 3 | DY37: 4 | DZ37: 3 | EA37: 5 | EB37: 4 | EC37: 3 | ED37: 4 | EE37: 2 | EF37: 4 | EG37: 2 | EH37: 3 | EI37: 3 | EJ37: 2 | EK37: 3 | EL37: 2 | EM37: 4 | EN37: 4 | EO37: 4 | EP37: 3 | EQ37: 3 | ER37: 4 | ES37: 3 | ET37: 2 | EU37: 4 | EV37: 3 | EW37: 0 | EX37: 0 | EY37: 0.2931034483 | EZ37: 0.4482758621 | FA37: 0.2413793103 | FB37: 0.01724137931
A38: 37 | L38: 2 | M38: 3 | N38: 2 | O38: 2 | P38: 2 | Q38: 2 | R38: 2 | S38: 2 | T38: 3 | U38: 3 | V38: 4 | W38: 2 | X38: 3 | Y38: 4 | Z38: 3 | AA38: 3 | AB38: 3 | AC38: 3 | AD38: 3 | AE38: 4 | AF38: 3 | AG38: 4 | AH38: 2 | AI38: 4 | AJ38: 2 | AK38: 2 | AL38: 3 | AM38: 3 | AN38: 3 | AO38: 3 | AP38: 2 | AQ38: 3 | AR38: 3 | AS38: 3 | AT38: 3 | AU38: 4 | AV38: 3 | AW38: 5 | AX38: 4 | AY38: 3 | AZ38: 4 | BA38: 2 | BB38: 4 | BC38: 2 | BD38: 3 | BE38: 3 | BF38: 2 | BG38: 3 | BH38: 2 | BI38: 4 | BJ38: 4 | BK38: 4 | BL38: 3 | BM38: 3 | BN38: 4 | BO38: 3 | BP38: 2 | BQ38: 4 | BR38: 3 | BS38: 0 | BT38: 0 | BU38: 0.2931034483 | BV38: 0.4482758621 | BW38: 0.2413793103 | BX38: 0.01724137931 | CE38: 38 | CF38: 3 | CG38: 4 | CH38: 5 | CI38: 5 | CP38: 3 | CQ38: 5 | CR38: 4 | CS38: 4 | CT38: 3 | CU38: 3 | CV38: 3 | CW38: 4 | CX38: 4 | CY38: 3 | CZ38: 1 | DA38: 1 | DB38: 3 | DC38: 4 | DD38: 4 | DE38: 1 | DF38: 4 | DG38: 4 | DH38: 4 | DI38: 4 | DJ38: 2 | DK38: 4 | DL38: 4 | DM38: 5 | DN38: 4 | DO38: 4 | DP38: 3 | DQ38: 4 | DR38: 3 | DS38: 5 | DT38: 5 | DU38: 4 | DV38: 4 | DW38: 5 | DX38: 4 | DY38: 3 | DZ38: 5 | EA38: 5 | EB38: 3 | EC38: 4 | ED38: 4 | EE38: 4 | EF38: 4 | EG38: 4 | EH38: 4 | EI38: 4 | EJ38: 4 | EK38: 4 | EL38: 4 | EM38: 4 | EN38: 4 | EO38: 3 | EP38: 4 | EQ38: 4 | ER38: 5 | ES38: 4 | ET38: 4 | EU38: 4 | EV38: 3 | EW38: 0 | EX38: 0.05172413793 | EY38: 0.01724137931 | EZ38: 0.1896551724 | FA38: 0.6034482759 | FB38: 0.1379310345
A39: 38 | L39: 3 | M39: 5 | N39: 4 | O39: 4 | P39: 3 | Q39: 3 | R39: 3 | S39: 4 | T39: 4 | U39: 3 | V39: 1 | W39: 1 | X39: 3 | Y39: 4 | Z39: 4 | AA39: 1 | AB39: 4 | AC39: 4 | AD39: 4 | AE39: 4 | AF39: 2 | AG39: 4 | AH39: 4 | AI39: 5 | AJ39: 4 | AK39: 4 | AL39: 3 | AM39: 4 | AN39: 3 | AO39: 5 | AP39: 5 | AQ39: 4 | AR39: 4 | AS39: 5 | AT39: 4 | AU39: 3 | AV39: 5 | AW39: 5 | AX39: 3 | AY39: 4 | AZ39: 4 | BA39: 4 | BB39: 4 | BC39: 4 | BD39: 4 | BE39: 4 | BF39: 4 | BG39: 4 | BH39: 4 | BI39: 4 | BJ39: 4 | BK39: 3 | BL39: 4 | BM39: 4 | BN39: 5 | BO39: 4 | BP39: 4 | BQ39: 4 | BR39: 3 | BS39: 0 | BT39: 0.05172413793 | BU39: 0.01724137931 | BV39: 0.1896551724 | BW39: 0.6034482759 | BX39: 0.1379310345 | CE39: 39 | CF39: 3 | CG39: 7 | CH39: 5 | CI39: 5 | CP39: 2 | CQ39: 3 | CR39: 2 | CS39: 2 | CT39: 4 | CU39: 2 | CV39: 2 | CW39: 3 | CX39: 2 | CY39: 4 | CZ39: 4 | DA39: 3 | DB39: 3 | DC39: 4 | DD39: 4 | DE39: 4 | DF39: 4 | DG39: 3 | DH39: 3 | DI39: 4 | DJ39: 3 | DK39: 4 | DL39: 4 | DM39: 3 | DN39: 3 | DO39: 4 | DP39: 3 | DQ39: 4 | DR39: 3 | DS39: 3 | DT39: 3 | DU39: 4 | DV39: 5 | DW39: 4 | DX39: 3 | DY39: 5 | DZ39: 5 | EA39: 4 | EB39: 4 | EC39: n | ED39: 5 | EE39: 3 | EF39: 3 | EG39: 3 | EH39: 3 | EI39: 4 | EJ39: 4 | EK39: 4 | EL39: 2 | EM39: 3 | EN39: 3 | EO39: 4 | EP39: 4 | EQ39: 2 | ER39: 3 | ES39: 3 | ET39: 3 | EU39: 2 | EV39: 3 | EW39: 0 | EX39: 0 | EY39: 0.1551724138 | EZ39: 0.3965517241 | FA39: 0.3620689655 | FB39: 0.06896551724
A40: 39 | L40: 2 | M40: 3 | N40: 2 | O40: 2 | P40: 4 | Q40: 2 | R40: 2 | S40: 3 | T40: 2 | U40: 4 | V40: 4 | W40: 3 | X40: 3 | Y40: 4 | Z40: 4 | AA40: 4 | AB40: 4 | AC40: 3 | AD40: 3 | AE40: 4 | AF40: 3 | AG40: 4 | AH40: 4 | AI40: 3 | AJ40: 3 | AK40: 4 | AL40: 3 | AM40: 4 | AN40: 3 | AO40: 3 | AP40: 3 | AQ40: 4 | AR40: 5 | AS40: 4 | AT40: 3 | AU40: 5 | AV40: 5 | AW40: 4 | AX40: 4 | AY40: 999 | AZ40: 5 | BA40: 3 | BB40: 3 | BC40: 3 | BD40: 3 | BE40: 4 | BF40: 4 | BG40: 4 | BH40: 2 | BI40: 3 | BJ40: 3 | BK40: 4 | BL40: 4 | BM40: 2 | BN40: 3 | BO40: 3 | BP40: 3 | BQ40: 2 | BR40: 3 | BS40: 0 | BT40: 0 | BU40: 0.1551724138 | BV40: 0.3965517241 | BW40: 0.3620689655 | BX40: 0.06896551724 | CE40: 40 | CF40: 3 | CG40: 6 | CH40: 4 | CI40: 1 | CP40: 3 | CQ40: 4 | CR40: 4 | CS40: 4 | CT40: 4 | CU40: 2 | CV40: 2 | CW40: 4 | CX40: 4 | CY40: 3 | CZ40: 2 | DA40: 2 | DB40: 2 | DC40: 3 | DD40: 3 | DE40: 4 | DF40: 3 | DG40: 3 | DH40: 3 | DI40: 2 | DJ40: 3 | DK40: 4 | DL40: 4 | DM40: 3 | DN40: 4 | DO40: 4 | DP40: 3 | DQ40: 4 | DR40: 3 | DS40: 3 | DT40: 4 | DU40: 4 | DV40: 5 | DW40: 3 | DX40: 2 | DY40: 5 | DZ40: 4 | EA40: 4 | EB40: 4 | EC40: 3 | ED40: 3 | EE40: 3 | EF40: 2 | EG40: 3 | EH40: 4 | EI40: 4 | EJ40: 4 | EK40: 4 | EL40: 3 | EM40: 2 | EN40: 3 | EO40: 3 | EP40: 4 | EQ40: 3 | ER40: 3 | ES40: 4 | ET40: 2 | EU40: 3 | EV40: 3 | EW40: 0 | EX40: 0 | EY40: 0.1724137931 | EZ40: 0.3965517241 | FA40: 0.3965517241 | FB40: 0.03448275862
A41: 40 | L41: 3 | M41: 4 | N41: 4 | O41: 4 | P41: 4 | Q41: 2 | R41: 2 | S41: 4 | T41: 4 | U41: 3 | V41: 2 | W41: 2 | X41: 2 | Y41: 3 | Z41: 3 | AA41: 4 | AB41: 3 | AC41: 3 | AD41: 3 | AE41: 2 | AF41: 3 | AG41: 4 | AH41: 4 | AI41: 3 | AJ41: 4 | AK41: 4 | AL41: 3 | AM41: 4 | AN41: 3 | AO41: 3 | AP41: 4 | AQ41: 4 | AR41: 5 | AS41: 3 | AT41: 2 | AU41: 5 | AV41: 4 | AW41: 4 | AX41: 4 | AY41: 3 | AZ41: 3 | BA41: 3 | BB41: 2 | BC41: 3 | BD41: 4 | BE41: 4 | BF41: 4 | BG41: 4 | BH41: 3 | BI41: 2 | BJ41: 3 | BK41: 3 | BL41: 4 | BM41: 3 | BN41: 3 | BO41: 4 | BP41: 2 | BQ41: 3 | BR41: 3 | BS41: 0 | BT41: 0 | BU41: 0.1724137931 | BV41: 0.3965517241 | BW41: 0.3965517241 | BX41: 0.03448275862 | CE41: 41 | CF41: 3 | CG41: 6 | CH41: 4 | CI41: 2 | CP41: 5 | CQ41: 5 | CR41: 5 | CS41: 5 | CT41: 5 | CU41: 4 | CV41: 4 | CW41: 4 | CX41: 5 | CY41: 4 | CZ41: 5 | DA41: 4 | DB41: 4 | DC41: 4 | DD41: 4 | DE41: 4 | DF41: 4 | DG41: 5 | DH41: 4 | DI41: 4 | DJ41: 5 | DK41: 5 | DL41: 5 | DM41: 4 | DN41: 4 | DO41: 4 | DP41: 3 | DQ41: 4 | DR41: 3 | DS41: 5 | DT41: 3 | DU41: 3 | DV41: 5 | DW41: 3 | DX41: 5 | DY41: 5 | DZ41: 5 | EA41: 3 | EB41: 3 | EC41: 5 | ED41: 5 | EE41: 4 | EF41: 4 | EG41: 3 | EH41: 4 | EI41: 4 | EJ41: 4 | EK41: 4 | EL41: 3 | EM41: 3 | EN41: 4 | EO41: 4 | EP41: 5 | EQ41: 4 | ER41: 4 | ES41: 4 | ET41: 4 | EU41: 4 | EV41: 3 | EW41: 0 | EX41: 0 | EY41: 0 | EZ41: 0.1724137931 | FA41: 0.5 | FB41: 0.3275862069
A42: 41 | L42: 5 | M42: 5 | N42: 5 | O42: 5 | P42: 5 | Q42: 4 | R42: 4 | S42: 4 | T42: 5 | U42: 4 | V42: 5 | W42: 4 | X42: 4 | Y42: 4 | Z42: 4 | AA42: 4 | AB42: 4 | AC42: 5 | AD42: 4 | AE42: 4 | AF42: 5 | AG42: 5 | AH42: 5 | AI42: 4 | AJ42: 4 | AK42: 4 | AL42: 3 | AM42: 4 | AN42: 3 | AO42: 5 | AP42: 3 | AQ42: 3 | AR42: 5 | AS42: 3 | AT42: 5 | AU42: 5 | AV42: 5 | AW42: 3 | AX42: 3 | AY42: 5 | AZ42: 5 | BA42: 4 | BB42: 4 | BC42: 3 | BD42: 4 | BE42: 4 | BF42: 4 | BG42: 4 | BH42: 3 | BI42: 3 | BJ42: 4 | BK42: 4 | BL42: 5 | BM42: 4 | BN42: 4 | BO42: 4 | BP42: 4 | BQ42: 4 | BR42: 3 | BS42: 0 | BT42: 0 | BU42: 0 | BV42: 0.1724137931 | BW42: 0.5 | BX42: 0.3275862069 | CE42: 42 | CF42: 3 | CG42: 6 | CH42: 4 | CI42: 5 | CP42: 3 | CQ42: 3 | CR42: 3 | CS42: 4 | CT42: 4 | CU42: 3 | CV42: 3 | CW42: 4 | CX42: 4 | CY42: 3 | CZ42: 3 | DA42: 3 | DB42: 3 | DC42: 4 | DD42: 3 | DE42: 4 | DF42: 3 | DG42: 2 | DH42: 2 | DI42: 3 | DJ42: 2 | DK42: 2 | DL42: 2 | DM42: 2 | DN42: 2 | DO42: 5 | DP42: 3 | DQ42: 3 | DR42: 4 | DS42: 3 | DT42: 3 | DU42: 2 | DV42: 4 | DW42: 4 | DX42: 5 | DY42: 5 | DZ42: 5 | EA42: 5 | EB42: 4 | EC42: 1 | ED42: 2 | EE42: 4 | EF42: 2 | EG42: 3 | EH42: 3 | EI42: 3 | EJ42: 3 | EK42: 3 | EL42: 2 | EM42: 2 | EN42: 2 | EO42: 1 | EP42: 4 | EQ42: 4 | ER42: 4 | ES42: 1 | ET42: 3 | EU42: 1 | EV42: 3 | EW42: 0 | EX42: 0.06896551724 | EY42: 0.224137931 | EZ42: 0.3793103448 | FA42: 0.2413793103 | FB42: 0.08620689655
A43: 42 | L43: 3 | M43: 3 | N43: 3 | O43: 4 | P43: 4 | Q43: 3 | R43: 3 | S43: 4 | T43: 4 | U43: 3 | V43: 3 | W43: 3 | X43: 3 | Y43: 4 | Z43: 3 | AA43: 4 | AB43: 3 | AC43: 2 | AD43: 2 | AE43: 3 | AF43: 2 | AG43: 2 | AH43: 2 | AI43: 2 | AJ43: 2 | AK43: 5 | AL43: 3 | AM43: 3 | AN43: 4 | AO43: 3 | AP43: 3 | AQ43: 2 | AR43: 4 | AS43: 4 | AT43: 5 | AU43: 5 | AV43: 5 | AW43: 5 | AX43: 4 | AY43: 1 | AZ43: 2 | BA43: 4 | BB43: 2 | BC43: 3 | BD43: 3 | BE43: 3 | BF43: 3 | BG43: 3 | BH43: 2 | BI43: 2 | BJ43: 2 | BK43: 1 | BL43: 4 | BM43: 4 | BN43: 4 | BO43: 1 | BP43: 3 | BQ43: 1 | BR43: 3 | BS43: 0 | BT43: 0.06896551724 | BU43: 0.224137931 | BV43: 0.3793103448 | BW43: 0.2413793103 | BX43: 0.08620689655 | CE43: 43 | CF43: 3 | CG43: 6 | CH43: 4 | CI43: 5 | CP43: 3 | CQ43: 3 | CR43: 3 | CS43: 4 | CT43: 3 | CU43: 3 | CV43: 3 | CW43: 3 | CX43: 3 | CY43: 2 | CZ43: 4 | DA43: 3 | DB43: 4 | DC43: 4 | DD43: 3 | DE43: 4 | DF43: 4 | DG43: 4 | DH43: 4 | DI43: 4 | DJ43: 3 | DK43: 4 | DL43: 4 | DM43: 3 | DN43: 2 | DO43: 5 | DP43: 4 | DQ43: 4 | DR43: 3 | DS43: 5 | DT43: 3 | DU43: 4 | DV43: 4 | DW43: 4 | DX43: 5 | DY43: 5 | DZ43: 4 | EA43: 5 | EB43: 4 | EC43: 3 | ED43: n | EE43: 4 | EF43: 3 | EG43: 3 | EH43: 3 | EI43: 3 | EJ43: 4 | EK43: 3 | EL43: 3 | EM43: 3 | EN43: 4 | EO43: 3 | EP43: 3 | EQ43: 3 | ER43: 4 | ES43: 3 | ET43: 3 | EU43: 3 | EV43: 3 | EW43: 0 | EX43: 0 | EY43: 0.03448275862 | EZ43: 0.4827586207 | FA43: 0.3793103448 | FB43: 0.08620689655
A44: 43 | L44: 3 | M44: 3 | N44: 3 | O44: 4 | P44: 3 | Q44: 3 | R44: 3 | S44: 3 | T44: 3 | U44: 2 | V44: 4 | W44: 3 | X44: 4 | Y44: 4 | Z44: 3 | AA44: 4 | AB44: 4 | AC44: 4 | AD44: 4 | AE44: 4 | AF44: 3 | AG44: 4 | AH44: 4 | AI44: 3 | AJ44: 2 | AK44: 5 | AL44: 4 | AM44: 4 | AN44: 3 | AO44: 5 | AP44: 3 | AQ44: 4 | AR44: 4 | AS44: 4 | AT44: 5 | AU44: 5 | AV44: 4 | AW44: 5 | AX44: 4 | AY44: 3 | AZ44: 999 | BA44: 4 | BB44: 3 | BC44: 3 | BD44: 3 | BE44: 3 | BF44: 4 | BG44: 3 | BH44: 3 | BI44: 3 | BJ44: 4 | BK44: 3 | BL44: 3 | BM44: 3 | BN44: 4 | BO44: 3 | BP44: 3 | BQ44: 3 | BR44: 3 | BS44: 0 | BT44: 0 | BU44: 0.03448275862 | BV44: 0.4827586207 | BW44: 0.3793103448 | BX44: 0.08620689655 | CE44: 44 | CF44: 3 | CG44: 6 | CH44: 4 | CI44: 5 | CP44: 3 | CQ44: 3 | CR44: 3 | CS44: 3 | CT44: 3 | CU44: 3 | CV44: 3 | CW44: 3 | CX44: 2 | CY44: 3 | CZ44: 3 | DA44: 2 | DB44: 2 | DC44: 4 | DD44: 3 | DE44: 4 | DF44: 3 | DG44: 3 | DH44: 2 | DI44: 2 | DJ44: 3 | DK44: 3 | DL44: 2 | DM44: 2 | DN44: 2 | DO44: 5 | DP44: 5 | DQ44: 4 | DR44: 4 | DS44: 3 | DT44: 4 | DU44: 5 | DV44: 5 | DW44: 4 | DX44: 5 | DY44: 2 | DZ44: 1 | EA44: n | EB44: 4 | EC44: 3 | ED44: 3 | EE44: 3 | EF44: 3 | EG44: 2 | EH44: 3 | EI44: 4 | EJ44: 3 | EK44: 2 | EL44: 1 | EM44: 3 | EN44: 2 | EO44: 1 | EP44: 3 | EQ44: 2 | ER44: 2 | ES44: 3 | ET44: 2 | EU44: 3 | EV44: 3 | EW44: 0.025 | EX44: 0.05172413793 | EY44: 0.2586206897 | EZ44: 0.4482758621 | FA44: 0.1379310345 | FB44: 0.08620689655
A45: 44 | L45: 3 | M45: 3 | N45: 3 | O45: 3 | P45: 3 | Q45: 3 | R45: 3 | S45: 3 | T45: 2 | U45: 3 | V45: 3 | W45: 2 | X45: 2 | Y45: 4 | Z45: 3 | AA45: 4 | AB45: 3 | AC45: 3 | AD45: 2 | AE45: 2 | AF45: 3 | AG45: 3 | AH45: 2 | AI45: 2 | AJ45: 2 | AK45: 5 | AL45: 5 | AM45: 4 | AN45: 4 | AO45: 3 | AP45: 4 | AQ45: 5 | AR45: 5 | AS45: 4 | AT45: 5 | AU45: 2 | AV45: 1 | AW45: 999 | AX45: 4 | AY45: 3 | AZ45: 3 | BA45: 3 | BB45: 3 | BC45: 2 | BD45: 3 | BE45: 4 | BF45: 3 | BG45: 2 | BH45: 1 | BI45: 3 | BJ45: 2 | BK45: 1 | BL45: 3 | BM45: 2 | BN45: 2 | BO45: 3 | BP45: 2 | BQ45: 3 | BR45: 3 | BS45: 0.025 | BT45: 0.05172413793 | BU45: 0.2586206897 | BV45: 0.4482758621 | BW45: 0.1379310345 | BX45: 0.08620689655 | CE45: 45 | CF45: 3 | CG45: 7 | CH45: 6 | CI45: 5 | CP45: 3 | CQ45: 4 | CR45: 5 | CS45: 5 | CT45: 3 | CU45: 3 | CV45: 2 | CW45: 2 | CX45: 2 | CY45: 2 | CZ45: 2 | DA45: 4 | DB45: 4 | DC45: 3 | DD45: 4 | DE45: 4 | DF45: 4 | DG45: 2 | DH45: 2 | DI45: 3 | DJ45: 3 | DK45: 3 | DL45: 2 | DM45: 3 | DN45: 3 | DO45: 3 | DP45: 5 | DQ45: 5 | DR45: 4 | DS45: 3 | DT45: 3 | DU45: 3 | DV45: 5 | DW45: 3 | DX45: 2 | DY45: 5 | DZ45: 5 | EA45: 5 | EB45: 3 | EC45: 3 | ED45: 1 | EE45: 1 | EF45: 1 | EG45: 1 | EH45: 4 | EI45: 4 | EJ45: 3 | EK45: 3 | EL45: 1 | EM45: 1 | EN45: 5 | EO45: 3 | EP45: 3 | EQ45: 2 | ER45: 2 | ES45: 2 | ET45: 2 | EU45: 2 | EV45: 3 | EW45: 0 | EX45: 0.1034482759 | EY45: 0.2413793103 | EZ45: 0.3448275862 | FA45: 0.1551724138 | FB45: 0.1551724138
A46: 45 | L46: 3 | M46: 4 | N46: 5 | O46: 5 | P46: 3 | Q46: 3 | R46: 2 | S46: 2 | T46: 2 | U46: 2 | V46: 2 | W46: 4 | X46: 4 | Y46: 3 | Z46: 4 | AA46: 4 | AB46: 4 | AC46: 2 | AD46: 2 | AE46: 3 | AF46: 3 | AG46: 3 | AH46: 2 | AI46: 3 | AJ46: 3 | AK46: 3 | AL46: 5 | AM46: 5 | AN46: 4 | AO46: 3 | AP46: 3 | AQ46: 3 | AR46: 5 | AS46: 3 | AT46: 2 | AU46: 5 | AV46: 5 | AW46: 5 | AX46: 3 | AY46: 3 | AZ46: 1 | BA46: 1 | BB46: 1 | BC46: 1 | BD46: 4 | BE46: 4 | BF46: 3 | BG46: 3 | BH46: 1 | BI46: 1 | BJ46: 5 | BK46: 3 | BL46: 3 | BM46: 2 | BN46: 2 | BO46: 2 | BP46: 2 | BQ46: 2 | BR46: 3 | BS46: 0 | BT46: 0.1034482759 | BU46: 0.2413793103 | BV46: 0.3448275862 | BW46: 0.1551724138 | BX46: 0.1551724138 | CE46: 46 | CF46: 3 | CG46: 5 | CH46: 4 | CI46: 5 | CP46: 3 | CQ46: 4 | CR46: 4 | CS46: 4 | CT46: 4 | CU46: 4 | CV46: 4 | CW46: 4 | CX46: 4 | CY46: 4 | CZ46: 4 | DA46: 5 | DB46: 4 | DC46: 4 | DD46: 4 | DE46: 4 | DF46: 4 | DG46: 4 | DH46: 4 | DI46: 4 | DJ46: 4 | DK46: 4 | DL46: 4 | DM46: 4 | DN46: 4 | DO46: 4 | DP46: 5 | DQ46: 5 | DR46: 5 | DS46: 3 | DT46: 3 | DU46: 1 | DV46: 5 | DW46: 4 | DX46: 4 | DY46: 5 | DZ46: 5 | EA46: 5 | EB46: 4 | EC46: 4 | ED46: 5 | EE46: 3 | EF46: 3 | EG46: 3 | EH46: 5 | EI46: 5 | EJ46: 5 | EK46: 5 | EL46: 5 | EM46: 4 | EN46: 3 | EO46: 5 | EP46: 5 | EQ46: 4 | ER46: 3 | ES46: 5 | ET46: 3 | EU46: 5 | EV46: 3 | EW46: 0 | EX46: 0.01724137931 | EY46: 0 | EZ46: 0.1551724138 | FA46: 0.5172413793 | FB46: 0.3103448276
A47: 46 | L47: 3 | M47: 4 | N47: 4 | O47: 4 | P47: 4 | Q47: 4 | R47: 4 | S47: 4 | T47: 4 | U47: 4 | V47: 4 | W47: 5 | X47: 4 | Y47: 4 | Z47: 4 | AA47: 4 | AB47: 4 | AC47: 4 | AD47: 4 | AE47: 4 | AF47: 4 | AG47: 4 | AH47: 4 | AI47: 4 | AJ47: 4 | AK47: 4 | AL47: 5 | AM47: 5 | AN47: 5 | AO47: 3 | AP47: 3 | AQ47: 1 | AR47: 5 | AS47: 4 | AT47: 4 | AU47: 5 | AV47: 5 | AW47: 5 | AX47: 4 | AY47: 4 | AZ47: 5 | BA47: 3 | BB47: 3 | BC47: 3 | BD47: 5 | BE47: 5 | BF47: 5 | BG47: 5 | BH47: 5 | BI47: 4 | BJ47: 3 | BK47: 5 | BL47: 5 | BM47: 4 | BN47: 3 | BO47: 5 | BP47: 3 | BQ47: 5 | BR47: 3 | BS47: 0 | BT47: 0.01724137931 | BU47: 0 | BV47: 0.1551724138 | BW47: 0.5172413793 | BX47: 0.3103448276 | CE47: 47 | CF47: 3 | CG47: 5 | CH47: 3 | CI47: 4 | CP47: 2 | CQ47: 4 | CR47: 3 | CS47: 3 | CT47: 4 | CU47: 2 | CV47: 2 | CW47: 3 | CX47: 2 | CY47: 4 | CZ47: 4 | DA47: 3 | DB47: 3 | DC47: 4 | DD47: 4 | DE47: 3 | DF47: 2 | DG47: 3 | DH47: 5 | DI47: 4 | DJ47: 4 | DK47: 5 | DL47: 4 | DM47: 3 | DN47: 2 | DO47: 5 | DP47: 5 | DQ47: 5 | DR47: 3 | DS47: 4 | DT47: 3 | DU47: 5 | DV47: 4 | DW47: 3 | DX47: 5 | DY47: 5 | DZ47: 4 | EA47: 4 | EB47: 3 | EC47: 4 | ED47: 2 | EE47: 2 | EF47: 2 | EG47: 2 | EH47: 3 | EI47: 4 | EJ47: 4 | EK47: 4 | EL47: 3 | EM47: 4 | EN47: 4 | EO47: 3 | EP47: 4 | EQ47: 2 | ER47: 4 | ES47: 3 | ET47: 2 | EU47: 2 | EV47: 3 | EW47: 0 | EX47: 0 | EY47: 0.224137931 | EZ47: 0.275862069 | FA47: 0.3620689655 | FB47: 0.1379310345
A48: 47 | L48: 2 | M48: 4 | N48: 3 | O48: 3 | P48: 4 | Q48: 2 | R48: 2 | S48: 3 | T48: 2 | U48: 4 | V48: 4 | W48: 3 | X48: 3 | Y48: 4 | Z48: 4 | AA48: 3 | AB48: 2 | AC48: 3 | AD48: 5 | AE48: 4 | AF48: 4 | AG48: 5 | AH48: 4 | AI48: 3 | AJ48: 2 | AK48: 5 | AL48: 5 | AM48: 5 | AN48: 3 | AO48: 4 | AP48: 3 | AQ48: 5 | AR48: 4 | AS48: 3 | AT48: 5 | AU48: 5 | AV48: 4 | AW48: 4 | AX48: 3 | AY48: 4 | AZ48: 2 | BA48: 2 | BB48: 2 | BC48: 2 | BD48: 3 | BE48: 4 | BF48: 4 | BG48: 4 | BH48: 3 | BI48: 4 | BJ48: 4 | BK48: 3 | BL48: 4 | BM48: 2 | BN48: 4 | BO48: 3 | BP48: 2 | BQ48: 2 | BR48: 3 | BS48: 0 | BT48: 0 | BU48: 0.224137931 | BV48: 0.275862069 | BW48: 0.3620689655 | BX48: 0.1379310345 | CE48: 48 | CF48: 3 | CG48: 5 | CH48: 6 | CI48: 5 | CP48: 1 | CQ48: 5 | CR48: 3 | CS48: 4 | CT48: 5 | CU48: 1 | CV48: 2 | CW48: 4 | CX48: 1 | CY48: 5 | CZ48: 5 | DA48: 5 | DB48: 5 | DC48: 4 | DD48: 5 | DE48: 4 | DF48: 5 | DG48: 5 | DH48: 5 | DI48: 5 | DJ48: 5 | DK48: 5 | DL48: 3 | DM48: 1 | DN48: 1 | DO48: 4 | DP48: 3 | DQ48: 4 | DR48: 5 | DS48: 5 | DT48: 4 | DU48: 5 | DV48: 5 | DW48: 4 | DX48: 4 | DY48: 5 | DZ48: 5 | EA48: 5 | EB48: 4 | EC48: 3 | ED48: 5 | EE48: 4 | EF48: 4 | EG48: 1 | EH48: 1 | EI48: 5 | EJ48: 3 | EK48: 5 | EL48: 4 | EM48: 3 | EN48: 2 | EO48: 2 | EP48: 5 | EQ48: 2 | ER48: 2 | ES48: 3 | ET48: 3 | EU48: 3 | EV48: 3 | EW48: 0 | EX48: 0.1206896552 | EY48: 0.08620689655 | EZ48: 0.1551724138 | FA48: 0.224137931 | FB48: 0.4137931034
A49: 48 | L49: 1 | M49: 5 | N49: 3 | O49: 4 | P49: 5 | Q49: 1 | R49: 2 | S49: 4 | T49: 1 | U49: 5 | V49: 5 | W49: 5 | X49: 5 | Y49: 4 | Z49: 5 | AA49: 4 | AB49: 5 | AC49: 5 | AD49: 5 | AE49: 5 | AF49: 5 | AG49: 5 | AH49: 3 | AI49: 1 | AJ49: 1 | AK49: 4 | AL49: 3 | AM49: 4 | AN49: 5 | AO49: 5 | AP49: 4 | AQ49: 5 | AR49: 5 | AS49: 4 | AT49: 4 | AU49: 5 | AV49: 5 | AW49: 5 | AX49: 4 | AY49: 3 | AZ49: 5 | BA49: 4 | BB49: 4 | BC49: 1 | BD49: 1 | BE49: 5 | BF49: 3 | BG49: 5 | BH49: 4 | BI49: 3 | BJ49: 2 | BK49: 2 | BL49: 5 | BM49: 2 | BN49: 2 | BO49: 3 | BP49: 3 | BQ49: 3 | BR49: 3 | BS49: 0 | BT49: 0.1206896552 | BU49: 0.08620689655 | BV49: 0.1551724138 | BW49: 0.224137931 | BX49: 0.4137931034 | CE49: 49 | CF49: 3 | CG49: 5 | CH49: 3 | CI49: 5 | CP49: 2 | CQ49: 5 | CR49: 3 | CS49: 3 | CT49: 5 | CU49: 4 | CV49: 3 | CW49: 4 | CX49: 2 | CY49: 4 | CZ49: 3 | DA49: 3 | DB49: 3 | DC49: 4 | DD49: 3 | DE49: 3 | DF49: 4 | DG49: 3 | DH49: 3 | DI49: 3 | DJ49: 3 | DK49: 3 | DL49: 4 | DM49: 3 | DN49: 3 | DO49: 4 | DP49: 3 | DQ49: 5 | DR49: 5 | DS49: 5 | DT49: 3 | DU49: 4 | DV49: 4 | DW49: 4 | DX49: 4 | DY49: 3 | DZ49: 5 | EA49: 4 | EB49: 3 | EC49: 3 | ED49: 4 | EE49: 2 | EF49: 4 | EG49: 3 | EH49: 3 | EI49: 3 | EJ49: 3 | EK49: 3 | EL49: 3 | EM49: 3 | EN49: 3 | EO49: 3 | EP49: 4 | EQ49: 3 | ER49: 3 | ES49: 4 | ET49: 4 | EU49: 3 | EV49: 3 | EW49: 0 | EX49: 0 | EY49: 0.05172413793 | EZ49: 0.5517241379 | FA49: 0.2931034483 | FB49: 0.1034482759
A50: 49 | L50: 2 | M50: 5 | N50: 3 | O50: 3 | P50: 5 | Q50: 4 | R50: 3 | S50: 4 | T50: 2 | U50: 4 | V50: 3 | W50: 3 | X50: 3 | Y50: 4 | Z50: 3 | AA50: 3 | AB50: 4 | AC50: 3 | AD50: 3 | AE50: 3 | AF50: 3 | AG50: 3 | AH50: 4 | AI50: 3 | AJ50: 3 | AK50: 4 | AL50: 3 | AM50: 5 | AN50: 5 | AO50: 5 | AP50: 3 | AQ50: 4 | AR50: 4 | AS50: 4 | AT50: 4 | AU50: 3 | AV50: 5 | AW50: 4 | AX50: 3 | AY50: 3 | AZ50: 4 | BA50: 2 | BB50: 4 | BC50: 3 | BD50: 3 | BE50: 3 | BF50: 3 | BG50: 3 | BH50: 3 | BI50: 3 | BJ50: 3 | BK50: 3 | BL50: 4 | BM50: 3 | BN50: 3 | BO50: 4 | BP50: 4 | BQ50: 3 | BR50: 3 | BS50: 0 | BT50: 0 | BU50: 0.05172413793 | BV50: 0.5517241379 | BW50: 0.2931034483 | BX50: 0.1034482759 | CE50: 50 | CF50: 3 | CG50: 5 | CH50: 6 | CI50: 5 | CP50: 3 | CQ50: 5 | CR50: 5 | CS50: 3 | CT50: 4 | CU50: 4 | CV50: 3 | CW50: 2 | CX50: 2 | CY50: 5 | CZ50: 4 | DA50: 4 | DB50: 4 | DC50: 5 | DD50: 5 | DE50: 5 | DF50: 5 | DG50: 5 | DH50: 5 | DI50: 5 | DJ50: 5 | DK50: 5 | DL50: 4 | DM50: 1 | DN50: 3 | DO50: 5 | DP50: 5 | DQ50: 4 | DR50: 5 | DS50: 5 | DT50: 4 | DU50: 5 | DV50: 4 | DW50: 4 | DX50: 4 | DY50: 5 | DZ50: 5 | EA50: 5 | EB50: 4 | EC50: 2 | ED50: 5 | EE50: 3 | EF50: 3 | EG50: 4 | EH50: 4 | EI50: 1 | EJ50: 2 | EK50: 4 | EL50: 2 | EM50: 2 | EN50: 2 | EO50: 2 | EP50: 5 | EQ50: 2 | ER50: 2 | ES50: 2 | ET50: 1 | EU50: 2 | EV50: 3 | EW50: 0 | EX50: 0.05172413793 | EY50: 0.2068965517 | EZ50: 0.1034482759 | FA50: 0.2586206897 | FB50: 0.3793103448
A51: 50 | L51: 3 | M51: 5 | N51: 5 | O51: 3 | P51: 4 | Q51: 4 | R51: 3 | S51: 2 | T51: 2 | U51: 5 | V51: 4 | W51: 4 | X51: 4 | Y51: 5 | Z51: 5 | AA51: 5 | AB51: 5 | AC51: 5 | AD51: 5 | AE51: 5 | AF51: 5 | AG51: 5 | AH51: 4 | AI51: 1 | AJ51: 3 | AK51: 5 | AL51: 5 | AM51: 4 | AN51: 5 | AO51: 5 | AP51: 4 | AQ51: 5 | AR51: 4 | AS51: 4 | AT51: 4 | AU51: 5 | AV51: 5 | AW51: 5 | AX51: 4 | AY51: 2 | AZ51: 5 | BA51: 3 | BB51: 3 | BC51: 4 | BD51: 4 | BE51: 1 | BF51: 2 | BG51: 4 | BH51: 2 | BI51: 2 | BJ51: 2 | BK51: 2 | BL51: 5 | BM51: 2 | BN51: 2 | BO51: 2 | BP51: 1 | BQ51: 2 | BR51: 3 | BS51: 0 | BT51: 0.05172413793 | BU51: 0.2068965517 | BV51: 0.1034482759 | BW51: 0.2586206897 | BX51: 0.3793103448 | CE51: 51 | CF51: 3 | CG51: 5 | CH51: 3 | CI51: 5 | CP51: 4 | CQ51: 4 | CR51: 4 | CS51: 4 | CT51: 4 | CU51: 4 | CV51: 4 | CW51: 3 | CX51: 4 | CY51: 4 | CZ51: 4 | DA51: 5 | DB51: 5 | DC51: 5 | DD51: 4 | DE51: 5 | DF51: 5 | DG51: 5 | DH51: 5 | DI51: 4 | DJ51: 4 | DK51: 4 | DL51: 5 | DM51: 5 | DN51: 4 | DO51: 4 | DP51: 4 | DQ51: 5 | DR51: 3 | DS51: 4 | DT51: 3 | DU51: 4 | DV51: 5 | DW51: 4 | DX51: 3 | DY51: 5 | DZ51: 5 | EA51: 4 | EB51: 3 | EC51: 4 | ED51: 5 | EE51: 4 | EF51: 4 | EG51: 4 | EH51: 5 | EI51: 5 | EJ51: 4 | EK51: 5 | EL51: 4 | EM51: 4 | EN51: 4 | EO51: 4 | EP51: 5 | EQ51: 4 | ER51: 4 | ES51: 4 | ET51: 4 | EU51: 4 | EV51: 3 | EW51: 0 | EX51: 0 | EY51: 0 | EZ51: 0.08620689655 | FA51: 0.6034482759 | FB51: 0.3103448276
A52: 51 | L52: 4 | M52: 4 | N52: 4 | O52: 4 | P52: 4 | Q52: 4 | R52: 4 | S52: 3 | T52: 4 | U52: 4 | V52: 4 | W52: 5 | X52: 5 | Y52: 5 | Z52: 4 | AA52: 5 | AB52: 5 | AC52: 5 | AD52: 5 | AE52: 4 | AF52: 4 | AG52: 4 | AH52: 5 | AI52: 5 | AJ52: 4 | AK52: 4 | AL52: 4 | AM52: 5 | AN52: 3 | AO52: 4 | AP52: 3 | AQ52: 4 | AR52: 5 | AS52: 4 | AT52: 3 | AU52: 5 | AV52: 5 | AW52: 4 | AX52: 3 | AY52: 4 | AZ52: 5 | BA52: 4 | BB52: 4 | BC52: 4 | BD52: 5 | BE52: 5 | BF52: 4 | BG52: 5 | BH52: 4 | BI52: 4 | BJ52: 4 | BK52: 4 | BL52: 5 | BM52: 4 | BN52: 4 | BO52: 4 | BP52: 4 | BQ52: 4 | BR52: 3 | BS52: 0 | BT52: 0 | BU52: 0 | BV52: 0.08620689655 | BW52: 0.6034482759 | BX52: 0.3103448276 | CE52: 52 | CF52: 3 | CG52: 5 | CH52: 3 | CI52: 2 | CP52: 1 | CQ52: 1 | CR52: 1 | CS52: 1 | CT52: 1 | CU52: 1 | CV52: 1 | CW52: 1 | CX52: 1 | CY52: 1 | CZ52: 1 | DA52: 1 | DB52: 1 | DC52: 4 | DD52: 3 | DE52: 3 | DF52: 3 | DG52: 3 | DH52: 3 | DI52: 3 | DJ52: 4 | DK52: 4 | DL52: 4 | DM52: 2 | DN52: 3 | DO52: 2 | DP52: 3 | DQ52: 4 | DR52: 3 | DS52: 4 | DT52: 3 | DU52: 2 | DV52: 5 | DW52: 4 | DX52: 4 | DY52: 3 | DZ52: 4 | EA52: 3 | EB52: 3 | EC52: 1 | ED52: 3 | EE52: 1 | EF52: 2 | EG52: 2 | EH52: 2 | EI52: 1 | EJ52: 1 | EK52: 1 | EL52: 1 | EM52: 1 | EN52: 1 | EO52: 1 | EP52: 1 | EQ52: 1 | ER52: 1 | ES52: 1 | ET52: 1 | EU52: 1 | EV52: 3 | EW52: 0 | EX52: 0.4827586207 | EY52: 0.1034482759 | EZ52: 0.2413793103 | FA52: 0.1551724138 | FB52: 0.01724137931
A53: 52 | L53: 1 | M53: 1 | N53: 1 | O53: 1 | P53: 1 | Q53: 1 | R53: 1 | S53: 1 | T53: 1 | U53: 1 | V53: 1 | W53: 1 | X53: 1 | Y53: 4 | Z53: 3 | AA53: 3 | AB53: 3 | AC53: 3 | AD53: 3 | AE53: 3 | AF53: 4 | AG53: 4 | AH53: 4 | AI53: 2 | AJ53: 3 | AK53: 2 | AL53: 3 | AM53: 4 | AN53: 3 | AO53: 4 | AP53: 3 | AQ53: 2 | AR53: 5 | AS53: 4 | AT53: 4 | AU53: 3 | AV53: 4 | AW53: 3 | AX53: 3 | AY53: 1 | AZ53: 3 | BA53: 1 | BB53: 2 | BC53: 2 | BD53: 2 | BE53: 1 | BF53: 1 | BG53: 1 | BH53: 1 | BI53: 1 | BJ53: 1 | BK53: 1 | BL53: 1 | BM53: 1 | BN53: 1 | BO53: 1 | BP53: 1 | BQ53: 1 | BR53: 3 | BS53: 0 | BT53: 0.4827586207 | BU53: 0.1034482759 | BV53: 0.2413793103 | BW53: 0.1551724138 | BX53: 0.01724137931 | CE53: 53 | CF53: 3 | CG53: 5 | CH53: 3 | CI53: 4 | CP53: 1 | CQ53: 2 | CR53: 3 | CS53: 3 | CT53: 2 | CU53: 2 | CV53: 2 | CW53: 2 | CX53: 2 | CY53: 3 | CZ53: 3 | DA53: 1 | DB53: 2 | DC53: 3 | DD53: 2 | DE53: 2 | DF53: 4 | DG53: 4 | DH53: 4 | DI53: 4 | DJ53: 4 | DK53: 3 | DL53: 4 | DM53: 3 | DN53: 2 | DO53: 3 | DP53: 3 | DQ53: 3 | DR53: 4 | DS53: 3 | DT53: 2 | DU53: 3 | DV53: 1 | DW53: 3 | DX53: 4 | DY53: 1 | DZ53: 1 | EA53: 5 | EB53: 3 | EC53: 2 | ED53: 2 | EE53: 1 | EF53: 1 | EG53: 1 | EH53: 2 | EI53: 2 | EJ53: 2 | EK53: 2 | EL53: 2 | EM53: 3 | EN53: 2 | EO53: 2 | EP53: 2 | EQ53: 2 | ER53: 1 | ES53: 2 | ET53: 2 | EU53: 3 | EV53: 3 | EW53: 0 | EX53: 0.1551724138 | EY53: 0.4137931034 | EZ53: 0.275862069 | FA53: 0.1379310345 | FB53: 0.01724137931
A54: 53 | L54: 1 | M54: 2 | N54: 3 | O54: 3 | P54: 2 | Q54: 2 | R54: 2 | S54: 2 | T54: 2 | U54: 3 | V54: 3 | W54: 1 | X54: 2 | Y54: 3 | Z54: 2 | AA54: 2 | AB54: 4 | AC54: 4 | AD54: 4 | AE54: 4 | AF54: 4 | AG54: 3 | AH54: 4 | AI54: 3 | AJ54: 2 | AK54: 3 | AL54: 3 | AM54: 3 | AN54: 4 | AO54: 3 | AP54: 2 | AQ54: 3 | AR54: 1 | AS54: 3 | AT54: 4 | AU54: 1 | AV54: 1 | AW54: 5 | AX54: 3 | AY54: 2 | AZ54: 2 | BA54: 1 | BB54: 1 | BC54: 1 | BD54: 2 | BE54: 2 | BF54: 2 | BG54: 2 | BH54: 2 | BI54: 3 | BJ54: 2 | BK54: 2 | BL54: 2 | BM54: 2 | BN54: 1 | BO54: 2 | BP54: 2 | BQ54: 3 | BR54: 3 | BS54: 0 | BT54: 0.1551724138 | BU54: 0.4137931034 | BV54: 0.275862069 | BW54: 0.1379310345 | BX54: 0.01724137931 | CE54: 54 | CF54: 3 | CG54: 5 | CH54: 3 | CI54: 5 | CP54: 1 | CQ54: 2 | CR54: 1 | CS54: 1 | CT54: 4 | CU54: 1 | CV54: 1 | CW54: 4 | CX54: 1 | CY54: 3 | CZ54: 2 | DA54: 2 | DB54: 2 | DC54: 2 | DD54: 2 | DE54: 2 | DF54: 5 | DG54: 1 | DH54: 1 | DI54: 3 | DJ54: 5 | DK54: 5 | DL54: 3 | DM54: 1 | DN54: 3 | DO54: 5 | DP54: 3 | DQ54: 4 | DR54: 4 | DS54: 5 | DT54: 5 | DU54: 4 | DV54: 5 | DW54: 4 | DX54: 5 | DY54: 3 | DZ54: 5 | EA54: 5 | EB54: 5 | EC54: 1 | ED54: 1 | EE54: 1 | EF54: 1 | EG54: 1 | EH54: 1 | EI54: 3 | EJ54: 2 | EK54: 2 | EL54: 1 | EM54: 1 | EN54: 1 | EO54: 1 | EP54: 2 | EQ54: 1 | ER54: 1 | ES54: 1 | ET54: 1 | EU54: 1 | EV54: 3 | EW54: 0 | EX54: 0.4137931034 | EY54: 0.1724137931 | EZ54: 0.1206896552 | FA54: 0.1034482759 | FB54: 0.1896551724
A55: 54 | L55: 1 | M55: 2 | N55: 1 | O55: 1 | P55: 4 | Q55: 1 | R55: 1 | S55: 4 | T55: 1 | U55: 3 | V55: 2 | W55: 2 | X55: 2 | Y55: 2 | Z55: 2 | AA55: 2 | AB55: 5 | AC55: 1 | AD55: 1 | AE55: 3 | AF55: 5 | AG55: 5 | AH55: 3 | AI55: 1 | AJ55: 3 | AK55: 5 | AL55: 3 | AM55: 4 | AN55: 4 | AO55: 5 | AP55: 5 | AQ55: 4 | AR55: 5 | AS55: 4 | AT55: 5 | AU55: 3 | AV55: 5 | AW55: 5 | AX55: 5 | AY55: 1 | AZ55: 1 | BA55: 1 | BB55: 1 | BC55: 1 | BD55: 1 | BE55: 3 | BF55: 2 | BG55: 2 | BH55: 1 | BI55: 1 | BJ55: 1 | BK55: 1 | BL55: 2 | BM55: 1 | BN55: 1 | BO55: 1 | BP55: 1 | BQ55: 1 | BR55: 3 | BS55: 0 | BT55: 0.4137931034 | BU55: 0.1724137931 | BV55: 0.1206896552 | BW55: 0.1034482759 | BX55: 0.1896551724 | CE55: 55 | CF55: 3 | CG55: 5 | CH55: 3 | CI55: 2 | CP55: 1 | CQ55: 2 | CR55: 1 | CS55: 2 | CT55: 2 | CU55: 1 | CV55: 1 | CW55: 2 | CX55: 1 | CY55: 1 | CZ55: 1 | DA55: 2 | DB55: 3 | DC55: 3 | DD55: 3 | DE55: 3 | DF55: 4 | DG55: 3 | DH55: 4 | DI55: 3 | DJ55: 3 | DK55: 3 | DL55: 3 | DM55: 1 | DN55: 2 | DO55: 4 | DP55: 3 | DQ55: 4 | DR55: 1 | DS55: 3 | DT55: 2 | DU55: 3 | DV55: 2 | DW55: 2 | DX55: 5 | DY55: 2 | DZ55: n | EA55: 5 | EB55: 2 | EC55: 1 | ED55: 2 | EE55: 2 | EF55: 1 | EG55: 1 | EH55: 1 | EI55: 2 | EJ55: 2 | EK55: 1 | EL55: 1 | EM55: 1 | EN55: 1 | EO55: 1 | EP55: 1 | EQ55: 1 | ER55: 1 | ES55: 1 | ET55: 1 | EU55: 1 | EV55: 3 | EW55: 0.025 | EX55: 0.4137931034 | EY55: 0.2586206897 | EZ55: 0.2068965517 | FA55: 0.06896551724 | FB55: 0.03448275862
A56: 55 | L56: 1 | M56: 2 | N56: 1 | O56: 2 | P56: 2 | Q56: 1 | R56: 1 | S56: 2 | T56: 1 | U56: 1 | V56: 1 | W56: 2 | X56: 3 | Y56: 3 | Z56: 3 | AA56: 3 | AB56: 4 | AC56: 3 | AD56: 4 | AE56: 3 | AF56: 3 | AG56: 3 | AH56: 3 | AI56: 1 | AJ56: 2 | AK56: 4 | AL56: 3 | AM56: 4 | AN56: 1 | AO56: 3 | AP56: 2 | AQ56: 3 | AR56: 2 | AS56: 2 | AT56: 5 | AU56: 2 | AV56: 999 | AW56: 5 | AX56: 2 | AY56: 1 | AZ56: 2 | BA56: 2 | BB56: 1 | BC56: 1 | BD56: 1 | BE56: 2 | BF56: 2 | BG56: 1 | BH56: 1 | BI56: 1 | BJ56: 1 | BK56: 1 | BL56: 1 | BM56: 1 | BN56: 1 | BO56: 1 | BP56: 1 | BQ56: 1 | BR56: 3 | BS56: 0.025 | BT56: 0.4137931034 | BU56: 0.2586206897 | BV56: 0.2068965517 | BW56: 0.06896551724 | BX56: 0.03448275862 | CE56: 56 | CF56: 3 | CG56: 5 | CH56: 2 | CI56: 5 | CP56: 3 | CQ56: 5 | CR56: 5 | CS56: 4 | CT56: 5 | CU56: 4 | CV56: 3 | CW56: 3 | CX56: 4 | CY56: 4 | CZ56: 5 | DA56: 5 | DB56: 5 | DC56: 5 | DD56: 5 | DE56: 5 | DF56: 5 | DG56: 5 | DH56: 5 | DI56: 5 | DJ56: 5 | DK56: 5 | DL56: 4 | DM56: 4 | DN56: 4 | DO56: 4 | DP56: 3 | DQ56: 5 | DR56: 5 | DS56: 5 | DT56: 3 | DU56: 4 | DV56: 5 | DW56: 4 | DX56: 5 | DY56: 5 | DZ56: 5 | EA56: 5 | EB56: 5 | EC56: 3 | ED56: 3 | EE56: 2 | EF56: 3 | EG56: 4 | EH56: 3 | EI56: 3 | EJ56: 4 | EK56: 4 | EL56: 2 | EM56: 3 | EN56: 3 | EO56: 3 | EP56: 4 | EQ56: 4 | ER56: 3 | ES56: 4 | ET56: 4 | EU56: 3 | EV56: 3 | EW56: 0 | EX56: 0 | EY56: 0.03448275862 | EZ56: 0.2586206897 | FA56: 0.2931034483 | FB56: 0.4137931034
A57: 56 | L57: 3 | M57: 5 | N57: 5 | O57: 4 | P57: 5 | Q57: 4 | R57: 3 | S57: 3 | T57: 4 | U57: 4 | V57: 5 | W57: 5 | X57: 5 | Y57: 5 | Z57: 5 | AA57: 5 | AB57: 5 | AC57: 5 | AD57: 5 | AE57: 5 | AF57: 5 | AG57: 5 | AH57: 4 | AI57: 4 | AJ57: 4 | AK57: 4 | AL57: 3 | AM57: 5 | AN57: 5 | AO57: 5 | AP57: 3 | AQ57: 4 | AR57: 5 | AS57: 4 | AT57: 5 | AU57: 5 | AV57: 5 | AW57: 5 | AX57: 5 | AY57: 3 | AZ57: 3 | BA57: 2 | BB57: 3 | BC57: 4 | BD57: 3 | BE57: 3 | BF57: 4 | BG57: 4 | BH57: 2 | BI57: 3 | BJ57: 3 | BK57: 3 | BL57: 4 | BM57: 4 | BN57: 3 | BO57: 4 | BP57: 4 | BQ57: 3 | BR57: 3 | BS57: 0 | BT57: 0 | BU57: 0.03448275862 | BV57: 0.2586206897 | BW57: 0.2931034483 | BX57: 0.4137931034 | CE57: 57 | CF57: 3 | CG57: 5 | CH57: 2 | CI57: 5 | CP57: 2 | CQ57: 3 | CR57: 3 | CS57: 3 | CT57: 4 | CU57: 3 | CV57: 3 | CW57: 3 | CX57: 3 | CY57: 5 | CZ57: 4 | DA57: 3 | DB57: 3 | DC57: 4 | DD57: 4 | DE57: 3 | DF57: 4 | DG57: 4 | DH57: 4 | DI57: 4 | DJ57: 4 | DK57: 4 | DL57: 4 | DM57: 3 | DN57: 2 | DO57: 5 | DP57: 3 | DQ57: 4 | DR57: 3 | DS57: 3 | DT57: 3 | DU57: 5 | DV57: 4 | DW57: 4 | DX57: 3 | DY57: 5 | DZ57: 4 | EA57: 3 | EB57: 4 | EC57: 3 | ED57: 4 | EE57: 3 | EF57: 3 | EG57: 3 | EH57: 3 | EI57: 4 | EJ57: 2 | EK57: 3 | EL57: 2 | EM57: 2 | EN57: 2 | EO57: 2 | EP57: 3 | EQ57: 3 | ER57: 3 | ES57: 3 | ET57: 3 | EU57: 3 | EV57: 3 | EW57: 0 | EX57: 0 | EY57: 0.1206896552 | EZ57: 0.5 | FA57: 0.3103448276 | FB57: 0.06896551724
A58: 57 | L58: 2 | M58: 3 | N58: 3 | O58: 3 | P58: 4 | Q58: 3 | R58: 3 | S58: 3 | T58: 3 | U58: 5 | V58: 4 | W58: 3 | X58: 3 | Y58: 4 | Z58: 4 | AA58: 3 | AB58: 4 | AC58: 4 | AD58: 4 | AE58: 4 | AF58: 4 | AG58: 4 | AH58: 4 | AI58: 3 | AJ58: 2 | AK58: 5 | AL58: 3 | AM58: 4 | AN58: 3 | AO58: 3 | AP58: 3 | AQ58: 5 | AR58: 4 | AS58: 4 | AT58: 3 | AU58: 5 | AV58: 4 | AW58: 3 | AX58: 4 | AY58: 3 | AZ58: 4 | BA58: 3 | BB58: 3 | BC58: 3 | BD58: 3 | BE58: 4 | BF58: 2 | BG58: 3 | BH58: 2 | BI58: 2 | BJ58: 2 | BK58: 2 | BL58: 3 | BM58: 3 | BN58: 3 | BO58: 3 | BP58: 3 | BQ58: 3 | BR58: 3 | BS58: 0 | BT58: 0 | BU58: 0.1206896552 | BV58: 0.5 | BW58: 0.3103448276 | BX58: 0.06896551724 | CE58: 58 | CF58: 3 | CG58: 5 | CH58: 2 | CI58: 5 | CP58: 2 | CQ58: 2 | CR58: 1 | CS58: 2 | CT58: 2 | CU58: 2 | CV58: 2 | CW58: 2 | CX58: 2 | CY58: 5 | CZ58: 4 | DA58: 3 | DB58: 3 | DC58: 5 | DD58: 2 | DE58: 5 | DF58: 4 | DG58: 3 | DH58: 5 | DI58: 5 | DJ58: 5 | DK58: 5 | DL58: 4 | DM58: 2 | DN58: 2 | DO58: 5 | DP58: 3 | DQ58: 4 | DR58: 4 | DS58: 5 | DT58: 4 | DU58: 4 | DV58: 4 | DW58: 4 | DX58: 5 | DY58: 5 | DZ58: 5 | EA58: 4 | EB58: 3 | EC58: 2 | ED58: 5 | EE58: 4 | EF58: 4 | EG58: 3 | EH58: 5 | EI58: 4 | EJ58: 3 | EK58: 3 | EL58: 4 | EM58: 2 | EN58: 4 | EO58: 2 | EP58: 2 | EQ58: 2 | ER58: 4 | ES58: 4 | ET58: 4 | EU58: 3 | EV58: 3 | EW58: 0 | EX58: 0.01724137931 | EY58: 0.275862069 | EZ58: 0.1551724138 | FA58: 0.3103448276 | FB58: 0.2413793103
A59: 58 | L59: 2 | M59: 2 | N59: 1 | O59: 2 | P59: 2 | Q59: 2 | R59: 2 | S59: 2 | T59: 2 | U59: 5 | V59: 4 | W59: 3 | X59: 3 | Y59: 5 | Z59: 2 | AA59: 5 | AB59: 4 | AC59: 3 | AD59: 5 | AE59: 5 | AF59: 5 | AG59: 5 | AH59: 4 | AI59: 2 | AJ59: 2 | AK59: 5 | AL59: 3 | AM59: 4 | AN59: 4 | AO59: 5 | AP59: 4 | AQ59: 4 | AR59: 4 | AS59: 4 | AT59: 5 | AU59: 5 | AV59: 5 | AW59: 4 | AX59: 3 | AY59: 2 | AZ59: 5 | BA59: 4 | BB59: 4 | BC59: 3 | BD59: 5 | BE59: 4 | BF59: 3 | BG59: 3 | BH59: 4 | BI59: 2 | BJ59: 4 | BK59: 2 | BL59: 2 | BM59: 2 | BN59: 4 | BO59: 4 | BP59: 4 | BQ59: 3 | BR59: 3 | BS59: 0 | BT59: 0.01724137931 | BU59: 0.275862069 | BV59: 0.1551724138 | BW59: 0.3103448276 | BX59: 0.2413793103 | CE59: 59 | CF59: 3 | CG59: 5 | CH59: 2 | CI59: 5 | CP59: 2 | CQ59: 3 | CR59: 3 | CS59: 2 | CT59: 3 | CU59: 1 | CV59: 1 | CW59: 2 | CX59: 2 | CY59: 3 | CZ59: 3 | DA59: 3 | DB59: 3 | DC59: 3 | DD59: 3 | DE59: 3 | DF59: 3 | DG59: 3 | DH59: 4 | DI59: 4 | DJ59: 5 | DK59: 5 | DL59: 2 | DM59: 2 | DN59: 1 | DO59: 5 | DP59: 3 | DQ59: 4 | DR59: 3 | DS59: 3 | DT59: 3 | DU59: 5 | DV59: 5 | DW59: 4 | DX59: 3 | DY59: 5 | DZ59: 5 | EA59: 3 | EB59: 3 | EC59: 1 | ED59: 2 | EE59: 1 | EF59: 1 | EG59: 1 | EH59: 1 | EI59: 1 | EJ59: 1 | EK59: 1 | EL59: 1 | EM59: 1 | EN59: 1 | EO59: 1 | EP59: 1 | EQ59: 1 | ER59: 1 | ES59: 1 | ET59: 1 | EU59: 1 | EV59: 3 | EW59: 0 | EX59: 0.3620689655 | EY59: 0.1206896552 | EZ59: 0.3275862069 | FA59: 0.06896551724 | FB59: 0.1206896552
A60: 59 | L60: 2 | M60: 3 | N60: 3 | O60: 2 | P60: 3 | Q60: 1 | R60: 1 | S60: 2 | T60: 2 | U60: 3 | V60: 3 | W60: 3 | X60: 3 | Y60: 3 | Z60: 3 | AA60: 3 | AB60: 3 | AC60: 3 | AD60: 4 | AE60: 4 | AF60: 5 | AG60: 5 | AH60: 2 | AI60: 2 | AJ60: 1 | AK60: 5 | AL60: 3 | AM60: 4 | AN60: 3 | AO60: 3 | AP60: 3 | AQ60: 5 | AR60: 5 | AS60: 4 | AT60: 3 | AU60: 5 | AV60: 5 | AW60: 3 | AX60: 3 | AY60: 1 | AZ60: 2 | BA60: 1 | BB60: 1 | BC60: 1 | BD60: 1 | BE60: 1 | BF60: 1 | BG60: 1 | BH60: 1 | BI60: 1 | BJ60: 1 | BK60: 1 | BL60: 1 | BM60: 1 | BN60: 1 | BO60: 1 | BP60: 1 | BQ60: 1 | BR60: 3 | BS60: 0 | BT60: 0.3620689655 | BU60: 0.1206896552 | BV60: 0.3275862069 | BW60: 0.06896551724 | BX60: 0.1206896552 | CE60: 60 | CF60: 999 | CG60: 7 | CH60: 5 | CI60: 1 | CP60: 3 | CQ60: 4 | CR60: 4 | CS60: 3 | CT60: 3 | CU60: 3 | CV60: 3 | CW60: 4 | CX60: 4 | CY60: 3 | CZ60: 3 | DA60: 3 | DB60: 3 | DC60: 4 | DD60: 3 | DE60: 3 | DF60: 3 | DG60: 3 | DH60: 3 | DI60: 3 | DJ60: 3 | DK60: 3 | DL60: 3 | DM60: 4 | DN60: 4 | DO60: 4 | DP60: 3 | DQ60: 5 | DR60: 2 | DS60: 3 | DT60: 3 | DU60: 4 | DV60: 5 | DW60: 3 | DX60: 4 | DY60: 5 | DZ60: 3 | EA60: 5 | EB60: 3 | EC60: 3 | ED60: 5 | EE60: 4 | EF60: 4 | EG60: 3 | EH60: 4 | EI60: 4 | EJ60: 4 | EK60: 4 | EL60: 3 | EM60: 3 | EN60: 3 | EO60: 4 | EP60: 3 | EQ60: 4 | ER60: 4 | ES60: 3 | ET60: 4 | EU60: 4 | EV60: 999 | EW60: 0 | EX60: 0 | EY60: 0.01724137931 | EZ60: 0.5344827586 | FA60: 0.3620689655 | FB60: 0.08620689655
A61: 60 | L61: 3 | M61: 4 | N61: 4 | O61: 3 | P61: 3 | Q61: 3 | R61: 3 | S61: 4 | T61: 4 | U61: 3 | V61: 3 | W61: 3 | X61: 3 | Y61: 4 | Z61: 3 | AA61: 3 | AB61: 3 | AC61: 3 | AD61: 3 | AE61: 3 | AF61: 3 | AG61: 3 | AH61: 3 | AI61: 4 | AJ61: 4 | AK61: 4 | AL61: 3 | AM61: 5 | AN61: 2 | AO61: 3 | AP61: 3 | AQ61: 4 | AR61: 5 | AS61: 3 | AT61: 4 | AU61: 5 | AV61: 3 | AW61: 5 | AX61: 3 | AY61: 3 | AZ61: 5 | BA61: 4 | BB61: 4 | BC61: 3 | BD61: 4 | BE61: 4 | BF61: 4 | BG61: 4 | BH61: 3 | BI61: 3 | BJ61: 3 | BK61: 4 | BL61: 3 | BM61: 4 | BN61: 4 | BO61: 3 | BP61: 4 | BQ61: 4 | BR61: 999 | BS61: 0 | BT61: 0 | BU61: 0.01724137931 | BV61: 0.5344827586 | BW61: 0.3620689655 | BX61: 0.08620689655 | CE61: 61 | CF61: 999 | CG61: 7 | CH61: 5 | CI61: 1 | CP61: 3 | CQ61: 4 | CR61: 4 | CS61: 3 | CT61: 5 | CU61: 3 | CV61: 2 | CW61: 4 | CX61: 2 | CY61: 3 | CZ61: 4 | DA61: 2 | DB61: 3 | DC61: 2 | DD61: 2 | DE61: 3 | DF61: 4 | DG61: 4 | DH61: 4 | DI61: 3 | DJ61: 2 | DK61: 4 | DL61: 4 | DM61: 3 | DN61: 2 | DO61: 4 | DP61: 3 | DQ61: 4 | DR61: 3 | DS61: 4 | DT61: 5 | DU61: 4 | DV61: 5 | DW61: 4 | DX61: 4 | DY61: 5 | DZ61: 4 | EA61: 5 | EB61: 3 | EC61: 4 | ED61: 3 | EE61: 4 | EF61: 3 | EG61: 2 | EH61: 3 | EI61: 5 | EJ61: 4 | EK61: 3 | EL61: 2 | EM61: 3 | EN61: 3 | EO61: 3 | EP61: 4 | EQ61: 3 | ER61: 4 | ES61: 3 | ET61: 4 | EU61: 4 | EV61: 999 | EW61: 0 | EX61: 0 | EY61: 0.1551724138 | EZ61: 0.3448275862 | FA61: 0.3965517241 | FB61: 0.1034482759
A62: 61 | L62: 3 | M62: 4 | N62: 4 | O62: 3 | P62: 5 | Q62: 3 | R62: 2 | S62: 4 | T62: 2 | U62: 3 | V62: 4 | W62: 2 | X62: 3 | Y62: 2 | Z62: 2 | AA62: 3 | AB62: 4 | AC62: 4 | AD62: 4 | AE62: 3 | AF62: 2 | AG62: 4 | AH62: 4 | AI62: 3 | AJ62: 2 | AK62: 4 | AL62: 3 | AM62: 4 | AN62: 3 | AO62: 4 | AP62: 5 | AQ62: 4 | AR62: 5 | AS62: 4 | AT62: 4 | AU62: 5 | AV62: 4 | AW62: 5 | AX62: 3 | AY62: 4 | AZ62: 3 | BA62: 4 | BB62: 3 | BC62: 2 | BD62: 3 | BE62: 5 | BF62: 4 | BG62: 3 | BH62: 2 | BI62: 3 | BJ62: 3 | BK62: 3 | BL62: 4 | BM62: 3 | BN62: 4 | BO62: 3 | BP62: 4 | BQ62: 4 | BR62: 999 | BS62: 0 | BT62: 0 | BU62: 0.1551724138 | BV62: 0.3448275862 | BW62: 0.3965517241 | BX62: 0.1034482759 | CE62: 62 | CF62: 3 | CG62: 7 | CH62: 5 | CI62: 5 | CP62: 3 | CQ62: 4 | CR62: 4 | CS62: 4 | CT62: 5 | CU62: 3 | CV62: 3 | CW62: 4 | CX62: 3 | CY62: 4 | CZ62: 4 | DA62: 3 | DB62: 3 | DC62: 4 | DD62: 3 | DE62: 3 | DF62: 4 | DG62: 3 | DH62: 4 | DI62: 4 | DJ62: 3 | DK62: 5 | DL62: 4 | DM62: 5 | DN62: 5 | DO62: 5 | DP62: 3 | DQ62: 5 | DR62: 4 | DS62: 4 | DT62: 5 | DU62: 4 | DV62: 5 | DW62: 4 | DX62: 4 | DY62: 3 | DZ62: 3 | EA62: 4 | EB62: 4 | EC62: 3 | ED62: 5 | EE62: 4 | EF62: 4 | EG62: 3 | EH62: 4 | EI62: 5 | EJ62: 5 | EK62: 4 | EL62: 4 | EM62: 4 | EN62: 5 | EO62: 4 | EP62: 4 | EQ62: 3 | ER62: 4 | ES62: 4 | ET62: 4 | EU62: 5 | EV62: 3 | EW62: 0 | EX62: 0 | EY62: 0 | EZ62: 0.275862069 | FA62: 0.5 | FB62: 0.224137931
A63: 62 | L63: 3 | M63: 4 | N63: 4 | O63: 4 | P63: 5 | Q63: 3 | R63: 3 | S63: 4 | T63: 3 | U63: 4 | V63: 4 | W63: 3 | X63: 3 | Y63: 4 | Z63: 3 | AA63: 3 | AB63: 4 | AC63: 3 | AD63: 4 | AE63: 4 | AF63: 3 | AG63: 5 | AH63: 4 | AI63: 5 | AJ63: 5 | AK63: 5 | AL63: 3 | AM63: 5 | AN63: 4 | AO63: 4 | AP63: 5 | AQ63: 4 | AR63: 5 | AS63: 4 | AT63: 4 | AU63: 3 | AV63: 3 | AW63: 4 | AX63: 4 | AY63: 3 | AZ63: 5 | BA63: 4 | BB63: 4 | BC63: 3 | BD63: 4 | BE63: 5 | BF63: 5 | BG63: 4 | BH63: 4 | BI63: 4 | BJ63: 5 | BK63: 4 | BL63: 4 | BM63: 3 | BN63: 4 | BO63: 4 | BP63: 4 | BQ63: 5 | BR63: 3 | BS63: 0 | BT63: 0 | BU63: 0 | BV63: 0.275862069 | BW63: 0.5 | BX63: 0.224137931 | CE63: 63 | CF63: 3 | CG63: 7 | CH63: 5 | CI63: 1 | CP63: 2 | CQ63: 4 | CR63: 5 | CS63: 5 | CT63: 5 | CU63: 2 | CV63: 3 | CW63: 4 | CX63: 4 | CY63: 2 | CZ63: 4 | DA63: 3 | DB63: 3 | DC63: 3 | DD63: 3 | DE63: 4 | DF63: 3 | DG63: 2 | DH63: 3 | DI63: 2 | DJ63: 3 | DK63: 2 | DL63: 3 | DM63: 4 | DN63: 4 | DO63: 4 | DP63: 3 | DQ63: 5 | DR63: 3 | DS63: 5 | DT63: 5 | DU63: 3 | DV63: 4 | DW63: 4 | DX63: 4 | DY63: 5 | DZ63: 5 | EA63: 4 | EB63: 3 | EC63: 2 | ED63: 5 | EE63: 5 | EF63: 3 | EG63: 2 | EH63: 3 | EI63: 5 | EJ63: 3 | EK63: 4 | EL63: 2 | EM63: 4 | EN63: 3 | EO63: 4 | EP63: 5 | EQ63: 3 | ER63: 2 | ES63: 3 | ET63: 2 | EU63: 3 | EV63: 3 | EW63: 0 | EX63: 0 | EY63: 0.1896551724 | EZ63: 0.3448275862 | FA63: 0.2586206897 | FB63: 0.2068965517
A64: 63 | L64: 2 | M64: 4 | N64: 5 | O64: 5 | P64: 5 | Q64: 2 | R64: 3 | S64: 4 | T64: 4 | U64: 2 | V64: 4 | W64: 3 | X64: 3 | Y64: 3 | Z64: 3 | AA64: 4 | AB64: 3 | AC64: 2 | AD64: 3 | AE64: 2 | AF64: 3 | AG64: 2 | AH64: 3 | AI64: 4 | AJ64: 4 | AK64: 4 | AL64: 3 | AM64: 5 | AN64: 3 | AO64: 5 | AP64: 5 | AQ64: 3 | AR64: 4 | AS64: 4 | AT64: 4 | AU64: 5 | AV64: 5 | AW64: 4 | AX64: 3 | AY64: 2 | AZ64: 5 | BA64: 5 | BB64: 3 | BC64: 2 | BD64: 3 | BE64: 5 | BF64: 3 | BG64: 4 | BH64: 2 | BI64: 4 | BJ64: 3 | BK64: 4 | BL64: 5 | BM64: 3 | BN64: 2 | BO64: 3 | BP64: 2 | BQ64: 3 | BR64: 3 | BS64: 0 | BT64: 0 | BU64: 0.1896551724 | BV64: 0.3448275862 | BW64: 0.2586206897 | BX64: 0.2068965517 | CE64: 64 | CF64: 3 | CG64: 8 | CH64: 3 | CI64: 5 | CP64: 5 | CQ64: 4 | CR64: 4 | CS64: 3 | CT64: 3 | CU64: 3 | CV64: 4 | CW64: 3 | CX64: 4 | CY64: 5 | CZ64: 5 | DA64: 4 | DB64: 4 | DC64: 5 | DD64: 4 | DE64: 4 | DF64: 3 | DG64: 4 | DH64: 3 | DI64: 5 | DJ64: 4 | DK64: 3 | DL64: 4 | DM64: 3 | DN64: 3 | DO64: 4 | DP64: 4 | DQ64: 5 | DR64: 4 | DS64: 5 | DT64: 5 | DU64: 4 | DV64: 4 | DW64: 4 | DX64: 5 | DY64: 4 | DZ64: 5 | EA64: 4 | EB64: 4 | EC64: 3 | ED64: 2 | EE64: 4 | EF64: 2 | EG64: 3 | EH64: 4 | EI64: 2 | EJ64: 3 | EK64: 3 | EL64: 2 | EM64: 4 | EN64: 3 | EO64: 2 | EP64: 4 | EQ64: 2 | ER64: 3 | ES64: 3 | ET64: 3 | EU64: 3 | EV64: 3 | EW64: 0 | EX64: 0 | EY64: 0.1034482759 | EZ64: 0.3103448276 | FA64: 0.4137931034 | FB64: 0.1724137931
A65: 64 | L65: 5 | M65: 4 | N65: 4 | O65: 3 | P65: 3 | Q65: 3 | R65: 4 | S65: 3 | T65: 4 | U65: 5 | V65: 5 | W65: 4 | X65: 4 | Y65: 5 | Z65: 4 | AA65: 4 | AB65: 3 | AC65: 4 | AD65: 3 | AE65: 5 | AF65: 4 | AG65: 3 | AH65: 4 | AI65: 3 | AJ65: 3 | AK65: 4 | AL65: 4 | AM65: 5 | AN65: 4 | AO65: 5 | AP65: 5 | AQ65: 4 | AR65: 4 | AS65: 4 | AT65: 5 | AU65: 4 | AV65: 5 | AW65: 4 | AX65: 4 | AY65: 3 | AZ65: 2 | BA65: 4 | BB65: 2 | BC65: 3 | BD65: 4 | BE65: 2 | BF65: 3 | BG65: 3 | BH65: 2 | BI65: 4 | BJ65: 3 | BK65: 2 | BL65: 4 | BM65: 2 | BN65: 3 | BO65: 3 | BP65: 3 | BQ65: 3 | BR65: 3 | BS65: 0 | BT65: 0 | BU65: 0.1034482759 | BV65: 0.3103448276 | BW65: 0.4137931034 | BX65: 0.1724137931 | CE65: 66 | CF65: 3 | CG65: 8 | CH65: 5 | CI65: 1 | CP65: 3 | CQ65: 5 | CR65: 3 | CS65: 3 | CT65: 2 | CU65: 5 | CV65: 5 | CW65: 5 | CX65: 3 | CY65: 3 | CZ65: 3 | DA65: 3 | DB65: 3 | DC65: 5 | DD65: 3 | DE65: 5 | DF65: 5 | DG65: 5 | DH65: 3 | DI65: 2 | DJ65: 5 | DK65: 5 | DL65: 5 | DM65: 5 | DN65: 5 | DO65: 4 | DP65: 3 | DQ65: 3 | DR65: 3 | DS65: 4 | DT65: 3 | DU65: 4 | DV65: 4 | DW65: 5 | DX65: 5 | DY65: 5 | DZ65: 5 | EA65: 4 | EB65: 3 | EC65: 5 | ED65: 5 | EE65: 5 | EF65: 5 | EG65: 3 | EH65: 3 | EI65: 5 | EJ65: 5 | EK65: 5 | EL65: 3 | EM65: 5 | EN65: 3 | EO65: 5 | EP65: 5 | EQ65: 5 | ER65: 5 | ES65: 3 | ET65: 5 | EU65: 5 | EV65: 3 | EW65: 0 | EX65: 0 | EY65: 0.03448275862 | EZ65: 0.3448275862 | FA65: 0.08620689655 | FB65: 0.5344827586
A66: 65 | L66: 3 | M66: 3 | N66: 3 | O66: 3 | P66: 2 | Q66: 2 | R66: 2 | S66: 2 | T66: 2 | U66: 3 | V66: 3 | W66: 3 | X66: 3 | Y66: 4 | Z66: 3 | AA66: 4 | AB66: 4 | AC66: 3 | AD66: 2 | AE66: 2 | AF66: 3 | AG66: 3 | AH66: 3 | AI66: 2 | AJ66: 1 | AK66: 3 | AL66: 5 | AM66: 999 | AN66: 999 | AO66: 999 | AP66: 3 | AQ66: 999 | AR66: 999 | AS66: 999 | AT66: 5 | AU66: 999 | AV66: 999 | AW66: 5 | AX66: 3 | AY66: 999 | AZ66: 3 | BA66: 3 | BB66: 3 | BC66: 3 | BD66: 3 | BE66: 3 | BF66: 3 | BG66: 3 | BH66: 3 | BI66: 3 | BJ66: 3 | BK66: 3 | BL66: 3 | BM66: 3 | BN66: 3 | BO66: 3 | BP66: 3 | BQ66: 3 | BR66: 3 | BS66: 0.2 | BT66: 0.01724137931 | BU66: 0.1379310345 | BV66: 0.5862068966 | BW66: 0.05172413793 | BX66: 0.05172413793 | BY66: 1 | CA66: 1 | CE66: 67 | CF66: 3 | CG66: 8 | CH66: 5 | CI66: 1 | CP66: 4 | CQ66: 5 | CR66: 5 | CS66: 5 | CT66: 1 | CU66: 5 | CV66: 5 | CW66: 3 | CX66: 2 | CY66: 4 | CZ66: 4 | DA66: 4 | DB66: 5 | DC66: 5 | DD66: 4 | DE66: 5 | DF66: 5 | DG66: 4 | DH66: 2 | DI66: 1 | DJ66: 4 | DK66: 5 | DL66: 3 | DM66: 5 | DN66: 5 | DO66: 2 | DP66: 3 | DQ66: 4 | DR66: 3 | DS66: 3 | DT66: 3 | DU66: 5 | DV66: 5 | DW66: 5 | DX66: 4 | DY66: 5 | DZ66: 4 | EA66: 4 | EB66: 3 | EC66: 4 | ED66: 5 | EE66: 5 | EF66: 5 | EG66: 3 | EH66: 5 | EI66: 5 | EJ66: 3 | EK66: 5 | EL66: 2 | EM66: 3 | EN66: 3 | EO66: 3 | EP66: 5 | EQ66: 3 | ER66: 3 | ES66: 3 | ET66: 5 | EU66: 4 | EV66: 3 | EW66: 0 | EX66: 0.03448275862 | EY66: 0.06896551724 | EZ66: 0.2586206897 | FA66: 0.224137931 | FB66: 0.4137931034
A67: 66 | L67: 3 | M67: 5 | N67: 3 | O67: 3 | P67: 2 | Q67: 5 | R67: 5 | S67: 5 | T67: 3 | U67: 3 | V67: 3 | W67: 3 | X67: 3 | Y67: 5 | Z67: 3 | AA67: 5 | AB67: 5 | AC67: 5 | AD67: 3 | AE67: 2 | AF67: 5 | AG67: 5 | AH67: 5 | AI67: 5 | AJ67: 5 | AK67: 4 | AL67: 3 | AM67: 3 | AN67: 3 | AO67: 4 | AP67: 3 | AQ67: 4 | AR67: 4 | AS67: 5 | AT67: 5 | AU67: 5 | AV67: 5 | AW67: 4 | AX67: 3 | AY67: 5 | AZ67: 5 | BA67: 5 | BB67: 5 | BC67: 3 | BD67: 3 | BE67: 5 | BF67: 5 | BG67: 5 | BH67: 3 | BI67: 5 | BJ67: 3 | BK67: 5 | BL67: 5 | BM67: 5 | BN67: 5 | BO67: 3 | BP67: 5 | BQ67: 5 | BR67: 3 | BS67: 0 | BT67: 0 | BU67: 0.03448275862 | BV67: 0.3448275862 | BW67: 0.08620689655 | BX67: 0.5344827586 | CE67: 68 | CF67: 3 | CG67: 8 | CH67: 5 | CI67: 5 | CP67: 2 | CQ67: 4 | CR67: 3 | CS67: 3 | CT67: 2 | CU67: 2 | CV67: 3 | CW67: 3 | CX67: 2 | CY67: 3 | CZ67: 3 | DA67: 3 | DB67: 3 | DC67: 4 | DD67: 4 | DE67: 4 | DF67: 5 | DG67: 4 | DH67: 3 | DI67: 3 | DJ67: 4 | DK67: 4 | DL67: 4 | DM67: 3 | DN67: 3 | DO67: 3 | DP67: 5 | DQ67: 4 | DR67: 5 | DS67: 5 | DT67: 5 | DU67: 4 | DV67: 4 | DW67: 5 | DX67: 3 | DY67: 5 | DZ67: 5 | EA67: 5 | EB67: 4 | EC67: 2 | ED67: 4 | EE67: 4 | EF67: 3 | EG67: 2 | EH67: 3 | EI67: 4 | EJ67: 3 | EK67: 4 | EL67: 4 | EM67: 4 | EN67: 3 | EO67: 3 | EP67: 4 | EQ67: 3 | ER67: 3 | ES67: 4 | ET67: 3 | EU67: 3 | EV67: 3 | EW67: 0 | EX67: 0 | EY67: 0.1034482759 | EZ67: 0.3965517241 | FA67: 0.3448275862 | FB67: 0.1551724138
A68: 67 | L68: 4 | M68: 5 | N68: 5 | O68: 5 | P68: 1 | Q68: 5 | R68: 5 | S68: 3 | T68: 2 | U68: 4 | V68: 4 | W68: 4 | X68: 5 | Y68: 5 | Z68: 4 | AA68: 5 | AB68: 5 | AC68: 4 | AD68: 2 | AE68: 1 | AF68: 4 | AG68: 5 | AH68: 3 | AI68: 5 | AJ68: 5 | AK68: 2 | AL68: 3 | AM68: 4 | AN68: 3 | AO68: 3 | AP68: 3 | AQ68: 5 | AR68: 5 | AS68: 5 | AT68: 4 | AU68: 5 | AV68: 4 | AW68: 4 | AX68: 3 | AY68: 4 | AZ68: 5 | BA68: 5 | BB68: 5 | BC68: 3 | BD68: 5 | BE68: 5 | BF68: 3 | BG68: 5 | BH68: 2 | BI68: 3 | BJ68: 3 | BK68: 3 | BL68: 5 | BM68: 3 | BN68: 3 | BO68: 3 | BP68: 5 | BQ68: 4 | BR68: 3 | BS68: 0 | BT68: 0.03448275862 | BU68: 0.06896551724 | BV68: 0.2586206897 | BW68: 0.224137931 | BX68: 0.4137931034 | CE68: 69 | CF68: 3 | CG68: 5 | CH68: 2 | CI68: 5 | CP68: 2 | CQ68: 2 | CR68: 2 | CS68: 3 | CT68: 4 | CU68: 3 | CV68: 2 | CW68: 4 | CX68: 2 | CY68: 4 | CZ68: 4 | DA68: 3 | DB68: 3 | DC68: 4 | DD68: 4 | DE68: 4 | DF68: 3 | DG68: 2 | DH68: 4 | DI68: 3 | DJ68: 4 | DK68: 4 | DL68: 4 | DM68: 4 | DN68: 2 | DO68: 2 | DP68: 3 | DQ68: 4 | DR68: 3 | DS68: 3 | DT68: 4 | DU68: 5 | DV68: 3 | DW68: 3 | DX68: 3 | DY68: 4 | DZ68: 3 | EA68: 3 | EB68: 3 | EC68: 2 | ED68: 3 | EE68: 2 | EF68: 3 | EG68: 2 | EH68: 2 | EI68: 4 | EJ68: 3 | EK68: 2 | EL68: 2 | EM68: 3 | EN68: 2 | EO68: 2 | EP68: 3 | EQ68: 1 | ER68: 1 | ES68: 1 | ET68: 1 | EU68: 1 | EV68: 3 | EW68: 0 | EX68: 0.08620689655 | EY68: 0.275862069 | EZ68: 0.3448275862 | FA68: 0.275862069 | FB68: 0.01724137931
A69: 68 | L69: 2 | M69: 4 | N69: 3 | O69: 3 | P69: 2 | Q69: 2 | R69: 3 | S69: 3 | T69: 2 | U69: 3 | V69: 3 | W69: 3 | X69: 3 | Y69: 4 | Z69: 4 | AA69: 4 | AB69: 5 | AC69: 4 | AD69: 3 | AE69: 3 | AF69: 4 | AG69: 4 | AH69: 4 | AI69: 3 | AJ69: 3 | AK69: 3 | AL69: 5 | AM69: 4 | AN69: 5 | AO69: 5 | AP69: 5 | AQ69: 4 | AR69: 4 | AS69: 5 | AT69: 3 | AU69: 5 | AV69: 5 | AW69: 5 | AX69: 4 | AY69: 2 | AZ69: 4 | BA69: 4 | BB69: 3 | BC69: 2 | BD69: 3 | BE69: 4 | BF69: 3 | BG69: 4 | BH69: 4 | BI69: 4 | BJ69: 3 | BK69: 3 | BL69: 4 | BM69: 3 | BN69: 3 | BO69: 4 | BP69: 3 | BQ69: 3 | BR69: 3 | BS69: 0 | BT69: 0 | BU69: 0.1034482759 | BV69: 0.3965517241 | BW69: 0.3448275862 | BX69: 0.1551724138 | CE69: 70 | CF69: 3 | CG69: 7 | CH69: 5 | CI69: 5 | CP69: 2 | CQ69: 4 | CR69: 3 | CS69: 3 | CT69: 4 | CU69: 3 | CV69: 3 | CW69: 3 | CX69: 2 | CY69: 3 | CZ69: 4 | DA69: 4 | DB69: 4 | DC69: 5 | DD69: 3 | DE69: 3 | DF69: 3 | DG69: 4 | DH69: 4 | DI69: 3 | DJ69: 4 | DK69: 4 | DL69: 4 | DM69: 3 | DN69: 3 | DO69: 4 | DP69: 3 | DQ69: 3 | DR69: 3 | DS69: 3 | DT69: 3 | DU69: 4 | DV69: 3 | DW69: 4 | DX69: 4 | DY69: 5 | DZ69: 4 | EA69: 5 | EB69: 3 | EC69: 3 | ED69: 4 | EE69: 2 | EF69: 3 | EG69: 2 | EH69: 3 | EI69: 3 | EJ69: 3 | EK69: 3 | EL69: 3 | EM69: 3 | EN69: 4 | EO69: 3 | EP69: 3 | EQ69: 3 | ER69: 4 | ES69: 3 | ET69: 3 | EU69: 3 | EV69: 3 | EW69: 0 | EX69: 0 | EY69: 0.06896551724 | EZ69: 0.5689655172 | FA69: 0.3103448276 | FB69: 0.05172413793
A70: 69 | L70: 2 | M70: 2 | N70: 2 | O70: 3 | P70: 4 | Q70: 3 | R70: 2 | S70: 4 | T70: 2 | U70: 4 | V70: 4 | W70: 3 | X70: 3 | Y70: 4 | Z70: 4 | AA70: 4 | AB70: 3 | AC70: 2 | AD70: 4 | AE70: 3 | AF70: 4 | AG70: 4 | AH70: 4 | AI70: 4 | AJ70: 2 | AK70: 2 | AL70: 3 | AM70: 4 | AN70: 3 | AO70: 3 | AP70: 4 | AQ70: 5 | AR70: 3 | AS70: 3 | AT70: 3 | AU70: 4 | AV70: 3 | AW70: 3 | AX70: 3 | AY70: 2 | AZ70: 3 | BA70: 2 | BB70: 3 | BC70: 2 | BD70: 2 | BE70: 4 | BF70: 3 | BG70: 2 | BH70: 2 | BI70: 3 | BJ70: 2 | BK70: 2 | BL70: 3 | BM70: 1 | BN70: 1 | BO70: 1 | BP70: 1 | BQ70: 1 | BR70: 3 | BS70: 0 | BT70: 0.08620689655 | BU70: 0.275862069 | BV70: 0.3448275862 | BW70: 0.275862069 | BX70: 0.01724137931 | CE70: 71 | CF70: 3 | CG70: 7 | CH70: 5 | CI70: 5 | CP70: 2 | CQ70: 4 | CR70: 3 | CS70: 3 | CT70: 5 | CU70: 3 | CV70: 2 | CW70: 4 | CX70: 3 | CY70: 4 | CZ70: 4 | DA70: 4 | DB70: 4 | DC70: 4 | DD70: 4 | DE70: 5 | DF70: 4 | DG70: 3 | DH70: 4 | DI70: 3 | DJ70: 4 | DK70: 5 | DL70: 4 | DM70: 3 | DN70: 5 | DO70: 5 | DP70: 3 | DQ70: 4 | DR70: 4 | DS70: 4 | DT70: 4 | DU70: 4 | DV70: 5 | DW70: 4 | DX70: 3 | DY70: 5 | DZ70: 5 | EA70: 4 | EB70: 4 | EC70: 3 | ED70: 5 | EE70: 4 | EF70: 4 | EG70: 3 | EH70: 4 | EI70: 4 | EJ70: 4 | EK70: 4 | EL70: 3 | EM70: 2 | EN70: 2 | EO70: 3 | EP70: 3 | EQ70: 2 | ER70: 3 | ES70: 4 | ET70: 2 | EU70: 3 | EV70: 3 | EW70: 0 | EX70: 0 | EY70: 0.1034482759 | EZ70: 0.275862069 | FA70: 0.4655172414 | FB70: 0.1551724138
A71: 70 | L71: 2 | M71: 4 | N71: 3 | O71: 3 | P71: 4 | Q71: 3 | R71: 3 | S71: 3 | T71: 2 | U71: 3 | V71: 4 | W71: 4 | X71: 4 | Y71: 5 | Z71: 3 | AA71: 3 | AB71: 3 | AC71: 4 | AD71: 4 | AE71: 3 | AF71: 4 | AG71: 4 | AH71: 4 | AI71: 3 | AJ71: 3 | AK71: 4 | AL71: 3 | AM71: 3 | AN71: 3 | AO71: 3 | AP71: 3 | AQ71: 4 | AR71: 3 | AS71: 4 | AT71: 4 | AU71: 5 | AV71: 4 | AW71: 5 | AX71: 3 | AY71: 3 | AZ71: 4 | BA71: 2 | BB71: 3 | BC71: 2 | BD71: 3 | BE71: 3 | BF71: 3 | BG71: 3 | BH71: 3 | BI71: 3 | BJ71: 4 | BK71: 3 | BL71: 3 | BM71: 3 | BN71: 4 | BO71: 3 | BP71: 3 | BQ71: 3 | BR71: 3 | BS71: 0 | BT71: 0 | BU71: 0.06896551724 | BV71: 0.5689655172 | BW71: 0.3103448276 | BX71: 0.05172413793 | CE71: 72 | CF71: 999 | CG71: 7 | CH71: 5 | CI71: 1 | CP71: 3 | CQ71: 3 | CR71: 4 | CS71: 2 | CT71: 4 | CU71: 2 | CV71: 2 | CW71: 4 | CX71: 3 | CY71: 3 | CZ71: 3 | DA71: 3 | DB71: 2 | DC71: 4 | DD71: 3 | DE71: 4 | DF71: 4 | DG71: 3 | DH71: 4 | DI71: 3 | DJ71: 3 | DK71: 5 | DL71: 4 | DM71: 4 | DN71: 4 | DO71: 1 | DP71: 3 | DQ71: 4 | DR71: 3 | DS71: 5 | DT71: 3 | DU71: 4 | DV71: 5 | DW71: 4 | DX71: 2 | DY71: 3 | DZ71: 5 | EA71: 4 | EB71: 3 | EC71: 3 | ED71: 3 | EE71: 2 | EF71: 3 | EG71: 3 | EH71: 3 | EI71: 5 | EJ71: 4 | EK71: 4 | EL71: 3 | EM71: 3 | EN71: 3 | EO71: 3 | EP71: 3 | EQ71: 3 | ER71: 3 | ES71: 4 | ET71: 4 | EU71: 2 | EV71: 999 | EW71: 0 | EX71: 0.01724137931 | EY71: 0.1206896552 | EZ71: 0.4655172414 | FA71: 0.3103448276 | FB71: 0.08620689655
A72: 71 | L72: 2 | M72: 4 | N72: 3 | O72: 3 | P72: 5 | Q72: 3 | R72: 2 | S72: 4 | T72: 3 | U72: 4 | V72: 4 | W72: 4 | X72: 4 | Y72: 4 | Z72: 4 | AA72: 5 | AB72: 4 | AC72: 3 | AD72: 4 | AE72: 3 | AF72: 4 | AG72: 5 | AH72: 4 | AI72: 3 | AJ72: 5 | AK72: 5 | AL72: 3 | AM72: 4 | AN72: 4 | AO72: 4 | AP72: 4 | AQ72: 4 | AR72: 5 | AS72: 4 | AT72: 3 | AU72: 5 | AV72: 5 | AW72: 4 | AX72: 4 | AY72: 3 | AZ72: 5 | BA72: 4 | BB72: 4 | BC72: 3 | BD72: 4 | BE72: 4 | BF72: 4 | BG72: 4 | BH72: 3 | BI72: 2 | BJ72: 2 | BK72: 3 | BL72: 3 | BM72: 2 | BN72: 3 | BO72: 4 | BP72: 2 | BQ72: 3 | BR72: 3 | BS72: 0 | BT72: 0 | BU72: 0.1034482759 | BV72: 0.275862069 | BW72: 0.4655172414 | BX72: 0.1551724138 | CE72: 73 | CF72: 3 | CG72: 7 | CH72: 5 | CI72: 1 | CP72: 4 | CQ72: 4 | CR72: 5 | CS72: 5 | CT72: 5 | CU72: 3 | CV72: 3 | CW72: 5 | CX72: 3 | CY72: 3 | CZ72: 3 | DA72: 2 | DB72: 2 | DC72: 3 | DD72: 3 | DE72: 4 | DF72: 3 | DG72: 2 | DH72: 2 | DI72: 2 | DJ72: 2 | DK72: 3 | DL72: 3 | DM72: 3 | DN72: 5 | DO72: 4 | DP72: 3 | DQ72: 4 | DR72: 5 | DS72: 5 | DT72: 5 | DU72: 4 | DV72: 5 | DW72: 5 | DX72: 5 | DY72: 5 | DZ72: 3 | EA72: 5 | EB72: 4 | EC72: 3 | ED72: 5 | EE72: 2 | EF72: 3 | EG72: 4 | EH72: 4 | EI72: 4 | EJ72: 3 | EK72: 3 | EL72: 3 | EM72: 3 | EN72: 2 | EO72: 2 | EP72: 4 | EQ72: 3 | ER72: 3 | ES72: 3 | ET72: 3 | EU72: 3 | EV72: 3 | EW72: 0 | EX72: 0 | EY72: 0.1551724138 | EZ72: 0.4137931034 | FA72: 0.1896551724 | FB72: 0.2413793103
A73: 72 | L73: 3 | M73: 3 | N73: 4 | O73: 2 | P73: 4 | Q73: 2 | R73: 2 | S73: 4 | T73: 3 | U73: 3 | V73: 3 | W73: 3 | X73: 2 | Y73: 4 | Z73: 3 | AA73: 4 | AB73: 4 | AC73: 3 | AD73: 4 | AE73: 3 | AF73: 3 | AG73: 5 | AH73: 4 | AI73: 4 | AJ73: 4 | AK73: 1 | AL73: 3 | AM73: 4 | AN73: 3 | AO73: 5 | AP73: 3 | AQ73: 4 | AR73: 5 | AS73: 4 | AT73: 2 | AU73: 3 | AV73: 5 | AW73: 4 | AX73: 3 | AY73: 3 | AZ73: 3 | BA73: 2 | BB73: 3 | BC73: 3 | BD73: 3 | BE73: 5 | BF73: 4 | BG73: 4 | BH73: 3 | BI73: 3 | BJ73: 3 | BK73: 3 | BL73: 3 | BM73: 3 | BN73: 3 | BO73: 4 | BP73: 4 | BQ73: 2 | BR73: 999 | BS73: 0 | BT73: 0.01724137931 | BU73: 0.1206896552 | BV73: 0.4655172414 | BW73: 0.3103448276 | BX73: 0.08620689655 | CE73: 74 | CF73: 3 | CG73: 7 | CH73: 5 | CI73: 1 | CP73: 4 | CQ73: 4 | CR73: 3 | CS73: 3 | CT73: 4 | CU73: 3 | CV73: 3 | CW73: 4 | CX73: 3 | CY73: 4 | CZ73: 4 | DA73: 3 | DB73: 3 | DC73: 4 | DD73: 3 | DE73: 4 | DF73: 5 | DG73: 3 | DH73: 3 | DI73: 3 | DJ73: 3 | DK73: 5 | DL73: 3 | DM73: 1 | DN73: 4 | DO73: 5 | DP73: 3 | DQ73: 4 | DR73: 4 | DS73: 5 | DT73: 5 | DU73: 4 | DV73: 5 | DW73: 4 | DX73: 3 | DY73: 5 | DZ73: 5 | EA73: 4 | EB73: 5 | EC73: 4 | ED73: 5 | EE73: 3 | EF73: 3 | EG73: 3 | EH73: 3 | EI73: 5 | EJ73: 5 | EK73: 4 | EL73: 3 | EM73: 3 | EN73: 3 | EO73: 3 | EP73: 4 | EQ73: 3 | ER73: 3 | ES73: 4 | ET73: 4 | EU73: 5 | EV73: 3 | EW73: 0 | EX73: 0.01724137931 | EY73: 0 | EZ73: 0.4310344828 | FA73: 0.3275862069 | FB73: 0.224137931
A74: 73 | L74: 4 | M74: 4 | N74: 5 | O74: 5 | P74: 5 | Q74: 3 | R74: 3 | S74: 5 | T74: 3 | U74: 3 | V74: 3 | W74: 2 | X74: 2 | Y74: 3 | Z74: 3 | AA74: 4 | AB74: 3 | AC74: 2 | AD74: 2 | AE74: 2 | AF74: 2 | AG74: 3 | AH74: 3 | AI74: 3 | AJ74: 5 | AK74: 4 | AL74: 3 | AM74: 4 | AN74: 5 | AO74: 5 | AP74: 5 | AQ74: 4 | AR74: 5 | AS74: 5 | AT74: 5 | AU74: 5 | AV74: 3 | AW74: 5 | AX74: 4 | AY74: 3 | AZ74: 5 | BA74: 2 | BB74: 3 | BC74: 4 | BD74: 4 | BE74: 4 | BF74: 3 | BG74: 3 | BH74: 3 | BI74: 3 | BJ74: 2 | BK74: 2 | BL74: 4 | BM74: 3 | BN74: 3 | BO74: 3 | BP74: 3 | BQ74: 3 | BR74: 3 | BS74: 0 | BT74: 0 | BU74: 0.1551724138 | BV74: 0.4137931034 | BW74: 0.1896551724 | BX74: 0.2413793103 | CE74: 75 | CF74: 3 | CG74: 7 | CH74: 5 | CI74: 5 | CP74: 3 | CQ74: 4 | CR74: 4 | CS74: 3 | CT74: 4 | CU74: 3 | CV74: 3 | CW74: 4 | CX74: 3 | CY74: 4 | CZ74: 4 | DA74: 4 | DB74: 4 | DC74: 4 | DD74: 4 | DE74: 4 | DF74: 5 | DG74: 4 | DH74: 5 | DI74: 4 | DJ74: 4 | DK74: 4 | DL74: 4 | DM74: 2 | DN74: 5 | DO74: 4 | DP74: 3 | DQ74: 5 | DR74: 5 | DS74: 5 | DT74: 5 | DU74: 4 | DV74: 5 | DW74: 4 | DX74: 4 | DY74: 5 | DZ74: 5 | EA74: 4 | EB74: 4 | EC74: 5 | ED74: 5 | EE74: 2 | EF74: 3 | EG74: 4 | EH74: 3 | EI74: 4 | EJ74: 3 | EK74: 3 | EL74: 3 | EM74: 4 | EN74: 4 | EO74: 3 | EP74: 4 | EQ74: 4 | ER74: 3 | ES74: 3 | ET74: 3 | EU74: 4 | EV74: 3 | EW74: 0 | EX74: 0 | EY74: 0.03448275862 | EZ74: 0.2586206897 | FA74: 0.5 | FB74: 0.2068965517
A75: 74 | L75: 4 | M75: 4 | N75: 3 | O75: 3 | P75: 4 | Q75: 3 | R75: 3 | S75: 4 | T75: 3 | U75: 4 | V75: 4 | W75: 3 | X75: 3 | Y75: 4 | Z75: 3 | AA75: 4 | AB75: 5 | AC75: 3 | AD75: 3 | AE75: 3 | AF75: 3 | AG75: 5 | AH75: 3 | AI75: 1 | AJ75: 4 | AK75: 5 | AL75: 3 | AM75: 4 | AN75: 4 | AO75: 5 | AP75: 5 | AQ75: 4 | AR75: 5 | AS75: 4 | AT75: 3 | AU75: 5 | AV75: 5 | AW75: 4 | AX75: 5 | AY75: 4 | AZ75: 5 | BA75: 3 | BB75: 3 | BC75: 3 | BD75: 3 | BE75: 5 | BF75: 5 | BG75: 4 | BH75: 3 | BI75: 3 | BJ75: 3 | BK75: 3 | BL75: 4 | BM75: 3 | BN75: 3 | BO75: 4 | BP75: 4 | BQ75: 5 | BR75: 3 | BS75: 0 | BT75: 0.01724137931 | BU75: 0 | BV75: 0.4310344828 | BW75: 0.3275862069 | BX75: 0.224137931 | CE75: 76 | CF75: 3 | CG75: 7 | CH75: 5 | CI75: 5 | CP75: 1 | CQ75: 4 | CR75: 2 | CS75: 2 | CT75: 2 | CU75: 1 | CV75: 1 | CW75: 2 | CX75: 2 | CY75: 3 | CZ75: 2 | DA75: 2 | DB75: 4 | DC75: 4 | DD75: 2 | DE75: 3 | DF75: 4 | DG75: 3 | DH75: 4 | DI75: 3 | DJ75: 3 | DK75: 4 | DL75: 3 | DM75: 2 | DN75: 4 | DO75: 3 | DP75: 3 | DQ75: 4 | DR75: 3 | DS75: 3 | DT75: 3 | DU75: 2 | DV75: 5 | DW75: 3 | DX75: 4 | DY75: 3 | DZ75: 4 | EA75: 4 | EB75: 3 | EC75: n | ED75: n | EE75: 2 | EF75: 2 | EG75: 1 | EH75: 2 | EI75: 4 | EJ75: 2 | EK75: 2 | EL75: 1 | EM75: 1 | EN75: 1 | EO75: 2 | EP75: 4 | EQ75: 1 | ER75: 3 | ES75: 3 | ET75: 3 | EU75: 2 | EV75: 3 | EW75: 0 | EX75: 0.1379310345 | EY75: 0.2931034483 | EZ75: 0.2931034483 | FA75: 0.224137931 | FB75: 0.01724137931
A76: 75 | L76: 3 | M76: 4 | N76: 4 | O76: 3 | P76: 4 | Q76: 3 | R76: 3 | S76: 4 | T76: 3 | U76: 4 | V76: 4 | W76: 4 | X76: 4 | Y76: 4 | Z76: 4 | AA76: 4 | AB76: 5 | AC76: 4 | AD76: 5 | AE76: 4 | AF76: 4 | AG76: 4 | AH76: 4 | AI76: 2 | AJ76: 5 | AK76: 4 | AL76: 3 | AM76: 5 | AN76: 5 | AO76: 5 | AP76: 5 | AQ76: 4 | AR76: 5 | AS76: 4 | AT76: 4 | AU76: 5 | AV76: 5 | AW76: 4 | AX76: 4 | AY76: 5 | AZ76: 5 | BA76: 2 | BB76: 3 | BC76: 4 | BD76: 3 | BE76: 4 | BF76: 3 | BG76: 3 | BH76: 3 | BI76: 4 | BJ76: 4 | BK76: 3 | BL76: 4 | BM76: 4 | BN76: 3 | BO76: 3 | BP76: 3 | BQ76: 4 | BR76: 3 | BS76: 0 | BT76: 0 | BU76: 0.03448275862 | BV76: 0.2586206897 | BW76: 0.5 | BX76: 0.2068965517 | CE76: 77 | CF76: 3 | CG76: 8 | CH76: 6 | CI76: 4 | CP76: 2 | CQ76: 4 | CR76: 4 | CS76: 4 | CT76: 5 | CU76: 3 | CV76: 4 | CW76: 4 | CX76: 3 | CY76: 5 | CZ76: 5 | DA76: 5 | DB76: 5 | DC76: 5 | DD76: 4 | DE76: 4 | DF76: 5 | DG76: 5 | DH76: 5 | DI76: 5 | DJ76: 5 | DK76: 5 | DL76: 5 | DM76: 1 | DN76: 3 | DO76: 4 | DP76: 3 | DQ76: 5 | DR76: 3 | DS76: 5 | DT76: 5 | DU76: 4 | DV76: 3 | DW76: 4 | DX76: 4 | DY76: 5 | DZ76: 5 | EA76: 4 | EB76: 4 | EC76: 1 | ED76: 5 | EE76: 2 | EF76: 4 | EG76: 4 | EH76: 5 | EI76: 5 | EJ76: 4 | EK76: 4 | EL76: 2 | EM76: 2 | EN76: 3 | EO76: 4 | EP76: 4 | EQ76: 3 | ER76: 4 | ES76: 4 | ET76: 4 | EU76: 4 | EV76: 3 | EW76: 0 | EX76: 0.03448275862 | EY76: 0.06896551724 | EZ76: 0.1379310345 | FA76: 0.3965517241 | FB76: 0.3620689655
A77: 76 | L77: 1 | M77: 4 | N77: 2 | O77: 2 | P77: 2 | Q77: 1 | R77: 1 | S77: 2 | T77: 2 | U77: 3 | V77: 2 | W77: 2 | X77: 4 | Y77: 4 | Z77: 2 | AA77: 3 | AB77: 4 | AC77: 3 | AD77: 4 | AE77: 3 | AF77: 3 | AG77: 4 | AH77: 3 | AI77: 2 | AJ77: 4 | AK77: 3 | AL77: 3 | AM77: 4 | AN77: 3 | AO77: 3 | AP77: 3 | AQ77: 2 | AR77: 5 | AS77: 3 | AT77: 4 | AU77: 3 | AV77: 4 | AW77: 4 | AX77: 3 | AY77: 999 | AZ77: 999 | BA77: 2 | BB77: 2 | BC77: 1 | BD77: 2 | BE77: 4 | BF77: 2 | BG77: 2 | BH77: 1 | BI77: 1 | BJ77: 1 | BK77: 2 | BL77: 4 | BM77: 1 | BN77: 3 | BO77: 3 | BP77: 3 | BQ77: 2 | BR77: 3 | BS77: 0 | BT77: 0.1379310345 | BU77: 0.2931034483 | BV77: 0.2931034483 | BW77: 0.224137931 | BX77: 0.01724137931
A78: 77 | L78: 2 | M78: 4 | N78: 4 | O78: 4 | P78: 5 | Q78: 3 | R78: 4 | S78: 4 | T78: 3 | U78: 5 | V78: 5 | W78: 5 | X78: 5 | Y78: 5 | Z78: 4 | AA78: 4 | AB78: 5 | AC78: 5 | AD78: 5 | AE78: 5 | AF78: 5 | AG78: 5 | AH78: 5 | AI78: 1 | AJ78: 3 | AK78: 4 | AL78: 3 | AM78: 5 | AN78: 3 | AO78: 5 | AP78: 5 | AQ78: 4 | AR78: 3 | AS78: 4 | AT78: 4 | AU78: 5 | AV78: 5 | AW78: 4 | AX78: 4 | AY78: 1 | AZ78: 5 | BA78: 2 | BB78: 4 | BC78: 4 | BD78: 5 | BE78: 5 | BF78: 4 | BG78: 4 | BH78: 2 | BI78: 2 | BJ78: 3 | BK78: 4 | BL78: 4 | BM78: 3 | BN78: 4 | BO78: 4 | BP78: 4 | BQ78: 4 | BR78: 3 | BS78: 0 | BT78: 0.03448275862 | BU78: 0.06896551724 | BV78: 0.1379310345 | BW78: 0.3965517241 | BX78: 0.3620689655
A79: 78 | L79: 3 | M79: 3 | N79: 3 | O79: 3 | P79: 3 | Q79: 3 | R79: 3 | S79: 3 | T79: 3 | U79: 3 | V79: 3 | W79: 3 | X79: 3 | Y79: 3 | Z79: 3 | AA79: 3 | AB79: 3 | AC79: 3 | AD79: 3 | AE79: 3 | AF79: 3 | AG79: 3 | AH79: 3 | AI79: 3 | AJ79: 3 | AK79: 4 | AL79: 3 | AM79: 4 | AN79: 3 | AO79: 4 | AP79: 3 | AQ79: 5 | AR79: 4 | AS79: 4 | AT79: 4 | AU79: 3 | AV79: 5 | AW79: 5 | AX79: 3 | AY79: 3 | AZ79: 3 | BA79: 3 | BB79: 3 | BC79: 3 | BD79: 3 | BE79: 3 | BF79: 3 | BG79: 3 | BH79: 3 | BI79: 3 | BJ79: 3 | BK79: 3 | BL79: 3 | BM79: 3 | BN79: 999 | BO79: 3 | BP79: 3 | BQ79: 3 | BR79: 3 | BS79: 0.025 | BT79: 0 | BU79: 0 | BV79: 0.8275862069 | BW79: 0.1034482759 | BX79: 0.05172413793 | BZ79: 1 | CA79: 1

Sheet 抽出条件
A1: 階層
A2: 3

Sheet 全体データ
A1: No. | B1: 階層 | C1: =基本情報_集計!$E$1 -> 自社階層 | D1: =基本情報_集計!$I$1 -> 属性２ | E1: =基本情報_集計!$J$1 -> 属性３ | F1: =基本情報_集計!$K$1 -> 属性４ | G1: =基本情報_集計!$L$1 -> 属性５ | H1: =基本情報_集計!$M$1 -> 属性６ | I1: =基本情報_集計!$N$1 -> 属性７ | J1: =基本情報_集計!$O$1 -> 属性８ | K1: =基本情報_集計!$P$1 -> 属性９ | L1: =基本情報_集計!$Q$1 -> 属性１０ | M1: 問1 | N1: 問2 | O1: 問3 | P1: 問4 | Q1: 問5 | R1: 問6 | S1: 問7 | T1: 問8 | U1: 問9 | V1: 問10 | W1: 問11 | X1: 問12 | Y1: 問13 | Z1: 問14 | AA1: 問15 | AB1: 問16 | AC1: 問17 | AD1: 問18 | AE1: 問19 | AF1: 問20 | AG1: 問21 | AH1: 問22 | AI1: 問23 | AJ1: 問24 | AK1: 問25 | AL1: 問26 | AM1: 問27 | AN1: 問28 | AO1: 問29 | AP1: 問30 | AQ1: 問31 | AR1: 問32 | AS1: 問33 | AT1: 問34 | AU1: 問35 | AV1: 問36 | AW1: 問37 | AX1: 問38 | AY1: 問39 | AZ1: 問40 | BA1: 問41 | BB1: 問42 | BC1: 問43 | BD1: 問44 | BE1: 問45 | BF1: 問46 | BG1: 問47 | BH1: 問48 | BI1: 問49 | BJ1: 問50 | BK1: 問51 | BL1: 問52 | BM1: 問53 | BN1: 問54 | BO1: 問55 | BP1: 問56 | BQ1: 問57 | BR1: 問58 | BS1: Ⅰ | BT1: Ⅱ | BU1: Ⅲ | BV1: Ⅳ | BW1: Ⅴ | BX1: 区分1 | BY1: 区分2 | BZ1: 区分3 | CA1: 区分4 | CB1: 区分5 | CC1: 区分6 | CD1: 区分7 | CE1: 区分8 | CF1: 区分9 | CG1: 区分10 | CH1: 区分11 | CI1: 区分12 | CJ1: 区分13 | CK1: 区分14
A2: 1 | B2: 3 | C2: 3 | D2: 4 | E2: 5 | F2: 5 | M2: 5 | N2: 4 | O2: 4 | P2: 5 | Q2: 4 | R2: 4 | S2: 4 | T2: 4 | U2: 4 | V2: 4 | W2: 4 | X2: 5 | Y2: 5 | Z2: 5 | AA2: 4 | AB2: 4 | AC2: 5 | AD2: 5 | AE2: 5 | AF2: 5 | AG2: 5 | AH2: 5 | AI2: 5 | AJ2: 4 | AK2: 3 | AL2: 3 | AM2: 3 | AN2: 4 | AO2: 5 | AP2: 5 | AQ2: 5 | AR2: 4 | AS2: 4 | AT2: 4 | AU2: 3 | AV2: 5 | AW2: 5 | AX2: 5 | AY2: 3 | AZ2: 5 | BA2: 5 | BB2: 5 | BC2: 5 | BD2: 4 | BE2: 5 | BF2: 5 | BG2: 5 | BH2: 5 | BI2: 5 | BJ2: 5 | BK2: 5 | BL2: 4 | BM2: 5 | BN2: 4 | BO2: 4 | BP2: 4 | BQ2: 5 | BR2: 5 | BS2: 4.6 | BT2: 4.5625 | BU2: 4.888888889 | BV2: 4.222222222 | BW2: 4.142857143 | BX2: 4.666666667 | BY2: 4.333333333 | BZ2: 4.75 | CA2: 4.428571429 | CB2: 4.666666667 | CC2: 5 | CD2: 4.666666667 | CE2: 5 | CF2: 4.333333333 | CG2: 4.333333333 | CH2: 4 | CI2: 3.6 | CJ2: 4.4 | CK2: 4.5
A3: 2 | B3: 3 | C3: 3 | D3: 8 | E3: 6 | F3: 5 | M3: 4 | N3: 4 | O3: 5 | P3: 5 | Q3: 5 | R3: 4 | S3: 5 | T3: 5 | U3: 5 | V3: 5 | W3: 5 | X3: 5 | Y3: 5 | Z3: 5 | AA3: 5 | AB3: 5 | AC3: 5 | AD3: 5 | AE3: 5 | AF3: 5 | AG3: 5 | AH3: 5 | AI3: 5 | AJ3: 4 | AK3: 3 | AL3: 5 | AM3: 5 | AN3: 4 | AO3: 5 | AP3: 5 | AQ3: 3 | AR3: 4 | AS3: 4 | AT3: 4 | AU3: 4 | AV3: 3 | AW3: 5 | AX3: 4 | AY3: 3 | AZ3: 5 | BA3: 5 | BB3: 5 | BC3: 5 | BD3: 3 | BE3: 3 | BF3: 5 | BG3: 5 | BH3: 5 | BI3: 3 | BJ3: 3 | BK3: 4 | BL3: 4 | BM3: 3 | BN3: 3 | BO3: 4 | BP3: 4 | BQ3: 5 | BR3: 5 | BS3: 3.8 | BT3: 4.8125 | BU3: 4.555555556 | BV3: 4.666666667 | BW3: 4.142857143 | BX3: 3.333333333 | BY3: 3.333333333 | BZ3: 4.5 | CA3: 5 | CB3: 4.666666667 | CC3: 5 | CD3: 3.666666667 | CE3: 5 | CF3: 5 | CG3: 4 | CH3: 5 | CI3: 4.4 | CJ3: 4 | CK3: 4
A4: 3 | B4: 3 | C4: 3 | D4: 8 | E4: 6 | F4: 5 | M4: 3 | N4: 2 | O4: 3 | P4: 3 | Q4: 4 | R4: 3 | S4: 1 | T4: 4 | U4: 2 | V4: 5 | W4: 5 | X4: 5 | Y4: 4 | Z4: 4 | AA4: 3 | AB4: 5 | AC4: 5 | AD4: 4 | AE4: 5 | AF4: 4 | AG4: 5 | AH4: 5 | AI4: 2 | AJ4: 3 | AK4: 4 | AL4: 4 | AM4: 3 | AN4: 4 | AO4: 3 | AP4: 3 | AQ4: 3 | AR4: 4 | AS4: 4 | AT4: 3 | AU4: 4 | AV4: 5 | AW4: 5 | AX4: 4 | AY4: 3 | AZ4: 1 | BA4: 5 | BB4: 4 | BC4: 5 | BD4: 2 | BE4: 3 | BF4: 2 | BG4: 3 | BH4: 3 | BI4: 1 | BJ4: 4 | BK4: 2 | BL4: 4 | BM4: 2 | BN4: 1 | BO4: 1 | BP4: 1 | BQ4: 1 | BR4: 3 | BS4: 2 | BT4: 4.25 | BU4: 3.111111111 | BV4: 2.777777778 | BW4: 3.714285714 | BX4: 2 | BY4: 1.333333333 | BZ4: 2.5 | CA4: 4.428571429 | CB4: 4.111111111 | CC4: 3.333333333 | CD4: 3.333333333 | CE4: 2.666666667 | CF4: 3.333333333 | CG4: 2.666666667 | CH4: 2.333333333 | CI4: 3.8 | CJ4: 3.6 | CK4: 3.75
A5: 4 | B5: 3 | C5: 3 | D5: 8 | E5: 3 | F5: 2 | M5: 4 | N5: 3 | O5: 4 | P5: 4 | Q5: 5 | R5: 2 | S5: 3 | T5: 4 | U5: 2 | V5: 2 | W5: 5 | X5: 3 | Y5: 3 | Z5: 4 | AA5: 3 | AB5: 5 | AC5: 2 | AD5: 2 | AE5: 4 | AF5: 4 | AG5: 2 | AH5: 4 | AI5: 3 | AJ5: 1 | AK5: 2 | AL5: 4 | AM5: 3 | AN5: 4 | AO5: 3 | AP5: 5 | AQ5: 3 | AR5: 3 | AS5: 5 | AT5: 4 | AU5: 5 | AV5: 3 | AW5: 4 | AX5: 5 | AY5: 4 | AZ5: 2 | BA5: 2 | BB5: 2 | BC5: 4 | BD5: 3 | BE5: 5 | BF5: 4 | BG5: 4 | BH5: 5 | BI5: 2 | BJ5: 2 | BK5: 1 | BL5: 1 | BM5: 3 | BN5: 2 | BO5: 1 | BP5: 2 | BQ5: 1 | BR5: 3 | BS5: 1.8 | BT5: 3.0625 | BU5: 3.444444444 | BV5: 3.444444444 | BW5: 3.928571429 | BX5: 2 | BY5: 2 | BZ5: 1.5 | CA5: 3.571428571 | CB5: 2.666666667 | CC5: 2 | CD5: 4 | CE5: 4.333333333 | CF5: 4.333333333 | CG5: 3 | CH5: 3 | CI5: 4.2 | CJ5: 3.6 | CK5: 4
A6: 6 | B6: 1 | C6: 1 | D6: 1 | E6: 1 | F6: 5 | M6: 4 | N6: 4 | O6: 4 | P6: 4 | Q6: 4 | R6: 4 | S6: 3 | T6: 4 | U6: 3 | V6: 3 | W6: 3 | X6: 3 | Y6: 3 | Z6: 3 | AA6: 3 | AB6: 4 | AC6: 4 | AD6: 3 | AE6: 4 | AF6: 4 | AG6: 4 | AH6: 4 | AI6: 4 | AJ6: 4 | AK6: 4 | AL6: 4 | AM6: 3 | AN6: 4 | AO6: 5 | AP6: 4 | AQ6: 3 | AR6: 5 | AS6: 4 | AT6: 4 | AU6: 4 | AV6: 3 | AW6: 4 | AX6: 4 | AY6: 4 | AZ6: 3 | BA6: 4 | BB6: 4 | BC6: 4 | BD6: 4 | BE6: 4 | BF6: 4 | BG6: 3 | BH6: 4 | BI6: 3 | BJ6: 4 | BK6: 4 | BL6: 4 | BM6: 4 | BN6: 4 | BO6: 4 | BP6: 4 | BQ6: 4 | BR6: 4 | BS6: 3.9 | BT6: 3.5625 | BU6: 3.777777778 | BV6: 3.777777778 | BW6: 3.928571429 | BX6: 3.666666667 | BY6: 4 | BZ6: 4 | CA6: 3.142857143 | CB6: 3.888888889 | CC6: 3.666666667 | CD6: 4 | CE6: 3.666666667 | CF6: 4 | CG6: 4 | CH6: 3.333333333 | CI6: 3.8 | CJ6: 4.2 | CK6: 3.75
A7: 7 | B7: 3 | C7: 3 | D7: 2 | E7: 3 | F7: 2 | M7: 3 | N7: 3 | O7: 3 | P7: 2 | Q7: 3 | R7: 2 | S7: 2 | T7: 2 | U7: 1 | V7: 1 | W7: 1 | X7: 1 | Y7: 2 | Z7: 3 | AA7: 3 | AB7: 3 | AC7: 3 | AD7: 2 | AE7: 2 | AF7: 2 | AG7: 2 | AH7: 3 | AI7: 3 | AJ7: 3 | AK7: 3 | AL7: 3 | AM7: 3 | AN7: 4 | AO7: 4 | AP7: 3 | AQ7: 2 | AR7: 2 | AS7: 3 | AT7: 3 | AU7: 2 | AV7: 3 | AW7: 4 | AX7: 5 | AY7: 3 | AZ7: 1 | BA7: 3 | BB7: 2 | BC7: 2 | BD7: 1 | BE7: 2 | BF7: 2 | BG7: 2 | BH7: 2 | BI7: 1 | BJ7: 1 | BK7: 1 | BL7: 1 | BM7: 2 | BN7: 1 | BO7: 1 | BP7: 1 | BQ7: 1 | BR7: 1 | BS7: 1.1 | BT7: 2.3125 | BU7: 1.888888889 | BV7: 2.333333333 | BW7: 3.142857143 | BX7: 1 | BY7: 1.333333333 | BZ7: 1 | CA7: 2 | CB7: 2.555555556 | CC7: 2 | CD7: 1.666666667 | CE7: 2 | CF7: 2.666666667 | CG7: 2.666666667 | CH7: 1.666666667 | CI7: 3.4 | CJ7: 3 | CK7: 3
A8: 8 | B8: 3 | C8: 3 | D8: 2 | E8: 3 | F8: 5 | M8: 2 | N8: 3 | O8: 3 | P8: 2 | Q8: 3 | R8: 2 | S8: 2 | T8: 4 | U8: 3 | V8: 2 | W8: 2 | X8: 2 | Y8: 2 | Z8: 4 | AA8: 3 | AB8: 3 | AC8: 3 | AD8: 2 | AE8: 4 | AF8: 3 | AG8: 2 | AH8: 4 | AI8: 3 | AJ8: 3 | AK8: 2 | AL8: 4 | AM8: 3 | AN8: 4 | AO8: 1 | AP8: 4 | AQ8: 3 | AR8: 3 | AS8: 5 | AT8: 3 | AU8: 4 | AV8: 3 | AW8: 4 | AX8: 3 | AY8: 3 | AZ8: 2 | BA8: 2 | BB8: 4 | BC8: 3 | BD8: 2 | BE8: 3 | BF8: 2 | BG8: 4 | BH8: 2 | BI8: 2 | BJ8: 3 | BK8: 2 | BL8: 2 | BM8: 2 | BN8: 2 | BO8: 2 | BP8: 2 | BQ8: 2 | BR8: 2 | BS8: 2.1 | BT8: 2.75 | BU8: 2.666666667 | BV8: 2.666666667 | BW8: 3.357142857 | BX8: 2.333333333 | BY8: 2 | BZ8: 2 | CA8: 2.571428571 | CB8: 2.888888889 | CC8: 2.666666667 | CD8: 2.666666667 | CE8: 2.666666667 | CF8: 2.666666667 | CG8: 2.333333333 | CH8: 3 | CI8: 3.6 | CJ8: 2.8 | CK8: 3.75
A9: 9 | B9: 3 | C9: 3 | D9: 2 | E9: 6 | F9: 5 | M9: 5 | N9: 5 | O9: 5 | P9: 5 | Q9: 5 | R9: 5 | S9: 5 | T9: 5 | U9: 5 | V9: 5 | W9: 5 | X9: 4 | Y9: 5 | Z9: 5 | AA9: 5 | AB9: 5 | AC9: 5 | AD9: 4 | AE9: 4 | AF9: 4 | AG9: 4 | AH9: 5 | AI9: 5 | AJ9: 5 | AK9: 4 | AL9: 5 | AM9: 2 | AN9: 4 | AO9: 4 | AP9: 3 | AQ9: 5 | AR9: 5 | AS9: 5 | AT9: 5 | AU9: 5 | AV9: 4 | AW9: 4 | AX9: 4 | AY9: 4 | AZ9: 4 | BA9: 5 | BB9: 5 | BC9: 5 | BD9: 5 | BE9: 5 | BF9: 5 | BG9: 5 | BH9: 5 | BI9: 5 | BJ9: 5 | BK9: 5 | BL9: 5 | BM9: 5 | BN9: 5 | BO9: 5 | BP9: 5 | BQ9: 5 | BR9: 5 | BS9: 5 | BT9: 4.625 | BU9: 4.888888889 | BV9: 5 | BW9: 4.214285714 | BX9: 5 | BY9: 5 | BZ9: 5 | CA9: 4.857142857 | CB9: 4.444444444 | CC9: 4.666666667 | CD9: 5 | CE9: 5 | CF9: 5 | CG9: 5 | CH9: 5 | CI9: 4 | CJ9: 4 | CK9: 4.75
A10: 10 | B10: 3 | C10: 3 | D10: 2 | E10: 3 | F10: 5 | M10: 2 | N10: 2 | O10: 3 | P10: 3 | Q10: 3 | R10: 2 | S10: 1 | T10: 3 | U10: 1 | V10: 4 | W10: 3 | X10: 2 | Y10: 2 | Z10: 4 | AA10: 2 | AB10: 3 | AC10: 2 | AD10: 3 | AE10: 3 | AF10: 3 | AG10: 3 | AH10: 2 | AI10: 3 | AJ10: 2 | AK10: 1 | AL10: 5 | AM10: 5 | AN10: 4 | AO10: 4 | AP10: 4 | AQ10: 3 | AR10: 5 | AS10: 4 | AT10: 4 | AU10: 3 | AV10: 5 | AW10: 4 | AX10: 4 | AY10: 3 | AZ10: 1 | BA10: 4 | BB10: 4 | BC10: 3 | BD10: 1 | BE10: 3 | BF10: 4 | BG10: 3 | BH10: 3 | BI10: 2 | BJ10: 3 | BK10: 2 | BL10: 3 | BM10: 3 | BN10: 1 | BO10: 2 | BP10: 2 | BQ10: 2 | BR10: 2 | BS10: 2.2 | BT10: 2.625 | BU10: 2.888888889 | BV10: 2.222222222 | BW10: 4.071428571 | BX10: 2.333333333 | BY10: 2 | BZ10: 2.25 | CA10: 2.857142857 | CB10: 2.444444444 | CC10: 3 | CD10: 2.333333333 | CE10: 3.333333333 | CF10: 3 | CG10: 2 | CH10: 1.666666667 | CI10: 4.2 | CJ10: 4.2 | CK10: 3.75
A11: 11 | B11: 3 | C11: 3 | D11: 2 | E11: 3 | F11: 5 | M11: 1 | N11: 2 | O11: 2 | P11: 2 | Q11: 3 | R11: 1 | S11: 1 | T11: 3 | U11: 2 | V11: 2 | W11: 4 | X11: 5 | Y11: 5 | Z11: 4 | AA11: 4 | AB11: 4 | AC11: 4 | AD11: 1 | AE11: 5 | AF11: 5 | AG11: 5 | AH11: 4 | AI11: 1 | AJ11: 1 | AK11: 1 | AL11: 4 | AM11: 3 | AN11: 4 | AO11: 2 | AP11: 1 | AQ11: 1 | AR11: 4 | AS11: 1 | AT11: 1 | AU11: 2 | AV11: 3 | AW11: 3 | AX11: 2 | AY11: 4 | AZ11: 3 | BA11: 3 | BB11: 1 | BC11: 3 | BD11: 1 | BE11: 1 | BF11: 3 | BG11: 3 | BH11: 3 | BI11: 3 | BJ11: 4 | BK11: 3 | BL11: 3 | BM11: 2 | BN11: 3 | BO11: 3 | BP11: 3 | BQ11: 3 | BR11: 3 | BS11: 3 | BT11: 3.4375 | BU11: 2.333333333 | BV11: 1.888888889 | BW11: 2.5 | BX11: 3.333333333 | BY11: 2.666666667 | BZ11: 3 | CA11: 4 | CB11: 3 | CC11: 2.333333333 | CD11: 1.666666667 | CE11: 3 | CF11: 2.333333333 | CG11: 1.333333333 | CH11: 2 | CI11: 3 | CJ11: 2.8 | CK11: 1.5
A12: 12 | B12: 3 | C12: 3 | D12: 2 | E12: 3 | F12: 5 | M12: 1 | N12: 4 | O12: 4 | P12: 3 | Q12: 3 | R12: 4 | S12: 3 | T12: 4 | U12: 3 | V12: 4 | W12: 5 | X12: 4 | Y12: 5 | Z12: 5 | AA12: 5 | AB12: 4 | AC12: 5 | AD12: 5 | AE12: 5 | AF12: 4 | AG12: 4 | AH12: 5 | AI12: 4 | AJ12: 5 | AK12: 3 | AL12: 5 | AM12: 5 | AN12: 5 | AO12: 5 | AP12: 5 | AQ12: 5 | AR12: 4 | AS12: 5 | AT12: 3 | AU12: 4 | AV12: 5 | AW12: 5 | AX12: 4 | AY12: 5 | AZ12: 1 | BA12: 4 | BB12: 4 | BC12: 3 | BD12: 3 | BE12: 3 | BF12: 1 | BG12: 4 | BH12: 4 | BI12: 1 | BJ12: 1 | BK12: 1 | BL12: 1 | BM12: 1 | BN12: 3 | BO12: 1 | BP12: 1 | BQ12: 1 | BR12: 1 | BS12: 1.2 | BT12: 4.5 | BU12: 3 | BV12: 3.222222222 | BW12: 4.642857143 | BX12: 1 | BY12: 1.666666667 | BZ12: 1 | CA12: 4.571428571 | CB12: 4.444444444 | CC12: 3 | CD12: 3 | CE12: 3 | CF12: 3.333333333 | CG12: 3 | CH12: 3.333333333 | CI12: 4.6 | CJ12: 4.8 | CK12: 4.5
A13: 13 | B13: 3 | C13: 3 | D13: 2 | E13: 3 | F13: 5 | M13: 2 | N13: 4 | O13: 3 | P13: 4 | Q13: 4 | R13: 2 | S13: 2 | T13: 3 | U13: 3 | V13: 4 | W13: 4 | X13: 3 | Y13: 3 | Z13: 4 | AA13: 4 | AB13: 4 | AC13: 4 | AD13: 4 | AE13: 4 | AF13: 4 | AG13: 3 | AH13: 4 | AI13: 4 | AJ13: 4 | AK13: 2 | AL13: 5 | AM13: 5 | AN13: 5 | AO13: 3 | AP13: 5 | AQ13: 5 | AR13: 4 | AS13: 3 | AT13: 4 | AU13: 4 | AV13: 5 | AW13: 3 | AX13: 4 | AY13: 3 | AZ13: 3 | BA13: 5 | BB13: 4 | BC13: 4 | BD13: 3 | BE13: 3 | BF13: 4 | BG13: 4 | BH13: 4 | BI13: 3 | BJ13: 4 | BK13: 3 | BL13: 3 | BM13: 4 | BN13: 3 | BO13: 3 | BP13: 3 | BQ13: 3 | BR13: 2 | BS13: 3.1 | BT13: 3.6875 | BU13: 3.777777778 | BV13: 3 | BW13: 4.142857143 | BX13: 3.333333333 | BY13: 3.333333333 | BZ13: 2.75 | CA13: 3.714285714 | CB13: 3.666666667 | CC13: 4 | CD13: 3.333333333 | CE13: 4 | CF13: 3.666666667 | CG13: 2.666666667 | CH13: 2.666666667 | CI13: 4.6 | CJ13: 4 | CK13: 3.75
A14: 14 | B14: 3 | C14: 3 | D14: 2 | E14: 3 | F14: 5 | M14: 1 | N14: 2 | O14: 3 | P14: 4 | Q14: 5 | R14: 4 | S14: 3 | T14: 2 | U14: 1 | V14: 2 | W14: 2 | X14: 2 | Y14: 2 | Z14: 2 | AA14: 2 | AB14: 2 | AC14: 2 | AD14: 2 | AE14: 2 | AF14: 2 | AG14: 3 | AH14: 3 | AI14: 3 | AJ14: 3 | AK14: 3 | AL14: 4 | AM14: 2 | AN14: 3 | AO14: 4 | AP14: 3 | AQ14: 5 | AR14: 2 | AS14: 1 | AT14: 4 | AU14: 3 | AV14: 5 | AW14: 1 | AX14: 5 | AY14: 3 | AZ14: 4 | BA14: 5 | BB14: 5 | BC14: 5 | BD14: 5 | BE14: 5 | BF14: 5 | BG14: 5 | BH14: 5 | BI14: 5 | BJ14: 5 | BK14: 4 | BL14: 3 | BM14: 2 | BN14: 1 | BO14: 2 | BP14: 3 | BQ14: 4 | BR14: 5 | BS14: 3.4 | BT14: 2.3125 | BU14: 4.888888889 | BV14: 2.777777778 | BW14: 3.214285714 | BX14: 4.333333333 | BY14: 1.666666667 | BZ14: 4 | CA14: 2 | CB14: 2.555555556 | CC14: 4.666666667 | CD14: 5 | CE14: 5 | CF14: 4 | CG14: 2.333333333 | CH14: 2 | CI14: 3.4 | CJ14: 3.4 | CK14: 2.75
A15: 15 | B15: 3 | C15: 3 | D15: 2 | E15: 3 | F15: 5 | M15: 5 | N15: 5 | O15: 4 | P15: 4 | Q15: 5 | R15: 4 | S15: 4 | T15: 5 | U15: 4 | V15: 5 | W15: 4 | X15: 4 | Y15: 4 | Z15: 5 | AA15: 4 | AB15: 5 | AC15: 4 | AD15: 5 | AE15: 4 | AF15: 4 | AG15: 5 | AH15: 5 | AI15: 5 | AJ15: 4 | AK15: 4 | AL15: 4 | AM15: 4 | AN15: 5 | AO15: 5 | AP15: 3 | AQ15: 4 | AR15: 5 | AS15: 4 | AT15: 5 | AU15: 4 | AV15: 3 | AW15: 5 | AX15: 4 | AY15: 3 | AZ15: 4 | BA15: 5 | BB15: 5 | BC15: 5 | BD15: 5 | BE15: 5 | BF15: 5 | BG15: 4 | BH15: 5 | BI15: 3 | BJ15: 5 | BK15: 4 | BL15: 4 | BM15: 4 | BN15: 4 | BO15: 4 | BP15: 4 | BQ15: 4 | BR15: 4 | BS15: 4 | BT15: 4.4375 | BU15: 4.777777778 | BV15: 4.444444444 | BW15: 4.142857143 | BX15: 4 | BY15: 4 | BZ15: 4 | CA15: 4.428571429 | CB15: 4.444444444 | CC15: 4.666666667 | CD15: 5 | CE15: 4.666666667 | CF15: 4.333333333 | CG15: 4.666666667 | CH15: 4.333333333 | CI15: 4.2 | CJ15: 3.8 | CK15: 4.5
A16: 16 | B16: 3 | C16: 3 | D16: 4 | E16: 4 | F16: 1 | M16: 2 | N16: 2 | O16: 2 | P16: 3 | Q16: 2 | R16: 2 | S16: 1 | T16: 2 | U16: 3 | V16: 3 | W16: 4 | X16: 2 | Y16: 3 | Z16: 5 | AA16: 3 | AB16: 4 | AC16: 4 | AD16: 4 | AE16: 3 | AF16: 2 | AG16: 3 | AH16: 4 | AI16: 4 | AJ16: 3 | AK16: 4 | AL16: 4 | AM16: 3 | AN16: 4 | AO16: 3 | AP16: 3 | AQ16: 4 | AR16: 5 | AS16: 4 | AT16: 4 | AU16: 5 | AV16: 5 | AW16: 4 | AX16: 4 | AY16: 3 | AZ16: 3 | BA16: 4 | BB16: 2 | BC16: 2 | BD16: 4 | BE16: 3 | BF16: 4 | BG16: 4 | BH16: 4 | BI16: 2 | BJ16: 3 | BK16: 2 | BL16: 3 | BM16: 3 | BN16: 3 | BO16: 2 | BP16: 3 | BQ16: 3 | BR16: 1 | BS16: 2.5 | BT16: 3.4375 | BU16: 3.333333333 | BV16: 2.111111111 | BW16: 3.928571429 | BX16: 2.666666667 | BY16: 2.666666667 | BZ16: 2.25 | CA16: 3.428571429 | CB16: 3.444444444 | CC16: 3 | CD16: 3 | CE16: 4 | CF16: 2.333333333 | CG16: 2 | CH16: 2 | CI16: 4 | CJ16: 3.8 | CK16: 4
A17: 17 | B17: 3 | C17: 3 | D17: 4 | E17: 4 | F17: 2 | M17: 2 | N17: 2 | O17: 2 | P17: 1 | Q17: 1 | R17: 1 | S17: 1 | T17: 1 | U17: 1 | V17: 2 | W17: 3 | X17: 3 | Y17: 3 | Z17: 5 | AA17: 4 | AB17: 1 | AC17: 4 | AD17: 3 | AE17: 4 | AF17: 3 | AG17: 3 | AH17: 3 | AI17: 2 | AJ17: 2 | AK17: 2 | AL17: 4 | AM17: 3 | AN17: 4 | AO17: 3 | AP17: 3 | AQ17: 3 | AR17: 4 | AS17: 4 | AT17: 4 | AU17: 3 | AV17: 3 | AW17: 4 | AX17: 4 | AY17: 3 | AZ17: 1 | BA17: 2 | BB17: 2 | BC17: 2 | BD17: 1 | BE17: 2 | BF17: 4 | BG17: 1 | BH17: 1 | BI17: 1 | BJ17: 4 | BK17: 3 | BL17: 1 | BM17: 3 | BN17: 1 | BO17: 1 | BP17: 1 | BQ17: 1 | BR17: 2 | BS17: 1.8 | BT17: 2.9375 | BU17: 1.777777778 | BV17: 1.333333333 | BW17: 3.5 | BX17: 2 | BY17: 1.666666667 | BZ17: 1.75 | CA17: 3 | CB17: 2.888888889 | CC17: 1.666666667 | CD17: 1.666666667 | CE17: 2 | CF17: 1.333333333 | CG17: 1.666666667 | CH17: 1 | CI17: 3.6 | CJ17: 3.2 | CK17: 3.75
A18: 18 | B18: 3 | C18: 3 | D18: 4 | E18: 4 | F18: 2 | M18: 1 | N18: 3 | O18: 3 | P18: 3 | Q18: 3 | R18: 1 | S18: 2 | T18: 1 | U18: 2 | V18: 1 | W18: 1 | X18: 3 | Y18: 2 | Z18: 3 | AA18: 2 | AB18: 1 | AC18: 4 | AD18: 3 | AE18: 3 | AF18: 3 | AG18: 2 | AH18: 3 | AI18: 3 | AJ18: 4 | AK18: 3 | AL18: 4 | AM18: 3 | AN18: 4 | AO18: 5 | AP18: 5 | AQ18: 5 | AR18: 2 | AS18: 4 | AT18: 3 | AU18: 2 | AV18: 3 | AW18: 5 | AX18: 4 | AY18: 4 | AZ18: 3 | BA18: 1 | BB18: 2 | BC18: 1 | BD18: 1 | BE18: 3 | BF18: 2 | BG18: 1 | BH18: 1 | BI18: 1 | BJ18: 1 | BK18: 2 | BL18: 1 | BM18: 1 | BN18: 1 | BO18: 1 | BP18: 1 | BQ18: 1 | BR18: 1 | BS18: 1.1 | BT18: 2.5625 | BU18: 1.666666667 | BV18: 2.111111111 | BW18: 3.785714286 | BX18: 1 | BY18: 1 | BZ18: 1.25 | CA18: 1.857142857 | CB18: 3.111111111 | CC18: 2 | CD18: 1.666666667 | CE18: 1.333333333 | CF18: 3 | CG18: 1.666666667 | CH18: 1.666666667 | CI18: 3.4 | CJ18: 3.8 | CK18: 4.25
A19: 19 | B19: 3 | C19: 3 | D19: 4 | E19: 4 | F19: 5 | M19: 2 | N19: 3 | O19: 4 | P19: 2 | Q19: 2 | R19: 3 | S19: 2 | T19: 3 | U19: 4 | V19: 3 | W19: 5 | X19: 4 | Y19: 4 | Z19: 4 | AA19: 3 | AB19: 3 | AC19: 4 | AD19: 2 | AE19: 4 | AF19: 2 | AG19: 4 | AH19: 5 | AI19: 3 | AJ19: 4 | AK19: 3 | AL19: 4 | AM19: 3 | AN19: 4 | AO19: 3 | AP19: 4 | AQ19: 4 | AR19: 4 | AS19: 4 | AT19: 3 | AU19: 3 | AV19: 5 | AW19: 5 | AX19: 5 | AY19: 3 | AZ19: 3 | BA19: 4 | BB19: 2 | BC19: 3 | BD19: 3 | BE19: 4 | BF19: 3 | BG19: 3 | BH19: 3 | BI19: 3 | BJ19: 3 | BK19: 4 | BL19: 2 | BM19: 4 | BN19: 3 | BO19: 2 | BP19: 3 | BQ19: 2 | BR19: 2 | BS19: 2.8 | BT19: 3.5625 | BU19: 3.111111111 | BV19: 2.777777778 | BW19: 3.857142857 | BX19: 3 | BY19: 3 | BZ19: 2.5 | CA19: 3.714285714 | CB19: 3.444444444 | CC19: 3 | CD19: 3.333333333 | CE19: 3 | CF19: 2.666666667 | CG19: 2.666666667 | CH19: 3 | CI19: 3.8 | CJ19: 3.8 | CK19: 4
A20: 20 | B20: 3 | C20: 3 | D20: 4 | E20: 4 | F20: 5 | M20: 4 | N20: 4 | O20: 3 | P20: 2 | Q20: 3 | R20: 3 | S20: 2 | T20: 3 | U20: 3 | V20: 3 | W20: 3 | X20: 3 | Y20: 3 | Z20: 4 | AA20: 3 | AB20: 3 | AC20: 3 | AD20: 3 | AE20: 4 | AF20: 4 | AG20: 3 | AH20: 3 | AI20: 3 | AJ20: 3 | AK20: 3 | AL20: 4 | AM20: 2 | AN20: 3 | AO20: 4 | AP20: 4 | AQ20: 3 | AR20: 4 | AS20: 4 | AT20: 4 | AU20: 2 | AV20: 3 | AW20: 4 | AX20: 3 | AY20: 1 | AZ20: 3 | BA20: 3 | BB20: 3 | BC20: 2 | BD20: 3 | BE20: 3 | BF20: 4 | BG20: 3 | BH20: 3 | BI20: 2 | BJ20: 3 | BK20: 2 | BL20: 2 | BM20: 4 | BN20: 3 | BO20: 3 | BP20: 3 | BQ20: 3 | BR20: 3 | BS20: 2.8 | BT20: 3.1875 | BU20: 3 | BV20: 3 | BW20: 3.214285714 | BX20: 2.666666667 | BY20: 3.333333333 | BZ20: 2.5 | CA20: 3.142857143 | CB20: 3.222222222 | CC20: 3 | CD20: 2.666666667 | CE20: 3.333333333 | CF20: 2.666666667 | CG20: 3.666666667 | CH20: 2.666666667 | CI20: 2.8 | CJ20: 3.2 | CK20: 3.75
A21: 21 | B21: 3 | C21: 3 | D21: 4 | E21: 4 | F21: 4 | M21: 3 | N21: 3 | O21: 3 | P21: 4 | Q21: 4 | R21: 3 | S21: 2 | T21: 2 | U21: 3 | V21: 2 | W21: 2 | X21: 2 | Y21: 2 | Z21: 3 | AA21: 3 | AB21: 4 | AC21: 4 | AD21: 3 | AE21: 4 | AF21: 4 | AG21: 2 | AH21: 4 | AI21: 4 | AJ21: 4 | AK21: 3 | AL21: 3 | AM21: 5 | AN21: 4 | AO21: 4 | AP21: 4 | AQ21: 2 | AR21: 4 | AS21: 5 | AT21: 4 | AU21: 4 | AV21: 3 | AW21: 4 | AX21: 3 | AY21: 3 | AZ21: 3 | BA21: 5 | BB21: 3 | BC21: 2 | BD21: 2 | BE21: 3 | BF21: 4 | BG21: 2 | BH21: 2 | BI21: 2 | BJ21: 4 | BK21: 3 | BL21: 2 | BM21: 4 | BN21: 2 | BO21: 3 | BP21: 2 | BQ21: 2 | BR21: 2 | BS21: 2.6 | BT21: 3.125 | BU21: 2.888888889 | BV21: 3 | BW21: 3.714285714 | BX21: 2.666666667 | BY21: 3 | BZ21: 2.25 | CA21: 2.571428571 | CB21: 3.555555556 | CC21: 3.666666667 | CD21: 2.333333333 | CE21: 2.666666667 | CF21: 3.666666667 | CG21: 3 | CH21: 2.333333333 | CI21: 3.8 | CJ21: 3.6 | CK21: 3.75
A22: 22 | B22: 3 | C22: 3 | D22: 4 | E22: 4 | F22: 5 | M22: 2 | N22: 4 | O22: 3 | P22: 2 | Q22: 3 | R22: 3 | S22: 3 | T22: 4 | U22: 3 | V22: 3 | W22: 3 | X22: 2 | Y22: 3 | Z22: 4 | AA22: 3 | AB22: 4 | AC22: 2 | AD22: 2 | AE22: 3 | AF22: 2 | AG22: 4 | AH22: 4 | AI22: 3 | AJ22: 4 | AK22: 3 | AL22: 2 | AM22: 3 | AN22: 5 | AO22: 3 | AP22: 3 | AQ22: 3 | AR22: 3 | AS22: 3 | AT22: 4 | AU22: 3 | AV22: 3 | AW22: 4 | AX22: 3 | AY22: 3 | AZ22: 3 | BA22: 4 | BB22: 4 | BC22: 3 | BD22: 3 | BE22: 4 | BF22: 3 | BG22: 3 | BH22: 4 | BI22: 2 | BJ22: 4 | BK22: 3 | BL22: 3 | BM22: 3 | BN22: 3 | BO22: 4 | BP22: 3 | BQ22: 3 | BR22: 3 | BS22: 3.1 | BT22: 3.0625 | BU22: 3.444444444 | BV22: 3 | BW22: 3.214285714 | BX22: 3 | BY22: 3.333333333 | BZ22: 3 | CA22: 3.142857143 | CB22: 3 | CC22: 3.666666667 | CD22: 3.333333333 | CE22: 3.333333333 | CF22: 2.666666667 | CG22: 3 | CH22: 3.333333333 | CI22: 3.2 | CJ22: 3 | CK22: 3.5
A23: 23 | B23: 3 | C23: 3 | D23: 4 | E23: 4 | F23: 5 | M23: 1 | N23: 2 | O23: 3 | P23: 3 | Q23: 2 | R23: 2 | S23: 2 | T23: 1 | U23: 4 | V23: 3 | W23: 3 | X23: 2 | Y23: 2 | Z23: 3 | AA23: 2 | AB23: 4 | AC23: 4 | AD23: 1 | AE23: 3 | AF23: 2 | AG23: 2 | AH23: 3 | AI23: 2 | AJ23: 2 | AK23: 2 | AL23: 5 | AM23: 3 | AN23: 5 | AO23: 3 | AP23: 5 | AQ23: 3 | AR23: 4 | AS23: 5 | AT23: 4 | AU23: 4 | AV23: 5 | AW23: 5 | AX23: 5 | AY23: 3 | AZ23: 3 | BA23: 4 | BB23: 2 | BC23: 1 | BD23: 1 | BE23: 2 | BF23: 2 | BG23: 2 | BH23: 2 | BI23: 1 | BJ23: 1 | BK23: 2 | BL23: 2 | BM23: 2 | BN23: 1 | BO23: 2 | BP23: 3 | BQ23: 1 | BR23: 1 | BS23: 1.6 | BT23: 2.5 | BU23: 2.111111111 | BV23: 2.222222222 | BW23: 4.214285714 | BX23: 1.666666667 | BY23: 1.666666667 | BZ23: 1.5 | CA23: 2.714285714 | CB23: 2.333333333 | CC23: 3 | CD23: 1.333333333 | CE23: 2 | CF23: 2.666666667 | CG23: 1.666666667 | CH23: 2.333333333 | CI23: 4.4 | CJ23: 4 | CK23: 4.25
A24: 24 | B24: 3 | C24: 3 | D24: 4 | E24: 4 | F24: 1 | M24: 4 | N24: 4 | O24: 5 | P24: 5 | Q24: 5 | R24: 4 | S24: 3 | T24: 3 | U24: 2 | V24: 4 | W24: 4 | X24: 4 | Y24: 5 | Z24: 4 | AA24: 4 | AB24: 4 | AC24: 5 | AD24: 4 | AE24: 4 | AF24: 2 | AG24: 3 | AH24: 5 | AI24: 4 | AJ24: 3 | AK24: 3 | AL24: 4 | AM24: 3 | AN24: 5 | AO24: 3 | AP24: 5 | AQ24: 5 | AR24: 4 | AS24: 4 | AT24: 5 | AU24: 4 | AV24: 3 | AW24: 4 | AX24: 4 | AY24: 3 | AZ24: 4 | BA24: 4 | BB24: 5 | BC24: 4 | BD24: 4 | BE24: 5 | BF24: 5 | BG24: 4 | BH24: 3 | BI24: 4 | BJ24: 4 | BK24: 5 | BL24: 3 | BM24: 4 | BN24: 4 | BO24: 3 | BP24: 3 | BQ24: 3 | BR24: 3 | BS24: 3.6 | BT24: 3.875 | BU24: 4.222222222 | BV24: 3.888888889 | BW24: 4 | BX24: 3.666666667 | BY24: 3.666666667 | BZ24: 3.5 | CA24: 4.142857143 | CB24: 3.666666667 | CC24: 4.333333333 | CD24: 4.333333333 | CE24: 4 | CF24: 5 | CG24: 4 | CH24: 2.666666667 | CI24: 4 | CJ24: 3.6 | CK24: 4.5
A25: 25 | B25: 3 | C25: 3 | D25: 4 | E25: 4 | F25: 1 | M25: 1 | N25: 3 | O25: 3 | P25: 3 | Q25: 3 | R25: 3 | S25: 2 | T25: 3 | U25: 3 | V25: 1 | W25: 2 | X25: 2 | Y25: 2 | Z25: 4 | AA25: 3 | AB25: 3 | AC25: 3 | AD25: 3 | AE25: 3 | AF25: 3 | AG25: 1 | AH25: 3 | AI25: 3 | AJ25: 1 | AK25: 1 | AL25: 3 | AM25: 3 | AN25: 5 | AO25: 1 | AP25: 1 | AQ25: 2 | AR25: 4 | AS25: 2 | AT25: 5 | AU25: 5 | AV25: 1 | AW25: 5 | AX25: 2 | AY25: 1 | AZ25: 3 | BA25: 3 | BB25: 3 | BC25: 3 | BD25: 3 | BE25: 3 | BF25: 3 | BG25: 3 | BH25: 3 | BI25: 1 | BJ25: 1 | BK25: 1 | BL25: 1 | BM25: 1 | BN25: 1 | BO25: 1 | BP25: 1 | BQ25: 1 | BR25: 1 | BS25: 1 | BT25: 2.375 | BU25: 3 | BV25: 2.666666667 | BW25: 2.857142857 | BX25: 1 | BY25: 1 | BZ25: 1 | CA25: 2.428571429 | CB25: 2.333333333 | CC25: 3 | CD25: 3 | CE25: 3 | CF25: 3 | CG25: 2.333333333 | CH25: 2.666666667 | CI25: 3.6 | CJ25: 1.6 | CK25: 3.5
A26: 26 | B26: 3 | C26: 3 | D26: 4 | E26: 4 | F26: 1 | M26: 4 | N26: 2 | O26: 4 | P26: 4 | Q26: 3 | R26: 3 | S26: 4 | T26: 3 | U26: 3 | V26: 4 | W26: 5 | X26: 3 | Y26: 3 | Z26: 5 | AA26: 3 | AB26: 4 | AC26: 3 | AD26: 2 | AE26: 4 | AF26: 3 | AG26: 3 | AH26: 4 | AI26: 3 | AJ26: 3 | AK26: 3 | AL26: 3 | AM26: 3 | AN26: 4 | AO26: 4 | AP26: 4 | AQ26: 4 | AR26: 4 | AS26: 4 | AT26: 2 | AU26: 5 | AV26: 4 | AW26: 4 | AX26: 4 | AY26: 4 | AZ26: 3 | BA26: 4 | BB26: 3 | BC26: 3 | BD26: 3 | BE26: 3 | BF26: 3 | BG26: 3 | BH26: 3 | BI26: 3 | BJ26: 4 | BK26: 3 | BL26: 4 | BM26: 3 | BN26: 3 | BO26: 3 | BP26: 3 | BQ26: 3 | BR26: 3 | BS26: 3.2 | BT26: 3.4375 | BU26: 3.111111111 | BV26: 3.333333333 | BW26: 3.785714286 | BX26: 3.333333333 | BY26: 3 | BZ26: 3.25 | CA26: 3.857142857 | CB26: 3.111111111 | CC26: 3.333333333 | CD26: 3 | CE26: 3 | CF26: 3.666666667 | CG26: 3 | CH26: 3.333333333 | CI26: 3.8 | CJ26: 4 | CK26: 3.5
A27: 27 | B27: 3 | C27: 3 | D27: 4 | E27: 4 | F27: 5 | M27: 2 | N27: 2 | O27: 2 | P27: 3 | Q27: 3 | R27: 2 | S27: 1 | T27: 2 | U27: 2 | V27: 3 | W27: 3 | X27: 3 | Y27: 3 | Z27: 4 | AA27: 3 | AB27: 5 | AC27: 4 | AD27: 3 | AE27: 3 | AF27: 3 | AG27: 4 | AH27: 4 | AI27: 3 | AJ27: 3 | AK27: 4 | AL27: 3 | AM27: 3 | AN27: 5 | AO27: 3 | AP27: 5 | AQ27: 3 | AR27: 4 | AS27: 4 | AT27: 4 | AU27: 5 | AV27: 3 | AW27: 4 | AX27: 4 | AY27: 4 | AZ27: 2 | BA27: 4 | BB27: 3 | BC27: 3 | BD27: 2 | BE27: 3 | BF27: 4 | BG27: 3 | BH27: 2 | BI27: 2 | BJ27: 3 | BK27: 3 | BL27: 3 | BM27: 4 | BN27: 2 | BO27: 2 | BP27: 2 | BQ27: 2 | BR27: 2 | BS27: 2.5 | BT27: 3.4375 | BU27: 2.888888889 | BV27: 2.111111111 | BW27: 3.857142857 | BX27: 2.333333333 | BY27: 2.666666667 | BZ27: 2.5 | CA27: 3.428571429 | CB27: 3.444444444 | CC27: 3 | CD27: 2.666666667 | CE27: 3 | CF27: 2.666666667 | CG27: 2 | CH27: 1.666666667 | CI27: 4 | CJ27: 3.8 | CK27: 3.75
A28: 28 | B28: 3 | C28: 3 | D28: 4 | E28: 4 | F28: 5 | M28: 2 | N28: 4 | O28: 2 | P28: 2 | Q28: 2 | R28: 2 | S28: 2 | T28: 2 | U28: 3 | V28: 2 | W28: 2 | X28: 2 | Y28: 3 | Z28: 4 | AA28: 3 | AB28: 3 | AC28: 4 | AD28: 4 | AE28: 4 | AF28: 4 | AG28: 4 | AH28: 4 | AI28: 4 | AJ28: 2 | AK28: 2 | AL28: 5 | AM28: 3 | AN28: 4 | AO28: 3 | AP28: 3 | AQ28: 3 | AR28: 4 | AS28: 4 | AT28: 3 | AU28: 4 | AV28: 3 | AW28: 4 | AX28: 3 | AY28: 3 | AZ28: 3 | BA28: 5 | BB28: 2 | BC28: 2 | BD28: 2 | BE28: 3 | BF28: 3 | BG28: 3 | BH28: 3 | BI28: 2 | BJ28: 3 | BK28: 2 | BL28: 3 | BM28: 4 | BN28: 2 | BO28: 2 | BP28: 3 | BQ28: 2 | BR28: 3 | BS28: 2.6 | BT28: 3.1875 | BU28: 2.888888889 | BV28: 2.333333333 | BW28: 3.5 | BX28: 2.666666667 | BY28: 2.666666667 | BZ28: 2.5 | CA28: 2.714285714 | CB28: 3.555555556 | CC28: 3.333333333 | CD28: 2.333333333 | CE28: 3 | CF28: 2 | CG28: 2.666666667 | CH28: 2.333333333 | CI28: 3.8 | CJ28: 3.2 | CK28: 3.5
A29: 29 | B29: 3 | C29: 3 | D29: 4 | E29: 4 | F29: 5 | M29: 3 | N29: 3 | O29: 3 | P29: 2 | Q29: 2 | R29: 3 | S29: 2 | T29: 2 | U29: 3 | V29: 2 | W29: 2 | X29: 2 | Y29: 2 | Z29: 4 | AA29: 2 | AB29: 4 | AC29: 3 | AD29: 2 | AE29: 2 | AF29: 2 | AG29: 3 | AH29: 2 | AI29: 3 | AJ29: 3 | AK29: 3 | AL29: 3 | AM29: 3 | AN29: 3 | AO29: 1 | AP29: 2 | AQ29: 3 | AR29: 5 | AS29: 3 | AT29: 3 | AU29: 2 | AV29: 2 | AW29: 1 | AX29: 2 | AY29: 3 | AZ29: 3 | BA29: 4 | BB29: 2 | BC29: 2 | BD29: 2 | BE29: 3 | BF29: 2 | BG29: 2 | BH29: 2 | BI29: 2 | BJ29: 2 | BK29: 3 | BL29: 3 | BM29: 4 | BN29: 3 | BO29: 4 | BP29: 2 | BQ29: 2 | BR29: 3 | BS29: 2.8 | BT29: 2.5625 | BU29: 2.444444444 | BV29: 2.555555556 | BW29: 2.571428571 | BX29: 2 | BY29: 3.666666667 | BZ29: 2.75 | CA29: 2.571428571 | CB29: 2.555555556 | CC29: 3 | CD29: 2.333333333 | CE29: 2 | CF29: 2.333333333 | CG29: 3 | CH29: 2.333333333 | CI29: 2.6 | CJ29: 2.6 | CK29: 2.5
A30: 30 | B30: 3 | C30: 3 | D30: 4 | E30: 4 | F30: 1 | M30: 2 | N30: 3 | O30: 3 | P30: 4 | Q30: 4 | R30: 2 | S30: 2 | T30: 2 | U30: 4 | V30: 4 | W30: 4 | X30: 3 | Y30: 3 | Z30: 4 | AA30: 4 | AB30: 4 | AC30: 2 | AD30: 2 | AE30: 4 | AF30: 3 | AG30: 3 | AH30: 4 | AI30: 4 | AJ30: 4 | AK30: 2 | AL30: 5 | AM30: 3 | AN30: 4 | AO30: 2 | AP30: 1 | AQ30: 5 | AR30: 4 | AS30: 1 | AT30: 2 | AU30: 2 | AV30: 3 | AW30: 3 | AX30: 4 | AY30: 3 | AZ30: 2 | BA30: 4 | BB30: 3 | BC30: 3 | BD30: 2 | BE30: 4 | BF30: 4 | BG30: 3 | BH30: 2 | BI30: 2 | BJ30: 3 | BK30: 3 | BL30: 3 | BM30: 4 | BN30: 2 | BO30: 2 | BP30: 3 | BQ30: 2 | BR30: 3 | BS30: 2.7 | BT30: 3.375 | BU30: 3 | BV30: 2.888888889 | BW30: 3 | BX30: 2.666666667 | BY30: 2.666666667 | BZ30: 2.75 | CA30: 3.714285714 | CB30: 3.111111111 | CC30: 3 | CD30: 3 | CE30: 3 | CF30: 3.666666667 | CG30: 2.333333333 | CH30: 2.666666667 | CI30: 3.6 | CJ30: 2.6 | CK30: 2.75
A31: 31 | B31: 1 | C31: 1 | D31: 4 | E31: 1 | F31: 4 | M31: 5 | N31: 4 | O31: 4 | P31: 3 | Q31: 5 | R31: 3 | S31: 3 | T31: 4 | U31: 3 | V31: 5 | W31: 5 | X31: 5 | Y31: 5 | Z31: 5 | AA31: 5 | AB31: 4 | AC31: 4 | AD31: 4 | AE31: 5 | AF31: 5 | AG31: 5 | AH31: 5 | AI31: 5 | AJ31: 5 | AK31: 5 | AL31: 4 | AM31: 3 | AN31: 5 | AO31: 5 | AP31: 5 | AQ31: 5 | AR31: 4 | AS31: 4 | AT31: 4 | AU31: 3 | AV31: 5 | AW31: 5 | AX31: 5 | AY31: 3 | AZ31: 5 | BA31: 5 | BB31: 4 | BC31: 4 | BD31: 3 | BE31: 3 | BF31: 5 | BG31: 4 | BH31: 4 | BI31: 5 | BJ31: 5 | BK31: 5 | BL31: 5 | BM31: 4 | BN31: 5 | BO31: 5 | BP31: 5 | BQ31: 5 | BR31: 5 | BS31: 4.9 | BT31: 4.8125 | BU31: 4.111111111 | BV31: 3.777777778 | BW31: 4.285714286 | BX31: 5 | BY31: 4.666666667 | BZ31: 5 | CA31: 4.857142857 | CB31: 4.777777778 | CC31: 4.666666667 | CD31: 3.333333333 | CE31: 4.333333333 | CF31: 4 | CG31: 4 | CH31: 3.333333333 | CI31: 4 | CJ31: 4.4 | CK31: 4.5
A32: 32 | B32: 3 | C32: 3 | D32: 4 | E32: 5 | F32: 5 | M32: 2 | N32: 1 | O32: 1 | P32: 1 | Q32: 2 | R32: 1 | S32: 1 | T32: 2 | U32: 1 | V32: 2 | W32: 2 | X32: 2 | Y32: 3 | Z32: 5 | AA32: 4 | AB32: 2 | AC32: 4 | AD32: 3 | AE32: 4 | AF32: 3 | AG32: 4 | AH32: 4 | AI32: 3 | AJ32: 1 | AK32: 2 | AL32: 2 | AM32: 3 | AN32: 4 | AO32: 3 | AP32: 3 | AQ32: 1 | AR32: 5 | AS32: 4 | AT32: 2 | AU32: 2 | AV32: 1 | AW32: 4 | AX32: 1 | AY32: 4 | AZ32: 1 | BA32: 5 | BB32: 2 | BC32: 2 | BD32: 1 | BE32: 2 | BF32: 3 | BG32: 2 | BH32: 2 | BI32: 2 | BJ32: 2 | BK32: 2 | BL32: 2 | BM32: 3 | BN32: 1 | BO32: 2 | BP32: 2 | BQ32: 1 | BR32: 1 | BS32: 1.8 | BT32: 3 | BU32: 2.222222222 | BV32: 1.333333333 | BW32: 2.785714286 | BX32: 2 | BY32: 2 | BZ32: 1.5 | CA32: 2.857142857 | CB32: 3.111111111 | CC32: 2.666666667 | CD32: 1.666666667 | CE32: 2.333333333 | CF32: 1.333333333 | CG32: 1.333333333 | CH32: 1.333333333 | CI32: 2.4 | CJ32: 3.2 | CK32: 2.75
A33: 33 | B33: 3 | C33: 3 | D33: 4 | E33: 5 | F33: 5 | M33: 2 | N33: 2 | O33: 2 | P33: 3 | Q33: 3 | R33: 2 | S33: 2 | T33: 2 | U33: 2 | V33: 3 | W33: 3 | X33: 4 | Y33: 3 | Z33: 3 | AA33: 3 | AB33: 4 | AC33: 3 | AD33: 3 | AE33: 3 | AF33: 3 | AG33: 3 | AH33: 3 | AI33: 2 | AJ33: 3 | AK33: 4 | AL33: 4 | AM33: 3 | AN33: 4 | AO33: 3 | AP33: 3 | AQ33: 3 | AR33: 5 | AS33: 3 | AT33: 3 | AU33: 5 | AV33: 2 | AW33: 4 | AX33: 3 | AY33: 1 | AZ33: 2 | BA33: 1 | BB33: 2 | BC33: 3 | BD33: 3 | BE33: 3 | BF33: 3 | BG33: 3 | BH33: 3 | BI33: 2 | BJ33: 1 | BK33: 2 | BL33: 2 | BM33: 2 | BN33: 2 | BO33: 2 | BP33: 2 | BQ33: 2 | BR33: 3 | BS33: 2 | BT33: 3.125 | BU33: 2.555555556 | BV33: 2.222222222 | BW33: 3.285714286 | BX33: 1.666666667 | BY33: 2 | BZ33: 2.25 | CA33: 3.285714286 | CB33: 3 | CC33: 1.666666667 | CD33: 3 | CE33: 3 | CF33: 2.666666667 | CG33: 2 | CH33: 2 | CI33: 3.8 | CJ33: 2.8 | CK33: 3.25
A34: 34 | B34: 3 | C34: 3 | D34: 4 | E34: 5 | F34: 5 | M34: 4 | N34: 4 | O34: 4 | P34: 3 | Q34: 4 | R34: 2 | S34: 4 | T34: 3 | U34: 4 | V34: 4 | W34: 4 | X34: 4 | Y34: 3 | Z34: 5 | AA34: 4 | AB34: 4 | AC34: 4 | AD34: 4 | AE34: 4 | AF34: 4 | AG34: 4 | AH34: 4 | AI34: 4 | AJ34: 3 | AK34: 5 | AL34: 5 | AM34: 4 | AN34: 5 | AO34: 4 | AP34: 5 | AQ34: 5 | AR34: 4 | AS34: 4 | AT34: 4 | AU34: 4 | AV34: 5 | AW34: 5 | AX34: 5 | AY34: 5 | AZ34: 3 | BA34: 5 | BB34: 4 | BC34: 4 | BD34: 3 | BE34: 3 | BF34: 4 | BG34: 4 | BH34: 4 | BI34: 4 | BJ34: 4 | BK34: 4 | BL34: 4 | BM34: 3 | BN34: 3 | BO34: 4 | BP34: 4 | BQ34: 4 | BR34: 4 | BS34: 3.8 | BT34: 4 | BU34: 3.777777778 | BV34: 3.555555556 | BW34: 4.571428571 | BX34: 4 | BY34: 3.333333333 | BZ34: 4 | CA34: 4 | CB34: 4 | CC34: 4 | CD34: 3.333333333 | CE34: 4 | CF34: 3.666666667 | CG34: 3.333333333 | CH34: 3.666666667 | CI34: 4.6 | CJ34: 4.6 | CK34: 4.5
A35: 35 | B35: 3 | C35: 3 | D35: 4 | E35: 5 | F35: 5 | M35: 3 | N35: 4 | O35: 1 | P35: 1 | Q35: 1 | R35: 1 | S35: 1 | T35: 3 | U35: 3 | V35: 5 | W35: 3 | X35: 3 | Y35: 3 | Z35: 5 | AA35: 5 | AB35: 3 | AC35: 5 | AD35: 5 | AE35: 5 | AF35: 5 | AG35: 5 | AH35: 5 | AI35: 4 | AJ35: 3 | AK35: 3 | AL35: 4 | AM35: 3 | AN35: 5 | AO35: 2 | AP35: 4 | AQ35: 5 | AR35: 5 | AS35: 4 | AT35: 4 | AU35: 5 | AV35: 5 | AW35: 1 | AX35: 1 | AY35: 2 | AZ35: 1 | BA35: 5 | BB35: 1 | BC35: 1 | BD35: 1 | BE35: 4 | BF35: 1 | BG35: 1 | BH35: 1 | BI35: 1 | BJ35: 3 | BK35: 4 | BL35: 2 | BM35: 3 | BN35: 2 | BO35: 2 | BP35: 2 | BQ35: 2 | BR35: 2 | BS35: 2.3 | BT35: 4.1875 | BU35: 1.777777778 | BV35: 2 | BW35: 3.571428571 | BX35: 2 | BY35: 2.333333333 | BZ35: 2.5 | CA35: 3.857142857 | CB35: 4.444444444 | CC35: 2.333333333 | CD35: 2 | CE35: 1 | CF35: 1 | CG35: 2.666666667 | CH35: 2.333333333 | CI35: 3.6 | CJ35: 3.6 | CK35: 3.5
A36: 36 | B36: 3 | C36: 3 | D36: 4 | E36: 5 | F36: 5 | M36: 4 | N36: 4 | O36: 3 | P36: 3 | Q36: 2 | R36: 1 | S36: 1 | T36: 1 | U36: 1 | V36: 5 | W36: 5 | X36: 1 | Y36: 1 | Z36: 5 | AA36: 3 | AB36: 4 | AC36: 3 | AD36: 3 | AE36: 4 | AF36: 3 | AG36: 4 | AH36: 4 | AI36: 4 | AJ36: 1 | AK36: 5 | AL36: 4 | AM36: 3 | AN36: 3 | AO36: 4 | AP36: 3 | AQ36: 4 | AR36: 4 | AS36: 5 | AT36: 4 | AU36: 4 | AV36: 5 | AW36: 4 | AX36: 3 | AY36: 4 | AZ36: 2 | BA36: 5 | BB36: 2 | BC36: 3 | BD36: 1 | BE36: 3 | BF36: 3 | BG36: 3 | BH36: 2 | BI36: 2 | BJ36: 2 | BK36: 1 | BL36: 4 | BM36: 3 | BN36: 1 | BO36: 2 | BP36: 2 | BQ36: 1 | BR36: 2 | BS36: 2 | BT36: 3.4375 | BU36: 2.666666667 | BV36: 2.222222222 | BW36: 3.857142857 | BX36: 2 | BY36: 2 | BZ36: 2 | CA36: 3.428571429 | CB36: 3.444444444 | CC36: 3 | CD36: 2.333333333 | CE36: 2.666666667 | CF36: 2.666666667 | CG36: 3 | CH36: 1 | CI36: 3.4 | CJ36: 4 | CK36: 4.25
A37: 37 | B37: 3 | C37: 3 | D37: 4 | E37: 5 | F37: 5 | M37: 2 | N37: 3 | O37: 2 | P37: 2 | Q37: 2 | R37: 2 | S37: 2 | T37: 2 | U37: 3 | V37: 3 | W37: 4 | X37: 2 | Y37: 3 | Z37: 4 | AA37: 3 | AB37: 3 | AC37: 3 | AD37: 3 | AE37: 3 | AF37: 4 | AG37: 3 | AH37: 4 | AI37: 2 | AJ37: 4 | AK37: 2 | AL37: 2 | AM37: 3 | AN37: 3 | AO37: 3 | AP37: 3 | AQ37: 2 | AR37: 3 | AS37: 3 | AT37: 3 | AU37: 3 | AV37: 4 | AW37: 3 | AX37: 5 | AY37: 4 | AZ37: 3 | BA37: 4 | BB37: 2 | BC37: 4 | BD37: 2 | BE37: 3 | BF37: 3 | BG37: 2 | BH37: 3 | BI37: 2 | BJ37: 4 | BK37: 4 | BL37: 4 | BM37: 3 | BN37: 3 | BO37: 4 | BP37: 3 | BQ37: 2 | BR37: 4 | BS37: 3.3 | BT37: 3.125 | BU37: 2.888888889 | BV37: 2.222222222 | BW37: 3.142857143 | BX37: 3 | BY37: 3.333333333 | BZ37: 3.5 | CA37: 3.142857143 | CB37: 3.111111111 | CC37: 3 | CD37: 3 | CE37: 2.666666667 | CF37: 2 | CG37: 2.333333333 | CH37: 2.333333333 | CI37: 3.2 | CJ37: 3.4 | CK37: 2.75
A38: 38 | B38: 3 | C38: 3 | D38: 4 | E38: 5 | F38: 5 | M38: 3 | N38: 5 | O38: 4 | P38: 4 | Q38: 3 | R38: 3 | S38: 3 | T38: 4 | U38: 4 | V38: 3 | W38: 1 | X38: 1 | Y38: 3 | Z38: 4 | AA38: 4 | AB38: 1 | AC38: 4 | AD38: 4 | AE38: 4 | AF38: 4 | AG38: 2 | AH38: 4 | AI38: 4 | AJ38: 5 | AK38: 4 | AL38: 4 | AM38: 3 | AN38: 4 | AO38: 3 | AP38: 5 | AQ38: 5 | AR38: 4 | AS38: 4 | AT38: 5 | AU38: 4 | AV38: 3 | AW38: 5 | AX38: 5 | AY38: 3 | AZ38: 4 | BA38: 4 | BB38: 4 | BC38: 4 | BD38: 4 | BE38: 4 | BF38: 4 | BG38: 4 | BH38: 4 | BI38: 4 | BJ38: 4 | BK38: 4 | BL38: 3 | BM38: 4 | BN38: 4 | BO38: 5 | BP38: 4 | BQ38: 4 | BR38: 4 | BS38: 4 | BT38: 3.25 | BU38: 4 | BV38: 3.666666667 | BW38: 4.071428571 | BX38: 4 | BY38: 4.333333333 | BZ38: 3.75 | CA38: 2.428571429 | CB38: 3.888888889 | CC38: 4 | CD38: 4 | CE38: 4 | CF38: 3.666666667 | CG38: 3.666666667 | CH38: 3.666666667 | CI38: 4 | CJ38: 3.6 | CK38: 4.75
A39: 39 | B39: 3 | C39: 3 | D39: 7 | E39: 5 | F39: 5 | M39: 2 | N39: 3 | O39: 2 | P39: 2 | Q39: 4 | R39: 2 | S39: 2 | T39: 3 | U39: 2 | V39: 4 | W39: 4 | X39: 3 | Y39: 3 | Z39: 4 | AA39: 4 | AB39: 4 | AC39: 4 | AD39: 3 | AE39: 3 | AF39: 4 | AG39: 3 | AH39: 4 | AI39: 4 | AJ39: 3 | AK39: 3 | AL39: 4 | AM39: 3 | AN39: 4 | AO39: 3 | AP39: 3 | AQ39: 3 | AR39: 4 | AS39: 5 | AT39: 4 | AU39: 3 | AV39: 5 | AW39: 5 | AX39: 4 | AY39: 4 | AZ39: 3 | BA39: 5 | BB39: 3 | BC39: 3 | BD39: 3 | BE39: 3 | BF39: 4 | BG39: 4 | BH39: 4 | BI39: 2 | BJ39: 3 | BK39: 3 | BL39: 4 | BM39: 4 | BN39: 2 | BO39: 3 | BP39: 3 | BQ39: 3 | BR39: 2 | BS39: 2.9 | BT39: 3.5625 | BU39: 3.555555556 | BV39: 2.444444444 | BW39: 3.857142857 | BX39: 2.666666667 | BY39: 3 | BZ39: 3 | CA39: 3.714285714 | CB39: 3.444444444 | CC39: 3.666666667 | CD39: 3 | CE39: 4 | CF39: 2.666666667 | CG39: 2.333333333 | CH39: 2.333333333 | CI39: 3.6 | CJ39: 3.8 | CK39: 4.25
A40: 40 | B40: 3 | C40: 3 | D40: 6 | E40: 4 | F40: 1 | M40: 3 | N40: 4 | O40: 4 | P40: 4 | Q40: 4 | R40: 2 | S40: 2 | T40: 4 | U40: 4 | V40: 3 | W40: 2 | X40: 2 | Y40: 2 | Z40: 3 | AA40: 3 | AB40: 4 | AC40: 3 | AD40: 3 | AE40: 3 | AF40: 2 | AG40: 3 | AH40: 4 | AI40: 4 | AJ40: 3 | AK40: 4 | AL40: 4 | AM40: 3 | AN40: 4 | AO40: 3 | AP40: 3 | AQ40: 4 | AR40: 4 | AS40: 5 | AT40: 3 | AU40: 2 | AV40: 5 | AW40: 4 | AX40: 4 | AY40: 4 | AZ40: 3 | BA40: 3 | BB40: 3 | BC40: 2 | BD40: 3 | BE40: 4 | BF40: 4 | BG40: 4 | BH40: 4 | BI40: 3 | BJ40: 2 | BK40: 3 | BL40: 3 | BM40: 4 | BN40: 3 | BO40: 3 | BP40: 4 | BQ40: 2 | BR40: 3 | BS40: 3 | BT40: 3 | BU40: 3.333333333 | BV40: 3.444444444 | BW40: 3.714285714 | BX40: 3 | BY40: 3.333333333 | BZ40: 2.75 | CA40: 2.714285714 | CB40: 3.222222222 | CC40: 3 | CD40: 3 | CE40: 4 | CF40: 4 | CG40: 3 | CH40: 3.333333333 | CI40: 3.4 | CJ40: 3.8 | CK40: 4
A41: 41 | B41: 3 | C41: 3 | D41: 6 | E41: 4 | F41: 2 | M41: 5 | N41: 5 | O41: 5 | P41: 5 | Q41: 5 | R41: 4 | S41: 4 | T41: 4 | U41: 5 | V41: 4 | W41: 5 | X41: 4 | Y41: 4 | Z41: 4 | AA41: 4 | AB41: 4 | AC41: 4 | AD41: 5 | AE41: 4 | AF41: 4 | AG41: 5 | AH41: 5 | AI41: 5 | AJ41: 4 | AK41: 4 | AL41: 4 | AM41: 3 | AN41: 4 | AO41: 3 | AP41: 5 | AQ41: 3 | AR41: 3 | AS41: 5 | AT41: 3 | AU41: 5 | AV41: 5 | AW41: 5 | AX41: 3 | AY41: 3 | AZ41: 5 | BA41: 5 | BB41: 4 | BC41: 4 | BD41: 3 | BE41: 4 | BF41: 4 | BG41: 4 | BH41: 4 | BI41: 3 | BJ41: 3 | BK41: 4 | BL41: 4 | BM41: 5 | BN41: 4 | BO41: 4 | BP41: 4 | BQ41: 4 | BR41: 4 | BS41: 3.9 | BT41: 4.3125 | BU41: 4.111111111 | BV41: 4.666666667 | BW41: 3.857142857 | BX41: 3.333333333 | BY41: 4.333333333 | BZ41: 4 | CA41: 4.142857143 | CB41: 4.444444444 | CC41: 4.666666667 | CD41: 3.666666667 | CE41: 4 | CF41: 5 | CG41: 4.666666667 | CH41: 4.333333333 | CI41: 3.8 | CJ41: 3.8 | CK41: 4
A42: 42 | B42: 3 | C42: 3 | D42: 6 | E42: 4 | F42: 5 | M42: 3 | N42: 3 | O42: 3 | P42: 4 | Q42: 4 | R42: 3 | S42: 3 | T42: 4 | U42: 4 | V42: 3 | W42: 3 | X42: 3 | Y42: 3 | Z42: 4 | AA42: 3 | AB42: 4 | AC42: 3 | AD42: 2 | AE42: 2 | AF42: 3 | AG42: 2 | AH42: 2 | AI42: 2 | AJ42: 2 | AK42: 2 | AL42: 5 | AM42: 3 | AN42: 3 | AO42: 4 | AP42: 3 | AQ42: 3 | AR42: 2 | AS42: 4 | AT42: 4 | AU42: 5 | AV42: 5 | AW42: 5 | AX42: 5 | AY42: 4 | AZ42: 1 | BA42: 2 | BB42: 4 | BC42: 2 | BD42: 3 | BE42: 3 | BF42: 3 | BG42: 3 | BH42: 3 | BI42: 2 | BJ42: 2 | BK42: 2 | BL42: 1 | BM42: 4 | BN42: 4 | BO42: 4 | BP42: 1 | BQ42: 3 | BR42: 1 | BS42: 2.4 | BT42: 2.6875 | BU42: 2.666666667 | BV42: 3.444444444 | BW42: 3.928571429 | BX42: 1.666666667 | BY42: 4 | BZ42: 1.75 | CA42: 3.285714286 | CB42: 2.222222222 | CC42: 2.333333333 | CD42: 2.666666667 | CE42: 3 | CF42: 3.666666667 | CG42: 3 | CH42: 3.666666667 | CI42: 4.2 | CJ42: 3.6 | CK42: 4
A43: 43 | B43: 3 | C43: 3 | D43: 6 | E43: 4 | F43: 5 | M43: 3 | N43: 3 | O43: 3 | P43: 4 | Q43: 3 | R43: 3 | S43: 3 | T43: 3 | U43: 3 | V43: 2 | W43: 4 | X43: 3 | Y43: 4 | Z43: 4 | AA43: 3 | AB43: 4 | AC43: 4 | AD43: 4 | AE43: 4 | AF43: 4 | AG43: 3 | AH43: 4 | AI43: 4 | AJ43: 3 | AK43: 2 | AL43: 5 | AM43: 4 | AN43: 4 | AO43: 3 | AP43: 5 | AQ43: 3 | AR43: 4 | AS43: 4 | AT43: 4 | AU43: 5 | AV43: 5 | AW43: 4 | AX43: 5 | AY43: 4 | AZ43: 3 | BA43: 4 | BB43: 4 | BC43: 3 | BD43: 3 | BE43: 3 | BF43: 3 | BG43: 4 | BH43: 3 | BI43: 3 | BJ43: 3 | BK43: 4 | BL43: 3 | BM43: 3 | BN43: 3 | BO43: 4 | BP43: 3 | BQ43: 3 | BR43: 3 | BS43: 3.2 | BT43: 3.5 | BU43: 3.333333333 | BV43: 3.111111111 | BW43: 4.214285714 | BX43: 3 | BY43: 3.333333333 | BZ43: 3.25 | CA43: 3.428571429 | CB43: 3.555555556 | CC43: 3.666666667 | CD43: 3 | CE43: 3.333333333 | CF43: 3.333333333 | CG43: 3 | CH43: 3 | CI43: 4.6 | CJ43: 4.2 | CK43: 3.75
A44: 44 | B44: 3 | C44: 3 | D44: 6 | E44: 4 | F44: 5 | M44: 3 | N44: 3 | O44: 3 | P44: 3 | Q44: 3 | R44: 3 | S44: 3 | T44: 3 | U44: 2 | V44: 3 | W44: 3 | X44: 2 | Y44: 2 | Z44: 4 | AA44: 3 | AB44: 4 | AC44: 3 | AD44: 3 | AE44: 2 | AF44: 2 | AG44: 3 | AH44: 3 | AI44: 2 | AJ44: 2 | AK44: 2 | AL44: 5 | AM44: 5 | AN44: 4 | AO44: 4 | AP44: 3 | AQ44: 4 | AR44: 5 | AS44: 5 | AT44: 4 | AU44: 5 | AV44: 2 | AW44: 1 | AX44: 4 | AY44: 4 | AZ44: 3 | BA44: 3 | BB44: 3 | BC44: 3 | BD44: 2 | BE44: 3 | BF44: 4 | BG44: 3 | BH44: 2 | BI44: 1 | BJ44: 3 | BK44: 2 | BL44: 1 | BM44: 3 | BN44: 2 | BO44: 2 | BP44: 3 | BQ44: 2 | BR44: 3 | BS44: 2.2 | BT44: 2.6875 | BU44: 2.888888889 | BV44: 2.888888889 | BW44: 3.928571429 | BX44: 2.333333333 | BY44: 2.333333333 | BZ44: 2 | CA44: 3 | CB44: 2.444444444 | CC44: 3 | CD44: 2.666666667 | CE44: 3 | CF44: 3 | CG44: 3 | CH44: 2.666666667 | CI44: 4.6 | CJ44: 3.6 | CK44: 3.5
A45: 45 | B45: 3 | C45: 3 | D45: 7 | E45: 6 | F45: 5 | M45: 3 | N45: 4 | O45: 5 | P45: 5 | Q45: 3 | R45: 3 | S45: 2 | T45: 2 | U45: 2 | V45: 2 | W45: 2 | X45: 4 | Y45: 4 | Z45: 3 | AA45: 4 | AB45: 4 | AC45: 4 | AD45: 2 | AE45: 2 | AF45: 3 | AG45: 3 | AH45: 3 | AI45: 2 | AJ45: 3 | AK45: 3 | AL45: 3 | AM45: 5 | AN45: 5 | AO45: 4 | AP45: 3 | AQ45: 3 | AR45: 3 | AS45: 5 | AT45: 3 | AU45: 2 | AV45: 5 | AW45: 5 | AX45: 5 | AY45: 3 | AZ45: 3 | BA45: 1 | BB45: 1 | BC45: 1 | BD45: 1 | BE45: 4 | BF45: 4 | BG45: 3 | BH45: 3 | BI45: 1 | BJ45: 1 | BK45: 5 | BL45: 3 | BM45: 3 | BN45: 2 | BO45: 2 | BP45: 2 | BQ45: 2 | BR45: 2 | BS45: 2.3 | BT45: 3 | BU45: 2.333333333 | BV45: 3.222222222 | BW45: 3.857142857 | BX45: 1.333333333 | BY45: 2.333333333 | BZ45: 3 | CA45: 3.285714286 | CB45: 2.777777778 | CC45: 1.666666667 | CD45: 2 | CE45: 3.333333333 | CF45: 4.333333333 | CG45: 3.333333333 | CH45: 2 | CI45: 4 | CJ45: 3.6 | CK45: 4
A46: 46 | B46: 3 | C46: 3 | D46: 5 | E46: 4 | F46: 5 | M46: 3 | N46: 4 | O46: 4 | P46: 4 | Q46: 4 | R46: 4 | S46: 4 | T46: 4 | U46: 4 | V46: 4 | W46: 4 | X46: 5 | Y46: 4 | Z46: 4 | AA46: 4 | AB46: 4 | AC46: 4 | AD46: 4 | AE46: 4 | AF46: 4 | AG46: 4 | AH46: 4 | AI46: 4 | AJ46: 4 | AK46: 4 | AL46: 4 | AM46: 5 | AN46: 5 | AO46: 5 | AP46: 3 | AQ46: 3 | AR46: 1 | AS46: 5 | AT46: 4 | AU46: 4 | AV46: 5 | AW46: 5 | AX46: 5 | AY46: 4 | AZ46: 4 | BA46: 5 | BB46: 3 | BC46: 3 | BD46: 3 | BE46: 5 | BF46: 5 | BG46: 5 | BH46: 5 | BI46: 5 | BJ46: 4 | BK46: 3 | BL46: 5 | BM46: 5 | BN46: 4 | BO46: 3 | BP46: 5 | BQ46: 3 | BR46: 5 | BS46: 4.2 | BT46: 4.0625 | BU46: 4.222222222 | BV46: 3.888888889 | BW46: 4.142857143 | BX46: 4.666666667 | BY46: 4 | BZ46: 4 | CA46: 4.142857143 | CB46: 4 | CC46: 4 | CD46: 3.666666667 | CE46: 5 | CF46: 4 | CG46: 3.666666667 | CH46: 4 | CI46: 4.6 | CJ46: 3.6 | CK46: 4.25
A47: 47 | B47: 3 | C47: 3 | D47: 5 | E47: 3 | F47: 4 | M47: 2 | N47: 4 | O47: 3 | P47: 3 | Q47: 4 | R47: 2 | S47: 2 | T47: 3 | U47: 2 | V47: 4 | W47: 4 | X47: 3 | Y47: 3 | Z47: 4 | AA47: 4 | AB47: 3 | AC47: 2 | AD47: 3 | AE47: 5 | AF47: 4 | AG47: 4 | AH47: 5 | AI47: 4 | AJ47: 3 | AK47: 2 | AL47: 5 | AM47: 5 | AN47: 5 | AO47: 3 | AP47: 4 | AQ47: 3 | AR47: 5 | AS47: 4 | AT47: 3 | AU47: 5 | AV47: 5 | AW47: 4 | AX47: 4 | AY47: 3 | AZ47: 4 | BA47: 2 | BB47: 2 | BC47: 2 | BD47: 2 | BE47: 3 | BF47: 4 | BG47: 4 | BH47: 4 | BI47: 3 | BJ47: 4 | BK47: 4 | BL47: 3 | BM47: 4 | BN47: 2 | BO47: 4 | BP47: 3 | BQ47: 2 | BR47: 2 | BS47: 3.1 | BT47: 3.5625 | BU47: 3 | BV47: 2.777777778 | BW47: 4.142857143 | BX47: 3.333333333 | BY47: 3.333333333 | BZ47: 2.75 | CA47: 3.571428571 | CB47: 3.555555556 | CC47: 2.666666667 | CD47: 2.333333333 | CE47: 4 | CF47: 3.333333333 | CG47: 2.666666667 | CH47: 2.333333333 | CI47: 4.8 | CJ47: 4 | CK47: 3.5
A48: 48 | B48: 3 | C48: 3 | D48: 5 | E48: 6 | F48: 5 | M48: 1 | N48: 5 | O48: 3 | P48: 4 | Q48: 5 | R48: 1 | S48: 2 | T48: 4 | U48: 1 | V48: 5 | W48: 5 | X48: 5 | Y48: 5 | Z48: 4 | AA48: 5 | AB48: 4 | AC48: 5 | AD48: 5 | AE48: 5 | AF48: 5 | AG48: 5 | AH48: 5 | AI48: 3 | AJ48: 1 | AK48: 1 | AL48: 4 | AM48: 3 | AN48: 4 | AO48: 5 | AP48: 5 | AQ48: 4 | AR48: 5 | AS48: 5 | AT48: 4 | AU48: 4 | AV48: 5 | AW48: 5 | AX48: 5 | AY48: 4 | AZ48: 3 | BA48: 5 | BB48: 4 | BC48: 4 | BD48: 1 | BE48: 1 | BF48: 5 | BG48: 3 | BH48: 5 | BI48: 4 | BJ48: 3 | BK48: 2 | BL48: 2 | BM48: 5 | BN48: 2 | BO48: 2 | BP48: 3 | BQ48: 3 | BR48: 3 | BS48: 2.9 | BT48: 4.25 | BU48: 3.444444444 | BV48: 2.888888889 | BW48: 4.428571429 | BX48: 3.333333333 | BY48: 3 | BZ48: 2.5 | CA48: 4.714285714 | CB48: 3.888888889 | CC48: 4 | CD48: 2 | CE48: 4.333333333 | CF48: 4 | CG48: 2.333333333 | CH48: 2.333333333 | CI48: 4 | CJ48: 4.8 | CK48: 4.5
A49: 49 | B49: 3 | C49: 3 | D49: 5 | E49: 3 | F49: 5 | M49: 2 | N49: 5 | O49: 3 | P49: 3 | Q49: 5 | R49: 4 | S49: 3 | T49: 4 | U49: 2 | V49: 4 | W49: 3 | X49: 3 | Y49: 3 | Z49: 4 | AA49: 3 | AB49: 3 | AC49: 4 | AD49: 3 | AE49: 3 | AF49: 3 | AG49: 3 | AH49: 3 | AI49: 4 | AJ49: 3 | AK49: 3 | AL49: 4 | AM49: 3 | AN49: 5 | AO49: 5 | AP49: 5 | AQ49: 3 | AR49: 4 | AS49: 4 | AT49: 4 | AU49: 4 | AV49: 3 | AW49: 5 | AX49: 4 | AY49: 3 | AZ49: 3 | BA49: 4 | BB49: 2 | BC49: 4 | BD49: 3 | BE49: 3 | BF49: 3 | BG49: 3 | BH49: 3 | BI49: 3 | BJ49: 3 | BK49: 3 | BL49: 3 | BM49: 4 | BN49: 3 | BO49: 3 | BP49: 4 | BQ49: 4 | BR49: 3 | BS49: 3.3 | BT49: 3.25 | BU49: 3.111111111 | BV49: 3.444444444 | BW49: 4 | BX49: 3.333333333 | BY49: 3.333333333 | BZ49: 3.25 | CA49: 3.285714286 | CB49: 3.222222222 | CC49: 3 | CD49: 3.333333333 | CE49: 3 | CF49: 3.666666667 | CG49: 3.666666667 | CH49: 3 | CI49: 4 | CJ49: 4 | CK49: 4
A50: 50 | B50: 3 | C50: 3 | D50: 5 | E50: 6 | F50: 5 | M50: 3 | N50: 5 | O50: 5 | P50: 3 | Q50: 4 | R50: 4 | S50: 3 | T50: 2 | U50: 2 | V50: 5 | W50: 4 | X50: 4 | Y50: 4 | Z50: 5 | AA50: 5 | AB50: 5 | AC50: 5 | AD50: 5 | AE50: 5 | AF50: 5 | AG50: 5 | AH50: 5 | AI50: 4 | AJ50: 1 | AK50: 3 | AL50: 5 | AM50: 5 | AN50: 4 | AO50: 5 | AP50: 5 | AQ50: 4 | AR50: 5 | AS50: 4 | AT50: 4 | AU50: 4 | AV50: 5 | AW50: 5 | AX50: 5 | AY50: 4 | AZ50: 2 | BA50: 5 | BB50: 3 | BC50: 3 | BD50: 4 | BE50: 4 | BF50: 1 | BG50: 2 | BH50: 4 | BI50: 2 | BJ50: 2 | BK50: 2 | BL50: 2 | BM50: 5 | BN50: 2 | BO50: 2 | BP50: 2 | BQ50: 1 | BR50: 2 | BS50: 2.2 | BT50: 4.375 | BU50: 3.111111111 | BV50: 3.444444444 | BW50: 4.571428571 | BX50: 2 | BY50: 3 | BZ50: 1.75 | CA50: 4.571428571 | CB50: 4.222222222 | CC50: 3.333333333 | CD50: 3.666666667 | CE50: 2.333333333 | CF50: 4 | CG50: 4 | CH50: 2.333333333 | CI50: 4.6 | CJ50: 4.8 | CK50: 4.25
A51: 51 | B51: 3 | C51: 3 | D51: 5 | E51: 3 | F51: 5 | M51: 4 | N51: 4 | O51: 4 | P51: 4 | Q51: 4 | R51: 4 | S51: 4 | T51: 3 | U51: 4 | V51: 4 | W51: 4 | X51: 5 | Y51: 5 | Z51: 5 | AA51: 4 | AB51: 5 | AC51: 5 | AD51: 5 | AE51: 5 | AF51: 4 | AG51: 4 | AH51: 4 | AI51: 5 | AJ51: 5 | AK51: 4 | AL51: 4 | AM51: 4 | AN51: 5 | AO51: 3 | AP51: 4 | AQ51: 3 | AR51: 4 | AS51: 5 | AT51: 4 | AU51: 3 | AV51: 5 | AW51: 5 | AX51: 4 | AY51: 3 | AZ51: 4 | BA51: 5 | BB51: 4 | BC51: 4 | BD51: 4 | BE51: 5 | BF51: 5 | BG51: 4 | BH51: 5 | BI51: 4 | BJ51: 4 | BK51: 4 | BL51: 4 | BM51: 5 | BN51: 4 | BO51: 4 | BP51: 4 | BQ51: 4 | BR51: 4 | BS51: 4.1 | BT51: 4.5625 | BU51: 4.444444444 | BV51: 3.888888889 | BW51: 4 | BX51: 4 | BY51: 4.333333333 | BZ51: 4 | CA51: 4.571428571 | CB51: 4.555555556 | CC51: 4.333333333 | CD51: 4.333333333 | CE51: 4.666666667 | CF51: 4 | CG51: 4 | CH51: 3.666666667 | CI51: 4 | CJ51: 3.8 | CK51: 4.25
A52: 52 | B52: 3 | C52: 3 | D52: 5 | E52: 3 | F52: 2 | M52: 1 | N52: 1 | O52: 1 | P52: 1 | Q52: 1 | R52: 1 | S52: 1 | T52: 1 | U52: 1 | V52: 1 | W52: 1 | X52: 1 | Y52: 1 | Z52: 4 | AA52: 3 | AB52: 3 | AC52: 3 | AD52: 3 | AE52: 3 | AF52: 3 | AG52: 4 | AH52: 4 | AI52: 4 | AJ52: 2 | AK52: 3 | AL52: 2 | AM52: 3 | AN52: 4 | AO52: 3 | AP52: 4 | AQ52: 3 | AR52: 2 | AS52: 5 | AT52: 4 | AU52: 4 | AV52: 3 | AW52: 4 | AX52: 3 | AY52: 3 | AZ52: 1 | BA52: 3 | BB52: 1 | BC52: 2 | BD52: 2 | BE52: 2 | BF52: 1 | BG52: 1 | BH52: 1 | BI52: 1 | BJ52: 1 | BK52: 1 | BL52: 1 | BM52: 1 | BN52: 1 | BO52: 1 | BP52: 1 | BQ52: 1 | BR52: 1 | BS52: 1 | BT52: 2.6875 | BU52: 1.555555556 | BV52: 1 | BW52: 3.357142857 | BX52: 1 | BY52: 1 | BZ52: 1 | CA52: 2 | CB52: 3.222222222 | CC52: 1.666666667 | CD52: 2 | CE52: 1 | CF52: 1 | CG52: 1 | CH52: 1 | CI52: 3.2 | CJ52: 3 | CK52: 4
A53: 53 | B53: 3 | C53: 3 | D53: 5 | E53: 3 | F53: 4 | M53: 1 | N53: 2 | O53: 3 | P53: 3 | Q53: 2 | R53: 2 | S53: 2 | T53: 2 | U53: 2 | V53: 3 | W53: 3 | X53: 1 | Y53: 2 | Z53: 3 | AA53: 2 | AB53: 2 | AC53: 4 | AD53: 4 | AE53: 4 | AF53: 4 | AG53: 4 | AH53: 3 | AI53: 4 | AJ53: 3 | AK53: 2 | AL53: 3 | AM53: 3 | AN53: 3 | AO53: 4 | AP53: 3 | AQ53: 2 | AR53: 3 | AS53: 1 | AT53: 3 | AU53: 4 | AV53: 1 | AW53: 1 | AX53: 5 | AY53: 3 | AZ53: 2 | BA53: 2 | BB53: 1 | BC53: 1 | BD53: 1 | BE53: 2 | BF53: 2 | BG53: 2 | BH53: 2 | BI53: 2 | BJ53: 3 | BK53: 2 | BL53: 2 | BM53: 2 | BN53: 2 | BO53: 1 | BP53: 2 | BQ53: 2 | BR53: 3 | BS53: 2.1 | BT53: 3 | BU53: 1.666666667 | BV53: 2.111111111 | BW53: 2.785714286 | BX53: 2.333333333 | BY53: 1.666666667 | BZ53: 2.25 | CA53: 2.285714286 | CB53: 3.555555556 | CC53: 1.666666667 | CD53: 1.333333333 | CE53: 2 | CF53: 2.666666667 | CG53: 1.666666667 | CH53: 2 | CI53: 3.6 | CJ53: 2.8 | CK53: 1.75
A54: 54 | B54: 3 | C54: 3 | D54: 5 | E54: 3 | F54: 5 | M54: 1 | N54: 2 | O54: 1 | P54: 1 | Q54: 4 | R54: 1 | S54: 1 | T54: 4 | U54: 1 | V54: 3 | W54: 2 | X54: 2 | Y54: 2 | Z54: 2 | AA54: 2 | AB54: 2 | AC54: 5 | AD54: 1 | AE54: 1 | AF54: 3 | AG54: 5 | AH54: 5 | AI54: 3 | AJ54: 1 | AK54: 3 | AL54: 5 | AM54: 3 | AN54: 4 | AO54: 4 | AP54: 5 | AQ54: 5 | AR54: 4 | AS54: 5 | AT54: 4 | AU54: 5 | AV54: 3 | AW54: 5 | AX54: 5 | AY54: 5 | AZ54: 1 | BA54: 1 | BB54: 1 | BC54: 1 | BD54: 1 | BE54: 1 | BF54: 3 | BG54: 2 | BH54: 2 | BI54: 1 | BJ54: 1 | BK54: 1 | BL54: 1 | BM54: 2 | BN54: 1 | BO54: 1 | BP54: 1 | BQ54: 1 | BR54: 1 | BS54: 1.1 | BT54: 2.625 | BU54: 1.444444444 | BV54: 1.777777778 | BW54: 4.428571429 | BX54: 1 | BY54: 1.333333333 | BZ54: 1 | CA54: 2.142857143 | CB54: 3 | CC54: 1 | CD54: 1 | CE54: 2.333333333 | CF54: 2 | CG54: 1.333333333 | CH54: 2 | CI54: 4.4 | CJ54: 4.2 | CK54: 4.75
A55: 55 | B55: 3 | C55: 3 | D55: 5 | E55: 3 | F55: 2 | M55: 1 | N55: 2 | O55: 1 | P55: 2 | Q55: 2 | R55: 1 | S55: 1 | T55: 2 | U55: 1 | V55: 1 | W55: 1 | X55: 2 | Y55: 3 | Z55: 3 | AA55: 3 | AB55: 3 | AC55: 4 | AD55: 3 | AE55: 4 | AF55: 3 | AG55: 3 | AH55: 3 | AI55: 3 | AJ55: 1 | AK55: 2 | AL55: 4 | AM55: 3 | AN55: 4 | AO55: 1 | AP55: 3 | AQ55: 2 | AR55: 3 | AS55: 2 | AT55: 2 | AU55: 5 | AV55: 2 | AW55: 4 | AX55: 5 | AY55: 2 | AZ55: 1 | BA55: 2 | BB55: 2 | BC55: 1 | BD55: 1 | BE55: 1 | BF55: 2 | BG55: 2 | BH55: 1 | BI55: 1 | BJ55: 1 | BK55: 1 | BL55: 1 | BM55: 1 | BN55: 1 | BO55: 1 | BP55: 1 | BQ55: 1 | BR55: 1 | BS55: 1 | BT55: 2.625 | BU55: 1.444444444 | BV55: 1.444444444 | BW55: 3 | BX55: 1 | BY55: 1 | BZ55: 1 | CA55: 2.285714286 | CB55: 2.888888889 | CC55: 1.666666667 | CD55: 1 | CE55: 1.666666667 | CF55: 1.666666667 | CG55: 1.333333333 | CH55: 1.333333333 | CI55: 4.2 | CJ55: 2.2 | CK55: 2.5
A56: 56 | B56: 3 | C56: 3 | D56: 5 | E56: 2 | F56: 5 | M56: 3 | N56: 5 | O56: 5 | P56: 4 | Q56: 5 | R56: 4 | S56: 3 | T56: 3 | U56: 4 | V56: 4 | W56: 5 | X56: 5 | Y56: 5 | Z56: 5 | AA56: 5 | AB56: 5 | AC56: 5 | AD56: 5 | AE56: 5 | AF56: 5 | AG56: 5 | AH56: 5 | AI56: 4 | AJ56: 4 | AK56: 4 | AL56: 4 | AM56: 3 | AN56: 5 | AO56: 5 | AP56: 5 | AQ56: 3 | AR56: 4 | AS56: 5 | AT56: 4 | AU56: 5 | AV56: 5 | AW56: 5 | AX56: 5 | AY56: 5 | AZ56: 3 | BA56: 3 | BB56: 2 | BC56: 3 | BD56: 4 | BE56: 3 | BF56: 3 | BG56: 4 | BH56: 4 | BI56: 2 | BJ56: 3 | BK56: 3 | BL56: 3 | BM56: 4 | BN56: 4 | BO56: 3 | BP56: 4 | BQ56: 4 | BR56: 3 | BS56: 3.3 | BT56: 4.75 | BU56: 3.222222222 | BV56: 4 | BW56: 4.5 | BX56: 3 | BY56: 3.666666667 | BZ56: 3.25 | CA56: 4.857142857 | CB56: 4.666666667 | CC56: 2.666666667 | CD56: 3.333333333 | CE56: 3.666666667 | CF56: 4.666666667 | CG56: 4 | CH56: 3.333333333 | CI56: 4.4 | CJ56: 4.8 | CK56: 4.25
A57: 57 | B57: 3 | C57: 3 | D57: 5 | E57: 2 | F57: 5 | M57: 2 | N57: 3 | O57: 3 | P57: 3 | Q57: 4 | R57: 3 | S57: 3 | T57: 3 | U57: 3 | V57: 5 | W57: 4 | X57: 3 | Y57: 3 | Z57: 4 | AA57: 4 | AB57: 3 | AC57: 4 | AD57: 4 | AE57: 4 | AF57: 4 | AG57: 4 | AH57: 4 | AI57: 4 | AJ57: 3 | AK57: 2 | AL57: 5 | AM57: 3 | AN57: 4 | AO57: 3 | AP57: 3 | AQ57: 3 | AR57: 5 | AS57: 4 | AT57: 4 | AU57: 3 | AV57: 5 | AW57: 4 | AX57: 3 | AY57: 4 | AZ57: 3 | BA57: 4 | BB57: 3 | BC57: 3 | BD57: 3 | BE57: 3 | BF57: 4 | BG57: 2 | BH57: 3 | BI57: 2 | BJ57: 2 | BK57: 2 | BL57: 2 | BM57: 3 | BN57: 3 | BO57: 3 | BP57: 3 | BQ57: 3 | BR57: 3 | BS57: 2.6 | BT57: 3.6875 | BU57: 3.111111111 | BV57: 3 | BW57: 3.785714286 | BX57: 2.333333333 | BY57: 3 | BZ57: 2.5 | CA57: 3.714285714 | CB57: 3.666666667 | CC57: 3.333333333 | CD57: 3 | CE57: 3 | CF57: 3.333333333 | CG57: 2.666666667 | CH57: 3 | CI57: 3.6 | CJ57: 4 | CK57: 3.75
A58: 58 | B58: 3 | C58: 3 | D58: 5 | E58: 2 | F58: 5 | M58: 2 | N58: 2 | O58: 1 | P58: 2 | Q58: 2 | R58: 2 | S58: 2 | T58: 2 | U58: 2 | V58: 5 | W58: 4 | X58: 3 | Y58: 3 | Z58: 5 | AA58: 2 | AB58: 5 | AC58: 4 | AD58: 3 | AE58: 5 | AF58: 5 | AG58: 5 | AH58: 5 | AI58: 4 | AJ58: 2 | AK58: 2 | AL58: 5 | AM58: 3 | AN58: 4 | AO58: 4 | AP58: 5 | AQ58: 4 | AR58: 4 | AS58: 4 | AT58: 4 | AU58: 5 | AV58: 5 | AW58: 5 | AX58: 4 | AY58: 3 | AZ58: 2 | BA58: 5 | BB58: 4 | BC58: 4 | BD58: 3 | BE58: 5 | BF58: 4 | BG58: 3 | BH58: 3 | BI58: 4 | BJ58: 2 | BK58: 4 | BL58: 2 | BM58: 2 | BN58: 2 | BO58: 4 | BP58: 4 | BQ58: 4 | BR58: 3 | BS58: 3.1 | BT58: 3.875 | BU58: 3.666666667 | BV58: 1.888888889 | BW58: 4.214285714 | BX58: 3.333333333 | BY58: 2.666666667 | BZ58: 3.25 | CA58: 3.857142857 | CB58: 3.888888889 | CC58: 3.666666667 | CD58: 4 | CE58: 3.333333333 | CF58: 1.666666667 | CG58: 2 | CH58: 2 | CI58: 4.2 | CJ58: 4.2 | CK58: 4.25
A59: 59 | B59: 3 | C59: 3 | D59: 5 | E59: 2 | F59: 5 | M59: 2 | N59: 3 | O59: 3 | P59: 2 | Q59: 3 | R59: 1 | S59: 1 | T59: 2 | U59: 2 | V59: 3 | W59: 3 | X59: 3 | Y59: 3 | Z59: 3 | AA59: 3 | AB59: 3 | AC59: 3 | AD59: 3 | AE59: 4 | AF59: 4 | AG59: 5 | AH59: 5 | AI59: 2 | AJ59: 2 | AK59: 1 | AL59: 5 | AM59: 3 | AN59: 4 | AO59: 3 | AP59: 3 | AQ59: 3 | AR59: 5 | AS59: 5 | AT59: 4 | AU59: 3 | AV59: 5 | AW59: 5 | AX59: 3 | AY59: 3 | AZ59: 1 | BA59: 2 | BB59: 1 | BC59: 1 | BD59: 1 | BE59: 1 | BF59: 1 | BG59: 1 | BH59: 1 | BI59: 1 | BJ59: 1 | BK59: 1 | BL59: 1 | BM59: 1 | BN59: 1 | BO59: 1 | BP59: 1 | BQ59: 1 | BR59: 1 | BS59: 1 | BT59: 3.125 | BU59: 1.111111111 | BV59: 2.111111111 | BW59: 3.857142857 | BX59: 1 | BY59: 1 | BZ59: 1 | CA59: 3 | CB59: 3.222222222 | CC59: 1.333333333 | CD59: 1 | CE59: 1 | CF59: 2.666666667 | CG59: 2 | CH59: 1.666666667 | CI59: 3.6 | CJ59: 3.8 | CK59: 4.25
A60: 60 | B60: 999 | C60: 999 | D60: 7 | E60: 5 | F60: 1 | M60: 3 | N60: 4 | O60: 4 | P60: 3 | Q60: 3 | R60: 3 | S60: 3 | T60: 4 | U60: 4 | V60: 3 | W60: 3 | X60: 3 | Y60: 3 | Z60: 4 | AA60: 3 | AB60: 3 | AC60: 3 | AD60: 3 | AE60: 3 | AF60: 3 | AG60: 3 | AH60: 3 | AI60: 3 | AJ60: 4 | AK60: 4 | AL60: 4 | AM60: 3 | AN60: 5 | AO60: 2 | AP60: 3 | AQ60: 3 | AR60: 4 | AS60: 5 | AT60: 3 | AU60: 4 | AV60: 5 | AW60: 3 | AX60: 5 | AY60: 3 | AZ60: 3 | BA60: 5 | BB60: 4 | BC60: 4 | BD60: 3 | BE60: 4 | BF60: 4 | BG60: 4 | BH60: 4 | BI60: 3 | BJ60: 3 | BK60: 3 | BL60: 4 | BM60: 3 | BN60: 4 | BO60: 4 | BP60: 3 | BQ60: 4 | BR60: 4 | BS60: 3.5 | BT60: 3.1875 | BU60: 3.888888889 | BV60: 3.444444444 | BW60: 3.714285714 | BX60: 3 | BY60: 3.666666667 | BZ60: 3.75 | CA60: 3.142857143 | CB60: 3.222222222 | CC60: 4 | CD60: 3.666666667 | CE60: 4 | CF60: 3.333333333 | CG60: 3.333333333 | CH60: 3.666666667 | CI60: 4.2 | CJ60: 3.4 | CK60: 3.5
A61: 61 | B61: 999 | C61: 999 | D61: 7 | E61: 5 | F61: 1 | M61: 3 | N61: 4 | O61: 4 | P61: 3 | Q61: 5 | R61: 3 | S61: 2 | T61: 4 | U61: 2 | V61: 3 | W61: 4 | X61: 2 | Y61: 3 | Z61: 2 | AA61: 2 | AB61: 3 | AC61: 4 | AD61: 4 | AE61: 4 | AF61: 3 | AG61: 2 | AH61: 4 | AI61: 4 | AJ61: 3 | AK61: 2 | AL61: 4 | AM61: 3 | AN61: 4 | AO61: 3 | AP61: 4 | AQ61: 5 | AR61: 4 | AS61: 5 | AT61: 4 | AU61: 4 | AV61: 5 | AW61: 4 | AX61: 5 | AY61: 3 | AZ61: 4 | BA61: 3 | BB61: 4 | BC61: 3 | BD61: 2 | BE61: 3 | BF61: 5 | BG61: 4 | BH61: 3 | BI61: 2 | BJ61: 3 | BK61: 3 | BL61: 3 | BM61: 4 | BN61: 3 | BO61: 4 | BP61: 3 | BQ61: 4 | BR61: 4 | BS61: 3.3 | BT61: 3.0625 | BU61: 3.444444444 | BV61: 3.333333333 | BW61: 4.071428571 | BX61: 2.666666667 | BY61: 3.666666667 | BZ61: 3.5 | CA61: 2.714285714 | CB61: 3.333333333 | CC61: 3.666666667 | CD61: 2.666666667 | CE61: 4 | CF61: 4 | CG61: 3.333333333 | CH61: 2.666666667 | CI61: 4 | CJ61: 3.8 | CK61: 4.5
A62: 62 | B62: 3 | C62: 3 | D62: 7 | E62: 5 | F62: 5 | M62: 3 | N62: 4 | O62: 4 | P62: 4 | Q62: 5 | R62: 3 | S62: 3 | T62: 4 | U62: 3 | V62: 4 | W62: 4 | X62: 3 | Y62: 3 | Z62: 4 | AA62: 3 | AB62: 3 | AC62: 4 | AD62: 3 | AE62: 4 | AF62: 4 | AG62: 3 | AH62: 5 | AI62: 4 | AJ62: 5 | AK62: 5 | AL62: 5 | AM62: 3 | AN62: 5 | AO62: 4 | AP62: 4 | AQ62: 5 | AR62: 4 | AS62: 5 | AT62: 4 | AU62: 4 | AV62: 3 | AW62: 3 | AX62: 4 | AY62: 4 | AZ62: 3 | BA62: 5 | BB62: 4 | BC62: 4 | BD62: 3 | BE62: 4 | BF62: 5 | BG62: 5 | BH62: 4 | BI62: 4 | BJ62: 4 | BK62: 5 | BL62: 4 | BM62: 4 | BN62: 3 | BO62: 4 | BP62: 4 | BQ62: 4 | BR62: 5 | BS62: 4.1 | BT62: 3.8125 | BU62: 4.111111111 | BV62: 3.666666667 | BW62: 4.071428571 | BX62: 4 | BY62: 3.666666667 | BZ62: 4.5 | CA62: 3.428571429 | CB62: 4.111111111 | CC62: 4 | CD62: 3.666666667 | CE62: 4.666666667 | CF62: 4.333333333 | CG62: 3.333333333 | CH62: 3.333333333 | CI62: 4.2 | CJ62: 3.8 | CK62: 4.25
A63: 63 | B63: 3 | C63: 3 | D63: 7 | E63: 5 | F63: 1 | M63: 2 | N63: 4 | O63: 5 | P63: 5 | Q63: 5 | R63: 2 | S63: 3 | T63: 4 | U63: 4 | V63: 2 | W63: 4 | X63: 3 | Y63: 3 | Z63: 3 | AA63: 3 | AB63: 4 | AC63: 3 | AD63: 2 | AE63: 3 | AF63: 2 | AG63: 3 | AH63: 2 | AI63: 3 | AJ63: 4 | AK63: 4 | AL63: 4 | AM63: 3 | AN63: 5 | AO63: 3 | AP63: 5 | AQ63: 5 | AR63: 3 | AS63: 4 | AT63: 4 | AU63: 4 | AV63: 5 | AW63: 5 | AX63: 4 | AY63: 3 | AZ63: 2 | BA63: 5 | BB63: 5 | BC63: 3 | BD63: 2 | BE63: 3 | BF63: 5 | BG63: 3 | BH63: 4 | BI63: 2 | BJ63: 4 | BK63: 3 | BL63: 4 | BM63: 5 | BN63: 3 | BO63: 2 | BP63: 3 | BQ63: 2 | BR63: 3 | BS63: 3.1 | BT63: 3 | BU63: 3.555555556 | BV63: 3.777777778 | BW63: 4.071428571 | BX63: 3 | BY63: 3.333333333 | BZ63: 3 | CA63: 3.142857143 | CB63: 2.888888889 | CC63: 4 | CD63: 2.666666667 | CE63: 4 | CF63: 5 | CG63: 2.666666667 | CH63: 3.666666667 | CI63: 4 | CJ63: 3.8 | CK63: 4.5
A64: 64 | B64: 3 | C64: 3 | D64: 8 | E64: 3 | F64: 5 | M64: 5 | N64: 4 | O64: 4 | P64: 3 | Q64: 3 | R64: 3 | S64: 4 | T64: 3 | U64: 4 | V64: 5 | W64: 5 | X64: 4 | Y64: 4 | Z64: 5 | AA64: 4 | AB64: 4 | AC64: 3 | AD64: 4 | AE64: 3 | AF64: 5 | AG64: 4 | AH64: 3 | AI64: 4 | AJ64: 3 | AK64: 3 | AL64: 4 | AM64: 4 | AN64: 5 | AO64: 4 | AP64: 5 | AQ64: 5 | AR64: 4 | AS64: 4 | AT64: 4 | AU64: 5 | AV64: 4 | AW64: 5 | AX64: 4 | AY64: 4 | AZ64: 3 | BA64: 2 | BB64: 4 | BC64: 2 | BD64: 3 | BE64: 4 | BF64: 2 | BG64: 3 | BH64: 3 | BI64: 2 | BJ64: 4 | BK64: 3 | BL64: 2 | BM64: 4 | BN64: 2 | BO64: 3 | BP64: 3 | BQ64: 3 | BR64: 3 | BS64: 2.9 | BT64: 3.9375 | BU64: 2.888888889 | BV64: 3.666666667 | BW64: 4.357142857 | BX64: 3 | BY64: 3 | BZ64: 2.75 | CA64: 4.428571429 | CB64: 3.555555556 | CC64: 3 | CD64: 3 | CE64: 2.666666667 | CF64: 3.333333333 | CG64: 4 | CH64: 3.666666667 | CI64: 4.4 | CJ64: 4.2 | CK64: 4.5
A65: 66 | B65: 3 | C65: 3 | D65: 8 | E65: 5 | F65: 1 | M65: 3 | N65: 5 | O65: 3 | P65: 3 | Q65: 2 | R65: 5 | S65: 5 | T65: 5 | U65: 3 | V65: 3 | W65: 3 | X65: 3 | Y65: 3 | Z65: 5 | AA65: 3 | AB65: 5 | AC65: 5 | AD65: 5 | AE65: 3 | AF65: 2 | AG65: 5 | AH65: 5 | AI65: 5 | AJ65: 5 | AK65: 5 | AL65: 4 | AM65: 3 | AN65: 3 | AO65: 3 | AP65: 4 | AQ65: 3 | AR65: 4 | AS65: 4 | AT65: 5 | AU65: 5 | AV65: 5 | AW65: 5 | AX65: 4 | AY65: 3 | AZ65: 5 | BA65: 5 | BB65: 5 | BC65: 5 | BD65: 3 | BE65: 3 | BF65: 5 | BG65: 5 | BH65: 5 | BI65: 3 | BJ65: 5 | BK65: 3 | BL65: 5 | BM65: 5 | BN65: 5 | BO65: 5 | BP65: 3 | BQ65: 5 | BR65: 5 | BS65: 4.4 | BT65: 4.0625 | BU65: 4.555555556 | BV65: 3.777777778 | BW65: 3.928571429 | BX65: 3.666666667 | BY65: 5 | BZ65: 4.5 | CA65: 3.571428571 | CB65: 4.444444444 | CC65: 5 | CD65: 3.666666667 | CE65: 5 | CF65: 2.666666667 | CG65: 4.333333333 | CH65: 4.333333333 | CI65: 3.8 | CJ65: 3.8 | CK65: 4.25
A66: 67 | B66: 3 | C66: 3 | D66: 8 | E66: 5 | F66: 1 | M66: 4 | N66: 5 | O66: 5 | P66: 5 | Q66: 1 | R66: 5 | S66: 5 | T66: 3 | U66: 2 | V66: 4 | W66: 4 | X66: 4 | Y66: 5 | Z66: 5 | AA66: 4 | AB66: 5 | AC66: 5 | AD66: 4 | AE66: 2 | AF66: 1 | AG66: 4 | AH66: 5 | AI66: 3 | AJ66: 5 | AK66: 5 | AL66: 2 | AM66: 3 | AN66: 4 | AO66: 3 | AP66: 3 | AQ66: 3 | AR66: 5 | AS66: 5 | AT66: 5 | AU66: 4 | AV66: 5 | AW66: 4 | AX66: 4 | AY66: 3 | AZ66: 4 | BA66: 5 | BB66: 5 | BC66: 5 | BD66: 3 | BE66: 5 | BF66: 5 | BG66: 3 | BH66: 5 | BI66: 2 | BJ66: 3 | BK66: 3 | BL66: 3 | BM66: 5 | BN66: 3 | BO66: 3 | BP66: 3 | BQ66: 5 | BR66: 4 | BS66: 3.4 | BT66: 4.0625 | BU66: 4.444444444 | BV66: 3.888888889 | BW66: 3.785714286 | BX66: 2.666666667 | BY66: 3.666666667 | BZ66: 3.75 | CA66: 4.428571429 | CB66: 3.777777778 | CC66: 4.666666667 | CD66: 4.333333333 | CE66: 4.333333333 | CF66: 3.666666667 | CG66: 4.666666667 | CH66: 3.333333333 | CI66: 3.4 | CJ66: 3.8 | CK66: 4.25
A67: 68 | B67: 3 | C67: 3 | D67: 8 | E67: 5 | F67: 5 | M67: 2 | N67: 4 | O67: 3 | P67: 3 | Q67: 2 | R67: 2 | S67: 3 | T67: 3 | U67: 2 | V67: 3 | W67: 3 | X67: 3 | Y67: 3 | Z67: 4 | AA67: 4 | AB67: 4 | AC67: 5 | AD67: 4 | AE67: 3 | AF67: 3 | AG67: 4 | AH67: 4 | AI67: 4 | AJ67: 3 | AK67: 3 | AL67: 3 | AM67: 5 | AN67: 4 | AO67: 5 | AP67: 5 | AQ67: 5 | AR67: 4 | AS67: 4 | AT67: 5 | AU67: 3 | AV67: 5 | AW67: 5 | AX67: 5 | AY67: 4 | AZ67: 2 | BA67: 4 | BB67: 4 | BC67: 3 | BD67: 2 | BE67: 3 | BF67: 4 | BG67: 3 | BH67: 4 | BI67: 4 | BJ67: 4 | BK67: 3 | BL67: 3 | BM67: 4 | BN67: 3 | BO67: 3 | BP67: 4 | BQ67: 3 | BR67: 3 | BS67: 3.4 | BT67: 3.5625 | BU67: 3.222222222 | BV67: 2.666666667 | BW67: 4.428571429 | BX67: 4 | BY67: 3.333333333 | BZ67: 3 | CA67: 3.428571429 | CB67: 3.666666667 | CC67: 3.333333333 | CD67: 2.666666667 | CE67: 3.666666667 | CF67: 2.666666667 | CG67: 2.666666667 | CH67: 2.666666667 | CI67: 4 | CJ67: 4.6 | CK67: 4.75
A68: 69 | B68: 3 | C68: 3 | D68: 5 | E68: 2 | F68: 5 | M68: 2 | N68: 2 | O68: 2 | P68: 3 | Q68: 4 | R68: 3 | S68: 2 | T68: 4 | U68: 2 | V68: 4 | W68: 4 | X68: 3 | Y68: 3 | Z68: 4 | AA68: 4 | AB68: 4 | AC68: 3 | AD68: 2 | AE68: 4 | AF68: 3 | AG68: 4 | AH68: 4 | AI68: 4 | AJ68: 4 | AK68: 2 | AL68: 2 | AM68: 3 | AN68: 4 | AO68: 3 | AP68: 3 | AQ68: 4 | AR68: 5 | AS68: 3 | AT68: 3 | AU68: 3 | AV68: 4 | AW68: 3 | AX68: 3 | AY68: 3 | AZ68: 2 | BA68: 3 | BB68: 2 | BC68: 3 | BD68: 2 | BE68: 2 | BF68: 4 | BG68: 3 | BH68: 2 | BI68: 2 | BJ68: 3 | BK68: 2 | BL68: 2 | BM68: 3 | BN68: 1 | BO68: 1 | BP68: 1 | BQ68: 1 | BR68: 1 | BS68: 1.7 | BT68: 3.5 | BU68: 2.555555556 | BV68: 2.666666667 | BW68: 3.285714286 | BX68: 2 | BY68: 1.666666667 | BZ68: 1.5 | CA68: 3.714285714 | CB68: 3.333333333 | CC68: 2.333333333 | CD68: 2.333333333 | CE68: 3 | CF68: 3 | CG68: 2.333333333 | CH68: 2.666666667 | CI68: 3 | CJ68: 3.6 | CK68: 3.25
A69: 70 | B69: 3 | C69: 3 | D69: 7 | E69: 5 | F69: 5 | M69: 2 | N69: 4 | O69: 3 | P69: 3 | Q69: 4 | R69: 3 | S69: 3 | T69: 3 | U69: 2 | V69: 3 | W69: 4 | X69: 4 | Y69: 4 | Z69: 5 | AA69: 3 | AB69: 3 | AC69: 3 | AD69: 4 | AE69: 4 | AF69: 3 | AG69: 4 | AH69: 4 | AI69: 4 | AJ69: 3 | AK69: 3 | AL69: 4 | AM69: 3 | AN69: 3 | AO69: 3 | AP69: 3 | AQ69: 3 | AR69: 4 | AS69: 3 | AT69: 4 | AU69: 4 | AV69: 5 | AW69: 4 | AX69: 5 | AY69: 3 | AZ69: 3 | BA69: 4 | BB69: 2 | BC69: 3 | BD69: 2 | BE69: 3 | BF69: 3 | BG69: 3 | BH69: 3 | BI69: 3 | BJ69: 3 | BK69: 4 | BL69: 3 | BM69: 3 | BN69: 3 | BO69: 4 | BP69: 3 | BQ69: 3 | BR69: 3 | BS69: 3.2 | BT69: 3.625 | BU69: 2.888888889 | BV69: 3 | BW69: 3.642857143 | BX69: 3 | BY69: 3.333333333 | BZ69: 3.25 | CA69: 3.714285714 | CB69: 3.555555556 | CC69: 3 | CD69: 2.666666667 | CE69: 3 | CF69: 3.333333333 | CG69: 3 | CH69: 2.666666667 | CI69: 3.8 | CJ69: 3.6 | CK69: 3.5
A70: 71 | B70: 3 | C70: 3 | D70: 7 | E70: 5 | F70: 5 | M70: 2 | N70: 4 | O70: 3 | P70: 3 | Q70: 5 | R70: 3 | S70: 2 | T70: 4 | U70: 3 | V70: 4 | W70: 4 | X70: 4 | Y70: 4 | Z70: 4 | AA70: 4 | AB70: 5 | AC70: 4 | AD70: 3 | AE70: 4 | AF70: 3 | AG70: 4 | AH70: 5 | AI70: 4 | AJ70: 3 | AK70: 5 | AL70: 5 | AM70: 3 | AN70: 4 | AO70: 4 | AP70: 4 | AQ70: 4 | AR70: 4 | AS70: 5 | AT70: 4 | AU70: 3 | AV70: 5 | AW70: 5 | AX70: 4 | AY70: 4 | AZ70: 3 | BA70: 5 | BB70: 4 | BC70: 4 | BD70: 3 | BE70: 4 | BF70: 4 | BG70: 4 | BH70: 4 | BI70: 3 | BJ70: 2 | BK70: 2 | BL70: 3 | BM70: 3 | BN70: 2 | BO70: 3 | BP70: 4 | BQ70: 2 | BR70: 3 | BS70: 2.7 | BT70: 4 | BU70: 3.888888889 | BV70: 3.222222222 | BW70: 4.142857143 | BX70: 3 | BY70: 2.666666667 | BZ70: 2.5 | CA70: 4.142857143 | CB70: 3.888888889 | CC70: 4 | CD70: 3.666666667 | CE70: 4 | CF70: 3.666666667 | CG70: 3 | CH70: 3 | CI70: 3.8 | CJ70: 4.2 | CK70: 4.5
A71: 72 | B71: 999 | C71: 999 | D71: 7 | E71: 5 | F71: 1 | M71: 3 | N71: 3 | O71: 4 | P71: 2 | Q71: 4 | R71: 2 | S71: 2 | T71: 4 | U71: 3 | V71: 3 | W71: 3 | X71: 3 | Y71: 2 | Z71: 4 | AA71: 3 | AB71: 4 | AC71: 4 | AD71: 3 | AE71: 4 | AF71: 3 | AG71: 3 | AH71: 5 | AI71: 4 | AJ71: 4 | AK71: 4 | AL71: 1 | AM71: 3 | AN71: 4 | AO71: 3 | AP71: 5 | AQ71: 3 | AR71: 4 | AS71: 5 | AT71: 4 | AU71: 2 | AV71: 3 | AW71: 5 | AX71: 4 | AY71: 3 | AZ71: 3 | BA71: 3 | BB71: 2 | BC71: 3 | BD71: 3 | BE71: 3 | BF71: 5 | BG71: 4 | BH71: 4 | BI71: 3 | BJ71: 3 | BK71: 3 | BL71: 3 | BM71: 3 | BN71: 3 | BO71: 3 | BP71: 4 | BQ71: 4 | BR71: 2 | BS71: 3.1 | BT71: 3.5 | BU71: 3.333333333 | BV71: 3 | BW71: 3.5 | BX71: 3.333333333 | BY71: 3 | BZ71: 3 | CA71: 3.142857143 | CB71: 3.777777778 | CC71: 2.666666667 | CD71: 3 | CE71: 4.333333333 | CF71: 3.333333333 | CG71: 2.666666667 | CH71: 3 | CI71: 2.8 | CJ71: 3.6 | CK71: 4.25
A72: 73 | B72: 3 | C72: 3 | D72: 7 | E72: 5 | F72: 1 | M72: 4 | N72: 4 | O72: 5 | P72: 5 | Q72: 5 | R72: 3 | S72: 3 | T72: 5 | U72: 3 | V72: 3 | W72: 3 | X72: 2 | Y72: 2 | Z72: 3 | AA72: 3 | AB72: 4 | AC72: 3 | AD72: 2 | AE72: 2 | AF72: 2 | AG72: 2 | AH72: 3 | AI72: 3 | AJ72: 3 | AK72: 5 | AL72: 4 | AM72: 3 | AN72: 4 | AO72: 5 | AP72: 5 | AQ72: 5 | AR72: 4 | AS72: 5 | AT72: 5 | AU72: 5 | AV72: 5 | AW72: 3 | AX72: 5 | AY72: 4 | AZ72: 3 | BA72: 5 | BB72: 2 | BC72: 3 | BD72: 4 | BE72: 4 | BF72: 4 | BG72: 3 | BH72: 3 | BI72: 3 | BJ72: 3 | BK72: 2 | BL72: 2 | BM72: 4 | BN72: 3 | BO72: 3 | BP72: 3 | BQ72: 3 | BR72: 3 | BS72: 2.9 | BT72: 2.8125 | BU72: 3.444444444 | BV72: 4.111111111 | BW72: 4.428571429 | BX72: 3 | BY72: 3.333333333 | BZ72: 2.5 | CA72: 2.857142857 | CB72: 2.777777778 | CC72: 3.333333333 | CD72: 3.666666667 | CE72: 3.333333333 | CF72: 5 | CG72: 3.666666667 | CH72: 3.666666667 | CI72: 4.2 | CJ72: 4.6 | CK72: 4.5
A73: 74 | B73: 3 | C73: 3 | D73: 7 | E73: 5 | F73: 1 | M73: 4 | N73: 4 | O73: 3 | P73: 3 | Q73: 4 | R73: 3 | S73: 3 | T73: 4 | U73: 3 | V73: 4 | W73: 4 | X73: 3 | Y73: 3 | Z73: 4 | AA73: 3 | AB73: 4 | AC73: 5 | AD73: 3 | AE73: 3 | AF73: 3 | AG73: 3 | AH73: 5 | AI73: 3 | AJ73: 1 | AK73: 4 | AL73: 5 | AM73: 3 | AN73: 4 | AO73: 4 | AP73: 5 | AQ73: 5 | AR73: 4 | AS73: 5 | AT73: 4 | AU73: 3 | AV73: 5 | AW73: 5 | AX73: 4 | AY73: 5 | AZ73: 4 | BA73: 5 | BB73: 3 | BC73: 3 | BD73: 3 | BE73: 3 | BF73: 5 | BG73: 5 | BH73: 4 | BI73: 3 | BJ73: 3 | BK73: 3 | BL73: 3 | BM73: 4 | BN73: 3 | BO73: 3 | BP73: 4 | BQ73: 4 | BR73: 5 | BS73: 3.5 | BT73: 3.4375 | BU73: 3.888888889 | BV73: 3.444444444 | BW73: 4.357142857 | BX73: 3.333333333 | BY73: 3.333333333 | BZ73: 3.75 | CA73: 3.571428571 | CB73: 3.333333333 | CC73: 4 | CD73: 3 | CE73: 4.666666667 | CF73: 3.333333333 | CG73: 3.666666667 | CH73: 3.333333333 | CI73: 3.8 | CJ73: 4.6 | CK73: 4.75
A74: 75 | B74: 3 | C74: 3 | D74: 7 | E74: 5 | F74: 5 | M74: 3 | N74: 4 | O74: 4 | P74: 3 | Q74: 4 | R74: 3 | S74: 3 | T74: 4 | U74: 3 | V74: 4 | W74: 4 | X74: 4 | Y74: 4 | Z74: 4 | AA74: 4 | AB74: 4 | AC74: 5 | AD74: 4 | AE74: 5 | AF74: 4 | AG74: 4 | AH74: 4 | AI74: 4 | AJ74: 2 | AK74: 5 | AL74: 4 | AM74: 3 | AN74: 5 | AO74: 5 | AP74: 5 | AQ74: 5 | AR74: 4 | AS74: 5 | AT74: 4 | AU74: 4 | AV74: 5 | AW74: 5 | AX74: 4 | AY74: 4 | AZ74: 5 | BA74: 5 | BB74: 2 | BC74: 3 | BD74: 4 | BE74: 3 | BF74: 4 | BG74: 3 | BH74: 3 | BI74: 3 | BJ74: 4 | BK74: 4 | BL74: 3 | BM74: 4 | BN74: 4 | BO74: 3 | BP74: 3 | BQ74: 3 | BR74: 4 | BS74: 3.5 | BT74: 4.0625 | BU74: 3.555555556 | BV74: 3.444444444 | BW74: 4.428571429 | BX74: 3.333333333 | BY74: 3.666666667 | BZ74: 3.5 | CA74: 4 | CB74: 4.111111111 | CC74: 4 | CD74: 3.333333333 | CE74: 3.333333333 | CF74: 3.666666667 | CG74: 3.333333333 | CH74: 3.333333333 | CI74: 4 | CJ74: 4.6 | CK74: 4.75
A75: 76 | B75: 3 | C75: 3 | D75: 7 | E75: 5 | F75: 5 | M75: 1 | N75: 4 | O75: 2 | P75: 2 | Q75: 2 | R75: 1 | S75: 1 | T75: 2 | U75: 2 | V75: 3 | W75: 2 | X75: 2 | Y75: 4 | Z75: 4 | AA75: 2 | AB75: 3 | AC75: 4 | AD75: 3 | AE75: 4 | AF75: 3 | AG75: 3 | AH75: 4 | AI75: 3 | AJ75: 2 | AK75: 4 | AL75: 3 | AM75: 3 | AN75: 4 | AO75: 3 | AP75: 3 | AQ75: 3 | AR75: 2 | AS75: 5 | AT75: 3 | AU75: 4 | AV75: 3 | AW75: 4 | AX75: 4 | AY75: 3 | AZ75: 3 | BA75: 4 | BB75: 2 | BC75: 2 | BD75: 1 | BE75: 2 | BF75: 4 | BG75: 2 | BH75: 2 | BI75: 1 | BJ75: 1 | BK75: 1 | BL75: 2 | BM75: 4 | BN75: 1 | BO75: 3 | BP75: 3 | BQ75: 3 | BR75: 2 | BS75: 2.1 | BT75: 3.125 | BU75: 2.444444444 | BV75: 1.888888889 | BW75: 3.357142857 | BX75: 1.666666667 | BY75: 2.666666667 | BZ75: 2 | CA75: 2.857142857 | CB75: 3.333333333 | CC75: 3 | CD75: 1.666666667 | CE75: 2.666666667 | CF75: 2 | CG75: 2 | CH75: 1.666666667 | CI75: 3.6 | CJ75: 2.8 | CK75: 3.75
A76: 77 | B76: 3 | C76: 3 | D76: 8 | E76: 6 | F76: 4 | M76: 2 | N76: 4 | O76: 4 | P76: 4 | Q76: 5 | R76: 3 | S76: 4 | T76: 4 | U76: 3 | V76: 5 | W76: 5 | X76: 5 | Y76: 5 | Z76: 5 | AA76: 4 | AB76: 4 | AC76: 5 | AD76: 5 | AE76: 5 | AF76: 5 | AG76: 5 | AH76: 5 | AI76: 5 | AJ76: 1 | AK76: 3 | AL76: 4 | AM76: 3 | AN76: 5 | AO76: 3 | AP76: 5 | AQ76: 5 | AR76: 4 | AS76: 3 | AT76: 4 | AU76: 4 | AV76: 5 | AW76: 5 | AX76: 4 | AY76: 4 | AZ76: 1 | BA76: 5 | BB76: 2 | BC76: 4 | BD76: 4 | BE76: 5 | BF76: 5 | BG76: 4 | BH76: 4 | BI76: 2 | BJ76: 2 | BK76: 3 | BL76: 4 | BM76: 4 | BN76: 3 | BO76: 4 | BP76: 4 | BQ76: 4 | BR76: 4 | BS76: 3.4 | BT76: 4.5 | BU76: 3.777777778 | BV76: 3.666666667 | BW76: 4.142857143 | BX76: 2.666666667 | BY76: 3.666666667 | BZ76: 3.75 | CA76: 4.714285714 | CB76: 4.333333333 | CC76: 2.666666667 | CD76: 4.333333333 | CE76: 4.333333333 | CF76: 4.333333333 | CG76: 3 | CH76: 3.666666667 | CI76: 4 | CJ76: 4.2 | CK76: 4.25

Sheet 抽出データ
A1: No. | B1: 階層 | C1: 自社階層 | D1: 属性１ | E1: 属性２ | F1: 属性３ | G1: 属性４ | H1: 属性５ | I1: 属性６ | J1: 属性７ | K1: 属性８ | L1: 属性９ | M1: 問1 | N1: 問2 | O1: 問3 | P1: 問4 | Q1: 問5 | R1: 問6 | S1: 問7 | T1: 問8 | U1: 問9 | V1: 問10 | W1: 問11 | X1: 問12 | Y1: 問13 | Z1: 問14 | AA1: 問15 | AB1: 問16 | AC1: 問17 | AD1: 問18 | AE1: 問19 | AF1: 問20 | AG1: 問21 | AH1: 問22 | AI1: 問23 | AJ1: 問24 | AK1: 問25 | AL1: 問26 | AM1: 問27 | AN1: 問28 | AO1: 問29 | AP1: 問30 | AQ1: 問31 | AR1: 問32 | AS1: 問33 | AT1: 問34 | AU1: 問35 | AV1: 問36 | AW1: 問37 | AX1: 問38 | AY1: 問39 | AZ1: 問40 | BA1: 問41 | BB1: 問42 | BC1: 問43 | BD1: 問44 | BE1: 問45 | BF1: 問46 | BG1: 問47 | BH1: 問48 | BI1: 問49 | BJ1: 問50 | BK1: 問51 | BL1: 問52 | BM1: 問53 | BN1: 問54 | BO1: 問55 | BP1: 問56 | BQ1: 問57 | BR1: 問58 | BS1: Ⅰ | BT1: Ⅱ | BU1: Ⅲ | BV1: Ⅳ | BW1: Ⅴ | BX1: 区分1 | BY1: 区分2 | BZ1: 区分3 | CA1: 区分4 | CB1: 区分5 | CC1: 区分6 | CD1: 区分7 | CE1: 区分8 | CF1: 区分9 | CG1: 区分10 | CH1: 区分11 | CI1: 区分12 | CJ1: 区分13 | CK1: 区分14
A2: 1 | B2: 3 | C2: 3 | D2: 4 | E2: 5 | F2: 5 | M2: 5 | N2: 4 | O2: 4 | P2: 5 | Q2: 4 | R2: 4 | S2: 4 | T2: 4 | U2: 4 | V2: 4 | W2: 4 | X2: 5 | Y2: 5 | Z2: 5 | AA2: 4 | AB2: 4 | AC2: 5 | AD2: 5 | AE2: 5 | AF2: 5 | AG2: 5 | AH2: 5 | AI2: 5 | AJ2: 4 | AK2: 3 | AL2: 3 | AM2: 3 | AN2: 4 | AO2: 5 | AP2: 5 | AQ2: 5 | AR2: 4 | AS2: 4 | AT2: 4 | AU2: 3 | AV2: 5 | AW2: 5 | AX2: 5 | AY2: 3 | AZ2: 5 | BA2: 5 | BB2: 5 | BC2: 5 | BD2: 4 | BE2: 5 | BF2: 5 | BG2: 5 | BH2: 5 | BI2: 5 | BJ2: 5 | BK2: 5 | BL2: 4 | BM2: 5 | BN2: 4 | BO2: 4 | BP2: 4 | BQ2: 5 | BR2: 5 | BS2: 4.6 | BT2: 4.5625 | BU2: 4.888888889 | BV2: 4.222222222 | BW2: 4.142857143 | BX2: 4.666666667 | BY2: 4.333333333 | BZ2: 4.75 | CA2: 4.428571429 | CB2: 4.666666667 | CC2: 5 | CD2: 4.666666667 | CE2: 5 | CF2: 4.333333333 | CG2: 4.333333333 | CH2: 4 | CI2: 3.6 | CJ2: 4.4 | CK2: 4.5
A3: 2 | B3: 3 | C3: 3 | D3: 8 | E3: 6 | F3: 5 | M3: 4 | N3: 4 | O3: 5 | P3: 5 | Q3: 5 | R3: 4 | S3: 5 | T3: 5 | U3: 5 | V3: 5 | W3: 5 | X3: 5 | Y3: 5 | Z3: 5 | AA3: 5 | AB3: 5 | AC3: 5 | AD3: 5 | AE3: 5 | AF3: 5 | AG3: 5 | AH3: 5 | AI3: 5 | AJ3: 4 | AK3: 3 | AL3: 5 | AM3: 5 | AN3: 4 | AO3: 5 | AP3: 5 | AQ3: 3 | AR3: 4 | AS3: 4 | AT3: 4 | AU3: 4 | AV3: 3 | AW3: 5 | AX3: 4 | AY3: 3 | AZ3: 5 | BA3: 5 | BB3: 5 | BC3: 5 | BD3: 3 | BE3: 3 | BF3: 5 | BG3: 5 | BH3: 5 | BI3: 3 | BJ3: 3 | BK3: 4 | BL3: 4 | BM3: 3 | BN3: 3 | BO3: 4 | BP3: 4 | BQ3: 5 | BR3: 5 | BS3: 3.8 | BT3: 4.8125 | BU3: 4.555555556 | BV3: 4.666666667 | BW3: 4.142857143 | BX3: 3.333333333 | BY3: 3.333333333 | BZ3: 4.5 | CA3: 5 | CB3: 4.666666667 | CC3: 5 | CD3: 3.666666667 | CE3: 5 | CF3: 5 | CG3: 4 | CH3: 5 | CI3: 4.4 | CJ3: 4 | CK3: 4
A4: 3 | B4: 3 | C4: 3 | D4: 8 | E4: 6 | F4: 5 | M4: 3 | N4: 2 | O4: 3 | P4: 3 | Q4: 4 | R4: 3 | S4: 1 | T4: 4 | U4: 2 | V4: 5 | W4: 5 | X4: 5 | Y4: 4 | Z4: 4 | AA4: 3 | AB4: 5 | AC4: 5 | AD4: 4 | AE4: 5 | AF4: 4 | AG4: 5 | AH4: 5 | AI4: 2 | AJ4: 3 | AK4: 4 | AL4: 4 | AM4: 3 | AN4: 4 | AO4: 3 | AP4: 3 | AQ4: 3 | AR4: 4 | AS4: 4 | AT4: 3 | AU4: 4 | AV4: 5 | AW4: 5 | AX4: 4 | AY4: 3 | AZ4: 1 | BA4: 5 | BB4: 4 | BC4: 5 | BD4: 2 | BE4: 3 | BF4: 2 | BG4: 3 | BH4: 3 | BI4: 1 | BJ4: 4 | BK4: 2 | BL4: 4 | BM4: 2 | BN4: 1 | BO4: 1 | BP4: 1 | BQ4: 1 | BR4: 3 | BS4: 2 | BT4: 4.25 | BU4: 3.111111111 | BV4: 2.777777778 | BW4: 3.714285714 | BX4: 2 | BY4: 1.333333333 | BZ4: 2.5 | CA4: 4.428571429 | CB4: 4.111111111 | CC4: 3.333333333 | CD4: 3.333333333 | CE4: 2.666666667 | CF4: 3.333333333 | CG4: 2.666666667 | CH4: 2.333333333 | CI4: 3.8 | CJ4: 3.6 | CK4: 3.75
A5: 4 | B5: 3 | C5: 3 | D5: 8 | E5: 3 | F5: 2 | M5: 4 | N5: 3 | O5: 4 | P5: 4 | Q5: 5 | R5: 2 | S5: 3 | T5: 4 | U5: 2 | V5: 2 | W5: 5 | X5: 3 | Y5: 3 | Z5: 4 | AA5: 3 | AB5: 5 | AC5: 2 | AD5: 2 | AE5: 4 | AF5: 4 | AG5: 2 | AH5: 4 | AI5: 3 | AJ5: 1 | AK5: 2 | AL5: 4 | AM5: 3 | AN5: 4 | AO5: 3 | AP5: 5 | AQ5: 3 | AR5: 3 | AS5: 5 | AT5: 4 | AU5: 5 | AV5: 3 | AW5: 4 | AX5: 5 | AY5: 4 | AZ5: 2 | BA5: 2 | BB5: 2 | BC5: 4 | BD5: 3 | BE5: 5 | BF5: 4 | BG5: 4 | BH5: 5 | BI5: 2 | BJ5: 2 | BK5: 1 | BL5: 1 | BM5: 3 | BN5: 2 | BO5: 1 | BP5: 2 | BQ5: 1 | BR5: 3 | BS5: 1.8 | BT5: 3.0625 | BU5: 3.444444444 | BV5: 3.444444444 | BW5: 3.928571429 | BX5: 2 | BY5: 2 | BZ5: 1.5 | CA5: 3.571428571 | CB5: 2.666666667 | CC5: 2 | CD5: 4 | CE5: 4.333333333 | CF5: 4.333333333 | CG5: 3 | CH5: 3 | CI5: 4.2 | CJ5: 3.6 | CK5: 4
A6: 7 | B6: 3 | C6: 3 | D6: 2 | E6: 3 | F6: 2 | M6: 3 | N6: 3 | O6: 3 | P6: 2 | Q6: 3 | R6: 2 | S6: 2 | T6: 2 | U6: 1 | V6: 1 | W6: 1 | X6: 1 | Y6: 2 | Z6: 3 | AA6: 3 | AB6: 3 | AC6: 3 | AD6: 2 | AE6: 2 | AF6: 2 | AG6: 2 | AH6: 3 | AI6: 3 | AJ6: 3 | AK6: 3 | AL6: 3 | AM6: 3 | AN6: 4 | AO6: 4 | AP6: 3 | AQ6: 2 | AR6: 2 | AS6: 3 | AT6: 3 | AU6: 2 | AV6: 3 | AW6: 4 | AX6: 5 | AY6: 3 | AZ6: 1 | BA6: 3 | BB6: 2 | BC6: 2 | BD6: 1 | BE6: 2 | BF6: 2 | BG6: 2 | BH6: 2 | BI6: 1 | BJ6: 1 | BK6: 1 | BL6: 1 | BM6: 2 | BN6: 1 | BO6: 1 | BP6: 1 | BQ6: 1 | BR6: 1 | BS6: 1.1 | BT6: 2.3125 | BU6: 1.888888889 | BV6: 2.333333333 | BW6: 3.142857143 | BX6: 1 | BY6: 1.333333333 | BZ6: 1 | CA6: 2 | CB6: 2.555555556 | CC6: 2 | CD6: 1.666666667 | CE6: 2 | CF6: 2.666666667 | CG6: 2.666666667 | CH6: 1.666666667 | CI6: 3.4 | CJ6: 3 | CK6: 3
A7: 8 | B7: 3 | C7: 3 | D7: 2 | E7: 3 | F7: 5 | M7: 2 | N7: 3 | O7: 3 | P7: 2 | Q7: 3 | R7: 2 | S7: 2 | T7: 4 | U7: 3 | V7: 2 | W7: 2 | X7: 2 | Y7: 2 | Z7: 4 | AA7: 3 | AB7: 3 | AC7: 3 | AD7: 2 | AE7: 4 | AF7: 3 | AG7: 2 | AH7: 4 | AI7: 3 | AJ7: 3 | AK7: 2 | AL7: 4 | AM7: 3 | AN7: 4 | AO7: 1 | AP7: 4 | AQ7: 3 | AR7: 3 | AS7: 5 | AT7: 3 | AU7: 4 | AV7: 3 | AW7: 4 | AX7: 3 | AY7: 3 | AZ7: 2 | BA7: 2 | BB7: 4 | BC7: 3 | BD7: 2 | BE7: 3 | BF7: 2 | BG7: 4 | BH7: 2 | BI7: 2 | BJ7: 3 | BK7: 2 | BL7: 2 | BM7: 2 | BN7: 2 | BO7: 2 | BP7: 2 | BQ7: 2 | BR7: 2 | BS7: 2.1 | BT7: 2.75 | BU7: 2.666666667 | BV7: 2.666666667 | BW7: 3.357142857 | BX7: 2.333333333 | BY7: 2 | BZ7: 2 | CA7: 2.571428571 | CB7: 2.888888889 | CC7: 2.666666667 | CD7: 2.666666667 | CE7: 2.666666667 | CF7: 2.666666667 | CG7: 2.333333333 | CH7: 3 | CI7: 3.6 | CJ7: 2.8 | CK7: 3.75
A8: 9 | B8: 3 | C8: 3 | D8: 2 | E8: 6 | F8: 5 | M8: 5 | N8: 5 | O8: 5 | P8: 5 | Q8: 5 | R8: 5 | S8: 5 | T8: 5 | U8: 5 | V8: 5 | W8: 5 | X8: 4 | Y8: 5 | Z8: 5 | AA8: 5 | AB8: 5 | AC8: 5 | AD8: 4 | AE8: 4 | AF8: 4 | AG8: 4 | AH8: 5 | AI8: 5 | AJ8: 5 | AK8: 4 | AL8: 5 | AM8: 2 | AN8: 4 | AO8: 4 | AP8: 3 | AQ8: 5 | AR8: 5 | AS8: 5 | AT8: 5 | AU8: 5 | AV8: 4 | AW8: 4 | AX8: 4 | AY8: 4 | AZ8: 4 | BA8: 5 | BB8: 5 | BC8: 5 | BD8: 5 | BE8: 5 | BF8: 5 | BG8: 5 | BH8: 5 | BI8: 5 | BJ8: 5 | BK8: 5 | BL8: 5 | BM8: 5 | BN8: 5 | BO8: 5 | BP8: 5 | BQ8: 5 | BR8: 5 | BS8: 5 | BT8: 4.625 | BU8: 4.888888889 | BV8: 5 | BW8: 4.214285714 | BX8: 5 | BY8: 5 | BZ8: 5 | CA8: 4.857142857 | CB8: 4.444444444 | CC8: 4.666666667 | CD8: 5 | CE8: 5 | CF8: 5 | CG8: 5 | CH8: 5 | CI8: 4 | CJ8: 4 | CK8: 4.75
A9: 10 | B9: 3 | C9: 3 | D9: 2 | E9: 3 | F9: 5 | M9: 2 | N9: 2 | O9: 3 | P9: 3 | Q9: 3 | R9: 2 | S9: 1 | T9: 3 | U9: 1 | V9: 4 | W9: 3 | X9: 2 | Y9: 2 | Z9: 4 | AA9: 2 | AB9: 3 | AC9: 2 | AD9: 3 | AE9: 3 | AF9: 3 | AG9: 3 | AH9: 2 | AI9: 3 | AJ9: 2 | AK9: 1 | AL9: 5 | AM9: 5 | AN9: 4 | AO9: 4 | AP9: 4 | AQ9: 3 | AR9: 5 | AS9: 4 | AT9: 4 | AU9: 3 | AV9: 5 | AW9: 4 | AX9: 4 | AY9: 3 | AZ9: 1 | BA9: 4 | BB9: 4 | BC9: 3 | BD9: 1 | BE9: 3 | BF9: 4 | BG9: 3 | BH9: 3 | BI9: 2 | BJ9: 3 | BK9: 2 | BL9: 3 | BM9: 3 | BN9: 1 | BO9: 2 | BP9: 2 | BQ9: 2 | BR9: 2 | BS9: 2.2 | BT9: 2.625 | BU9: 2.888888889 | BV9: 2.222222222 | BW9: 4.071428571 | BX9: 2.333333333 | BY9: 2 | BZ9: 2.25 | CA9: 2.857142857 | CB9: 2.444444444 | CC9: 3 | CD9: 2.333333333 | CE9: 3.333333333 | CF9: 3 | CG9: 2 | CH9: 1.666666667 | CI9: 4.2 | CJ9: 4.2 | CK9: 3.75
A10: 11 | B10: 3 | C10: 3 | D10: 2 | E10: 3 | F10: 5 | M10: 1 | N10: 2 | O10: 2 | P10: 2 | Q10: 3 | R10: 1 | S10: 1 | T10: 3 | U10: 2 | V10: 2 | W10: 4 | X10: 5 | Y10: 5 | Z10: 4 | AA10: 4 | AB10: 4 | AC10: 4 | AD10: 1 | AE10: 5 | AF10: 5 | AG10: 5 | AH10: 4 | AI10: 1 | AJ10: 1 | AK10: 1 | AL10: 4 | AM10: 3 | AN10: 4 | AO10: 2 | AP10: 1 | AQ10: 1 | AR10: 4 | AS10: 1 | AT10: 1 | AU10: 2 | AV10: 3 | AW10: 3 | AX10: 2 | AY10: 4 | AZ10: 3 | BA10: 3 | BB10: 1 | BC10: 3 | BD10: 1 | BE10: 1 | BF10: 3 | BG10: 3 | BH10: 3 | BI10: 3 | BJ10: 4 | BK10: 3 | BL10: 3 | BM10: 2 | BN10: 3 | BO10: 3 | BP10: 3 | BQ10: 3 | BR10: 3 | BS10: 3 | BT10: 3.4375 | BU10: 2.333333333 | BV10: 1.888888889 | BW10: 2.5 | BX10: 3.333333333 | BY10: 2.666666667 | BZ10: 3 | CA10: 4 | CB10: 3 | CC10: 2.333333333 | CD10: 1.666666667 | CE10: 3 | CF10: 2.333333333 | CG10: 1.333333333 | CH10: 2 | CI10: 3 | CJ10: 2.8 | CK10: 1.5
A11: 12 | B11: 3 | C11: 3 | D11: 2 | E11: 3 | F11: 5 | M11: 1 | N11: 4 | O11: 4 | P11: 3 | Q11: 3 | R11: 4 | S11: 3 | T11: 4 | U11: 3 | V11: 4 | W11: 5 | X11: 4 | Y11: 5 | Z11: 5 | AA11: 5 | AB11: 4 | AC11: 5 | AD11: 5 | AE11: 5 | AF11: 4 | AG11: 4 | AH11: 5 | AI11: 4 | AJ11: 5 | AK11: 3 | AL11: 5 | AM11: 5 | AN11: 5 | AO11: 5 | AP11: 5 | AQ11: 5 | AR11: 4 | AS11: 5 | AT11: 3 | AU11: 4 | AV11: 5 | AW11: 5 | AX11: 4 | AY11: 5 | AZ11: 1 | BA11: 4 | BB11: 4 | BC11: 3 | BD11: 3 | BE11: 3 | BF11: 1 | BG11: 4 | BH11: 4 | BI11: 1 | BJ11: 1 | BK11: 1 | BL11: 1 | BM11: 1 | BN11: 3 | BO11: 1 | BP11: 1 | BQ11: 1 | BR11: 1 | BS11: 1.2 | BT11: 4.5 | BU11: 3 | BV11: 3.222222222 | BW11: 4.642857143 | BX11: 1 | BY11: 1.666666667 | BZ11: 1 | CA11: 4.571428571 | CB11: 4.444444444 | CC11: 3 | CD11: 3 | CE11: 3 | CF11: 3.333333333 | CG11: 3 | CH11: 3.333333333 | CI11: 4.6 | CJ11: 4.8 | CK11: 4.5
A12: 13 | B12: 3 | C12: 3 | D12: 2 | E12: 3 | F12: 5 | M12: 2 | N12: 4 | O12: 3 | P12: 4 | Q12: 4 | R12: 2 | S12: 2 | T12: 3 | U12: 3 | V12: 4 | W12: 4 | X12: 3 | Y12: 3 | Z12: 4 | AA12: 4 | AB12: 4 | AC12: 4 | AD12: 4 | AE12: 4 | AF12: 4 | AG12: 3 | AH12: 4 | AI12: 4 | AJ12: 4 | AK12: 2 | AL12: 5 | AM12: 5 | AN12: 5 | AO12: 3 | AP12: 5 | AQ12: 5 | AR12: 4 | AS12: 3 | AT12: 4 | AU12: 4 | AV12: 5 | AW12: 3 | AX12: 4 | AY12: 3 | AZ12: 3 | BA12: 5 | BB12: 4 | BC12: 4 | BD12: 3 | BE12: 3 | BF12: 4 | BG12: 4 | BH12: 4 | BI12: 3 | BJ12: 4 | BK12: 3 | BL12: 3 | BM12: 4 | BN12: 3 | BO12: 3 | BP12: 3 | BQ12: 3 | BR12: 2 | BS12: 3.1 | BT12: 3.6875 | BU12: 3.777777778 | BV12: 3 | BW12: 4.142857143 | BX12: 3.333333333 | BY12: 3.333333333 | BZ12: 2.75 | CA12: 3.714285714 | CB12: 3.666666667 | CC12: 4 | CD12: 3.333333333 | CE12: 4 | CF12: 3.666666667 | CG12: 2.666666667 | CH12: 2.666666667 | CI12: 4.6 | CJ12: 4 | CK12: 3.75
A13: 14 | B13: 3 | C13: 3 | D13: 2 | E13: 3 | F13: 5 | M13: 1 | N13: 2 | O13: 3 | P13: 4 | Q13: 5 | R13: 4 | S13: 3 | T13: 2 | U13: 1 | V13: 2 | W13: 2 | X13: 2 | Y13: 2 | Z13: 2 | AA13: 2 | AB13: 2 | AC13: 2 | AD13: 2 | AE13: 2 | AF13: 2 | AG13: 3 | AH13: 3 | AI13: 3 | AJ13: 3 | AK13: 3 | AL13: 4 | AM13: 2 | AN13: 3 | AO13: 4 | AP13: 3 | AQ13: 5 | AR13: 2 | AS13: 1 | AT13: 4 | AU13: 3 | AV13: 5 | AW13: 1 | AX13: 5 | AY13: 3 | AZ13: 4 | BA13: 5 | BB13: 5 | BC13: 5 | BD13: 5 | BE13: 5 | BF13: 5 | BG13: 5 | BH13: 5 | BI13: 5 | BJ13: 5 | BK13: 4 | BL13: 3 | BM13: 2 | BN13: 1 | BO13: 2 | BP13: 3 | BQ13: 4 | BR13: 5 | BS13: 3.4 | BT13: 2.3125 | BU13: 4.888888889 | BV13: 2.777777778 | BW13: 3.214285714 | BX13: 4.333333333 | BY13: 1.666666667 | BZ13: 4 | CA13: 2 | CB13: 2.555555556 | CC13: 4.666666667 | CD13: 5 | CE13: 5 | CF13: 4 | CG13: 2.333333333 | CH13: 2 | CI13: 3.4 | CJ13: 3.4 | CK13: 2.75
A14: 15 | B14: 3 | C14: 3 | D14: 2 | E14: 3 | F14: 5 | M14: 5 | N14: 5 | O14: 4 | P14: 4 | Q14: 5 | R14: 4 | S14: 4 | T14: 5 | U14: 4 | V14: 5 | W14: 4 | X14: 4 | Y14: 4 | Z14: 5 | AA14: 4 | AB14: 5 | AC14: 4 | AD14: 5 | AE14: 4 | AF14: 4 | AG14: 5 | AH14: 5 | AI14: 5 | AJ14: 4 | AK14: 4 | AL14: 4 | AM14: 4 | AN14: 5 | AO14: 5 | AP14: 3 | AQ14: 4 | AR14: 5 | AS14: 4 | AT14: 5 | AU14: 4 | AV14: 3 | AW14: 5 | AX14: 4 | AY14: 3 | AZ14: 4 | BA14: 5 | BB14: 5 | BC14: 5 | BD14: 5 | BE14: 5 | BF14: 5 | BG14: 4 | BH14: 5 | BI14: 3 | BJ14: 5 | BK14: 4 | BL14: 4 | BM14: 4 | BN14: 4 | BO14: 4 | BP14: 4 | BQ14: 4 | BR14: 4 | BS14: 4 | BT14: 4.4375 | BU14: 4.777777778 | BV14: 4.444444444 | BW14: 4.142857143 | BX14: 4 | BY14: 4 | BZ14: 4 | CA14: 4.428571429 | CB14: 4.444444444 | CC14: 4.666666667 | CD14: 5 | CE14: 4.666666667 | CF14: 4.333333333 | CG14: 4.666666667 | CH14: 4.333333333 | CI14: 4.2 | CJ14: 3.8 | CK14: 4.5
A15: 16 | B15: 3 | C15: 3 | D15: 4 | E15: 4 | F15: 1 | M15: 2 | N15: 2 | O15: 2 | P15: 3 | Q15: 2 | R15: 2 | S15: 1 | T15: 2 | U15: 3 | V15: 3 | W15: 4 | X15: 2 | Y15: 3 | Z15: 5 | AA15: 3 | AB15: 4 | AC15: 4 | AD15: 4 | AE15: 3 | AF15: 2 | AG15: 3 | AH15: 4 | AI15: 4 | AJ15: 3 | AK15: 4 | AL15: 4 | AM15: 3 | AN15: 4 | AO15: 3 | AP15: 3 | AQ15: 4 | AR15: 5 | AS15: 4 | AT15: 4 | AU15: 5 | AV15: 5 | AW15: 4 | AX15: 4 | AY15: 3 | AZ15: 3 | BA15: 4 | BB15: 2 | BC15: 2 | BD15: 4 | BE15: 3 | BF15: 4 | BG15: 4 | BH15: 4 | BI15: 2 | BJ15: 3 | BK15: 2 | BL15: 3 | BM15: 3 | BN15: 3 | BO15: 2 | BP15: 3 | BQ15: 3 | BR15: 1 | BS15: 2.5 | BT15: 3.4375 | BU15: 3.333333333 | BV15: 2.111111111 | BW15: 3.928571429 | BX15: 2.666666667 | BY15: 2.666666667 | BZ15: 2.25 | CA15: 3.428571429 | CB15: 3.444444444 | CC15: 3 | CD15: 3 | CE15: 4 | CF15: 2.333333333 | CG15: 2 | CH15: 2 | CI15: 4 | CJ15: 3.8 | CK15: 4
A16: 17 | B16: 3 | C16: 3 | D16: 4 | E16: 4 | F16: 2 | M16: 2 | N16: 2 | O16: 2 | P16: 1 | Q16: 1 | R16: 1 | S16: 1 | T16: 1 | U16: 1 | V16: 2 | W16: 3 | X16: 3 | Y16: 3 | Z16: 5 | AA16: 4 | AB16: 1 | AC16: 4 | AD16: 3 | AE16: 4 | AF16: 3 | AG16: 3 | AH16: 3 | AI16: 2 | AJ16: 2 | AK16: 2 | AL16: 4 | AM16: 3 | AN16: 4 | AO16: 3 | AP16: 3 | AQ16: 3 | AR16: 4 | AS16: 4 | AT16: 4 | AU16: 3 | AV16: 3 | AW16: 4 | AX16: 4 | AY16: 3 | AZ16: 1 | BA16: 2 | BB16: 2 | BC16: 2 | BD16: 1 | BE16: 2 | BF16: 4 | BG16: 1 | BH16: 1 | BI16: 1 | BJ16: 4 | BK16: 3 | BL16: 1 | BM16: 3 | BN16: 1 | BO16: 1 | BP16: 1 | BQ16: 1 | BR16: 2 | BS16: 1.8 | BT16: 2.9375 | BU16: 1.777777778 | BV16: 1.333333333 | BW16: 3.5 | BX16: 2 | BY16: 1.666666667 | BZ16: 1.75 | CA16: 3 | CB16: 2.888888889 | CC16: 1.666666667 | CD16: 1.666666667 | CE16: 2 | CF16: 1.333333333 | CG16: 1.666666667 | CH16: 1 | CI16: 3.6 | CJ16: 3.2 | CK16: 3.75
A17: 18 | B17: 3 | C17: 3 | D17: 4 | E17: 4 | F17: 2 | M17: 1 | N17: 3 | O17: 3 | P17: 3 | Q17: 3 | R17: 1 | S17: 2 | T17: 1 | U17: 2 | V17: 1 | W17: 1 | X17: 3 | Y17: 2 | Z17: 3 | AA17: 2 | AB17: 1 | AC17: 4 | AD17: 3 | AE17: 3 | AF17: 3 | AG17: 2 | AH17: 3 | AI17: 3 | AJ17: 4 | AK17: 3 | AL17: 4 | AM17: 3 | AN17: 4 | AO17: 5 | AP17: 5 | AQ17: 5 | AR17: 2 | AS17: 4 | AT17: 3 | AU17: 2 | AV17: 3 | AW17: 5 | AX17: 4 | AY17: 4 | AZ17: 3 | BA17: 1 | BB17: 2 | BC17: 1 | BD17: 1 | BE17: 3 | BF17: 2 | BG17: 1 | BH17: 1 | BI17: 1 | BJ17: 1 | BK17: 2 | BL17: 1 | BM17: 1 | BN17: 1 | BO17: 1 | BP17: 1 | BQ17: 1 | BR17: 1 | BS17: 1.1 | BT17: 2.5625 | BU17: 1.666666667 | BV17: 2.111111111 | BW17: 3.785714286 | BX17: 1 | BY17: 1 | BZ17: 1.25 | CA17: 1.857142857 | CB17: 3.111111111 | CC17: 2 | CD17: 1.666666667 | CE17: 1.333333333 | CF17: 3 | CG17: 1.666666667 | CH17: 1.666666667 | CI17: 3.4 | CJ17: 3.8 | CK17: 4.25
A18: 19 | B18: 3 | C18: 3 | D18: 4 | E18: 4 | F18: 5 | M18: 2 | N18: 3 | O18: 4 | P18: 2 | Q18: 2 | R18: 3 | S18: 2 | T18: 3 | U18: 4 | V18: 3 | W18: 5 | X18: 4 | Y18: 4 | Z18: 4 | AA18: 3 | AB18: 3 | AC18: 4 | AD18: 2 | AE18: 4 | AF18: 2 | AG18: 4 | AH18: 5 | AI18: 3 | AJ18: 4 | AK18: 3 | AL18: 4 | AM18: 3 | AN18: 4 | AO18: 3 | AP18: 4 | AQ18: 4 | AR18: 4 | AS18: 4 | AT18: 3 | AU18: 3 | AV18: 5 | AW18: 5 | AX18: 5 | AY18: 3 | AZ18: 3 | BA18: 4 | BB18: 2 | BC18: 3 | BD18: 3 | BE18: 4 | BF18: 3 | BG18: 3 | BH18: 3 | BI18: 3 | BJ18: 3 | BK18: 4 | BL18: 2 | BM18: 4 | BN18: 3 | BO18: 2 | BP18: 3 | BQ18: 2 | BR18: 2 | BS18: 2.8 | BT18: 3.5625 | BU18: 3.111111111 | BV18: 2.777777778 | BW18: 3.857142857 | BX18: 3 | BY18: 3 | BZ18: 2.5 | CA18: 3.714285714 | CB18: 3.444444444 | CC18: 3 | CD18: 3.333333333 | CE18: 3 | CF18: 2.666666667 | CG18: 2.666666667 | CH18: 3 | CI18: 3.8 | CJ18: 3.8 | CK18: 4
A19: 20 | B19: 3 | C19: 3 | D19: 4 | E19: 4 | F19: 5 | M19: 4 | N19: 4 | O19: 3 | P19: 2 | Q19: 3 | R19: 3 | S19: 2 | T19: 3 | U19: 3 | V19: 3 | W19: 3 | X19: 3 | Y19: 3 | Z19: 4 | AA19: 3 | AB19: 3 | AC19: 3 | AD19: 3 | AE19: 4 | AF19: 4 | AG19: 3 | AH19: 3 | AI19: 3 | AJ19: 3 | AK19: 3 | AL19: 4 | AM19: 2 | AN19: 3 | AO19: 4 | AP19: 4 | AQ19: 3 | AR19: 4 | AS19: 4 | AT19: 4 | AU19: 2 | AV19: 3 | AW19: 4 | AX19: 3 | AY19: 1 | AZ19: 3 | BA19: 3 | BB19: 3 | BC19: 2 | BD19: 3 | BE19: 3 | BF19: 4 | BG19: 3 | BH19: 3 | BI19: 2 | BJ19: 3 | BK19: 2 | BL19: 2 | BM19: 4 | BN19: 3 | BO19: 3 | BP19: 3 | BQ19: 3 | BR19: 3 | BS19: 2.8 | BT19: 3.1875 | BU19: 3 | BV19: 3 | BW19: 3.214285714 | BX19: 2.666666667 | BY19: 3.333333333 | BZ19: 2.5 | CA19: 3.142857143 | CB19: 3.222222222 | CC19: 3 | CD19: 2.666666667 | CE19: 3.333333333 | CF19: 2.666666667 | CG19: 3.666666667 | CH19: 2.666666667 | CI19: 2.8 | CJ19: 3.2 | CK19: 3.75
A20: 21 | B20: 3 | C20: 3 | D20: 4 | E20: 4 | F20: 4 | M20: 3 | N20: 3 | O20: 3 | P20: 4 | Q20: 4 | R20: 3 | S20: 2 | T20: 2 | U20: 3 | V20: 2 | W20: 2 | X20: 2 | Y20: 2 | Z20: 3 | AA20: 3 | AB20: 4 | AC20: 4 | AD20: 3 | AE20: 4 | AF20: 4 | AG20: 2 | AH20: 4 | AI20: 4 | AJ20: 4 | AK20: 3 | AL20: 3 | AM20: 5 | AN20: 4 | AO20: 4 | AP20: 4 | AQ20: 2 | AR20: 4 | AS20: 5 | AT20: 4 | AU20: 4 | AV20: 3 | AW20: 4 | AX20: 3 | AY20: 3 | AZ20: 3 | BA20: 5 | BB20: 3 | BC20: 2 | BD20: 2 | BE20: 3 | BF20: 4 | BG20: 2 | BH20: 2 | BI20: 2 | BJ20: 4 | BK20: 3 | BL20: 2 | BM20: 4 | BN20: 2 | BO20: 3 | BP20: 2 | BQ20: 2 | BR20: 2 | BS20: 2.6 | BT20: 3.125 | BU20: 2.888888889 | BV20: 3 | BW20: 3.714285714 | BX20: 2.666666667 | BY20: 3 | BZ20: 2.25 | CA20: 2.571428571 | CB20: 3.555555556 | CC20: 3.666666667 | CD20: 2.333333333 | CE20: 2.666666667 | CF20: 3.666666667 | CG20: 3 | CH20: 2.333333333 | CI20: 3.8 | CJ20: 3.6 | CK20: 3.75
A21: 22 | B21: 3 | C21: 3 | D21: 4 | E21: 4 | F21: 5 | M21: 2 | N21: 4 | O21: 3 | P21: 2 | Q21: 3 | R21: 3 | S21: 3 | T21: 4 | U21: 3 | V21: 3 | W21: 3 | X21: 2 | Y21: 3 | Z21: 4 | AA21: 3 | AB21: 4 | AC21: 2 | AD21: 2 | AE21: 3 | AF21: 2 | AG21: 4 | AH21: 4 | AI21: 3 | AJ21: 4 | AK21: 3 | AL21: 2 | AM21: 3 | AN21: 5 | AO21: 3 | AP21: 3 | AQ21: 3 | AR21: 3 | AS21: 3 | AT21: 4 | AU21: 3 | AV21: 3 | AW21: 4 | AX21: 3 | AY21: 3 | AZ21: 3 | BA21: 4 | BB21: 4 | BC21: 3 | BD21: 3 | BE21: 4 | BF21: 3 | BG21: 3 | BH21: 4 | BI21: 2 | BJ21: 4 | BK21: 3 | BL21: 3 | BM21: 3 | BN21: 3 | BO21: 4 | BP21: 3 | BQ21: 3 | BR21: 3 | BS21: 3.1 | BT21: 3.0625 | BU21: 3.444444444 | BV21: 3 | BW21: 3.214285714 | BX21: 3 | BY21: 3.333333333 | BZ21: 3 | CA21: 3.142857143 | CB21: 3 | CC21: 3.666666667 | CD21: 3.333333333 | CE21: 3.333333333 | CF21: 2.666666667 | CG21: 3 | CH21: 3.333333333 | CI21: 3.2 | CJ21: 3 | CK21: 3.5
A22: 23 | B22: 3 | C22: 3 | D22: 4 | E22: 4 | F22: 5 | M22: 1 | N22: 2 | O22: 3 | P22: 3 | Q22: 2 | R22: 2 | S22: 2 | T22: 1 | U22: 4 | V22: 3 | W22: 3 | X22: 2 | Y22: 2 | Z22: 3 | AA22: 2 | AB22: 4 | AC22: 4 | AD22: 1 | AE22: 3 | AF22: 2 | AG22: 2 | AH22: 3 | AI22: 2 | AJ22: 2 | AK22: 2 | AL22: 5 | AM22: 3 | AN22: 5 | AO22: 3 | AP22: 5 | AQ22: 3 | AR22: 4 | AS22: 5 | AT22: 4 | AU22: 4 | AV22: 5 | AW22: 5 | AX22: 5 | AY22: 3 | AZ22: 3 | BA22: 4 | BB22: 2 | BC22: 1 | BD22: 1 | BE22: 2 | BF22: 2 | BG22: 2 | BH22: 2 | BI22: 1 | BJ22: 1 | BK22: 2 | BL22: 2 | BM22: 2 | BN22: 1 | BO22: 2 | BP22: 3 | BQ22: 1 | BR22: 1 | BS22: 1.6 | BT22: 2.5 | BU22: 2.111111111 | BV22: 2.222222222 | BW22: 4.214285714 | BX22: 1.666666667 | BY22: 1.666666667 | BZ22: 1.5 | CA22: 2.714285714 | CB22: 2.333333333 | CC22: 3 | CD22: 1.333333333 | CE22: 2 | CF22: 2.666666667 | CG22: 1.666666667 | CH22: 2.333333333 | CI22: 4.4 | CJ22: 4 | CK22: 4.25
A23: 24 | B23: 3 | C23: 3 | D23: 4 | E23: 4 | F23: 1 | M23: 4 | N23: 4 | O23: 5 | P23: 5 | Q23: 5 | R23: 4 | S23: 3 | T23: 3 | U23: 2 | V23: 4 | W23: 4 | X23: 4 | Y23: 5 | Z23: 4 | AA23: 4 | AB23: 4 | AC23: 5 | AD23: 4 | AE23: 4 | AF23: 2 | AG23: 3 | AH23: 5 | AI23: 4 | AJ23: 3 | AK23: 3 | AL23: 4 | AM23: 3 | AN23: 5 | AO23: 3 | AP23: 5 | AQ23: 5 | AR23: 4 | AS23: 4 | AT23: 5 | AU23: 4 | AV23: 3 | AW23: 4 | AX23: 4 | AY23: 3 | AZ23: 4 | BA23: 4 | BB23: 5 | BC23: 4 | BD23: 4 | BE23: 5 | BF23: 5 | BG23: 4 | BH23: 3 | BI23: 4 | BJ23: 4 | BK23: 5 | BL23: 3 | BM23: 4 | BN23: 4 | BO23: 3 | BP23: 3 | BQ23: 3 | BR23: 3 | BS23: 3.6 | BT23: 3.875 | BU23: 4.222222222 | BV23: 3.888888889 | BW23: 4 | BX23: 3.666666667 | BY23: 3.666666667 | BZ23: 3.5 | CA23: 4.142857143 | CB23: 3.666666667 | CC23: 4.333333333 | CD23: 4.333333333 | CE23: 4 | CF23: 5 | CG23: 4 | CH23: 2.666666667 | CI23: 4 | CJ23: 3.6 | CK23: 4.5
A24: 25 | B24: 3 | C24: 3 | D24: 4 | E24: 4 | F24: 1 | M24: 1 | N24: 3 | O24: 3 | P24: 3 | Q24: 3 | R24: 3 | S24: 2 | T24: 3 | U24: 3 | V24: 1 | W24: 2 | X24: 2 | Y24: 2 | Z24: 4 | AA24: 3 | AB24: 3 | AC24: 3 | AD24: 3 | AE24: 3 | AF24: 3 | AG24: 1 | AH24: 3 | AI24: 3 | AJ24: 1 | AK24: 1 | AL24: 3 | AM24: 3 | AN24: 5 | AO24: 1 | AP24: 1 | AQ24: 2 | AR24: 4 | AS24: 2 | AT24: 5 | AU24: 5 | AV24: 1 | AW24: 5 | AX24: 2 | AY24: 1 | AZ24: 3 | BA24: 3 | BB24: 3 | BC24: 3 | BD24: 3 | BE24: 3 | BF24: 3 | BG24: 3 | BH24: 3 | BI24: 1 | BJ24: 1 | BK24: 1 | BL24: 1 | BM24: 1 | BN24: 1 | BO24: 1 | BP24: 1 | BQ24: 1 | BR24: 1 | BS24: 1 | BT24: 2.375 | BU24: 3 | BV24: 2.666666667 | BW24: 2.857142857 | BX24: 1 | BY24: 1 | BZ24: 1 | CA24: 2.428571429 | CB24: 2.333333333 | CC24: 3 | CD24: 3 | CE24: 3 | CF24: 3 | CG24: 2.333333333 | CH24: 2.666666667 | CI24: 3.6 | CJ24: 1.6 | CK24: 3.5
A25: 26 | B25: 3 | C25: 3 | D25: 4 | E25: 4 | F25: 1 | M25: 4 | N25: 2 | O25: 4 | P25: 4 | Q25: 3 | R25: 3 | S25: 4 | T25: 3 | U25: 3 | V25: 4 | W25: 5 | X25: 3 | Y25: 3 | Z25: 5 | AA25: 3 | AB25: 4 | AC25: 3 | AD25: 2 | AE25: 4 | AF25: 3 | AG25: 3 | AH25: 4 | AI25: 3 | AJ25: 3 | AK25: 3 | AL25: 3 | AM25: 3 | AN25: 4 | AO25: 4 | AP25: 4 | AQ25: 4 | AR25: 4 | AS25: 4 | AT25: 2 | AU25: 5 | AV25: 4 | AW25: 4 | AX25: 4 | AY25: 4 | AZ25: 3 | BA25: 4 | BB25: 3 | BC25: 3 | BD25: 3 | BE25: 3 | BF25: 3 | BG25: 3 | BH25: 3 | BI25: 3 | BJ25: 4 | BK25: 3 | BL25: 4 | BM25: 3 | BN25: 3 | BO25: 3 | BP25: 3 | BQ25: 3 | BR25: 3 | BS25: 3.2 | BT25: 3.4375 | BU25: 3.111111111 | BV25: 3.333333333 | BW25: 3.785714286 | BX25: 3.333333333 | BY25: 3 | BZ25: 3.25 | CA25: 3.857142857 | CB25: 3.111111111 | CC25: 3.333333333 | CD25: 3 | CE25: 3 | CF25: 3.666666667 | CG25: 3 | CH25: 3.333333333 | CI25: 3.8 | CJ25: 4 | CK25: 3.5
A26: 27 | B26: 3 | C26: 3 | D26: 4 | E26: 4 | F26: 5 | M26: 2 | N26: 2 | O26: 2 | P26: 3 | Q26: 3 | R26: 2 | S26: 1 | T26: 2 | U26: 2 | V26: 3 | W26: 3 | X26: 3 | Y26: 3 | Z26: 4 | AA26: 3 | AB26: 5 | AC26: 4 | AD26: 3 | AE26: 3 | AF26: 3 | AG26: 4 | AH26: 4 | AI26: 3 | AJ26: 3 | AK26: 4 | AL26: 3 | AM26: 3 | AN26: 5 | AO26: 3 | AP26: 5 | AQ26: 3 | AR26: 4 | AS26: 4 | AT26: 4 | AU26: 5 | AV26: 3 | AW26: 4 | AX26: 4 | AY26: 4 | AZ26: 2 | BA26: 4 | BB26: 3 | BC26: 3 | BD26: 2 | BE26: 3 | BF26: 4 | BG26: 3 | BH26: 2 | BI26: 2 | BJ26: 3 | BK26: 3 | BL26: 3 | BM26: 4 | BN26: 2 | BO26: 2 | BP26: 2 | BQ26: 2 | BR26: 2 | BS26: 2.5 | BT26: 3.4375 | BU26: 2.888888889 | BV26: 2.111111111 | BW26: 3.857142857 | BX26: 2.333333333 | BY26: 2.666666667 | BZ26: 2.5 | CA26: 3.428571429 | CB26: 3.444444444 | CC26: 3 | CD26: 2.666666667 | CE26: 3 | CF26: 2.666666667 | CG26: 2 | CH26: 1.666666667 | CI26: 4 | CJ26: 3.8 | CK26: 3.75
A27: 28 | B27: 3 | C27: 3 | D27: 4 | E27: 4 | F27: 5 | M27: 2 | N27: 4 | O27: 2 | P27: 2 | Q27: 2 | R27: 2 | S27: 2 | T27: 2 | U27: 3 | V27: 2 | W27: 2 | X27: 2 | Y27: 3 | Z27: 4 | AA27: 3 | AB27: 3 | AC27: 4 | AD27: 4 | AE27: 4 | AF27: 4 | AG27: 4 | AH27: 4 | AI27: 4 | AJ27: 2 | AK27: 2 | AL27: 5 | AM27: 3 | AN27: 4 | AO27: 3 | AP27: 3 | AQ27: 3 | AR27: 4 | AS27: 4 | AT27: 3 | AU27: 4 | AV27: 3 | AW27: 4 | AX27: 3 | AY27: 3 | AZ27: 3 | BA27: 5 | BB27: 2 | BC27: 2 | BD27: 2 | BE27: 3 | BF27: 3 | BG27: 3 | BH27: 3 | BI27: 2 | BJ27: 3 | BK27: 2 | BL27: 3 | BM27: 4 | BN27: 2 | BO27: 2 | BP27: 3 | BQ27: 2 | BR27: 3 | BS27: 2.6 | BT27: 3.1875 | BU27: 2.888888889 | BV27: 2.333333333 | BW27: 3.5 | BX27: 2.666666667 | BY27: 2.666666667 | BZ27: 2.5 | CA27: 2.714285714 | CB27: 3.555555556 | CC27: 3.333333333 | CD27: 2.333333333 | CE27: 3 | CF27: 2 | CG27: 2.666666667 | CH27: 2.333333333 | CI27: 3.8 | CJ27: 3.2 | CK27: 3.5
A28: 29 | B28: 3 | C28: 3 | D28: 4 | E28: 4 | F28: 5 | M28: 3 | N28: 3 | O28: 3 | P28: 2 | Q28: 2 | R28: 3 | S28: 2 | T28: 2 | U28: 3 | V28: 2 | W28: 2 | X28: 2 | Y28: 2 | Z28: 4 | AA28: 2 | AB28: 4 | AC28: 3 | AD28: 2 | AE28: 2 | AF28: 2 | AG28: 3 | AH28: 2 | AI28: 3 | AJ28: 3 | AK28: 3 | AL28: 3 | AM28: 3 | AN28: 3 | AO28: 1 | AP28: 2 | AQ28: 3 | AR28: 5 | AS28: 3 | AT28: 3 | AU28: 2 | AV28: 2 | AW28: 1 | AX28: 2 | AY28: 3 | AZ28: 3 | BA28: 4 | BB28: 2 | BC28: 2 | BD28: 2 | BE28: 3 | BF28: 2 | BG28: 2 | BH28: 2 | BI28: 2 | BJ28: 2 | BK28: 3 | BL28: 3 | BM28: 4 | BN28: 3 | BO28: 4 | BP28: 2 | BQ28: 2 | BR28: 3 | BS28: 2.8 | BT28: 2.5625 | BU28: 2.444444444 | BV28: 2.555555556 | BW28: 2.571428571 | BX28: 2 | BY28: 3.666666667 | BZ28: 2.75 | CA28: 2.571428571 | CB28: 2.555555556 | CC28: 3 | CD28: 2.333333333 | CE28: 2 | CF28: 2.333333333 | CG28: 3 | CH28: 2.333333333 | CI28: 2.6 | CJ28: 2.6 | CK28: 2.5
A29: 30 | B29: 3 | C29: 3 | D29: 4 | E29: 4 | F29: 1 | M29: 2 | N29: 3 | O29: 3 | P29: 4 | Q29: 4 | R29: 2 | S29: 2 | T29: 2 | U29: 4 | V29: 4 | W29: 4 | X29: 3 | Y29: 3 | Z29: 4 | AA29: 4 | AB29: 4 | AC29: 2 | AD29: 2 | AE29: 4 | AF29: 3 | AG29: 3 | AH29: 4 | AI29: 4 | AJ29: 4 | AK29: 2 | AL29: 5 | AM29: 3 | AN29: 4 | AO29: 2 | AP29: 1 | AQ29: 5 | AR29: 4 | AS29: 1 | AT29: 2 | AU29: 2 | AV29: 3 | AW29: 3 | AX29: 4 | AY29: 3 | AZ29: 2 | BA29: 4 | BB29: 3 | BC29: 3 | BD29: 2 | BE29: 4 | BF29: 4 | BG29: 3 | BH29: 2 | BI29: 2 | BJ29: 3 | BK29: 3 | BL29: 3 | BM29: 4 | BN29: 2 | BO29: 2 | BP29: 3 | BQ29: 2 | BR29: 3 | BS29: 2.7 | BT29: 3.375 | BU29: 3 | BV29: 2.888888889 | BW29: 3 | BX29: 2.666666667 | BY29: 2.666666667 | BZ29: 2.75 | CA29: 3.714285714 | CB29: 3.111111111 | CC29: 3 | CD29: 3 | CE29: 3 | CF29: 3.666666667 | CG29: 2.333333333 | CH29: 2.666666667 | CI29: 3.6 | CJ29: 2.6 | CK29: 2.75
A30: 32 | B30: 3 | C30: 3 | D30: 4 | E30: 5 | F30: 5 | M30: 2 | N30: 1 | O30: 1 | P30: 1 | Q30: 2 | R30: 1 | S30: 1 | T30: 2 | U30: 1 | V30: 2 | W30: 2 | X30: 2 | Y30: 3 | Z30: 5 | AA30: 4 | AB30: 2 | AC30: 4 | AD30: 3 | AE30: 4 | AF30: 3 | AG30: 4 | AH30: 4 | AI30: 3 | AJ30: 1 | AK30: 2 | AL30: 2 | AM30: 3 | AN30: 4 | AO30: 3 | AP30: 3 | AQ30: 1 | AR30: 5 | AS30: 4 | AT30: 2 | AU30: 2 | AV30: 1 | AW30: 4 | AX30: 1 | AY30: 4 | AZ30: 1 | BA30: 5 | BB30: 2 | BC30: 2 | BD30: 1 | BE30: 2 | BF30: 3 | BG30: 2 | BH30: 2 | BI30: 2 | BJ30: 2 | BK30: 2 | BL30: 2 | BM30: 3 | BN30: 1 | BO30: 2 | BP30: 2 | BQ30: 1 | BR30: 1 | BS30: 1.8 | BT30: 3 | BU30: 2.222222222 | BV30: 1.333333333 | BW30: 2.785714286 | BX30: 2 | BY30: 2 | BZ30: 1.5 | CA30: 2.857142857 | CB30: 3.111111111 | CC30: 2.666666667 | CD30: 1.666666667 | CE30: 2.333333333 | CF30: 1.333333333 | CG30: 1.333333333 | CH30: 1.333333333 | CI30: 2.4 | CJ30: 3.2 | CK30: 2.75
A31: 33 | B31: 3 | C31: 3 | D31: 4 | E31: 5 | F31: 5 | M31: 2 | N31: 2 | O31: 2 | P31: 3 | Q31: 3 | R31: 2 | S31: 2 | T31: 2 | U31: 2 | V31: 3 | W31: 3 | X31: 4 | Y31: 3 | Z31: 3 | AA31: 3 | AB31: 4 | AC31: 3 | AD31: 3 | AE31: 3 | AF31: 3 | AG31: 3 | AH31: 3 | AI31: 2 | AJ31: 3 | AK31: 4 | AL31: 4 | AM31: 3 | AN31: 4 | AO31: 3 | AP31: 3 | AQ31: 3 | AR31: 5 | AS31: 3 | AT31: 3 | AU31: 5 | AV31: 2 | AW31: 4 | AX31: 3 | AY31: 1 | AZ31: 2 | BA31: 1 | BB31: 2 | BC31: 3 | BD31: 3 | BE31: 3 | BF31: 3 | BG31: 3 | BH31: 3 | BI31: 2 | BJ31: 1 | BK31: 2 | BL31: 2 | BM31: 2 | BN31: 2 | BO31: 2 | BP31: 2 | BQ31: 2 | BR31: 3 | BS31: 2 | BT31: 3.125 | BU31: 2.555555556 | BV31: 2.222222222 | BW31: 3.285714286 | BX31: 1.666666667 | BY31: 2 | BZ31: 2.25 | CA31: 3.285714286 | CB31: 3 | CC31: 1.666666667 | CD31: 3 | CE31: 3 | CF31: 2.666666667 | CG31: 2 | CH31: 2 | CI31: 3.8 | CJ31: 2.8 | CK31: 3.25
A32: 34 | B32: 3 | C32: 3 | D32: 4 | E32: 5 | F32: 5 | M32: 4 | N32: 4 | O32: 4 | P32: 3 | Q32: 4 | R32: 2 | S32: 4 | T32: 3 | U32: 4 | V32: 4 | W32: 4 | X32: 4 | Y32: 3 | Z32: 5 | AA32: 4 | AB32: 4 | AC32: 4 | AD32: 4 | AE32: 4 | AF32: 4 | AG32: 4 | AH32: 4 | AI32: 4 | AJ32: 3 | AK32: 5 | AL32: 5 | AM32: 4 | AN32: 5 | AO32: 4 | AP32: 5 | AQ32: 5 | AR32: 4 | AS32: 4 | AT32: 4 | AU32: 4 | AV32: 5 | AW32: 5 | AX32: 5 | AY32: 5 | AZ32: 3 | BA32: 5 | BB32: 4 | BC32: 4 | BD32: 3 | BE32: 3 | BF32: 4 | BG32: 4 | BH32: 4 | BI32: 4 | BJ32: 4 | BK32: 4 | BL32: 4 | BM32: 3 | BN32: 3 | BO32: 4 | BP32: 4 | BQ32: 4 | BR32: 4 | BS32: 3.8 | BT32: 4 | BU32: 3.777777778 | BV32: 3.555555556 | BW32: 4.571428571 | BX32: 4 | BY32: 3.333333333 | BZ32: 4 | CA32: 4 | CB32: 4 | CC32: 4 | CD32: 3.333333333 | CE32: 4 | CF32: 3.666666667 | CG32: 3.333333333 | CH32: 3.666666667 | CI32: 4.6 | CJ32: 4.6 | CK32: 4.5
A33: 35 | B33: 3 | C33: 3 | D33: 4 | E33: 5 | F33: 5 | M33: 3 | N33: 4 | O33: 1 | P33: 1 | Q33: 1 | R33: 1 | S33: 1 | T33: 3 | U33: 3 | V33: 5 | W33: 3 | X33: 3 | Y33: 3 | Z33: 5 | AA33: 5 | AB33: 3 | AC33: 5 | AD33: 5 | AE33: 5 | AF33: 5 | AG33: 5 | AH33: 5 | AI33: 4 | AJ33: 3 | AK33: 3 | AL33: 4 | AM33: 3 | AN33: 5 | AO33: 2 | AP33: 4 | AQ33: 5 | AR33: 5 | AS33: 4 | AT33: 4 | AU33: 5 | AV33: 5 | AW33: 1 | AX33: 1 | AY33: 2 | AZ33: 1 | BA33: 5 | BB33: 1 | BC33: 1 | BD33: 1 | BE33: 4 | BF33: 1 | BG33: 1 | BH33: 1 | BI33: 1 | BJ33: 3 | BK33: 4 | BL33: 2 | BM33: 3 | BN33: 2 | BO33: 2 | BP33: 2 | BQ33: 2 | BR33: 2 | BS33: 2.3 | BT33: 4.1875 | BU33: 1.777777778 | BV33: 2 | BW33: 3.571428571 | BX33: 2 | BY33: 2.333333333 | BZ33: 2.5 | CA33: 3.857142857 | CB33: 4.444444444 | CC33: 2.333333333 | CD33: 2 | CE33: 1 | CF33: 1 | CG33: 2.666666667 | CH33: 2.333333333 | CI33: 3.6 | CJ33: 3.6 | CK33: 3.5
A34: 36 | B34: 3 | C34: 3 | D34: 4 | E34: 5 | F34: 5 | M34: 4 | N34: 4 | O34: 3 | P34: 3 | Q34: 2 | R34: 1 | S34: 1 | T34: 1 | U34: 1 | V34: 5 | W34: 5 | X34: 1 | Y34: 1 | Z34: 5 | AA34: 3 | AB34: 4 | AC34: 3 | AD34: 3 | AE34: 4 | AF34: 3 | AG34: 4 | AH34: 4 | AI34: 4 | AJ34: 1 | AK34: 5 | AL34: 4 | AM34: 3 | AN34: 3 | AO34: 4 | AP34: 3 | AQ34: 4 | AR34: 4 | AS34: 5 | AT34: 4 | AU34: 4 | AV34: 5 | AW34: 4 | AX34: 3 | AY34: 4 | AZ34: 2 | BA34: 5 | BB34: 2 | BC34: 3 | BD34: 1 | BE34: 3 | BF34: 3 | BG34: 3 | BH34: 2 | BI34: 2 | BJ34: 2 | BK34: 1 | BL34: 4 | BM34: 3 | BN34: 1 | BO34: 2 | BP34: 2 | BQ34: 1 | BR34: 2 | BS34: 2 | BT34: 3.4375 | BU34: 2.666666667 | BV34: 2.222222222 | BW34: 3.857142857 | BX34: 2 | BY34: 2 | BZ34: 2 | CA34: 3.428571429 | CB34: 3.444444444 | CC34: 3 | CD34: 2.333333333 | CE34: 2.666666667 | CF34: 2.666666667 | CG34: 3 | CH34: 1 | CI34: 3.4 | CJ34: 4 | CK34: 4.25
A35: 37 | B35: 3 | C35: 3 | D35: 4 | E35: 5 | F35: 5 | M35: 2 | N35: 3 | O35: 2 | P35: 2 | Q35: 2 | R35: 2 | S35: 2 | T35: 2 | U35: 3 | V35: 3 | W35: 4 | X35: 2 | Y35: 3 | Z35: 4 | AA35: 3 | AB35: 3 | AC35: 3 | AD35: 3 | AE35: 3 | AF35: 4 | AG35: 3 | AH35: 4 | AI35: 2 | AJ35: 4 | AK35: 2 | AL35: 2 | AM35: 3 | AN35: 3 | AO35: 3 | AP35: 3 | AQ35: 2 | AR35: 3 | AS35: 3 | AT35: 3 | AU35: 3 | AV35: 4 | AW35: 3 | AX35: 5 | AY35: 4 | AZ35: 3 | BA35: 4 | BB35: 2 | BC35: 4 | BD35: 2 | BE35: 3 | BF35: 3 | BG35: 2 | BH35: 3 | BI35: 2 | BJ35: 4 | BK35: 4 | BL35: 4 | BM35: 3 | BN35: 3 | BO35: 4 | BP35: 3 | BQ35: 2 | BR35: 4 | BS35: 3.3 | BT35: 3.125 | BU35: 2.888888889 | BV35: 2.222222222 | BW35: 3.142857143 | BX35: 3 | BY35: 3.333333333 | BZ35: 3.5 | CA35: 3.142857143 | CB35: 3.111111111 | CC35: 3 | CD35: 3 | CE35: 2.666666667 | CF35: 2 | CG35: 2.333333333 | CH35: 2.333333333 | CI35: 3.2 | CJ35: 3.4 | CK35: 2.75
A36: 38 | B36: 3 | C36: 3 | D36: 4 | E36: 5 | F36: 5 | M36: 3 | N36: 5 | O36: 4 | P36: 4 | Q36: 3 | R36: 3 | S36: 3 | T36: 4 | U36: 4 | V36: 3 | W36: 1 | X36: 1 | Y36: 3 | Z36: 4 | AA36: 4 | AB36: 1 | AC36: 4 | AD36: 4 | AE36: 4 | AF36: 4 | AG36: 2 | AH36: 4 | AI36: 4 | AJ36: 5 | AK36: 4 | AL36: 4 | AM36: 3 | AN36: 4 | AO36: 3 | AP36: 5 | AQ36: 5 | AR36: 4 | AS36: 4 | AT36: 5 | AU36: 4 | AV36: 3 | AW36: 5 | AX36: 5 | AY36: 3 | AZ36: 4 | BA36: 4 | BB36: 4 | BC36: 4 | BD36: 4 | BE36: 4 | BF36: 4 | BG36: 4 | BH36: 4 | BI36: 4 | BJ36: 4 | BK36: 4 | BL36: 3 | BM36: 4 | BN36: 4 | BO36: 5 | BP36: 4 | BQ36: 4 | BR36: 4 | BS36: 4 | BT36: 3.25 | BU36: 4 | BV36: 3.666666667 | BW36: 4.071428571 | BX36: 4 | BY36: 4.333333333 | BZ36: 3.75 | CA36: 2.428571429 | CB36: 3.888888889 | CC36: 4 | CD36: 4 | CE36: 4 | CF36: 3.666666667 | CG36: 3.666666667 | CH36: 3.666666667 | CI36: 4 | CJ36: 3.6 | CK36: 4.75
A37: 39 | B37: 3 | C37: 3 | D37: 7 | E37: 5 | F37: 5 | M37: 2 | N37: 3 | O37: 2 | P37: 2 | Q37: 4 | R37: 2 | S37: 2 | T37: 3 | U37: 2 | V37: 4 | W37: 4 | X37: 3 | Y37: 3 | Z37: 4 | AA37: 4 | AB37: 4 | AC37: 4 | AD37: 3 | AE37: 3 | AF37: 4 | AG37: 3 | AH37: 4 | AI37: 4 | AJ37: 3 | AK37: 3 | AL37: 4 | AM37: 3 | AN37: 4 | AO37: 3 | AP37: 3 | AQ37: 3 | AR37: 4 | AS37: 5 | AT37: 4 | AU37: 3 | AV37: 5 | AW37: 5 | AX37: 4 | AY37: 4 | AZ37: 3 | BA37: 5 | BB37: 3 | BC37: 3 | BD37: 3 | BE37: 3 | BF37: 4 | BG37: 4 | BH37: 4 | BI37: 2 | BJ37: 3 | BK37: 3 | BL37: 4 | BM37: 4 | BN37: 2 | BO37: 3 | BP37: 3 | BQ37: 3 | BR37: 2 | BS37: 2.9 | BT37: 3.5625 | BU37: 3.555555556 | BV37: 2.444444444 | BW37: 3.857142857 | BX37: 2.666666667 | BY37: 3 | BZ37: 3 | CA37: 3.714285714 | CB37: 3.444444444 | CC37: 3.666666667 | CD37: 3 | CE37: 4 | CF37: 2.666666667 | CG37: 2.333333333 | CH37: 2.333333333 | CI37: 3.6 | CJ37: 3.8 | CK37: 4.25
A38: 40 | B38: 3 | C38: 3 | D38: 6 | E38: 4 | F38: 1 | M38: 3 | N38: 4 | O38: 4 | P38: 4 | Q38: 4 | R38: 2 | S38: 2 | T38: 4 | U38: 4 | V38: 3 | W38: 2 | X38: 2 | Y38: 2 | Z38: 3 | AA38: 3 | AB38: 4 | AC38: 3 | AD38: 3 | AE38: 3 | AF38: 2 | AG38: 3 | AH38: 4 | AI38: 4 | AJ38: 3 | AK38: 4 | AL38: 4 | AM38: 3 | AN38: 4 | AO38: 3 | AP38: 3 | AQ38: 4 | AR38: 4 | AS38: 5 | AT38: 3 | AU38: 2 | AV38: 5 | AW38: 4 | AX38: 4 | AY38: 4 | AZ38: 3 | BA38: 3 | BB38: 3 | BC38: 2 | BD38: 3 | BE38: 4 | BF38: 4 | BG38: 4 | BH38: 4 | BI38: 3 | BJ38: 2 | BK38: 3 | BL38: 3 | BM38: 4 | BN38: 3 | BO38: 3 | BP38: 4 | BQ38: 2 | BR38: 3 | BS38: 3 | BT38: 3 | BU38: 3.333333333 | BV38: 3.444444444 | BW38: 3.714285714 | BX38: 3 | BY38: 3.333333333 | BZ38: 2.75 | CA38: 2.714285714 | CB38: 3.222222222 | CC38: 3 | CD38: 3 | CE38: 4 | CF38: 4 | CG38: 3 | CH38: 3.333333333 | CI38: 3.4 | CJ38: 3.8 | CK38: 4
A39: 41 | B39: 3 | C39: 3 | D39: 6 | E39: 4 | F39: 2 | M39: 5 | N39: 5 | O39: 5 | P39: 5 | Q39: 5 | R39: 4 | S39: 4 | T39: 4 | U39: 5 | V39: 4 | W39: 5 | X39: 4 | Y39: 4 | Z39: 4 | AA39: 4 | AB39: 4 | AC39: 4 | AD39: 5 | AE39: 4 | AF39: 4 | AG39: 5 | AH39: 5 | AI39: 5 | AJ39: 4 | AK39: 4 | AL39: 4 | AM39: 3 | AN39: 4 | AO39: 3 | AP39: 5 | AQ39: 3 | AR39: 3 | AS39: 5 | AT39: 3 | AU39: 5 | AV39: 5 | AW39: 5 | AX39: 3 | AY39: 3 | AZ39: 5 | BA39: 5 | BB39: 4 | BC39: 4 | BD39: 3 | BE39: 4 | BF39: 4 | BG39: 4 | BH39: 4 | BI39: 3 | BJ39: 3 | BK39: 4 | BL39: 4 | BM39: 5 | BN39: 4 | BO39: 4 | BP39: 4 | BQ39: 4 | BR39: 4 | BS39: 3.9 | BT39: 4.3125 | BU39: 4.111111111 | BV39: 4.666666667 | BW39: 3.857142857 | BX39: 3.333333333 | BY39: 4.333333333 | BZ39: 4 | CA39: 4.142857143 | CB39: 4.444444444 | CC39: 4.666666667 | CD39: 3.666666667 | CE39: 4 | CF39: 5 | CG39: 4.666666667 | CH39: 4.333333333 | CI39: 3.8 | CJ39: 3.8 | CK39: 4
A40: 42 | B40: 3 | C40: 3 | D40: 6 | E40: 4 | F40: 5 | M40: 3 | N40: 3 | O40: 3 | P40: 4 | Q40: 4 | R40: 3 | S40: 3 | T40: 4 | U40: 4 | V40: 3 | W40: 3 | X40: 3 | Y40: 3 | Z40: 4 | AA40: 3 | AB40: 4 | AC40: 3 | AD40: 2 | AE40: 2 | AF40: 3 | AG40: 2 | AH40: 2 | AI40: 2 | AJ40: 2 | AK40: 2 | AL40: 5 | AM40: 3 | AN40: 3 | AO40: 4 | AP40: 3 | AQ40: 3 | AR40: 2 | AS40: 4 | AT40: 4 | AU40: 5 | AV40: 5 | AW40: 5 | AX40: 5 | AY40: 4 | AZ40: 1 | BA40: 2 | BB40: 4 | BC40: 2 | BD40: 3 | BE40: 3 | BF40: 3 | BG40: 3 | BH40: 3 | BI40: 2 | BJ40: 2 | BK40: 2 | BL40: 1 | BM40: 4 | BN40: 4 | BO40: 4 | BP40: 1 | BQ40: 3 | BR40: 1 | BS40: 2.4 | BT40: 2.6875 | BU40: 2.666666667 | BV40: 3.444444444 | BW40: 3.928571429 | BX40: 1.666666667 | BY40: 4 | BZ40: 1.75 | CA40: 3.285714286 | CB40: 2.222222222 | CC40: 2.333333333 | CD40: 2.666666667 | CE40: 3 | CF40: 3.666666667 | CG40: 3 | CH40: 3.666666667 | CI40: 4.2 | CJ40: 3.6 | CK40: 4
A41: 43 | B41: 3 | C41: 3 | D41: 6 | E41: 4 | F41: 5 | M41: 3 | N41: 3 | O41: 3 | P41: 4 | Q41: 3 | R41: 3 | S41: 3 | T41: 3 | U41: 3 | V41: 2 | W41: 4 | X41: 3 | Y41: 4 | Z41: 4 | AA41: 3 | AB41: 4 | AC41: 4 | AD41: 4 | AE41: 4 | AF41: 4 | AG41: 3 | AH41: 4 | AI41: 4 | AJ41: 3 | AK41: 2 | AL41: 5 | AM41: 4 | AN41: 4 | AO41: 3 | AP41: 5 | AQ41: 3 | AR41: 4 | AS41: 4 | AT41: 4 | AU41: 5 | AV41: 5 | AW41: 4 | AX41: 5 | AY41: 4 | AZ41: 3 | BA41: 4 | BB41: 4 | BC41: 3 | BD41: 3 | BE41: 3 | BF41: 3 | BG41: 4 | BH41: 3 | BI41: 3 | BJ41: 3 | BK41: 4 | BL41: 3 | BM41: 3 | BN41: 3 | BO41: 4 | BP41: 3 | BQ41: 3 | BR41: 3 | BS41: 3.2 | BT41: 3.5 | BU41: 3.333333333 | BV41: 3.111111111 | BW41: 4.214285714 | BX41: 3 | BY41: 3.333333333 | BZ41: 3.25 | CA41: 3.428571429 | CB41: 3.555555556 | CC41: 3.666666667 | CD41: 3 | CE41: 3.333333333 | CF41: 3.333333333 | CG41: 3 | CH41: 3 | CI41: 4.6 | CJ41: 4.2 | CK41: 3.75
A42: 44 | B42: 3 | C42: 3 | D42: 6 | E42: 4 | F42: 5 | M42: 3 | N42: 3 | O42: 3 | P42: 3 | Q42: 3 | R42: 3 | S42: 3 | T42: 3 | U42: 2 | V42: 3 | W42: 3 | X42: 2 | Y42: 2 | Z42: 4 | AA42: 3 | AB42: 4 | AC42: 3 | AD42: 3 | AE42: 2 | AF42: 2 | AG42: 3 | AH42: 3 | AI42: 2 | AJ42: 2 | AK42: 2 | AL42: 5 | AM42: 5 | AN42: 4 | AO42: 4 | AP42: 3 | AQ42: 4 | AR42: 5 | AS42: 5 | AT42: 4 | AU42: 5 | AV42: 2 | AW42: 1 | AX42: 4 | AY42: 4 | AZ42: 3 | BA42: 3 | BB42: 3 | BC42: 3 | BD42: 2 | BE42: 3 | BF42: 4 | BG42: 3 | BH42: 2 | BI42: 1 | BJ42: 3 | BK42: 2 | BL42: 1 | BM42: 3 | BN42: 2 | BO42: 2 | BP42: 3 | BQ42: 2 | BR42: 3 | BS42: 2.2 | BT42: 2.6875 | BU42: 2.888888889 | BV42: 2.888888889 | BW42: 3.928571429 | BX42: 2.333333333 | BY42: 2.333333333 | BZ42: 2 | CA42: 3 | CB42: 2.444444444 | CC42: 3 | CD42: 2.666666667 | CE42: 3 | CF42: 3 | CG42: 3 | CH42: 2.666666667 | CI42: 4.6 | CJ42: 3.6 | CK42: 3.5
A43: 45 | B43: 3 | C43: 3 | D43: 7 | E43: 6 | F43: 5 | M43: 3 | N43: 4 | O43: 5 | P43: 5 | Q43: 3 | R43: 3 | S43: 2 | T43: 2 | U43: 2 | V43: 2 | W43: 2 | X43: 4 | Y43: 4 | Z43: 3 | AA43: 4 | AB43: 4 | AC43: 4 | AD43: 2 | AE43: 2 | AF43: 3 | AG43: 3 | AH43: 3 | AI43: 2 | AJ43: 3 | AK43: 3 | AL43: 3 | AM43: 5 | AN43: 5 | AO43: 4 | AP43: 3 | AQ43: 3 | AR43: 3 | AS43: 5 | AT43: 3 | AU43: 2 | AV43: 5 | AW43: 5 | AX43: 5 | AY43: 3 | AZ43: 3 | BA43: 1 | BB43: 1 | BC43: 1 | BD43: 1 | BE43: 4 | BF43: 4 | BG43: 3 | BH43: 3 | BI43: 1 | BJ43: 1 | BK43: 5 | BL43: 3 | BM43: 3 | BN43: 2 | BO43: 2 | BP43: 2 | BQ43: 2 | BR43: 2 | BS43: 2.3 | BT43: 3 | BU43: 2.333333333 | BV43: 3.222222222 | BW43: 3.857142857 | BX43: 1.333333333 | BY43: 2.333333333 | BZ43: 3 | CA43: 3.285714286 | CB43: 2.777777778 | CC43: 1.666666667 | CD43: 2 | CE43: 3.333333333 | CF43: 4.333333333 | CG43: 3.333333333 | CH43: 2 | CI43: 4 | CJ43: 3.6 | CK43: 4
A44: 46 | B44: 3 | C44: 3 | D44: 5 | E44: 4 | F44: 5 | M44: 3 | N44: 4 | O44: 4 | P44: 4 | Q44: 4 | R44: 4 | S44: 4 | T44: 4 | U44: 4 | V44: 4 | W44: 4 | X44: 5 | Y44: 4 | Z44: 4 | AA44: 4 | AB44: 4 | AC44: 4 | AD44: 4 | AE44: 4 | AF44: 4 | AG44: 4 | AH44: 4 | AI44: 4 | AJ44: 4 | AK44: 4 | AL44: 4 | AM44: 5 | AN44: 5 | AO44: 5 | AP44: 3 | AQ44: 3 | AR44: 1 | AS44: 5 | AT44: 4 | AU44: 4 | AV44: 5 | AW44: 5 | AX44: 5 | AY44: 4 | AZ44: 4 | BA44: 5 | BB44: 3 | BC44: 3 | BD44: 3 | BE44: 5 | BF44: 5 | BG44: 5 | BH44: 5 | BI44: 5 | BJ44: 4 | BK44: 3 | BL44: 5 | BM44: 5 | BN44: 4 | BO44: 3 | BP44: 5 | BQ44: 3 | BR44: 5 | BS44: 4.2 | BT44: 4.0625 | BU44: 4.222222222 | BV44: 3.888888889 | BW44: 4.142857143 | BX44: 4.666666667 | BY44: 4 | BZ44: 4 | CA44: 4.142857143 | CB44: 4 | CC44: 4 | CD44: 3.666666667 | CE44: 5 | CF44: 4 | CG44: 3.666666667 | CH44: 4 | CI44: 4.6 | CJ44: 3.6 | CK44: 4.25
A45: 47 | B45: 3 | C45: 3 | D45: 5 | E45: 3 | F45: 4 | M45: 2 | N45: 4 | O45: 3 | P45: 3 | Q45: 4 | R45: 2 | S45: 2 | T45: 3 | U45: 2 | V45: 4 | W45: 4 | X45: 3 | Y45: 3 | Z45: 4 | AA45: 4 | AB45: 3 | AC45: 2 | AD45: 3 | AE45: 5 | AF45: 4 | AG45: 4 | AH45: 5 | AI45: 4 | AJ45: 3 | AK45: 2 | AL45: 5 | AM45: 5 | AN45: 5 | AO45: 3 | AP45: 4 | AQ45: 3 | AR45: 5 | AS45: 4 | AT45: 3 | AU45: 5 | AV45: 5 | AW45: 4 | AX45: 4 | AY45: 3 | AZ45: 4 | BA45: 2 | BB45: 2 | BC45: 2 | BD45: 2 | BE45: 3 | BF45: 4 | BG45: 4 | BH45: 4 | BI45: 3 | BJ45: 4 | BK45: 4 | BL45: 3 | BM45: 4 | BN45: 2 | BO45: 4 | BP45: 3 | BQ45: 2 | BR45: 2 | BS45: 3.1 | BT45: 3.5625 | BU45: 3 | BV45: 2.777777778 | BW45: 4.142857143 | BX45: 3.333333333 | BY45: 3.333333333 | BZ45: 2.75 | CA45: 3.571428571 | CB45: 3.555555556 | CC45: 2.666666667 | CD45: 2.333333333 | CE45: 4 | CF45: 3.333333333 | CG45: 2.666666667 | CH45: 2.333333333 | CI45: 4.8 | CJ45: 4 | CK45: 3.5
A46: 48 | B46: 3 | C46: 3 | D46: 5 | E46: 6 | F46: 5 | M46: 1 | N46: 5 | O46: 3 | P46: 4 | Q46: 5 | R46: 1 | S46: 2 | T46: 4 | U46: 1 | V46: 5 | W46: 5 | X46: 5 | Y46: 5 | Z46: 4 | AA46: 5 | AB46: 4 | AC46: 5 | AD46: 5 | AE46: 5 | AF46: 5 | AG46: 5 | AH46: 5 | AI46: 3 | AJ46: 1 | AK46: 1 | AL46: 4 | AM46: 3 | AN46: 4 | AO46: 5 | AP46: 5 | AQ46: 4 | AR46: 5 | AS46: 5 | AT46: 4 | AU46: 4 | AV46: 5 | AW46: 5 | AX46: 5 | AY46: 4 | AZ46: 3 | BA46: 5 | BB46: 4 | BC46: 4 | BD46: 1 | BE46: 1 | BF46: 5 | BG46: 3 | BH46: 5 | BI46: 4 | BJ46: 3 | BK46: 2 | BL46: 2 | BM46: 5 | BN46: 2 | BO46: 2 | BP46: 3 | BQ46: 3 | BR46: 3 | BS46: 2.9 | BT46: 4.25 | BU46: 3.444444444 | BV46: 2.888888889 | BW46: 4.428571429 | BX46: 3.333333333 | BY46: 3 | BZ46: 2.5 | CA46: 4.714285714 | CB46: 3.888888889 | CC46: 4 | CD46: 2 | CE46: 4.333333333 | CF46: 4 | CG46: 2.333333333 | CH46: 2.333333333 | CI46: 4 | CJ46: 4.8 | CK46: 4.5
A47: 49 | B47: 3 | C47: 3 | D47: 5 | E47: 3 | F47: 5 | M47: 2 | N47: 5 | O47: 3 | P47: 3 | Q47: 5 | R47: 4 | S47: 3 | T47: 4 | U47: 2 | V47: 4 | W47: 3 | X47: 3 | Y47: 3 | Z47: 4 | AA47: 3 | AB47: 3 | AC47: 4 | AD47: 3 | AE47: 3 | AF47: 3 | AG47: 3 | AH47: 3 | AI47: 4 | AJ47: 3 | AK47: 3 | AL47: 4 | AM47: 3 | AN47: 5 | AO47: 5 | AP47: 5 | AQ47: 3 | AR47: 4 | AS47: 4 | AT47: 4 | AU47: 4 | AV47: 3 | AW47: 5 | AX47: 4 | AY47: 3 | AZ47: 3 | BA47: 4 | BB47: 2 | BC47: 4 | BD47: 3 | BE47: 3 | BF47: 3 | BG47: 3 | BH47: 3 | BI47: 3 | BJ47: 3 | BK47: 3 | BL47: 3 | BM47: 4 | BN47: 3 | BO47: 3 | BP47: 4 | BQ47: 4 | BR47: 3 | BS47: 3.3 | BT47: 3.25 | BU47: 3.111111111 | BV47: 3.444444444 | BW47: 4 | BX47: 3.333333333 | BY47: 3.333333333 | BZ47: 3.25 | CA47: 3.285714286 | CB47: 3.222222222 | CC47: 3 | CD47: 3.333333333 | CE47: 3 | CF47: 3.666666667 | CG47: 3.666666667 | CH47: 3 | CI47: 4 | CJ47: 4 | CK47: 4
A48: 50 | B48: 3 | C48: 3 | D48: 5 | E48: 6 | F48: 5 | M48: 3 | N48: 5 | O48: 5 | P48: 3 | Q48: 4 | R48: 4 | S48: 3 | T48: 2 | U48: 2 | V48: 5 | W48: 4 | X48: 4 | Y48: 4 | Z48: 5 | AA48: 5 | AB48: 5 | AC48: 5 | AD48: 5 | AE48: 5 | AF48: 5 | AG48: 5 | AH48: 5 | AI48: 4 | AJ48: 1 | AK48: 3 | AL48: 5 | AM48: 5 | AN48: 4 | AO48: 5 | AP48: 5 | AQ48: 4 | AR48: 5 | AS48: 4 | AT48: 4 | AU48: 4 | AV48: 5 | AW48: 5 | AX48: 5 | AY48: 4 | AZ48: 2 | BA48: 5 | BB48: 3 | BC48: 3 | BD48: 4 | BE48: 4 | BF48: 1 | BG48: 2 | BH48: 4 | BI48: 2 | BJ48: 2 | BK48: 2 | BL48: 2 | BM48: 5 | BN48: 2 | BO48: 2 | BP48: 2 | BQ48: 1 | BR48: 2 | BS48: 2.2 | BT48: 4.375 | BU48: 3.111111111 | BV48: 3.444444444 | BW48: 4.571428571 | BX48: 2 | BY48: 3 | BZ48: 1.75 | CA48: 4.571428571 | CB48: 4.222222222 | CC48: 3.333333333 | CD48: 3.666666667 | CE48: 2.333333333 | CF48: 4 | CG48: 4 | CH48: 2.333333333 | CI48: 4.6 | CJ48: 4.8 | CK48: 4.25
A49: 51 | B49: 3 | C49: 3 | D49: 5 | E49: 3 | F49: 5 | M49: 4 | N49: 4 | O49: 4 | P49: 4 | Q49: 4 | R49: 4 | S49: 4 | T49: 3 | U49: 4 | V49: 4 | W49: 4 | X49: 5 | Y49: 5 | Z49: 5 | AA49: 4 | AB49: 5 | AC49: 5 | AD49: 5 | AE49: 5 | AF49: 4 | AG49: 4 | AH49: 4 | AI49: 5 | AJ49: 5 | AK49: 4 | AL49: 4 | AM49: 4 | AN49: 5 | AO49: 3 | AP49: 4 | AQ49: 3 | AR49: 4 | AS49: 5 | AT49: 4 | AU49: 3 | AV49: 5 | AW49: 5 | AX49: 4 | AY49: 3 | AZ49: 4 | BA49: 5 | BB49: 4 | BC49: 4 | BD49: 4 | BE49: 5 | BF49: 5 | BG49: 4 | BH49: 5 | BI49: 4 | BJ49: 4 | BK49: 4 | BL49: 4 | BM49: 5 | BN49: 4 | BO49: 4 | BP49: 4 | BQ49: 4 | BR49: 4 | BS49: 4.1 | BT49: 4.5625 | BU49: 4.444444444 | BV49: 3.888888889 | BW49: 4 | BX49: 4 | BY49: 4.333333333 | BZ49: 4 | CA49: 4.571428571 | CB49: 4.555555556 | CC49: 4.333333333 | CD49: 4.333333333 | CE49: 4.666666667 | CF49: 4 | CG49: 4 | CH49: 3.666666667 | CI49: 4 | CJ49: 3.8 | CK49: 4.25
A50: 52 | B50: 3 | C50: 3 | D50: 5 | E50: 3 | F50: 2 | M50: 1 | N50: 1 | O50: 1 | P50: 1 | Q50: 1 | R50: 1 | S50: 1 | T50: 1 | U50: 1 | V50: 1 | W50: 1 | X50: 1 | Y50: 1 | Z50: 4 | AA50: 3 | AB50: 3 | AC50: 3 | AD50: 3 | AE50: 3 | AF50: 3 | AG50: 4 | AH50: 4 | AI50: 4 | AJ50: 2 | AK50: 3 | AL50: 2 | AM50: 3 | AN50: 4 | AO50: 3 | AP50: 4 | AQ50: 3 | AR50: 2 | AS50: 5 | AT50: 4 | AU50: 4 | AV50: 3 | AW50: 4 | AX50: 3 | AY50: 3 | AZ50: 1 | BA50: 3 | BB50: 1 | BC50: 2 | BD50: 2 | BE50: 2 | BF50: 1 | BG50: 1 | BH50: 1 | BI50: 1 | BJ50: 1 | BK50: 1 | BL50: 1 | BM50: 1 | BN50: 1 | BO50: 1 | BP50: 1 | BQ50: 1 | BR50: 1 | BS50: 1 | BT50: 2.6875 | BU50: 1.555555556 | BV50: 1 | BW50: 3.357142857 | BX50: 1 | BY50: 1 | BZ50: 1 | CA50: 2 | CB50: 3.222222222 | CC50: 1.666666667 | CD50: 2 | CE50: 1 | CF50: 1 | CG50: 1 | CH50: 1 | CI50: 3.2 | CJ50: 3 | CK50: 4
A51: 53 | B51: 3 | C51: 3 | D51: 5 | E51: 3 | F51: 4 | M51: 1 | N51: 2 | O51: 3 | P51: 3 | Q51: 2 | R51: 2 | S51: 2 | T51: 2 | U51: 2 | V51: 3 | W51: 3 | X51: 1 | Y51: 2 | Z51: 3 | AA51: 2 | AB51: 2 | AC51: 4 | AD51: 4 | AE51: 4 | AF51: 4 | AG51: 4 | AH51: 3 | AI51: 4 | AJ51: 3 | AK51: 2 | AL51: 3 | AM51: 3 | AN51: 3 | AO51: 4 | AP51: 3 | AQ51: 2 | AR51: 3 | AS51: 1 | AT51: 3 | AU51: 4 | AV51: 1 | AW51: 1 | AX51: 5 | AY51: 3 | AZ51: 2 | BA51: 2 | BB51: 1 | BC51: 1 | BD51: 1 | BE51: 2 | BF51: 2 | BG51: 2 | BH51: 2 | BI51: 2 | BJ51: 3 | BK51: 2 | BL51: 2 | BM51: 2 | BN51: 2 | BO51: 1 | BP51: 2 | BQ51: 2 | BR51: 3 | BS51: 2.1 | BT51: 3 | BU51: 1.666666667 | BV51: 2.111111111 | BW51: 2.785714286 | BX51: 2.333333333 | BY51: 1.666666667 | BZ51: 2.25 | CA51: 2.285714286 | CB51: 3.555555556 | CC51: 1.666666667 | CD51: 1.333333333 | CE51: 2 | CF51: 2.666666667 | CG51: 1.666666667 | CH51: 2 | CI51: 3.6 | CJ51: 2.8 | CK51: 1.75
A52: 54 | B52: 3 | C52: 3 | D52: 5 | E52: 3 | F52: 5 | M52: 1 | N52: 2 | O52: 1 | P52: 1 | Q52: 4 | R52: 1 | S52: 1 | T52: 4 | U52: 1 | V52: 3 | W52: 2 | X52: 2 | Y52: 2 | Z52: 2 | AA52: 2 | AB52: 2 | AC52: 5 | AD52: 1 | AE52: 1 | AF52: 3 | AG52: 5 | AH52: 5 | AI52: 3 | AJ52: 1 | AK52: 3 | AL52: 5 | AM52: 3 | AN52: 4 | AO52: 4 | AP52: 5 | AQ52: 5 | AR52: 4 | AS52: 5 | AT52: 4 | AU52: 5 | AV52: 3 | AW52: 5 | AX52: 5 | AY52: 5 | AZ52: 1 | BA52: 1 | BB52: 1 | BC52: 1 | BD52: 1 | BE52: 1 | BF52: 3 | BG52: 2 | BH52: 2 | BI52: 1 | BJ52: 1 | BK52: 1 | BL52: 1 | BM52: 2 | BN52: 1 | BO52: 1 | BP52: 1 | BQ52: 1 | BR52: 1 | BS52: 1.1 | BT52: 2.625 | BU52: 1.444444444 | BV52: 1.777777778 | BW52: 4.428571429 | BX52: 1 | BY52: 1.333333333 | BZ52: 1 | CA52: 2.142857143 | CB52: 3 | CC52: 1 | CD52: 1 | CE52: 2.333333333 | CF52: 2 | CG52: 1.333333333 | CH52: 2 | CI52: 4.4 | CJ52: 4.2 | CK52: 4.75
A53: 55 | B53: 3 | C53: 3 | D53: 5 | E53: 3 | F53: 2 | M53: 1 | N53: 2 | O53: 1 | P53: 2 | Q53: 2 | R53: 1 | S53: 1 | T53: 2 | U53: 1 | V53: 1 | W53: 1 | X53: 2 | Y53: 3 | Z53: 3 | AA53: 3 | AB53: 3 | AC53: 4 | AD53: 3 | AE53: 4 | AF53: 3 | AG53: 3 | AH53: 3 | AI53: 3 | AJ53: 1 | AK53: 2 | AL53: 4 | AM53: 3 | AN53: 4 | AO53: 1 | AP53: 3 | AQ53: 2 | AR53: 3 | AS53: 2 | AT53: 2 | AU53: 5 | AV53: 2 | AW53: 4 | AX53: 5 | AY53: 2 | AZ53: 1 | BA53: 2 | BB53: 2 | BC53: 1 | BD53: 1 | BE53: 1 | BF53: 2 | BG53: 2 | BH53: 1 | BI53: 1 | BJ53: 1 | BK53: 1 | BL53: 1 | BM53: 1 | BN53: 1 | BO53: 1 | BP53: 1 | BQ53: 1 | BR53: 1 | BS53: 1 | BT53: 2.625 | BU53: 1.444444444 | BV53: 1.444444444 | BW53: 3 | BX53: 1 | BY53: 1 | BZ53: 1 | CA53: 2.285714286 | CB53: 2.888888889 | CC53: 1.666666667 | CD53: 1 | CE53: 1.666666667 | CF53: 1.666666667 | CG53: 1.333333333 | CH53: 1.333333333 | CI53: 4.2 | CJ53: 2.2 | CK53: 2.5
A54: 56 | B54: 3 | C54: 3 | D54: 5 | E54: 2 | F54: 5 | M54: 3 | N54: 5 | O54: 5 | P54: 4 | Q54: 5 | R54: 4 | S54: 3 | T54: 3 | U54: 4 | V54: 4 | W54: 5 | X54: 5 | Y54: 5 | Z54: 5 | AA54: 5 | AB54: 5 | AC54: 5 | AD54: 5 | AE54: 5 | AF54: 5 | AG54: 5 | AH54: 5 | AI54: 4 | AJ54: 4 | AK54: 4 | AL54: 4 | AM54: 3 | AN54: 5 | AO54: 5 | AP54: 5 | AQ54: 3 | AR54: 4 | AS54: 5 | AT54: 4 | AU54: 5 | AV54: 5 | AW54: 5 | AX54: 5 | AY54: 5 | AZ54: 3 | BA54: 3 | BB54: 2 | BC54: 3 | BD54: 4 | BE54: 3 | BF54: 3 | BG54: 4 | BH54: 4 | BI54: 2 | BJ54: 3 | BK54: 3 | BL54: 3 | BM54: 4 | BN54: 4 | BO54: 3 | BP54: 4 | BQ54: 4 | BR54: 3 | BS54: 3.3 | BT54: 4.75 | BU54: 3.222222222 | BV54: 4 | BW54: 4.5 | BX54: 3 | BY54: 3.666666667 | BZ54: 3.25 | CA54: 4.857142857 | CB54: 4.666666667 | CC54: 2.666666667 | CD54: 3.333333333 | CE54: 3.666666667 | CF54: 4.666666667 | CG54: 4 | CH54: 3.333333333 | CI54: 4.4 | CJ54: 4.8 | CK54: 4.25
A55: 57 | B55: 3 | C55: 3 | D55: 5 | E55: 2 | F55: 5 | M55: 2 | N55: 3 | O55: 3 | P55: 3 | Q55: 4 | R55: 3 | S55: 3 | T55: 3 | U55: 3 | V55: 5 | W55: 4 | X55: 3 | Y55: 3 | Z55: 4 | AA55: 4 | AB55: 3 | AC55: 4 | AD55: 4 | AE55: 4 | AF55: 4 | AG55: 4 | AH55: 4 | AI55: 4 | AJ55: 3 | AK55: 2 | AL55: 5 | AM55: 3 | AN55: 4 | AO55: 3 | AP55: 3 | AQ55: 3 | AR55: 5 | AS55: 4 | AT55: 4 | AU55: 3 | AV55: 5 | AW55: 4 | AX55: 3 | AY55: 4 | AZ55: 3 | BA55: 4 | BB55: 3 | BC55: 3 | BD55: 3 | BE55: 3 | BF55: 4 | BG55: 2 | BH55: 3 | BI55: 2 | BJ55: 2 | BK55: 2 | BL55: 2 | BM55: 3 | BN55: 3 | BO55: 3 | BP55: 3 | BQ55: 3 | BR55: 3 | BS55: 2.6 | BT55: 3.6875 | BU55: 3.111111111 | BV55: 3 | BW55: 3.785714286 | BX55: 2.333333333 | BY55: 3 | BZ55: 2.5 | CA55: 3.714285714 | CB55: 3.666666667 | CC55: 3.333333333 | CD55: 3 | CE55: 3 | CF55: 3.333333333 | CG55: 2.666666667 | CH55: 3 | CI55: 3.6 | CJ55: 4 | CK55: 3.75
A56: 58 | B56: 3 | C56: 3 | D56: 5 | E56: 2 | F56: 5 | M56: 2 | N56: 2 | O56: 1 | P56: 2 | Q56: 2 | R56: 2 | S56: 2 | T56: 2 | U56: 2 | V56: 5 | W56: 4 | X56: 3 | Y56: 3 | Z56: 5 | AA56: 2 | AB56: 5 | AC56: 4 | AD56: 3 | AE56: 5 | AF56: 5 | AG56: 5 | AH56: 5 | AI56: 4 | AJ56: 2 | AK56: 2 | AL56: 5 | AM56: 3 | AN56: 4 | AO56: 4 | AP56: 5 | AQ56: 4 | AR56: 4 | AS56: 4 | AT56: 4 | AU56: 5 | AV56: 5 | AW56: 5 | AX56: 4 | AY56: 3 | AZ56: 2 | BA56: 5 | BB56: 4 | BC56: 4 | BD56: 3 | BE56: 5 | BF56: 4 | BG56: 3 | BH56: 3 | BI56: 4 | BJ56: 2 | BK56: 4 | BL56: 2 | BM56: 2 | BN56: 2 | BO56: 4 | BP56: 4 | BQ56: 4 | BR56: 3 | BS56: 3.1 | BT56: 3.875 | BU56: 3.666666667 | BV56: 1.888888889 | BW56: 4.214285714 | BX56: 3.333333333 | BY56: 2.666666667 | BZ56: 3.25 | CA56: 3.857142857 | CB56: 3.888888889 | CC56: 3.666666667 | CD56: 4 | CE56: 3.333333333 | CF56: 1.666666667 | CG56: 2 | CH56: 2 | CI56: 4.2 | CJ56: 4.2 | CK56: 4.25
A57: 59 | B57: 3 | C57: 3 | D57: 5 | E57: 2 | F57: 5 | M57: 2 | N57: 3 | O57: 3 | P57: 2 | Q57: 3 | R57: 1 | S57: 1 | T57: 2 | U57: 2 | V57: 3 | W57: 3 | X57: 3 | Y57: 3 | Z57: 3 | AA57: 3 | AB57: 3 | AC57: 3 | AD57: 3 | AE57: 4 | AF57: 4 | AG57: 5 | AH57: 5 | AI57: 2 | AJ57: 2 | AK57: 1 | AL57: 5 | AM57: 3 | AN57: 4 | AO57: 3 | AP57: 3 | AQ57: 3 | AR57: 5 | AS57: 5 | AT57: 4 | AU57: 3 | AV57: 5 | AW57: 5 | AX57: 3 | AY57: 3 | AZ57: 1 | BA57: 2 | BB57: 1 | BC57: 1 | BD57: 1 | BE57: 1 | BF57: 1 | BG57: 1 | BH57: 1 | BI57: 1 | BJ57: 1 | BK57: 1 | BL57: 1 | BM57: 1 | BN57: 1 | BO57: 1 | BP57: 1 | BQ57: 1 | BR57: 1 | BS57: 1 | BT57: 3.125 | BU57: 1.111111111 | BV57: 2.111111111 | BW57: 3.857142857 | BX57: 1 | BY57: 1 | BZ57: 1 | CA57: 3 | CB57: 3.222222222 | CC57: 1.333333333 | CD57: 1 | CE57: 1 | CF57: 2.666666667 | CG57: 2 | CH57: 1.666666667 | CI57: 3.6 | CJ57: 3.8 | CK57: 4.25
A58: 62 | B58: 3 | C58: 3 | D58: 7 | E58: 5 | F58: 5 | M58: 3 | N58: 4 | O58: 4 | P58: 4 | Q58: 5 | R58: 3 | S58: 3 | T58: 4 | U58: 3 | V58: 4 | W58: 4 | X58: 3 | Y58: 3 | Z58: 4 | AA58: 3 | AB58: 3 | AC58: 4 | AD58: 3 | AE58: 4 | AF58: 4 | AG58: 3 | AH58: 5 | AI58: 4 | AJ58: 5 | AK58: 5 | AL58: 5 | AM58: 3 | AN58: 5 | AO58: 4 | AP58: 4 | AQ58: 5 | AR58: 4 | AS58: 5 | AT58: 4 | AU58: 4 | AV58: 3 | AW58: 3 | AX58: 4 | AY58: 4 | AZ58: 3 | BA58: 5 | BB58: 4 | BC58: 4 | BD58: 3 | BE58: 4 | BF58: 5 | BG58: 5 | BH58: 4 | BI58: 4 | BJ58: 4 | BK58: 5 | BL58: 4 | BM58: 4 | BN58: 3 | BO58: 4 | BP58: 4 | BQ58: 4 | BR58: 5 | BS58: 4.1 | BT58: 3.8125 | BU58: 4.111111111 | BV58: 3.666666667 | BW58: 4.071428571 | BX58: 4 | BY58: 3.666666667 | BZ58: 4.5 | CA58: 3.428571429 | CB58: 4.111111111 | CC58: 4 | CD58: 3.666666667 | CE58: 4.666666667 | CF58: 4.333333333 | CG58: 3.333333333 | CH58: 3.333333333 | CI58: 4.2 | CJ58: 3.8 | CK58: 4.25
A59: 63 | B59: 3 | C59: 3 | D59: 7 | E59: 5 | F59: 1 | M59: 2 | N59: 4 | O59: 5 | P59: 5 | Q59: 5 | R59: 2 | S59: 3 | T59: 4 | U59: 4 | V59: 2 | W59: 4 | X59: 3 | Y59: 3 | Z59: 3 | AA59: 3 | AB59: 4 | AC59: 3 | AD59: 2 | AE59: 3 | AF59: 2 | AG59: 3 | AH59: 2 | AI59: 3 | AJ59: 4 | AK59: 4 | AL59: 4 | AM59: 3 | AN59: 5 | AO59: 3 | AP59: 5 | AQ59: 5 | AR59: 3 | AS59: 4 | AT59: 4 | AU59: 4 | AV59: 5 | AW59: 5 | AX59: 4 | AY59: 3 | AZ59: 2 | BA59: 5 | BB59: 5 | BC59: 3 | BD59: 2 | BE59: 3 | BF59: 5 | BG59: 3 | BH59: 4 | BI59: 2 | BJ59: 4 | BK59: 3 | BL59: 4 | BM59: 5 | BN59: 3 | BO59: 2 | BP59: 3 | BQ59: 2 | BR59: 3 | BS59: 3.1 | BT59: 3 | BU59: 3.555555556 | BV59: 3.777777778 | BW59: 4.071428571 | BX59: 3 | BY59: 3.333333333 | BZ59: 3 | CA59: 3.142857143 | CB59: 2.888888889 | CC59: 4 | CD59: 2.666666667 | CE59: 4 | CF59: 5 | CG59: 2.666666667 | CH59: 3.666666667 | CI59: 4 | CJ59: 3.8 | CK59: 4.5
A60: 64 | B60: 3 | C60: 3 | D60: 8 | E60: 3 | F60: 5 | M60: 5 | N60: 4 | O60: 4 | P60: 3 | Q60: 3 | R60: 3 | S60: 4 | T60: 3 | U60: 4 | V60: 5 | W60: 5 | X60: 4 | Y60: 4 | Z60: 5 | AA60: 4 | AB60: 4 | AC60: 3 | AD60: 4 | AE60: 3 | AF60: 5 | AG60: 4 | AH60: 3 | AI60: 4 | AJ60: 3 | AK60: 3 | AL60: 4 | AM60: 4 | AN60: 5 | AO60: 4 | AP60: 5 | AQ60: 5 | AR60: 4 | AS60: 4 | AT60: 4 | AU60: 5 | AV60: 4 | AW60: 5 | AX60: 4 | AY60: 4 | AZ60: 3 | BA60: 2 | BB60: 4 | BC60: 2 | BD60: 3 | BE60: 4 | BF60: 2 | BG60: 3 | BH60: 3 | BI60: 2 | BJ60: 4 | BK60: 3 | BL60: 2 | BM60: 4 | BN60: 2 | BO60: 3 | BP60: 3 | BQ60: 3 | BR60: 3 | BS60: 2.9 | BT60: 3.9375 | BU60: 2.888888889 | BV60: 3.666666667 | BW60: 4.357142857 | BX60: 3 | BY60: 3 | BZ60: 2.75 | CA60: 4.428571429 | CB60: 3.555555556 | CC60: 3 | CD60: 3 | CE60: 2.666666667 | CF60: 3.333333333 | CG60: 4 | CH60: 3.666666667 | CI60: 4.4 | CJ60: 4.2 | CK60: 4.5
A61: 66 | B61: 3 | C61: 3 | D61: 8 | E61: 5 | F61: 1 | M61: 3 | N61: 5 | O61: 3 | P61: 3 | Q61: 2 | R61: 5 | S61: 5 | T61: 5 | U61: 3 | V61: 3 | W61: 3 | X61: 3 | Y61: 3 | Z61: 5 | AA61: 3 | AB61: 5 | AC61: 5 | AD61: 5 | AE61: 3 | AF61: 2 | AG61: 5 | AH61: 5 | AI61: 5 | AJ61: 5 | AK61: 5 | AL61: 4 | AM61: 3 | AN61: 3 | AO61: 3 | AP61: 4 | AQ61: 3 | AR61: 4 | AS61: 4 | AT61: 5 | AU61: 5 | AV61: 5 | AW61: 5 | AX61: 4 | AY61: 3 | AZ61: 5 | BA61: 5 | BB61: 5 | BC61: 5 | BD61: 3 | BE61: 3 | BF61: 5 | BG61: 5 | BH61: 5 | BI61: 3 | BJ61: 5 | BK61: 3 | BL61: 5 | BM61: 5 | BN61: 5 | BO61: 5 | BP61: 3 | BQ61: 5 | BR61: 5 | BS61: 4.4 | BT61: 4.0625 | BU61: 4.555555556 | BV61: 3.777777778 | BW61: 3.928571429 | BX61: 3.666666667 | BY61: 5 | BZ61: 4.5 | CA61: 3.571428571 | CB61: 4.444444444 | CC61: 5 | CD61: 3.666666667 | CE61: 5 | CF61: 2.666666667 | CG61: 4.333333333 | CH61: 4.333333333 | CI61: 3.8 | CJ61: 3.8 | CK61: 4.25
A62: 67 | B62: 3 | C62: 3 | D62: 8 | E62: 5 | F62: 1 | M62: 4 | N62: 5 | O62: 5 | P62: 5 | Q62: 1 | R62: 5 | S62: 5 | T62: 3 | U62: 2 | V62: 4 | W62: 4 | X62: 4 | Y62: 5 | Z62: 5 | AA62: 4 | AB62: 5 | AC62: 5 | AD62: 4 | AE62: 2 | AF62: 1 | AG62: 4 | AH62: 5 | AI62: 3 | AJ62: 5 | AK62: 5 | AL62: 2 | AM62: 3 | AN62: 4 | AO62: 3 | AP62: 3 | AQ62: 3 | AR62: 5 | AS62: 5 | AT62: 5 | AU62: 4 | AV62: 5 | AW62: 4 | AX62: 4 | AY62: 3 | AZ62: 4 | BA62: 5 | BB62: 5 | BC62: 5 | BD62: 3 | BE62: 5 | BF62: 5 | BG62: 3 | BH62: 5 | BI62: 2 | BJ62: 3 | BK62: 3 | BL62: 3 | BM62: 5 | BN62: 3 | BO62: 3 | BP62: 3 | BQ62: 5 | BR62: 4 | BS62: 3.4 | BT62: 4.0625 | BU62: 4.444444444 | BV62: 3.888888889 | BW62: 3.785714286 | BX62: 2.666666667 | BY62: 3.666666667 | BZ62: 3.75 | CA62: 4.428571429 | CB62: 3.777777778 | CC62: 4.666666667 | CD62: 4.333333333 | CE62: 4.333333333 | CF62: 3.666666667 | CG62: 4.666666667 | CH62: 3.333333333 | CI62: 3.4 | CJ62: 3.8 | CK62: 4.25
A63: 68 | B63: 3 | C63: 3 | D63: 8 | E63: 5 | F63: 5 | M63: 2 | N63: 4 | O63: 3 | P63: 3 | Q63: 2 | R63: 2 | S63: 3 | T63: 3 | U63: 2 | V63: 3 | W63: 3 | X63: 3 | Y63: 3 | Z63: 4 | AA63: 4 | AB63: 4 | AC63: 5 | AD63: 4 | AE63: 3 | AF63: 3 | AG63: 4 | AH63: 4 | AI63: 4 | AJ63: 3 | AK63: 3 | AL63: 3 | AM63: 5 | AN63: 4 | AO63: 5 | AP63: 5 | AQ63: 5 | AR63: 4 | AS63: 4 | AT63: 5 | AU63: 3 | AV63: 5 | AW63: 5 | AX63: 5 | AY63: 4 | AZ63: 2 | BA63: 4 | BB63: 4 | BC63: 3 | BD63: 2 | BE63: 3 | BF63: 4 | BG63: 3 | BH63: 4 | BI63: 4 | BJ63: 4 | BK63: 3 | BL63: 3 | BM63: 4 | BN63: 3 | BO63: 3 | BP63: 4 | BQ63: 3 | BR63: 3 | BS63: 3.4 | BT63: 3.5625 | BU63: 3.222222222 | BV63: 2.666666667 | BW63: 4.428571429 | BX63: 4 | BY63: 3.333333333 | BZ63: 3 | CA63: 3.428571429 | CB63: 3.666666667 | CC63: 3.333333333 | CD63: 2.666666667 | CE63: 3.666666667 | CF63: 2.666666667 | CG63: 2.666666667 | CH63: 2.666666667 | CI63: 4 | CJ63: 4.6 | CK63: 4.75
A64: 69 | B64: 3 | C64: 3 | D64: 5 | E64: 2 | F64: 5 | M64: 2 | N64: 2 | O64: 2 | P64: 3 | Q64: 4 | R64: 3 | S64: 2 | T64: 4 | U64: 2 | V64: 4 | W64: 4 | X64: 3 | Y64: 3 | Z64: 4 | AA64: 4 | AB64: 4 | AC64: 3 | AD64: 2 | AE64: 4 | AF64: 3 | AG64: 4 | AH64: 4 | AI64: 4 | AJ64: 4 | AK64: 2 | AL64: 2 | AM64: 3 | AN64: 4 | AO64: 3 | AP64: 3 | AQ64: 4 | AR64: 5 | AS64: 3 | AT64: 3 | AU64: 3 | AV64: 4 | AW64: 3 | AX64: 3 | AY64: 3 | AZ64: 2 | BA64: 3 | BB64: 2 | BC64: 3 | BD64: 2 | BE64: 2 | BF64: 4 | BG64: 3 | BH64: 2 | BI64: 2 | BJ64: 3 | BK64: 2 | BL64: 2 | BM64: 3 | BN64: 1 | BO64: 1 | BP64: 1 | BQ64: 1 | BR64: 1 | BS64: 1.7 | BT64: 3.5 | BU64: 2.555555556 | BV64: 2.666666667 | BW64: 3.285714286 | BX64: 2 | BY64: 1.666666667 | BZ64: 1.5 | CA64: 3.714285714 | CB64: 3.333333333 | CC64: 2.333333333 | CD64: 2.333333333 | CE64: 3 | CF64: 3 | CG64: 2.333333333 | CH64: 2.666666667 | CI64: 3 | CJ64: 3.6 | CK64: 3.25
A65: 70 | B65: 3 | C65: 3 | D65: 7 | E65: 5 | F65: 5 | M65: 2 | N65: 4 | O65: 3 | P65: 3 | Q65: 4 | R65: 3 | S65: 3 | T65: 3 | U65: 2 | V65: 3 | W65: 4 | X65: 4 | Y65: 4 | Z65: 5 | AA65: 3 | AB65: 3 | AC65: 3 | AD65: 4 | AE65: 4 | AF65: 3 | AG65: 4 | AH65: 4 | AI65: 4 | AJ65: 3 | AK65: 3 | AL65: 4 | AM65: 3 | AN65: 3 | AO65: 3 | AP65: 3 | AQ65: 3 | AR65: 4 | AS65: 3 | AT65: 4 | AU65: 4 | AV65: 5 | AW65: 4 | AX65: 5 | AY65: 3 | AZ65: 3 | BA65: 4 | BB65: 2 | BC65: 3 | BD65: 2 | BE65: 3 | BF65: 3 | BG65: 3 | BH65: 3 | BI65: 3 | BJ65: 3 | BK65: 4 | BL65: 3 | BM65: 3 | BN65: 3 | BO65: 4 | BP65: 3 | BQ65: 3 | BR65: 3 | BS65: 3.2 | BT65: 3.625 | BU65: 2.888888889 | BV65: 3 | BW65: 3.642857143 | BX65: 3 | BY65: 3.333333333 | BZ65: 3.25 | CA65: 3.714285714 | CB65: 3.555555556 | CC65: 3 | CD65: 2.666666667 | CE65: 3 | CF65: 3.333333333 | CG65: 3 | CH65: 2.666666667 | CI65: 3.8 | CJ65: 3.6 | CK65: 3.5
A66: 71 | B66: 3 | C66: 3 | D66: 7 | E66: 5 | F66: 5 | M66: 2 | N66: 4 | O66: 3 | P66: 3 | Q66: 5 | R66: 3 | S66: 2 | T66: 4 | U66: 3 | V66: 4 | W66: 4 | X66: 4 | Y66: 4 | Z66: 4 | AA66: 4 | AB66: 5 | AC66: 4 | AD66: 3 | AE66: 4 | AF66: 3 | AG66: 4 | AH66: 5 | AI66: 4 | AJ66: 3 | AK66: 5 | AL66: 5 | AM66: 3 | AN66: 4 | AO66: 4 | AP66: 4 | AQ66: 4 | AR66: 4 | AS66: 5 | AT66: 4 | AU66: 3 | AV66: 5 | AW66: 5 | AX66: 4 | AY66: 4 | AZ66: 3 | BA66: 5 | BB66: 4 | BC66: 4 | BD66: 3 | BE66: 4 | BF66: 4 | BG66: 4 | BH66: 4 | BI66: 3 | BJ66: 2 | BK66: 2 | BL66: 3 | BM66: 3 | BN66: 2 | BO66: 3 | BP66: 4 | BQ66: 2 | BR66: 3 | BS66: 2.7 | BT66: 4 | BU66: 3.888888889 | BV66: 3.222222222 | BW66: 4.142857143 | BX66: 3 | BY66: 2.666666667 | BZ66: 2.5 | CA66: 4.142857143 | CB66: 3.888888889 | CC66: 4 | CD66: 3.666666667 | CE66: 4 | CF66: 3.666666667 | CG66: 3 | CH66: 3 | CI66: 3.8 | CJ66: 4.2 | CK66: 4.5
A67: 73 | B67: 3 | C67: 3 | D67: 7 | E67: 5 | F67: 1 | M67: 4 | N67: 4 | O67: 5 | P67: 5 | Q67: 5 | R67: 3 | S67: 3 | T67: 5 | U67: 3 | V67: 3 | W67: 3 | X67: 2 | Y67: 2 | Z67: 3 | AA67: 3 | AB67: 4 | AC67: 3 | AD67: 2 | AE67: 2 | AF67: 2 | AG67: 2 | AH67: 3 | AI67: 3 | AJ67: 3 | AK67: 5 | AL67: 4 | AM67: 3 | AN67: 4 | AO67: 5 | AP67: 5 | AQ67: 5 | AR67: 4 | AS67: 5 | AT67: 5 | AU67: 5 | AV67: 5 | AW67: 3 | AX67: 5 | AY67: 4 | AZ67: 3 | BA67: 5 | BB67: 2 | BC67: 3 | BD67: 4 | BE67: 4 | BF67: 4 | BG67: 3 | BH67: 3 | BI67: 3 | BJ67: 3 | BK67: 2 | BL67: 2 | BM67: 4 | BN67: 3 | BO67: 3 | BP67: 3 | BQ67: 3 | BR67: 3 | BS67: 2.9 | BT67: 2.8125 | BU67: 3.444444444 | BV67: 4.111111111 | BW67: 4.428571429 | BX67: 3 | BY67: 3.333333333 | BZ67: 2.5 | CA67: 2.857142857 | CB67: 2.777777778 | CC67: 3.333333333 | CD67: 3.666666667 | CE67: 3.333333333 | CF67: 5 | CG67: 3.666666667 | CH67: 3.666666667 | CI67: 4.2 | CJ67: 4.6 | CK67: 4.5
A68: 74 | B68: 3 | C68: 3 | D68: 7 | E68: 5 | F68: 1 | M68: 4 | N68: 4 | O68: 3 | P68: 3 | Q68: 4 | R68: 3 | S68: 3 | T68: 4 | U68: 3 | V68: 4 | W68: 4 | X68: 3 | Y68: 3 | Z68: 4 | AA68: 3 | AB68: 4 | AC68: 5 | AD68: 3 | AE68: 3 | AF68: 3 | AG68: 3 | AH68: 5 | AI68: 3 | AJ68: 1 | AK68: 4 | AL68: 5 | AM68: 3 | AN68: 4 | AO68: 4 | AP68: 5 | AQ68: 5 | AR68: 4 | AS68: 5 | AT68: 4 | AU68: 3 | AV68: 5 | AW68: 5 | AX68: 4 | AY68: 5 | AZ68: 4 | BA68: 5 | BB68: 3 | BC68: 3 | BD68: 3 | BE68: 3 | BF68: 5 | BG68: 5 | BH68: 4 | BI68: 3 | BJ68: 3 | BK68: 3 | BL68: 3 | BM68: 4 | BN68: 3 | BO68: 3 | BP68: 4 | BQ68: 4 | BR68: 5 | BS68: 3.5 | BT68: 3.4375 | BU68: 3.888888889 | BV68: 3.444444444 | BW68: 4.357142857 | BX68: 3.333333333 | BY68: 3.333333333 | BZ68: 3.75 | CA68: 3.571428571 | CB68: 3.333333333 | CC68: 4 | CD68: 3 | CE68: 4.666666667 | CF68: 3.333333333 | CG68: 3.666666667 | CH68: 3.333333333 | CI68: 3.8 | CJ68: 4.6 | CK68: 4.75
A69: 75 | B69: 3 | C69: 3 | D69: 7 | E69: 5 | F69: 5 | M69: 3 | N69: 4 | O69: 4 | P69: 3 | Q69: 4 | R69: 3 | S69: 3 | T69: 4 | U69: 3 | V69: 4 | W69: 4 | X69: 4 | Y69: 4 | Z69: 4 | AA69: 4 | AB69: 4 | AC69: 5 | AD69: 4 | AE69: 5 | AF69: 4 | AG69: 4 | AH69: 4 | AI69: 4 | AJ69: 2 | AK69: 5 | AL69: 4 | AM69: 3 | AN69: 5 | AO69: 5 | AP69: 5 | AQ69: 5 | AR69: 4 | AS69: 5 | AT69: 4 | AU69: 4 | AV69: 5 | AW69: 5 | AX69: 4 | AY69: 4 | AZ69: 5 | BA69: 5 | BB69: 2 | BC69: 3 | BD69: 4 | BE69: 3 | BF69: 4 | BG69: 3 | BH69: 3 | BI69: 3 | BJ69: 4 | BK69: 4 | BL69: 3 | BM69: 4 | BN69: 4 | BO69: 3 | BP69: 3 | BQ69: 3 | BR69: 4 | BS69: 3.5 | BT69: 4.0625 | BU69: 3.555555556 | BV69: 3.444444444 | BW69: 4.428571429 | BX69: 3.333333333 | BY69: 3.666666667 | BZ69: 3.5 | CA69: 4 | CB69: 4.111111111 | CC69: 4 | CD69: 3.333333333 | CE69: 3.333333333 | CF69: 3.666666667 | CG69: 3.333333333 | CH69: 3.333333333 | CI69: 4 | CJ69: 4.6 | CK69: 4.75
A70: 76 | B70: 3 | C70: 3 | D70: 7 | E70: 5 | F70: 5 | M70: 1 | N70: 4 | O70: 2 | P70: 2 | Q70: 2 | R70: 1 | S70: 1 | T70: 2 | U70: 2 | V70: 3 | W70: 2 | X70: 2 | Y70: 4 | Z70: 4 | AA70: 2 | AB70: 3 | AC70: 4 | AD70: 3 | AE70: 4 | AF70: 3 | AG70: 3 | AH70: 4 | AI70: 3 | AJ70: 2 | AK70: 4 | AL70: 3 | AM70: 3 | AN70: 4 | AO70: 3 | AP70: 3 | AQ70: 3 | AR70: 2 | AS70: 5 | AT70: 3 | AU70: 4 | AV70: 3 | AW70: 4 | AX70: 4 | AY70: 3 | AZ70: 3 | BA70: 4 | BB70: 2 | BC70: 2 | BD70: 1 | BE70: 2 | BF70: 4 | BG70: 2 | BH70: 2 | BI70: 1 | BJ70: 1 | BK70: 1 | BL70: 2 | BM70: 4 | BN70: 1 | BO70: 3 | BP70: 3 | BQ70: 3 | BR70: 2 | BS70: 2.1 | BT70: 3.125 | BU70: 2.444444444 | BV70: 1.888888889 | BW70: 3.357142857 | BX70: 1.666666667 | BY70: 2.666666667 | BZ70: 2 | CA70: 2.857142857 | CB70: 3.333333333 | CC70: 3 | CD70: 1.666666667 | CE70: 2.666666667 | CF70: 2 | CG70: 2 | CH70: 1.666666667 | CI70: 3.6 | CJ70: 2.8 | CK70: 3.75
A71: 77 | B71: 3 | C71: 3 | D71: 8 | E71: 6 | F71: 4 | M71: 2 | N71: 4 | O71: 4 | P71: 4 | Q71: 5 | R71: 3 | S71: 4 | T71: 4 | U71: 3 | V71: 5 | W71: 5 | X71: 5 | Y71: 5 | Z71: 5 | AA71: 4 | AB71: 4 | AC71: 5 | AD71: 5 | AE71: 5 | AF71: 5 | AG71: 5 | AH71: 5 | AI71: 5 | AJ71: 1 | AK71: 3 | AL71: 4 | AM71: 3 | AN71: 5 | AO71: 3 | AP71: 5 | AQ71: 5 | AR71: 4 | AS71: 3 | AT71: 4 | AU71: 4 | AV71: 5 | AW71: 5 | AX71: 4 | AY71: 4 | AZ71: 1 | BA71: 5 | BB71: 2 | BC71: 4 | BD71: 4 | BE71: 5 | BF71: 5 | BG71: 4 | BH71: 4 | BI71: 2 | BJ71: 2 | BK71: 3 | BL71: 4 | BM71: 4 | BN71: 3 | BO71: 4 | BP71: 4 | BQ71: 4 | BR71: 4 | BS71: 3.4 | BT71: 4.5 | BU71: 3.777777778 | BV71: 3.666666667 | BW71: 4.142857143 | BX71: 2.666666667 | BY71: 3.666666667 | BZ71: 3.75 | CA71: 4.714285714 | CB71: 4.333333333 | CC71: 2.666666667 | CD71: 4.333333333 | CE71: 4.333333333 | CF71: 4.333333333 | CG71: 3 | CH71: 3.666666667 | CI71: 4 | CJ71: 4.2 | CK71: 4.25

Sheet 演算
B1: 全体データ | O1: 抽出データ | Y1: 全体データ
Y2: =$J$86 -> 12 | Z2: =$J$87 -> 2 | AA2: =$J$88 -> 6 | AB2: =$J$89 -> 5 | AC2: =$J$90 -> 4 | AD2: =$J$91 -> 12 | AE2: =$J$92 -> 14 | AF2: =$J$93 -> 5 | AG2: =$J$94 -> 10 | AH2: =$J$95 -> 5 | AI2: =$J$96 -> 5 | AJ2: =$J$97 -> 5 | AK2: =$J$98 -> 2 | AL2: =$J$99 -> 0 | AM2: =$J$100 -> 0 | AN2: =$J$101 -> 3 | AO2: =$J$102 -> 0 | AP2: =$J$103 -> 3 | AQ2: =$J$104 -> 1 | AR2: =$J$105 -> 1 | AS2: =$J$106 -> 1 | AT2: =$J$107 -> 0 | AU2: =$J$108 -> 1 | AV2: =$J$109 -> 11 | AW2: =$J$110 -> 5 | AX2: =$J$111 -> 1 | AY2: =$J$112 -> 0 | AZ2: =$J$113 -> 0 | BA2: =$J$114 -> 4 | BB2: =$J$115 -> 3 | BC2: =$J$116 -> 2 | BD2: =$J$117 -> 1 | BE2: =$J$118 -> 4 | BF2: =$J$119 -> 1 | BG2: =$J$120 -> 0 | BH2: =$J$121 -> 3 | BI2: =$J$122 -> 5 | BJ2: =$J$123 -> 2 | BK2: =$J$124 -> 3 | BL2: =$J$125 -> 13 | BM2: =$J$126 -> 4 | BN2: =$J$127 -> 7 | BO2: =$J$128 -> 8 | BP2: =$J$129 -> 16 | BQ2: =$J$130 -> 5 | BR2: =$J$131 -> 5 | BS2: =$J$132 -> 5 | BT2: =$J$133 -> 6 | BU2: =$J$134 -> 15 | BV2: =$J$135 -> 12 | BW2: =$J$136 -> 10 | BX2: =$J$137 -> 12 | BY2: =$J$138 -> 6 | BZ2: =$J$139 -> 16 | CA2: =$J$140 -> 13 | CB2: =$J$141 -> 12 | CC2: =$J$142 -> 16 | CD2: =$J$143 -> 13
B3: 領域 | C3: Ⅰ．トップの価値観・行動の充実と浸透 | D3: 1 | K3: =AVERAGE(K22:K31) -> -0.1853333333 | L3: =STDEV(OFFSET(rng全体データ,0,$D3+69,,1)) -> 0.9632003711 | M3: =L3/SQRT($K$84) -> 0.1112207987 | T3: =AVERAGE(T22:T31) -> -0.2514285714 | U3: =STDEV(OFFSET(rng抽出データ,0,$D3+69,,1)) -> 0.9481855834 | V3: =U3/SQRT($T$84) -> 0.1133298536 | Y3: =$I$86 -> 25 | Z3: =$I$87 -> 15 | AA3: =$I$88 -> 10 | AB3: =$I$89 -> 15 | AC3: =$I$90 -> 14 | AD3: =$I$91 -> 21 | AE3: =$I$92 -> 25 | AF3: =$I$93 -> 18 | AG3: =$I$94 -> 22 | AH3: =$I$95 -> 12 | AI3: =$I$96 -> 11 | AJ3: =$I$97 -> 19 | AK3: =$I$98 -> 15 | AL3: =$I$99 -> 3 | AM3: =$I$100 -> 10 | AN3: =$I$101 -> 4 | AO3: =$I$102 -> 6 | AP3: =$I$103 -> 14 | AQ3: =$I$104 -> 8 | AR3: =$I$105 -> 13 | AS3: =$I$106 -> 10 | AT3: =$I$107 -> 4 | AU3: =$I$108 -> 9 | AV3: =$I$109 -> 11 | AW3: =$I$110 -> 19 | AX3: =$I$111 -> 6 | AY3: =$I$112 -> 3 | AZ3: =$I$113 -> 0 | BA3: =$I$114 -> 4 | BB3: =$I$115 -> 1 | BC3: =$I$116 -> 6 | BD3: =$I$117 -> 6 | BE3: =$I$118 -> 2 | BF3: =$I$119 -> 4 | BG3: =$I$120 -> 10 | BH3: =$I$121 -> 4 | BI3: =$I$122 -> 0 | BJ3: =$I$123 -> 3 | BK3: =$I$124 -> 2 | BL3: =$I$125 -> 12 | BM3: =$I$126 -> 9 | BN3: =$I$127 -> 24 | BO3: =$I$128 -> 14 | BP3: =$I$129 -> 16 | BQ3: =$I$130 -> 8 | BR3: =$I$131 -> 9 | BS3: =$I$132 -> 12 | BT3: =$I$133 -> 14 | BU3: =$I$134 -> 27 | BV3: =$I$135 -> 11 | BW3: =$I$136 -> 19 | BX3: =$I$137 -> 17 | BY3: =$I$138 -> 10 | BZ3: =$I$139 -> 18 | CA3: =$I$140 -> 18 | CB3: =$I$141 -> 13 | CC3: =$I$142 -> 18 | CD3: =$I$143 -> 15
B4: 領域 | C4: Ⅱ．マネジメントサイクルの充実と浸透 | D4: 2 | K4: =AVERAGE(K32:K47) -> 0.4791666667 | L4: =STDEV(OFFSET(rng全体データ,0,$D4+69,,1)) -> 0.6606659127 | M4: =L4/SQRT($K$84) -> 0.07628712851 | T4: =AVERAGE(T32:T47) -> 0.46875 | U4: =STDEV(OFFSET(rng抽出データ,0,$D4+69,,1)) -> 0.6621008163 | V4: =U4/SQRT($T$84) -> 0.07913618379 | Y4: =$H$86 -> 20 | Z4: =$H$87 -> 17 | AA4: =$H$88 -> 29 | AB4: =$H$89 -> 28 | AC4: =$H$90 -> 19 | AD4: =$H$91 -> 26 | AE4: =$H$92 -> 23 | AF4: =$H$93 -> 21 | AG4: =$H$94 -> 25 | AH4: =$H$95 -> 24 | AI4: =$H$96 -> 19 | AJ4: =$H$97 -> 26 | AK4: =$H$98 -> 33 | AL4: =$H$99 -> 13 | AM4: =$H$100 -> 33 | AN4: =$H$101 -> 20 | AO4: =$H$102 -> 20 | AP4: =$H$103 -> 27 | AQ4: =$H$104 -> 19 | AR4: =$H$105 -> 26 | AS4: =$H$106 -> 25 | AT4: =$H$107 -> 16 | AU4: =$H$108 -> 23 | AV4: =$H$109 -> 27 | AW4: =$H$110 -> 24 | AX4: =$H$111 -> 11 | AY4: =$H$112 -> 56 | AZ4: =$H$113 -> 9 | BA4: =$H$114 -> 33 | BB4: =$H$115 -> 28 | BC4: =$H$116 -> 33 | BD4: =$H$117 -> 9 | BE4: =$H$118 -> 9 | BF4: =$H$119 -> 18 | BG4: =$H$120 -> 16 | BH4: =$H$121 -> 23 | BI4: =$H$122 -> 8 | BJ4: =$H$123 -> 12 | BK4: =$H$124 -> 39 | BL4: =$H$125 -> 33 | BM4: =$H$126 -> 11 | BN4: =$H$127 -> 13 | BO4: =$H$128 -> 28 | BP4: =$H$129 -> 29 | BQ4: =$H$130 -> 36 | BR4: =$H$131 -> 16 | BS4: =$H$132 -> 28 | BT4: =$H$133 -> 22 | BU4: =$H$134 -> 20 | BV4: =$H$135 -> 26 | BW4: =$H$136 -> 24 | BX4: =$H$137 -> 26 | BY4: =$H$138 -> 21 | BZ4: =$H$139 -> 26 | CA4: =$H$140 -> 21 | CB4: =$H$141 -> 29 | CC4: =$H$142 -> 19 | CD4: =$H$143 -> 26
B5: 領域 | C5: Ⅲ．教育訓練の充実 | D5: 3 | K5: =AVERAGE(K48:K56) -> 0.1792592593 | L5: =STDEV(OFFSET(rng全体データ,0,$D5+69,,1)) -> 0.8847300106 | M5: 0.102159822 | T5: =AVERAGE(T48:T56) -> 0.1412698413 | U5: =STDEV(OFFSET(rng抽出データ,0,$D5+69,,1)) -> 0.9008696279 | V5: 0.1076745153 | Y5: =$G$86 -> 12 | Z5: =$G$87 -> 31 | AA5: =$G$88 -> 20 | AB5: =$G$89 -> 18 | AC5: =$G$90 -> 21 | AD5: =$G$91 -> 13 | AE5: =$G$92 -> 9 | AF5: =$G$93 -> 26 | AG5: =$G$94 -> 15 | AH5: =$G$95 -> 21 | AI5: =$G$96 -> 26 | AJ5: =$G$97 -> 15 | AK5: =$G$98 -> 13 | AL5: =$G$99 -> 37 | AM5: =$G$100 -> 24 | AN5: =$G$101 -> 35 | AO5: =$G$102 -> 31 | AP5: =$G$103 -> 19 | AQ5: =$G$104 -> 32 | AR5: =$G$105 -> 24 | AS5: =$G$106 -> 23 | AT5: =$G$107 -> 30 | AU5: =$G$108 -> 33 | AV5: =$G$109 -> 18 | AW5: =$G$110 -> 18 | AX5: =$G$111 -> 36 | AY5: =$G$112 -> 5 | AZ5: =$G$113 -> 43 | BA5: =$G$114 -> 19 | BB5: =$G$115 -> 15 | BC5: =$G$116 -> 12 | BD5: =$G$117 -> 42 | BE5: =$G$118 -> 31 | BF5: =$G$119 -> 43 | BG5: =$G$120 -> 29 | BH5: =$G$121 -> 5 | BI5: =$G$122 -> 28 | BJ5: =$G$123 -> 33 | BK5: =$G$124 -> 26 | BL5: =$G$125 -> 11 | BM5: =$G$126 -> 20 | BN5: =$G$127 -> 22 | BO5: =$G$128 -> 17 | BP5: =$G$129 -> 11 | BQ5: =$G$130 -> 15 | BR5: =$G$131 -> 27 | BS5: =$G$132 -> 22 | BT5: =$G$133 -> 22 | BU5: =$G$134 -> 8 | BV5: =$G$135 -> 20 | BW5: =$G$136 -> 16 | BX5: =$G$137 -> 16 | BY5: =$G$138 -> 28 | BZ5: =$G$139 -> 12 | CA5: =$G$140 -> 19 | CB5: =$G$141 -> 18 | CC5: =$G$142 -> 16 | CD5: =$G$143 -> 12
B6: 領域 | C6: Ⅳ．現場管理の充実 | D6: 4 | K6: =AVERAGE(K57:K65) -> -0.008888888889 | L6: =STDEV(OFFSET(rng全体データ,0,$D6+69,,1)) -> 0.8400152532 | M6: 0.09699660651 | T6: =AVERAGE(T57:T65) -> -0.04285714286 | U6: =STDEV(OFFSET(rng抽出データ,0,$D6+69,,1)) -> 0.8561383834 | V6: 0.1023281089 | Y6: =$F$86 -> 6 | Z6: =$F$87 -> 10 | AA6: =$F$88 -> 10 | AB6: =$F$89 -> 9 | AC6: =$F$90 -> 17 | AD6: =$F$91 -> 3 | AE6: =$F$92 -> 4 | AF6: =$F$93 -> 5 | AG6: =$F$94 -> 3 | AH6: =$F$95 -> 13 | AI6: =$F$96 -> 14 | AJ6: =$F$97 -> 10 | AK6: =$F$98 -> 12 | AL6: =$F$99 -> 22 | AM6: =$F$100 -> 8 | AN6: =$F$101 -> 13 | AO6: =$F$102 -> 18 | AP6: =$F$103 -> 12 | AQ6: =$F$104 -> 15 | AR6: =$F$105 -> 11 | AS6: =$F$106 -> 16 | AT6: =$F$107 -> 25 | AU6: =$F$108 -> 9 | AV6: =$F$109 -> 8 | AW6: =$F$110 -> 9 | AX6: =$F$111 -> 21 | AY6: =$F$112 -> 11 | AZ6: =$F$113 -> 23 | BA6: =$F$114 -> 15 | BB6: =$F$115 -> 28 | BC6: =$F$116 -> 22 | BD6: =$F$117 -> 17 | BE6: =$F$118 -> 29 | BF6: =$F$119 -> 9 | BG6: =$F$120 -> 20 | BH6: =$F$121 -> 40 | BI6: =$F$122 -> 34 | BJ6: =$F$123 -> 25 | BK6: =$F$124 -> 5 | BL6: =$F$125 -> 6 | BM6: =$F$126 -> 31 | BN6: =$F$127 -> 9 | BO6: =$F$128 -> 8 | BP6: =$F$129 -> 3 | BQ6: =$F$130 -> 11 | BR6: =$F$131 -> 18 | BS6: =$F$132 -> 8 | BT6: =$F$133 -> 11 | BU6: =$F$134 -> 5 | BV6: =$F$135 -> 6 | BW6: =$F$136 -> 6 | BX6: =$F$137 -> 4 | BY6: =$F$138 -> 10 | BZ6: =$F$139 -> 3 | CA6: =$F$140 -> 4 | CB6: =$F$141 -> 3 | CC6: =$F$142 -> 6 | CD6: =$F$143 -> 9
B7: 領域 | C7: Ⅴ．職場メンバーの積極心 | D7: 5 | K7: =AVERAGE(K66:K79) -> 0.8152380952 | L7: =STDEV(OFFSET(rng全体データ,0,$D7+69,,1)) -> 0.4966924986 | M7: 0.05735310955 | T7: =AVERAGE(T66:T79) -> 0.8091836735 | U7: =STDEV(OFFSET(rng抽出データ,0,$D7+69,,1)) -> 0.5085372061 | V7: 0.06078182177
B8: 区分 | C8: １．経営理念（トップの価値観） | D8: 1 | E8: 1 | K8: =SUMIF($E$22:$E$79,D8,$K$22:$K$79)/COUNTIF($E$22:$E$79,D8) -> -0.2444444444 | L8: =STDEV(OFFSET(rng全体データ,0,$D8+74,,1)) -> 1.000500375 | M8: 0.1155278322 | T8: =SUMIF($E$22:$E$79,D8,$T$22:$T$79)/COUNTIF($E$22:$E$79,D8) -> -0.3 | U8: =STDEV(OFFSET(rng抽出データ,0,$D8+74,,1)) -> 0.9897217358 | V8: 0.1182943734
B9: 区分 | C9: ２．マネジメントシステム | D9: 2 | E9: 1 | K9: =SUMIF($E$22:$E$79,D9,$K$22:$K$79)/COUNTIF($E$22:$E$79,D9) -> -0.1022222222 | L9: 0.9999599592 | M9: 0.1154654303 | T9: -0.1666666667 | U9: 0.9939430091 | V9: 0.1187989121 | Y9: 抽出データ
B10: 区分 | C10: ３．現場重視の行動・姿勢 | D10: 3 | E10: 1 | K10: -0.2033333333 | L10: 1.041936001 | M10: 0.1203124062 | T10: -0.2785714286 | U10: 1.022875013 | V10: 0.1222569479 | Y10: =$S$86 -> 12 | Z10: =$S$87 -> 2 | AA10: =$S$88 -> 6 | AB10: =$S$89 -> 5 | AC10: =$S$90 -> 4 | AD10: =$S$91 -> 12 | AE10: =$S$92 -> 14 | AF10: =$S$93 -> 5 | AG10: =$S$94 -> 10 | AH10: =$S$95 -> 5 | AI10: =$S$96 -> 5 | AJ10: =$S$97 -> 5 | AK10: =$S$98 -> 2 | AL10: =$S$99 -> 0 | AM10: =$S$100 -> 0 | AN10: =$S$101 -> 3 | AO10: =$S$102 -> 0 | AP10: =$S$103 -> 3 | AQ10: =$S$104 -> 1 | AR10: =$S$105 -> 1 | AS10: =$S$106 -> 1 | AT10: =$S$107 -> 0 | AU10: =$S$108 -> 1 | AV10: =$S$109 -> 11 | AW10: =$S$110 -> 5 | AX10: =$S$111 -> 0 | AY10: =$S$112 -> 0 | AZ10: =$S$113 -> 0 | BA10: =$S$114 -> 4 | BB10: =$S$115 -> 3 | BC10: =$S$116 -> 2 | BD10: =$S$117 -> 1 | BE10: =$S$118 -> 4 | BF10: =$S$119 -> 1 | BG10: =$S$120 -> 0 | BH10: =$S$121 -> 3 | BI10: =$S$122 -> 5 | BJ10: =$S$123 -> 2 | BK10: =$S$124 -> 3 | BL10: =$S$125 -> 13 | BM10: =$S$126 -> 4 | BN10: =$S$127 -> 7 | BO10: =$S$128 -> 8 | BP10: =$S$129 -> 16 | BQ10: =$S$130 -> 5 | BR10: =$S$131 -> 5 | BS10: =$S$132 -> 5 | BT10: =$S$133 -> 6 | BU10: =$S$134 -> 15 | BV10: =$S$135 -> 12 | BW10: =$S$136 -> 10 | BX10: =$S$137 -> 12 | BY10: =$S$138 -> 6 | BZ10: =$S$139 -> 16 | CA10: =$S$140 -> 13 | CB10: =$S$141 -> 12 | CC10: =$S$142 -> 16 | CD10: =$S$143 -> 13
B11: 区分 | C11: １．PDCAの実践 | D11: 4 | E11: 2 | K11: 0.459047619 | L11: 0.7934137784 | M11: 0.09161553171 | T11: 0.4632653061 | U11: 0.7964858169 | V11: 0.09519826353 | Y11: =$R$86 -> 25 | Z11: =$R$87 -> 15 | AA11: =$R$88 -> 10 | AB11: =$R$89 -> 14 | AC11: =$R$90 -> 14 | AD11: =$R$91 -> 20 | AE11: =$R$92 -> 23 | AF11: =$R$93 -> 18 | AG11: =$R$94 -> 21 | AH11: =$R$95 -> 12 | AI11: =$R$96 -> 11 | AJ11: =$R$97 -> 18 | AK11: =$R$98 -> 14 | AL11: =$R$99 -> 2 | AM11: =$R$100 -> 9 | AN11: =$R$101 -> 4 | AO11: =$R$102 -> 6 | AP11: =$R$103 -> 14 | AQ11: =$R$104 -> 8 | AR11: =$R$105 -> 13 | AS11: =$R$106 -> 9 | AT11: =$R$107 -> 4 | AU11: =$R$108 -> 9 | AV11: =$R$109 -> 11 | AW11: =$R$110 -> 18 | AX11: =$R$111 -> 6 | AY11: =$R$112 -> 3 | AZ11: =$R$113 -> 0 | BA11: =$R$114 -> 3 | BB11: =$R$115 -> 1 | BC11: =$R$116 -> 6 | BD11: =$R$117 -> 6 | BE11: =$R$118 -> 2 | BF11: =$R$119 -> 4 | BG11: =$R$120 -> 9 | BH11: =$R$121 -> 4 | BI11: =$R$122 -> 0 | BJ11: =$R$123 -> 3 | BK11: =$R$124 -> 2 | BL11: =$R$125 -> 12 | BM11: =$R$126 -> 9 | BN11: =$R$127 -> 23 | BO11: =$R$128 -> 14 | BP11: =$R$129 -> 15 | BQ11: =$R$130 -> 8 | BR11: =$R$131 -> 9 | BS11: =$R$132 -> 12 | BT11: =$R$133 -> 14 | BU11: =$R$134 -> 26 | BV11: =$R$135 -> 11 | BW11: =$R$136 -> 19 | BX11: =$R$137 -> 17 | BY11: =$R$138 -> 10 | BZ11: =$R$139 -> 18 | CA11: =$R$140 -> 18 | CB11: =$R$141 -> 13 | CC11: =$R$142 -> 18 | CD11: =$R$143 -> 14
B12: 区分 | C12: ２．コミュニケーションの実践 | D12: 5 | E12: 2 | K12: 0.4948148148 | L12: 0.6461542332 | M12: 0.07461146409 | T12: 0.473015873 | U12: 0.6469676061 | V12: 0.07732741921 | Y12: =$Q$86 -> 17 | Z12: =$Q$87 -> 16 | AA12: =$Q$88 -> 29 | AB12: =$Q$89 -> 25 | AC12: =$Q$90 -> 18 | AD12: =$Q$91 -> 23 | AE12: =$Q$92 -> 20 | AF12: =$Q$93 -> 21 | AG12: =$Q$94 -> 22 | AH12: =$Q$95 -> 20 | AI12: =$Q$96 -> 16 | AJ12: =$Q$97 -> 23 | AK12: =$Q$98 -> 30 | AL12: =$Q$99 -> 12 | AM12: =$Q$100 -> 30 | AN12: =$Q$101 -> 18 | AO12: =$Q$102 -> 19 | AP12: =$Q$103 -> 24 | AQ12: =$Q$104 -> 18 | AR12: =$Q$105 -> 23 | AS12: =$Q$106 -> 23 | AT12: =$Q$107 -> 15 | AU12: =$Q$108 -> 22 | AV12: =$Q$109 -> 26 | AW12: =$Q$110 -> 24 | AX12: =$Q$111 -> 11 | AY12: =$Q$112 -> 51 | AZ12: =$Q$113 -> 9 | BA12: =$Q$114 -> 31 | BB12: =$Q$115 -> 27 | BC12: =$Q$116 -> 30 | BD12: =$Q$117 -> 9 | BE12: =$Q$118 -> 9 | BF12: =$Q$119 -> 17 | BG12: =$Q$120 -> 15 | BH12: =$Q$121 -> 21 | BI12: =$Q$122 -> 7 | BJ12: =$Q$123 -> 12 | BK12: =$Q$124 -> 35 | BL12: =$Q$125 -> 30 | BM12: =$Q$126 -> 9 | BN12: =$Q$127 -> 13 | BO12: =$Q$128 -> 26 | BP12: =$Q$129 -> 26 | BQ12: =$Q$130 -> 33 | BR12: =$Q$131 -> 16 | BS12: =$Q$132 -> 27 | BT12: =$Q$133 -> 21 | BU12: =$Q$134 -> 17 | BV12: =$Q$135 -> 23 | BW12: =$Q$136 -> 21 | BX12: =$Q$137 -> 24 | BY12: =$Q$138 -> 19 | BZ12: =$Q$139 -> 24 | CA12: =$Q$140 -> 20 | CB12: =$Q$141 -> 27 | CC12: =$Q$142 -> 19 | CD12: =$Q$143 -> 26
B13: 区分 | C13: １．採用・教育の充実 | D13: 6 | E13: 3 | K13: 0.2311111111 | L13: 0.9443578833 | M13: 0.1090450556 | T13: 0.1952380952 | U13: 0.9521445531 | V13: 0.113803041 | Y13: =$P$86 -> 11 | Z13: =$P$87 -> 27 | AA13: =$P$88 -> 15 | AB13: =$P$89 -> 17 | AC13: =$P$90 -> 19 | AD13: =$P$91 -> 12 | AE13: =$P$92 -> 9 | AF13: =$P$93 -> 21 | AG13: =$P$94 -> 14 | AH13: =$P$95 -> 21 | AI13: =$P$96 -> 25 | AJ13: =$P$97 -> 15 | AK13: =$P$98 -> 13 | AL13: =$P$99 -> 35 | AM13: =$P$100 -> 24 | AN13: =$P$101 -> 32 | AO13: =$P$102 -> 27 | AP13: =$P$103 -> 17 | AQ13: =$P$104 -> 29 | AR13: =$P$105 -> 23 | AS13: =$P$106 -> 22 | AT13: =$P$107 -> 28 | AU13: =$P$108 -> 30 | AV13: =$P$109 -> 15 | AW13: =$P$110 -> 15 | AX13: =$P$111 -> 32 | AY13: =$P$112 -> 5 | AZ13: =$P$113 -> 40 | BA13: =$P$114 -> 19 | BB13: =$P$115 -> 13 | BC13: =$P$116 -> 12 | BD13: =$P$117 -> 38 | BE13: =$P$118 -> 29 | BF13: =$P$119 -> 39 | BG13: =$P$120 -> 26 | BH13: =$P$121 -> 5 | BI13: =$P$122 -> 26 | BJ13: =$P$123 -> 31 | BK13: =$P$124 -> 25 | BL13: =$P$125 -> 10 | BM13: =$P$126 -> 19 | BN13: =$P$127 -> 18 | BO13: =$P$128 -> 14 | BP13: =$P$129 -> 10 | BQ13: =$P$130 -> 13 | BR13: =$P$131 -> 25 | BS13: =$P$132 -> 18 | BT13: =$P$133 -> 18 | BU13: =$P$134 -> 8 | BV13: =$P$135 -> 19 | BW13: =$P$136 -> 15 | BX13: =$P$137 -> 14 | BY13: =$P$138 -> 25 | BZ13: =$P$139 -> 10 | CA13: =$P$140 -> 16 | CB13: =$P$141 -> 16 | CC13: =$P$142 -> 12 | CD13: =$P$143 -> 9
B14: 区分 | C14: ２．リーダー教育の充実 | D14: 7 | E14: 3 | K14: -0.04 | L14: 0.9522535307 | M14: 0.1099567665 | T14: -0.06666666667 | U14: 0.9724050898 | V14: 0.1162246383 | Y14: =$O$86 -> 5 | Z14: =$O$87 -> 10 | AA14: =$O$88 -> 10 | AB14: =$O$89 -> 9 | AC14: =$O$90 -> 15 | AD14: =$O$91 -> 3 | AE14: =$O$92 -> 4 | AF14: =$O$93 -> 5 | AG14: =$O$94 -> 3 | AH14: =$O$95 -> 12 | AI14: =$O$96 -> 13 | AJ14: =$O$97 -> 9 | AK14: =$O$98 -> 11 | AL14: =$O$99 -> 21 | AM14: =$O$100 -> 7 | AN14: =$O$101 -> 13 | AO14: =$O$102 -> 18 | AP14: =$O$103 -> 12 | AQ14: =$O$104 -> 14 | AR14: =$O$105 -> 10 | AS14: =$O$106 -> 15 | AT14: =$O$107 -> 23 | AU14: =$O$108 -> 8 | AV14: =$O$109 -> 7 | AW14: =$O$110 -> 8 | AX14: =$O$111 -> 21 | AY14: =$O$112 -> 11 | AZ14: =$O$113 -> 21 | BA14: =$O$114 -> 13 | BB14: =$O$115 -> 26 | BC14: =$O$116 -> 20 | BD14: =$O$117 -> 16 | BE14: =$O$118 -> 26 | BF14: =$O$119 -> 9 | BG14: =$O$120 -> 20 | BH14: =$O$121 -> 37 | BI14: =$O$122 -> 32 | BJ14: =$O$123 -> 22 | BK14: =$O$124 -> 5 | BL14: =$O$125 -> 5 | BM14: =$O$126 -> 29 | BN14: =$O$127 -> 9 | BO14: =$O$128 -> 8 | BP14: =$O$129 -> 3 | BQ14: =$O$130 -> 11 | BR14: =$O$131 -> 15 | BS14: =$O$132 -> 8 | BT14: =$O$133 -> 11 | BU14: =$O$134 -> 4 | BV14: =$O$135 -> 5 | BW14: =$O$136 -> 5 | BX14: =$O$137 -> 3 | BY14: =$O$138 -> 10 | BZ14: =$O$139 -> 2 | CA14: =$O$140 -> 3 | CB14: =$O$141 -> 2 | CC14: =$O$142 -> 5 | CD14: =$O$143 -> 8
B15: 区分 | C15: ３．安全教育の充実 | D15: 8 | E15: 3 | K15: 0.3466666667 | L15: 1.011109461 | M15: 0.1167528639 | T15: 0.2952380952 | U15: 1.025508565 | V15: 0.1225717176
B16: 区分 | C16: １．現場コミュニケーション | D16: 9 | E16: 4 | K16: 0.2755555556 | L16: 0.9777914277 | M16: 0.1129056288 | T16: 0.2428571429 | U16: 1.000678399 | V16: 0.1196039451
B17: 区分 | C17: ２．日常管理の充実 | D17: 10 | E17: 4 | K17: -0.08444444444 | L17: 0.9055937832 | M17: 0.1045689629 | T17: -0.1238095238 | U17: 0.9153748976 | V17: 0.1094082266
B18: 区分 | C18: ３．現場管理施策の充実 | D18: 11 | E18: 4 | K18: -0.2177777778 | L18: 0.8945838587 | M18: 0.1032976463 | T18: -0.2476190476 | U18: 0.9145200413 | V18: 0.1093060517
B19: 区分 | C19: １．基本行動への意識 | D19: 12 | E19: 5 | K19: 0.848 | L19: 0.4973877709 | M19: 0.05743339268 | T19: 0.8542857143 | U19: 0.4968555368 | V19: 0.05938559523
B20: 区分 | C20: ２．職務への意識 | D20: 13 | E20: 5 | K20: 0.7253333333 | L20: 0.6236538657 | M20: 0.07201334544 | T20: 0.7142857143 | U20: 0.6366319243 | V20: 0.07609206895
B21: 区分 | C21: ３．人間関係への意識 | D21: 14 | E21: 5 | K21: 0.8866666667 | L21: 0.673199969 | M21: 0.07773443666 | T21: 0.8714285714 | U21: 0.6859654906 | V21: 0.08198855793
B22: 項目 | C22: 経営姿勢への共感 | D22: 49 | E22: 1 | F22: =COUNTIF(OFFSET(rng全体データ,0,$D22+11,,1),5) -> 5 | G22: =COUNTIF(OFFSET(rng全体データ,0,$D22+11,,1),4) -> 8 | H22: =COUNTIF(OFFSET(rng全体データ,0,$D22+11,,1),3) -> 20 | I22: =COUNTIF(OFFSET(rng全体データ,0,$D22+11,,1),2) -> 27 | J22: =COUNTIF(OFFSET(rng全体データ,0,$D22+11,,1),1) -> 15 | K22: =AVERAGE(OFFSET(rng全体データ,0,$D22+11,,1))-3 -> -0.52 | L22: =STDEV(OFFSET(rng全体データ,0,$D22+11,,1)) -> 1.13137085 | M22: =L22/SQRT(SUM(F22:J22)) -> 0.1306394529 | O22: =COUNTIF(OFFSET(rng抽出データ,0,$D22+11,,1),5) -> 4 | P22: =COUNTIF(OFFSET(rng抽出データ,0,$D22+11,,1),4) -> 8 | Q22: =COUNTIF(OFFSET(rng抽出データ,0,$D22+11,,1),3) -> 17 | R22: =COUNTIF(OFFSET(rng抽出データ,0,$D22+11,,1),2) -> 26 | S22: =COUNTIF(OFFSET(rng抽出データ,0,$D22+11,,1),1) -> 15 | T22: =AVERAGE(OFFSET(rng抽出データ,0,$D22+11,,1))-3 -> -0.5714285714 | U22: =STDEV(OFFSET(rng抽出データ,0,$D22+11,,1)) -> 1.123806015 | V22: =U22/SQRT(SUM(O22:S22)) -> 0.13432051
B23: 項目 | C23: 安全に関するコンプライアンスの浸透 | D23: 50 | E23: 1 | F23: 6 | G23: 20 | H23: 26 | I23: 11 | J23: 12 | K23: -0.04 | L23: 1.179097227 | M23: =L23/SQRT(SUM(F23:J23)) -> 0.1361504203 | O23: 5 | P23: 19 | Q23: 23 | R23: 11 | S23: 12 | T23: -0.08571428571 | U23: 1.188627965 | V23: =U23/SQRT(SUM(O23:S23)) -> 0.1420682149
B24: 項目 | C24: 経営執行の監視（コーポレートガバナンス） | D24: 56 | E24: 1 | F24: 3 | G24: 18 | H24: 29 | I24: 13 | J24: 12 | K24: -0.1733333333 | L24: 1.095116103 | M24: 0.1264531154 | O24: 2 | P24: 16 | Q24: 27 | R24: 13 | S24: 12 | T24: -0.2428571429 | U24: 1.082612437 | V24: 0.1293969358
B25: 項目 | C25: 継続的改善 | D25: 53 | E25: 2 | F25: 10 | G25: 28 | H25: 21 | I25: 10 | J25: 6 | K25: 0.3466666667 | L25: 1.120971265 | M25: 0.1294386123 | O25: 10 | P25: 25 | Q25: 19 | R25: 10 | S25: 6 | T25: 0.3285714286 | U25: 1.151198853 | V25: 0.1375945804
B26: 項目 | C26: 管理者育成（人材育成） | D26: 54 | E26: 2 | F26: 3 | G26: 12 | H26: 26 | I26: 18 | J26: 16 | K26: -0.4266666667 | L26: 1.117106946 | M26: 0.1289923992 | O26: 2 | P26: 10 | Q26: 24 | R26: 18 | S26: 16 | T26: -0.5142857143 | U26: 1.08671633 | V26: 0.1298874447
B27: 項目 | C27: 現場情報の活用 | D27: 55 | E27: 2 | F27: 4 | G27: 19 | H27: 21 | I27: 18 | J27: 13 | K27: -0.2266666667 | L27: 1.169122255 | M27: 0.1349986097 | O27: 3 | P27: 16 | Q27: 20 | R27: 18 | S27: 13 | T27: -0.3142857143 | U27: 1.14894857 | V27: 0.1373256201
B28: 項目 | C28: 率先垂範への共感 | D28: 51 | E28: 3 | F28: 6 | G28: 16 | H28: 24 | I28: 19 | J28: 10 | K28: -0.1466666667 | L28: 1.147186138 | M28: 0.1324656452 | O28: 5 | P28: 15 | Q28: 21 | R28: 19 | S28: 10 | T28: -0.2 | U28: 1.14966914 | V28: 0.1374117447
B29: 項目 | C29: 問題解決の意思決定 | D29: 52 | E29: 3 | F29: 4 | G29: 16 | H29: 26 | I29: 17 | J29: 12 | K29: -0.2266666667 | L29: 1.121935265 | M29: 0.1295499254 | O29: 3 | P29: 14 | Q29: 24 | R29: 17 | S29: 12 | T29: -0.3 | U29: 1.107942341 | V29: 0.1324244384
B30: 項目 | C30: 安全理念・方針の浸透 | D30: 57 | E30: 3 | F30: 6 | G30: 16 | H30: 19 | I30: 18 | J30: 16 | K30: -0.2933333333 | L30: 1.249576505 | M30: 0.1442886663 | O30: 5 | P30: 12 | Q30: 19 | R30: 18 | S30: 16 | T30: -0.4 | U30: 1.220596195 | V30: 0.1458891493
B31: 項目 | C31: 経営者による現場コミュニケーション | D31: 58 | E31: 3 | F31: 9 | G31: 12 | H31: 26 | I31: 15 | J31: 13 | K31: -0.1466666667 | L31: 1.237841772 | M31: 0.142933656 | O31: 8 | P31: 9 | Q31: 26 | R31: 14 | S31: 13 | T31: -0.2142857143 | U31: 1.226434175 | V31: 0.1465869214
B32: 項目 | C32: 安全の理念・方針の理解 | D32: 10 | E32: 4 | F32: 13 | G32: 21 | H32: 24 | I32: 12 | J32: 5 | K32: 0.3333333333 | L32: 1.142937578 | M32: 0.1319750636 | O32: 12 | P32: 21 | Q32: 20 | R32: 12 | S32: 5 | T32: 0.3285714286 | U32: 1.163720029 | V32: 0.1390911472
B33: 項目 | C33: 安全目標の設定 | D33: 11 | E33: 4 | F33: 14 | G33: 26 | H33: 19 | I33: 11 | J33: 5 | K33: 0.44 | L33: 1.153607737 | M33: 0.1332071475 | O33: 13 | P33: 25 | Q33: 16 | R33: 11 | S33: 5 | T33: 0.4285714286 | U33: 1.174258058 | V33: 0.1403506826
B34: 項目 | C34: 取り組み計画の具体化 | D34: 12 | E34: 4 | F34: 10 | G34: 15 | H34: 26 | I34: 19 | J34: 5 | K34: 0.08 | L34: 1.124181384 | M34: 0.1298092849 | O34: 9 | P34: 15 | Q34: 23 | R34: 18 | S34: 5 | T34: 0.07142857143 | U34: 1.133436848 | V34: 0.1354716148
B35: 項目 | C35: 計画の実行 | D35: 13 | E35: 4 | F35: 12 | G35: 13 | H35: 33 | I35: 15 | J35: 2 | K35: 0.24 | L35: 1.037668905 | M35: 0.1198196843 | O35: 11 | P35: 13 | Q35: 30 | R35: 14 | S35: 2 | T35: 0.2428571429 | U35: 1.041678054 | V35: 0.1245043412
B36: 項目 | C36: 改善志向 | D36: 14 | E36: 4 | F36: 22 | G36: 37 | H36: 13 | I36: 3 | J36: 0 | K36: 1.04 | L36: 0.7959356215 | M36: 0.09190672906 | O36: 21 | P36: 35 | Q36: 12 | R36: 2 | S36: 0 | T36: 1.071428571 | U36: 0.7674808891 | V36: 0.09173151158
B37: 項目 | C37: 見直しと次へのアクション | D37: 15 | E37: 4 | F37: 8 | G37: 24 | H37: 33 | I37: 10 | J37: 0 | K37: 0.4 | L37: 0.8542421962 | M37: 0.09863939238 | O37: 7 | P37: 24 | Q37: 30 | R37: 9 | S37: 0 | T37: 0.4142857143 | U37: 0.8425781199 | V37: 0.1007073475
B38: 項目 | C38: 文書・記録の管理・活用 | D38: 16 | E38: 4 | F38: 13 | G38: 35 | H38: 20 | I38: 4 | J38: 3 | K38: 0.68 | L38: 0.9608554747 | M38: 0.1109500334 | O38: 13 | P38: 32 | Q38: 18 | R38: 4 | S38: 3 | T38: 0.6857142857 | U38: 0.986030795 | V38: 0.1178532216
B39: 項目 | C39: 職場の風通し | D39: 17 | E39: 5 | F39: 18 | G39: 31 | H39: 20 | I39: 6 | J39: 0 | K39: 0.8133333333 | L39: 0.8958362141 | M39: 0.1034422559 | O39: 18 | P39: 27 | Q39: 19 | R39: 6 | S39: 0 | T39: 0.8142857143 | U39: 0.9214490344 | V39: 0.1101342248
B40: 項目 | C40: リーダーシップ | D40: 18 | E40: 5 | F40: 12 | G40: 19 | H40: 27 | I40: 14 | J40: 3 | K40: 0.3066666667 | L40: 1.077701926 | M40: 0.1244422994 | O40: 12 | P40: 17 | Q40: 24 | R40: 14 | S40: 3 | T40: 0.3 | U40: 1.107942341 | V40: 0.1324244384
B41: 項目 | C41: 部署間コミュニケーション | D41: 19 | E41: 5 | F41: 15 | G41: 32 | H41: 19 | I41: 8 | J41: 1 | K41: 0.6933333333 | L41: 0.9582265902 | M41: 0.110646476 | O41: 14 | P41: 29 | Q41: 18 | R41: 8 | S41: 1 | T41: 0.6714285714 | U41: 0.9738825417 | V41: 0.1164012276
B42: 項目 | C42: 部署間連携 | D42: 20 | E42: 5 | F42: 11 | G42: 24 | H42: 26 | I42: 13 | J42: 1 | K42: 0.4133333333 | L42: 0.9876717549 | M42: 0.1140465107 | O42: 10 | P42: 23 | Q42: 23 | R42: 13 | S42: 1 | T42: 0.4 | U42: 0.9985496729 | V42: 0.1193495137
B43: 項目 | C43: 報告・連絡・相談の環境作り | D43: 21 | E43: 5 | F43: 16 | G43: 23 | H43: 25 | I43: 10 | J43: 1 | K43: 0.5733333333 | L43: 1.015732106 | M43: 0.117286641 | O43: 15 | P43: 22 | Q43: 23 | R43: 9 | S43: 1 | T43: 0.5857142857 | U43: 1.014287172 | V43: 0.1212305046
B44: 項目 | C44: 報告・連絡・相談の実践 | D44: 22 | E44: 5 | F44: 25 | G44: 30 | H44: 16 | I44: 4 | J44: 0 | K44: 1.013333333 | L44: 0.8775477708 | M44: 0.1013304883 | O44: 23 | P44: 28 | Q44: 15 | R44: 4 | S44: 0 | T44: 1 | U44: 0.8846517369 | V44: 0.1057361065
B45: 項目 | C45: 職場環境（仕事面） | D45: 23 | E45: 5 | F45: 9 | G45: 33 | H45: 23 | I45: 9 | J45: 1 | K45: 0.5333333333 | L45: 0.9054390205 | M45: 0.1045510924 | O45: 8 | P45: 30 | Q45: 22 | R45: 9 | S45: 1 | T45: 0.5 | U45: 0.9128709292 | V45: 0.1091089451
B46: 項目 | C46: 職場環境（健康面） | D46: 24 | E46: 5 | F46: 8 | G46: 18 | H46: 27 | I46: 11 | J46: 11 | K46: 0.01333333333 | L46: 1.191108198 | M46: 0.1375373277 | O46: 7 | P46: 15 | Q46: 26 | R46: 11 | S46: 11 | T46: -0.05714285714 | U46: 1.190368525 | V46: 0.1422762517
B47: 項目 | C47: 職場環境（精神面） | D47: 25 | E47: 5 | F47: 9 | G47: 18 | H47: 24 | I47: 19 | J47: 5 | K47: 0.09333333333 | L47: 1.117106946 | M47: 0.1289923992 | O47: 8 | P47: 15 | Q47: 24 | R47: 18 | S47: 5 | T47: 0.04285714286 | U47: 1.109062985 | V47: 0.1325583809
B48: 項目 | C48: 人材確保 | D48: 40 | E48: 6 | F48: 6 | G48: 11 | H48: 33 | I48: 12 | J48: 13 | K48: -0.2 | L48: 1.138989595 | M48: 0.1315191898 | O48: 5 | P48: 10 | Q48: 30 | R48: 12 | S48: 13 | T48: -0.2571428571 | U48: 1.138085276 | V48: 0.1360272082
B49: 項目 | C49: 採用への経営者の関わり | D49: 41 | E49: 6 | F49: 31 | G49: 20 | H49: 11 | I49: 9 | J49: 4 | K49: 0.8666666667 | L49: 1.233905394 | M49: 0.1424791223 | O49: 29 | P49: 19 | Q49: 9 | R49: 9 | S49: 4 | T49: 0.8571428571 | U49: 1.254391871 | V49: 0.1499285051
B50: 項目 | C50: 新人教育の効果 | D50: 42 | E50: 6 | F50: 9 | G50: 22 | H50: 13 | I50: 24 | J50: 7 | K50: 0.02666666667 | L50: 1.218919918 | M50: 0.1407487485 | O50: 9 | P50: 18 | Q50: 13 | R50: 23 | S50: 7 | T50: -0.01428571429 | U50: 1.233503989 | V50: 0.1474319257
B51: 項目 | C51: 知識・技能教育（定期的教育） | D51: 43 | E51: 7 | F51: 8 | G51: 17 | H51: 28 | I51: 14 | J51: 8 | K51: 0.04 | L51: 1.132325996 | M51: 0.1307497438 | O51: 8 | P51: 14 | Q51: 26 | R51: 14 | S51: 8 | T51: 0 | U51: 1.154700538 | V51: 0.1380131119
B52: 項目 | C52: 現場リーダーの育成 | D52: 44 | E52: 7 | F52: 3 | G52: 11 | H52: 29 | I52: 16 | J52: 16 | K52: -0.4133333333 | L52: 1.103965008 | M52: 0.1274748989 | O52: 3 | P52: 10 | Q52: 26 | R52: 15 | S52: 16 | T52: -0.4428571429 | U52: 1.124634746 | V52: 0.1344195624
B53: 項目 | C53: 指導員による指導の効果 | D53: 45 | E53: 7 | F53: 11 | G53: 15 | H53: 36 | I53: 8 | J53: 5 | K53: 0.2533333333 | L53: 1.053864617 | M53: 0.121689804 | O53: 11 | P53: 13 | Q53: 33 | R53: 8 | S53: 5 | T53: 0.2428571429 | U53: 1.082612437 | V53: 0.1293969358
B54: 項目 | C54: 事故分析と再発防止教育 | D54: 46 | E54: 8 | F54: =COUNTIF(OFFSET(rng全体データ,0,$D54+11,,1),5) -> 18 | G54: =COUNTIF(OFFSET(rng全体データ,0,$D54+11,,1),4) -> 27 | H54: =COUNTIF(OFFSET(rng全体データ,0,$D54+11,,1),3) -> 16 | I54: =COUNTIF(OFFSET(rng全体データ,0,$D54+11,,1),2) -> 9 | J54: =COUNTIF(OFFSET(rng全体データ,0,$D54+11,,1),1) -> 5 | K54: =AVERAGE(OFFSET(rng全体データ,0,$D54+11,,1))-3 -> 0.5866666667 | L54: =STDEV(OFFSET(rng全体データ,0,$D54+11,,1)) -> 1.175117399 | M54: 0.1356908693 | O54: =COUNTIF(OFFSET(rng抽出データ,0,$D54+11,,1),5) -> 15 | P54: =COUNTIF(OFFSET(rng抽出データ,0,$D54+11,,1),4) -> 25 | Q54: =COUNTIF(OFFSET(rng抽出データ,0,$D54+11,,1),3) -> 16 | R54: =COUNTIF(OFFSET(rng抽出データ,0,$D54+11,,1),2) -> 9 | S54: =COUNTIF(OFFSET(rng抽出データ,0,$D54+11,,1),1) -> 5 | T54: =AVERAGE(OFFSET(rng抽出データ,0,$D54+11,,1))-3 -> 0.5142857143 | U54: =STDEV(OFFSET(rng抽出データ,0,$D54+11,,1)) -> 1.176371936 | V54: 0.1406033393
B55: 項目 | C55: ﾋﾔﾘﾊｯﾄ、危険予知訓練の効果 | D55: 47 | E55: 8 | F55: 8 | G55: 22 | H55: 28 | I55: 12 | J55: 5 | K55: 0.2133333333 | L55: 1.056426067 | M55: 0.1219855749 | O55: 8 | P55: 18 | Q55: 27 | R55: 12 | S55: 5 | T55: 0.1714285714 | U55: 1.076379177 | V55: 0.1286519187
B56: 項目 | C56: 事故・災害対応手順の見直し | D56: 48 | E56: 8 | F56: 11 | G56: 22 | H56: 22 | I56: 14 | J56: 6 | K56: 0.24 | L56: 1.160614935 | M56: 0.134016269 | O56: 11 | P56: 18 | Q56: 21 | R56: 14 | S56: 6 | T56: 0.2 | U56: 1.186884852 | V56: 0.1418598731
B57: 項目 | C57: 親身になった指導 | D57: 3 | E57: 9 | F57: 10 | G57: 20 | H57: 29 | I57: 10 | J57: 6 | K57: 0.24 | L57: 1.100859615 | M57: 0.127116319 | O57: 10 | P57: 15 | Q57: 29 | R57: 10 | S57: 6 | T57: 0.1857142857 | U57: 1.120207759 | V57: 0.1338904363
B58: 項目 | C58: 積極的な声かけ | D58: 4 | E58: 9 | F58: 9 | G58: 18 | H58: 28 | I58: 15 | J58: 5 | K58: 0.1466666667 | L58: 1.086692643 | M58: 0.125480458 | O58: 9 | P58: 17 | Q58: 25 | R58: 14 | S58: 5 | T58: 0.1571428571 | U58: 1.111673426 | V58: 0.1328703883
B59: 項目 | C59: 朝礼の活性化 | D59: 5 | E59: 9 | F59: 17 | G59: 21 | H59: 19 | I59: 14 | J59: 4 | K59: 0.44 | L59: 1.188230572 | M59: 0.1372050481 | O59: 15 | P59: 19 | Q59: 18 | R59: 14 | S59: 4 | T59: 0.3857142857 | U59: 1.195315217 | V59: 0.1428674944
B60: 項目 | C60: 基本行動の指導 | D60: 1 | E60: 10 | F60: 6 | G60: 12 | H60: 20 | I60: 25 | J60: 12 | K60: -0.3333333333 | L60: 1.166344872 | M60: 0.1346779052 | O60: 5 | P60: 11 | Q60: 17 | R60: 25 | S60: 12 | T60: -0.4 | U60: 1.159710109 | V60: 0.13861187
B61: 項目 | C61: 効果的な日常点検・整備 | D61: 2 | E61: 10 | F61: 10 | G61: 31 | H61: 17 | I61: 15 | J61: 2 | K61: 0.4266666667 | L61: 1.042000847 | M61: 0.1203198939 | O61: 10 | P61: 27 | Q61: 16 | R61: 15 | S61: 2 | T61: 0.4 | U61: 1.068657562 | V61: 0.1277290092
B62: 項目 | C62: 生活管理・健康管理 | D62: 6 | E62: 10 | F62: 3 | G62: 13 | H62: 26 | I62: 21 | J62: 12 | K62: -0.3466666667 | L62: 1.071666211 | M62: 0.1237453551 | O62: 3 | P62: 12 | Q62: 23 | R62: 20 | S62: 12 | T62: -0.3714285714 | U62: 1.092416926 | V62: 0.1305687964
B63: 項目 | C63: 賞罰の効果 | D63: 7 | E63: 11 | F63: 4 | G63: 9 | H63: 23 | I63: 25 | J63: 14 | K63: -0.48 | L63: 1.09495156 | M63: 0.1264341156 | O63: 4 | P63: 9 | Q63: 20 | R63: 23 | S63: 14 | T63: -0.4857142857 | U63: 1.12601461 | V63: 0.1345844877
B64: 項目 | C64: ミーティング（班活動等）の充実 | D64: 8 | E64: 11 | F64: 5 | G64: 26 | H64: 21 | I64: 18 | J64: 5 | K64: 0.1066666667 | L64: 1.0600017 | M64: 0.1223984533 | O64: 5 | P64: 21 | Q64: 21 | R64: 18 | S64: 5 | T64: 0.04285714286 | U64: 1.069141797 | V64: 0.1277868863
B65: 項目 | C65: 現場ﾊﾟﾄﾛｰﾙ・立会の充実 | D65: 9 | E65: 11 | F65: 3 | G65: 15 | H65: 25 | I65: 22 | J65: 10 | K65: -0.28 | L65: 1.059831705 | M65: 0.1223788241 | O65: 3 | P65: 14 | Q65: 22 | R65: 21 | S65: 10 | T65: -0.3 | U65: 1.081464386 | V65: 0.1292597174
B66: 項目 | C66: 健康 | D66: 26 | E66: 12 | F66: 21 | G66: 36 | H66: 11 | I66: 6 | J66: 1 | K66: 0.9333333333 | L66: 0.9348122132 | M66: 0.1079428166 | O66: 21 | P66: 32 | Q66: 11 | R66: 6 | S66: 0 | T66: 0.9714285714 | U66: 0.9004254803 | V66: 0.1076214295
B67: 項目 | C67: あいさつ | D67: 27 | E67: 12 | F67: 11 | G67: 5 | H67: 56 | I67: 3 | J67: 0 | K67: 0.32 | L67: 0.7738985198 | M67: 0.08936210374 | O67: 11 | P67: 5 | Q67: 51 | R67: 3 | S67: 0 | T67: 0.3428571429 | U67: 0.7964725545 | V67: 0.09519667836
B68: 項目 | C68: 約束 | D68: 28 | E68: 12 | F68: 23 | G68: 43 | H68: 9 | I68: 0 | J68: 0 | K68: 1.186666667 | L68: 0.6301722916 | M68: 0.07276602844 | O68: 21 | P68: 40 | Q68: 9 | R68: 0 | S68: 0 | T68: 1.171428571 | U68: 0.6363717028 | V68: 0.07606096653
B69: 項目 | C69: 計画 | D69: 35 | E69: 12 | F69: 20 | G69: 29 | H69: 16 | I69: 10 | J69: 0 | K69: 0.7866666667 | L69: 0.9904044128 | M69: 0.1143620509 | O69: 20 | P69: 26 | Q69: 15 | R69: 9 | S69: 0 | T69: 0.8142857143 | U69: 0.9969934098 | V69: 0.1191635047
B70: 項目 | C70: 報告 | D70: 38 | E70: 12 | F70: 25 | G70: 33 | H70: 12 | I70: 3 | J70: 2 | K70: 1.013333333 | L70: 0.9514332479 | M70: 0.1098620484 | O70: 22 | P70: 31 | Q70: 12 | R70: 3 | S70: 2 | T70: 0.9714285714 | U70: 0.9626567792 | V70: 0.1150594923
B71: 項目 | C71: 終業 | D71: 29 | E71: 13 | F71: 15 | G71: 19 | H71: 33 | I71: 4 | J71: 4 | K71: 0.4933333333 | L71: 1.04459139 | M71: 0.120619024 | O71: 13 | P71: 19 | Q71: 31 | R71: 3 | S71: 4 | T71: 0.4857142857 | U71: 1.031993388 | V71: 0.1233468021
B72: 項目 | C72: 仕事 | D72: 30 | E72: 13 | F72: 28 | G72: 15 | H72: 28 | I72: 1 | J72: 3 | K72: 0.8533333333 | L72: 1.074185214 | M72: 0.1240362245 | O72: 26 | P72: 13 | Q72: 27 | R72: 1 | S72: 3 | T72: 0.8285714286 | U72: 1.089760359 | V72: 0.1302512758
B73: 項目 | C73: 車両・機材 | D73: 32 | E73: 13 | F73: 17 | G73: 42 | H73: 9 | I73: 6 | J73: 1 | K73: 0.9066666667 | L73: 0.88795747 | M73: 0.1025324969 | O73: 16 | P73: 38 | Q73: 9 | R73: 6 | S73: 1 | T73: 0.8857142857 | U73: 0.9095763808 | V73: 0.1087151713
B74: 項目 | C74: 会議・会合 | D74: 36 | E74: 13 | F74: 40 | G74: 5 | H74: 23 | I74: 4 | J74: 3 | K74: 1 | L74: 1.196842693 | M74: 0.1381994902 | O74: 37 | P74: 5 | Q74: 21 | R74: 4 | S74: 3 | T74: 0.9857142857 | U74: 1.209777284 | V74: 0.1445960421
B75: 項目 | C75: 出勤 | D75: 39 | E75: 13 | F75: 5 | G75: 26 | H75: 39 | I75: 2 | J75: 3 | K75: 0.3733333333 | L75: 0.8182600745 | M75: 0.09448453486 | O75: 5 | P75: 25 | Q75: 35 | R75: 2 | S75: 3 | T75: 0.3857142857 | U75: 0.8391309712 | V75: 0.1002953344
B76: 項目 | C76: 上役 | D76: 31 | E76: 14 | F76: 22 | G76: 12 | H76: 33 | I76: 6 | J76: 2 | K76: 0.6133333333 | L76: 1.076698323 | M76: 0.1243264134 | O76: 20 | P76: 12 | Q76: 30 | R76: 6 | S76: 2 | T76: 0.6 | U76: 1.08213423 | V76: 0.1293397791
B77: 項目 | C77: 先輩 | D77: 33 | E77: 14 | F77: 29 | G77: 31 | H77: 9 | I77: 2 | J77: 4 | K77: 1.053333333 | L77: 1.051296925 | M77: 0.1213933126 | O77: 26 | P77: 29 | Q77: 9 | R77: 2 | S77: 4 | T77: 1.014285714 | U77: 1.069916117 | V77: 0.1278794352
B78: 項目 | C78: 職場仲間 | D78: 34 | E78: 14 | F78: 9 | G78: 43 | H78: 18 | I78: 4 | J78: 1 | K78: 0.7333333333 | L78: 0.7941225539 | M78: 0.09169737405 | O78: 9 | P78: 39 | Q78: 17 | R78: 4 | S78: 1 | T78: 0.7285714286 | U78: 0.8151007508 | V78: 0.09742317368
B79: 項目 | C79: 部下 | D79: 37 | E79: 14 | F79: 34 | G79: 28 | H79: 8 | I79: 0 | J79: 5 | K79: 1.146666667 | L79: 1.074185214 | M79: 0.1240362245 | O79: 32 | P79: 26 | Q79: 7 | R79: 0 | S79: 5 | T79: 1.142857143 | U79: 1.093932069 | V79: 0.1307498905
C80: 1.2点以上 | K80: =F84/SUM($E$84:$I$84) -> 0.2133333333 | T80: =O84/SUM($O$84:$R$84) -> 0.2142857143
C81: 1.0点以上1.2点未満 | K81: =G84/SUM($E$84:$I$84) -> 0.2133333333 | T81: =P84/SUM($O$84:$R$84) -> 0.2142857143
C82: 0.4点以上1.0点未満 | K82: =H84/SUM($E$84:$I$84) -> 0.3466666667 | T82: =Q84/SUM($O$84:$R$84) -> 0.3285714286
C83: 0.4点未満 | K83: =I84/SUM($E$84:$I$84) -> 0.2266666667 | T83: =R84/SUM($O$84:$R$84) -> 0.2428571429
C84: KD-Ⅰ | D84: 63 | E84: － | F84: =COUNTIF(OFFSET(rng全体データ,0,$D84+11,,1),">=4.2") -> 16 | G84: =COUNTIF(OFFSET(rng全体データ,0,$D84+11,,1),">=4.0")-F84 -> 16 | H84: =COUNTIF(OFFSET(rng全体データ,0,$D84+11,,1),">=3.4")-F84-G84 -> 26 | I84: =COUNTIF(OFFSET(rng全体データ,0,$D84+11,,1),"<3.4") -> 17 | K84: =SUM(F84:I84) -> 75 | O84: =COUNTIF(OFFSET(rng抽出データ,0,$D84+11,,1),">=4.2") -> 15 | P84: =COUNTIF(OFFSET(rng抽出データ,0,$D84+11,,1),">=4.0")-O84 -> 15 | Q84: =COUNTIF(OFFSET(rng抽出データ,0,$D84+11,,1),">=3.4")-O84-P84 -> 23 | R84: =COUNTIF(OFFSET(rng抽出データ,0,$D84+11,,1),"<3.4") -> 17 | T84: =SUM(O84:R84) -> 70
C86: 基本行動の指導 | D86: 1 | E86: 1 | F86: =COUNTIF(OFFSET(rng全体データ,0,$D86+11,,1),5) -> 6 | G86: =COUNTIF(OFFSET(rng全体データ,0,$D86+11,,1),4) -> 12 | H86: =COUNTIF(OFFSET(rng全体データ,0,$D86+11,,1),3) -> 20 | I86: =COUNTIF(OFFSET(rng全体データ,0,$D86+11,,1),2) -> 25 | J86: =COUNTIF(OFFSET(rng全体データ,0,$D86+11,,1),1) -> 12 | K86: =AVERAGE(OFFSET(rng全体データ,0,$D86+11,,1))-3 -> -0.3333333333 | L86: =STDEV(OFFSET(rng全体データ,0,$D86+11,,1)) -> 1.166344872 | O86: =COUNTIF(OFFSET(rng抽出データ,0,$D86+11,,1),5) -> 5 | P86: =COUNTIF(OFFSET(rng抽出データ,0,$D86+11,,1),4) -> 11 | Q86: =COUNTIF(OFFSET(rng抽出データ,0,$D86+11,,1),3) -> 17 | R86: =COUNTIF(OFFSET(rng抽出データ,0,$D86+11,,1),2) -> 25 | S86: =COUNTIF(OFFSET(rng抽出データ,0,$D86+11,,1),1) -> 12 | T86: =AVERAGE(OFFSET(rng抽出データ,0,$D86+11,,1))-3 -> -0.4 | U86: =STDEV(OFFSET(rng抽出データ,0,$D86+11,,1)) -> 1.159710109
C87: 効果的な日常点検・整備 | D87: =D86+1 -> 2 | E87: 1 | F87: 10 | G87: 31 | H87: 17 | I87: 15 | J87: 2 | K87: 0.4266666667 | L87: 1.042000847 | O87: 10 | P87: 27 | Q87: 16 | R87: 15 | S87: 2 | T87: 0.4 | U87: 1.068657562
C88: 親身になった指導 | D88: =D87+1 -> 3 | E88: 1 | F88: 10 | G88: 20 | H88: 29 | I88: 10 | J88: 6 | K88: 0.24 | L88: 1.100859615 | O88: 10 | P88: 15 | Q88: 29 | R88: 10 | S88: 6 | T88: 0.1857142857 | U88: 1.120207759
C89: 積極的な声かけ | D89: 4 | E89: 2 | F89: 9 | G89: 18 | H89: 28 | I89: 15 | J89: 5 | K89: 0.1466666667 | L89: 1.086692643 | O89: 9 | P89: 17 | Q89: 25 | R89: 14 | S89: 5 | T89: 0.1571428571 | U89: 1.111673426
C90: 朝礼の活性化 | D90: 5 | E90: 2 | F90: 17 | G90: 21 | H90: 19 | I90: 14 | J90: 4 | K90: 0.44 | L90: 1.188230572 | O90: 15 | P90: 19 | Q90: 18 | R90: 14 | S90: 4 | T90: 0.3857142857 | U90: 1.195315217
C91: 生活管理・健康管理 | D91: 6 | E91: 2 | F91: 3 | G91: 13 | H91: 26 | I91: 21 | J91: 12 | K91: -0.3466666667 | L91: 1.071666211 | O91: 3 | P91: 12 | Q91: 23 | R91: 20 | S91: 12 | T91: -0.3714285714 | U91: 1.092416926
C92: 賞罰の効果 | D92: 7 | E92: 3 | F92: 4 | G92: 9 | H92: 23 | I92: 25 | J92: 14 | K92: -0.48 | L92: 1.09495156 | O92: 4 | P92: 9 | Q92: 20 | R92: 23 | S92: 14 | T92: -0.4857142857 | U92: 1.12601461
C93: ミーティング（班活動等）の充実 | D93: 8 | E93: 3 | F93: 5 | G93: 26 | H93: 21 | I93: 18 | J93: 5 | K93: 0.1066666667 | L93: 1.0600017 | O93: 5 | P93: 21 | Q93: 21 | R93: 18 | S93: 5 | T93: 0.04285714286 | U93: 1.069141797
C94: 現場ﾊﾟﾄﾛｰﾙ・立会の充実 | D94: 9 | E94: 3 | F94: 3 | G94: 15 | H94: 25 | I94: 22 | J94: 10 | K94: -0.28 | L94: 1.059831705 | O94: 3 | P94: 14 | Q94: 22 | R94: 21 | S94: 10 | T94: -0.3 | U94: 1.081464386
C95: 安全の理念・方針の理解 | D95: 10 | E95: 3 | F95: 13 | G95: 21 | H95: 24 | I95: 12 | J95: 5 | K95: 0.3333333333 | L95: 1.142937578 | O95: 12 | P95: 21 | Q95: 20 | R95: 12 | S95: 5 | T95: 0.3285714286 | U95: 1.163720029
C96: 安全目標の設定 | D96: 11 | E96: 4 | F96: 14 | G96: 26 | H96: 19 | I96: 11 | J96: 5 | K96: 0.44 | L96: 1.153607737 | O96: 13 | P96: 25 | Q96: 16 | R96: 11 | S96: 5 | T96: 0.4285714286 | U96: 1.174258058
C97: 取り組み計画の具体化 | D97: 12 | E97: 4 | F97: 10 | G97: 15 | H97: 26 | I97: 19 | J97: 5 | K97: 0.08 | L97: 1.124181384 | O97: 9 | P97: 15 | Q97: 23 | R97: 18 | S97: 5 | T97: 0.07142857143 | U97: 1.133436848
C98: 計画の実行 | D98: 13 | E98: 4 | F98: 12 | G98: 13 | H98: 33 | I98: 15 | J98: 2 | K98: 0.24 | L98: 1.037668905 | O98: 11 | P98: 13 | Q98: 30 | R98: 14 | S98: 2 | T98: 0.2428571429 | U98: 1.041678054
C99: 改善志向 | D99: 14 | E99: 4 | F99: 22 | G99: 37 | H99: 13 | I99: 3 | J99: 0 | K99: 1.04 | L99: 0.7959356215 | O99: 21 | P99: 35 | Q99: 12 | R99: 2 | S99: 0 | T99: 1.071428571 | U99: 0.7674808891
C100: 見直しと次へのアクション | D100: 15 | E100: 4 | F100: 8 | G100: 24 | H100: 33 | I100: 10 | J100: 0 | K100: 0.4 | L100: 0.8542421962 | O100: 7 | P100: 24 | Q100: 30 | R100: 9 | S100: 0 | T100: 0.4142857143 | U100: 0.8425781199
C101: 文書・記録の管理・活用 | D101: 16 | E101: 4 | F101: 13 | G101: 35 | H101: 20 | I101: 4 | J101: 3 | K101: 0.68 | L101: 0.9608554747 | O101: 13 | P101: 32 | Q101: 18 | R101: 4 | S101: 3 | T101: 0.6857142857 | U101: 0.986030795
C102: 職場の風通し | D102: 17 | E102: 4 | F102: 18 | G102: 31 | H102: 20 | I102: 6 | J102: 0 | K102: 0.8133333333 | L102: 0.8958362141 | O102: 18 | P102: 27 | Q102: 19 | R102: 6 | S102: 0 | T102: 0.8142857143 | U102: 0.9214490344
C103: リーダーシップ | D103: 18 | E103: 5 | F103: 12 | G103: 19 | H103: 27 | I103: 14 | J103: 3 | K103: 0.3066666667 | L103: 1.077701926 | O103: 12 | P103: 17 | Q103: 24 | R103: 14 | S103: 3 | T103: 0.3 | U103: 1.107942341
C104: 部署間コミュニケーション | D104: 19 | E104: 5 | F104: 15 | G104: 32 | H104: 19 | I104: 8 | J104: 1 | K104: 0.6933333333 | L104: 0.9582265902 | O104: 14 | P104: 29 | Q104: 18 | R104: 8 | S104: 1 | T104: 0.6714285714 | U104: 0.9738825417
C105: 部署間連携 | D105: 20 | E105: 5 | F105: 11 | G105: 24 | H105: 26 | I105: 13 | J105: 1 | K105: 0.4133333333 | L105: 0.9876717549 | O105: 10 | P105: 23 | Q105: 23 | R105: 13 | S105: 1 | T105: 0.4 | U105: 0.9985496729
C106: 報告・連絡・相談の環境作り | D106: 21 | E106: 5 | F106: 16 | G106: 23 | H106: 25 | I106: 10 | J106: 1 | K106: 0.5733333333 | L106: 1.015732106 | O106: 15 | P106: 22 | Q106: 23 | R106: 9 | S106: 1 | T106: 0.5857142857 | U106: 1.014287172
C107: 報告・連絡・相談の実践 | D107: 22 | E107: 5 | F107: 25 | G107: 30 | H107: 16 | I107: 4 | J107: 0 | K107: 1.013333333 | L107: 0.8775477708 | O107: 23 | P107: 28 | Q107: 15 | R107: 4 | S107: 0 | T107: 1 | U107: 0.8846517369
C108: 職場環境（仕事面） | D108: 23 | E108: 5 | F108: 9 | G108: 33 | H108: 23 | I108: 9 | J108: 1 | K108: 0.5333333333 | L108: 0.9054390205 | O108: 8 | P108: 30 | Q108: 22 | R108: 9 | S108: 1 | T108: 0.5 | U108: 0.9128709292
C109: 職場環境（健康面） | D109: 24 | E109: 5 | F109: 8 | G109: 18 | H109: 27 | I109: 11 | J109: 11 | K109: 0.01333333333 | L109: 1.191108198 | O109: 7 | P109: 15 | Q109: 26 | R109: 11 | S109: 11 | T109: -0.05714285714 | U109: 1.190368525
C110: 職場環境（精神面） | D110: 25 | E110: 5 | F110: 9 | G110: 18 | H110: 24 | I110: 19 | J110: 5 | K110: 0.09333333333 | L110: 1.117106946 | O110: 8 | P110: 15 | Q110: 24 | R110: 18 | S110: 5 | T110: 0.04285714286 | U110: 1.109062985
C111: 健康 | D111: 26 | E111: 5 | F111: 21 | G111: 36 | H111: 11 | I111: 6 | J111: 1 | K111: 0.9333333333 | L111: 0.9348122132 | O111: 21 | P111: 32 | Q111: 11 | R111: 6 | S111: 0 | T111: 0.9714285714 | U111: 0.9004254803
C112: あいさつ | D112: 27 | E112: 6 | F112: 11 | G112: 5 | H112: 56 | I112: 3 | J112: 0 | K112: 0.32 | L112: 0.7738985198 | O112: 11 | P112: 5 | Q112: 51 | R112: 3 | S112: 0 | T112: 0.3428571429 | U112: 0.7964725545
C113: 約束 | D113: 28 | E113: 6 | F113: 23 | G113: 43 | H113: 9 | I113: 0 | J113: 0 | K113: 1.186666667 | L113: 0.6301722916 | O113: 21 | P113: 40 | Q113: 9 | R113: 0 | S113: 0 | T113: 1.171428571 | U113: 0.6363717028
C114: 終業 | D114: 29 | E114: 6 | F114: 15 | G114: 19 | H114: 33 | I114: 4 | J114: 4 | K114: 0.4933333333 | L114: 1.04459139 | O114: 13 | P114: 19 | Q114: 31 | R114: 3 | S114: 4 | T114: 0.4857142857 | U114: 1.031993388
C115: 仕事 | D115: 30 | E115: 7 | F115: 28 | G115: 15 | H115: 28 | I115: 1 | J115: 3 | K115: 0.8533333333 | L115: 1.074185214 | O115: 26 | P115: 13 | Q115: 27 | R115: 1 | S115: 3 | T115: 0.8285714286 | U115: 1.089760359
C116: 上役 | D116: 31 | E116: 7 | F116: 22 | G116: 12 | H116: 33 | I116: 6 | J116: 2 | K116: 0.6133333333 | L116: 1.076698323 | O116: 20 | P116: 12 | Q116: 30 | R116: 6 | S116: 2 | T116: 0.6 | U116: 1.08213423
C117: 車両・機材 | D117: 32 | E117: 7 | F117: 17 | G117: 42 | H117: 9 | I117: 6 | J117: 1 | K117: 0.9066666667 | L117: 0.88795747 | O117: 16 | P117: 38 | Q117: 9 | R117: 6 | S117: 1 | T117: 0.8857142857 | U117: 0.9095763808
C118: 先輩 | D118: 33 | E118: 8 | F118: =COUNTIF(OFFSET(rng全体データ,0,$D118+11,,1),5) -> 29 | G118: =COUNTIF(OFFSET(rng全体データ,0,$D118+11,,1),4) -> 31 | H118: =COUNTIF(OFFSET(rng全体データ,0,$D118+11,,1),3) -> 9 | I118: =COUNTIF(OFFSET(rng全体データ,0,$D118+11,,1),2) -> 2 | J118: =COUNTIF(OFFSET(rng全体データ,0,$D118+11,,1),1) -> 4 | K118: =AVERAGE(OFFSET(rng全体データ,0,$D118+11,,1))-3 -> 1.053333333 | L118: =STDEV(OFFSET(rng全体データ,0,$D118+11,,1)) -> 1.051296925 | O118: =COUNTIF(OFFSET(rng抽出データ,0,$D118+11,,1),5) -> 26 | P118: =COUNTIF(OFFSET(rng抽出データ,0,$D118+11,,1),4) -> 29 | Q118: =COUNTIF(OFFSET(rng抽出データ,0,$D118+11,,1),3) -> 9 | R118: =COUNTIF(OFFSET(rng抽出データ,0,$D118+11,,1),2) -> 2 | S118: =COUNTIF(OFFSET(rng抽出データ,0,$D118+11,,1),1) -> 4 | T118: =AVERAGE(OFFSET(rng抽出データ,0,$D118+11,,1))-3 -> 1.014285714 | U118: =STDEV(OFFSET(rng抽出データ,0,$D118+11,,1)) -> 1.069916117
C119: 職場仲間 | D119: 34 | E119: 8 | F119: 9 | G119: 43 | H119: 18 | I119: 4 | J119: 1 | K119: 0.7333333333 | L119: 0.7941225539 | O119: 9 | P119: 39 | Q119: 17 | R119: 4 | S119: 1 | T119: 0.7285714286 | U119: 0.8151007508
C120: 計画 | D120: 35 | E120: 8 | F120: 20 | G120: 29 | H120: 16 | I120: 10 | J120: 0 | K120: 0.7866666667 | L120: 0.9904044128 | O120: 20 | P120: 26 | Q120: 15 | R120: 9 | S120: 0 | T120: 0.8142857143 | U120: 0.9969934098
C121: 会議・会合 | D121: 36 | E121: 9 | F121: 40 | G121: 5 | H121: 23 | I121: 4 | J121: 3 | K121: 1 | L121: 1.196842693 | O121: 37 | P121: 5 | Q121: 21 | R121: 4 | S121: 3 | T121: 0.9857142857 | U121: 1.209777284
C122: 部下 | D122: 37 | E122: 9 | F122: 34 | G122: 28 | H122: 8 | I122: 0 | J122: 5 | K122: 1.146666667 | L122: 1.074185214 | O122: 32 | P122: 26 | Q122: 7 | R122: 0 | S122: 5 | T122: 1.142857143 | U122: 1.093932069
C123: 報告 | D123: 38 | E123: 9 | F123: 25 | G123: 33 | H123: 12 | I123: 3 | J123: 2 | K123: 1.013333333 | L123: 0.9514332479 | O123: 22 | P123: 31 | Q123: 12 | R123: 3 | S123: 2 | T123: 0.9714285714 | U123: 0.9626567792
C124: 出勤 | D124: 39 | E124: 10 | F124: 5 | G124: 26 | H124: 39 | I124: 2 | J124: 3 | K124: 0.3733333333 | L124: 0.8182600745 | O124: 5 | P124: 25 | Q124: 35 | R124: 2 | S124: 3 | T124: 0.3857142857 | U124: 0.8391309712
C125: 人材確保 | D125: 40 | E125: 10 | F125: 6 | G125: 11 | H125: 33 | I125: 12 | J125: 13 | K125: -0.2 | L125: 1.138989595 | O125: 5 | P125: 10 | Q125: 30 | R125: 12 | S125: 13 | T125: -0.2571428571 | U125: 1.138085276
C126: 採用への経営者の関わり | D126: 41 | E126: 10 | F126: 31 | G126: 20 | H126: 11 | I126: 9 | J126: 4 | K126: 0.8666666667 | L126: 1.233905394 | O126: 29 | P126: 19 | Q126: 9 | R126: 9 | S126: 4 | T126: 0.8571428571 | U126: 1.254391871
C127: 新人教育の効果 | D127: 42 | E127: 11 | F127: 9 | G127: 22 | H127: 13 | I127: 24 | J127: 7 | K127: 0.02666666667 | L127: 1.218919918 | O127: 9 | P127: 18 | Q127: 13 | R127: 23 | S127: 7 | T127: -0.01428571429 | U127: 1.233503989
C128: 知識・技能教育（定期的教育） | D128: 43 | E128: 11 | F128: 8 | G128: 17 | H128: 28 | I128: 14 | J128: 8 | K128: 0.04 | L128: 1.132325996 | O128: 8 | P128: 14 | Q128: 26 | R128: 14 | S128: 8 | T128: 0 | U128: 1.154700538
C129: 現場リーダーの育成 | D129: 44 | E129: 11 | F129: 3 | G129: 11 | H129: 29 | I129: 16 | J129: 16 | K129: -0.4133333333 | L129: 1.103965008 | O129: 3 | P129: 10 | Q129: 26 | R129: 15 | S129: 16 | T129: -0.4428571429 | U129: 1.124634746
C130: 指導員による指導の効果 | D130: 45 | E130: 12 | F130: 11 | G130: 15 | H130: 36 | I130: 8 | J130: 5 | K130: 0.2533333333 | L130: 1.053864617 | O130: 11 | P130: 13 | Q130: 33 | R130: 8 | S130: 5 | T130: 0.2428571429 | U130: 1.082612437
C131: 事故分析と再発防止教育 | D131: 46 | E131: 12 | F131: 18 | G131: 27 | H131: 16 | I131: 9 | J131: 5 | K131: 0.5866666667 | L131: 1.175117399 | O131: 15 | P131: 25 | Q131: 16 | R131: 9 | S131: 5 | T131: 0.5142857143 | U131: 1.176371936
C132: ﾋﾔﾘﾊｯﾄ、危険予知訓練の効果 | D132: 47 | E132: 12 | F132: 8 | G132: 22 | H132: 28 | I132: 12 | J132: 5 | K132: 0.2133333333 | L132: 1.056426067 | O132: 8 | P132: 18 | Q132: 27 | R132: 12 | S132: 5 | T132: 0.1714285714 | U132: 1.076379177
C133: 事故・災害対応手順の見直し | D133: 48 | E133: 12 | F133: 11 | G133: 22 | H133: 22 | I133: 14 | J133: 6 | K133: 0.24 | L133: 1.160614935 | O133: 11 | P133: 18 | Q133: 21 | R133: 14 | S133: 6 | T133: 0.2 | U133: 1.186884852
C134: 経営姿勢への共感 | D134: 49 | E134: 12 | F134: 5 | G134: 8 | H134: 20 | I134: 27 | J134: 15 | K134: -0.52 | L134: 1.13137085 | O134: 4 | P134: 8 | Q134: 17 | R134: 26 | S134: 15 | T134: -0.5714285714 | U134: 1.123806015
C135: 安全に関するコンプライアンスの浸透 | D135: 50 | E135: 13 | F135: 6 | G135: 20 | H135: 26 | I135: 11 | J135: 12 | K135: -0.04 | L135: 1.179097227 | O135: 5 | P135: 19 | Q135: 23 | R135: 11 | S135: 12 | T135: -0.08571428571 | U135: 1.188627965
C136: 率先垂範への共感 | D136: 51 | E136: 13 | F136: 6 | G136: 16 | H136: 24 | I136: 19 | J136: 10 | K136: -0.1466666667 | L136: 1.147186138 | O136: 5 | P136: 15 | Q136: 21 | R136: 19 | S136: 10 | T136: -0.2 | U136: 1.14966914
C137: 問題解決の意思決定 | D137: 52 | E137: 13 | F137: 4 | G137: 16 | H137: 26 | I137: 17 | J137: 12 | K137: -0.2266666667 | L137: 1.121935265 | O137: 3 | P137: 14 | Q137: 24 | R137: 17 | S137: 12 | T137: -0.3 | U137: 1.107942341
C138: 継続的改善 | D138: 53 | E138: 13 | F138: 10 | G138: 28 | H138: 21 | I138: 10 | J138: 6 | K138: 0.3466666667 | L138: 1.120971265 | O138: 10 | P138: 25 | Q138: 19 | R138: 10 | S138: 6 | T138: 0.3285714286 | U138: 1.151198853
C139: 管理者育成（人材育成） | D139: 54 | E139: 13 | F139: 3 | G139: 12 | H139: 26 | I139: 18 | J139: 16 | K139: -0.4266666667 | L139: 1.117106946 | O139: 2 | P139: 10 | Q139: 24 | R139: 18 | S139: 16 | T139: -0.5142857143 | U139: 1.08671633
C140: 現場情報の活用 | D140: 55 | E140: 14 | F140: 4 | G140: 19 | H140: 21 | I140: 18 | J140: 13 | K140: -0.2266666667 | L140: 1.169122255 | O140: 3 | P140: 16 | Q140: 20 | R140: 18 | S140: 13 | T140: -0.3142857143 | U140: 1.14894857
C141: 経営執行の監視（コーポレートガバナンス） | D141: 56 | E141: 14 | F141: 3 | G141: 18 | H141: 29 | I141: 13 | J141: 12 | K141: -0.1733333333 | L141: 1.095116103 | O141: 2 | P141: 16 | Q141: 27 | R141: 13 | S141: 12 | T141: -0.2428571429 | U141: 1.082612437
C142: 安全理念・方針の浸透 | D142: 57 | E142: 14 | F142: 6 | G142: 16 | H142: 19 | I142: 18 | J142: 16 | K142: -0.2933333333 | L142: 1.249576505 | O142: 5 | P142: 12 | Q142: 19 | R142: 18 | S142: 16 | T142: -0.4 | U142: 1.220596195
C143: 経営者による現場コミュニケーション | D143: 58 | E143: 14 | F143: 9 | G143: 12 | H143: 26 | I143: 15 | J143: 13 | K143: -0.1466666667 | L143: 1.237841772 | O143: 8 | P143: 9 | Q143: 26 | R143: 14 | S143: 13 | T143: -0.2142857143 | U143: 1.226434175

Sheet データ_指標
B1: =基本情報_集計!B3 -> 0 | C1: 経営者層 | E1: 現業層
A2: Ⅰ．トップの価値観・行動の充実と浸透 | B2: =演算!K3 -> -0.1853333333 | C2: 1.4 | E2: -0.2514285714
A3: Ⅱ．マネジメントサイクルの充実と浸透 | B3: =演算!K4 -> 0.4791666667 | C3: 1.1875 | E3: 0.46875
A4: Ⅲ．教育訓練の充実 | B4: =演算!K5 -> 0.1792592593 | C4: 0.9444444444 | E4: 0.1412698413
A5: Ⅳ．現場管理の充実 | B5: =演算!K6 -> -0.008888888889 | C5: 0.7777777778 | E5: -0.04285714286
A6: Ⅴ．職場メンバーの積極心 | B6: =演算!K7 -> 0.8152380952 | C6: 1.107142857 | E6: 0.8091836735
A7: １．経営理念（トップの価値観） | B7: =演算!K8 -> -0.2444444444 | C7: 1.333333333 | E7: -0.3
A8: ２．マネジメントシステム | B8: =演算!K9 -> -0.1022222222 | C8: 1.333333333 | E8: -0.1666666667
A9: ３．現場重視の行動・姿勢 | B9: =演算!K10 -> -0.2033333333 | C9: 1.5 | E9: -0.2785714286
A10: １．PDCAの実践 | B10: =演算!K11 -> 0.459047619 | C10: 1 | E10: 0.4632653061
A11: ２．コミュニケーションの実践 | B11: =演算!K12 -> 0.4948148148 | C11: 1.333333333 | E11: 0.473015873
A12: １．採用・教育の充実 | B12: =演算!K13 -> 0.2311111111 | C12: 1.166666667 | E12: 0.1952380952
A13: ２．リーダー教育の充実 | B13: =演算!K14 -> -0.04 | C13: 0.6666666667 | E13: -0.06666666667
A14: ３．安全教育の充実 | B14: =演算!K15 -> 0.3466666667 | C14: 1 | E14: 0.2952380952
A15: １．現場コミュニケーション | B15: =演算!K16 -> 0.2755555556 | C15: 1 | E15: 0.2428571429
A16: ２．日常管理の充実 | B16: =演算!K17 -> -0.08444444444 | C16: 1 | E16: -0.1238095238
A17: ３．現場管理施策の充実 | B17: =演算!K18 -> -0.2177777778 | C17: 0.3333333333 | E17: -0.2476190476
A18: １．基本行動への意識 | B18: =演算!K19 -> 0.848 | C18: 0.9 | E18: 0.8542857143
A19: ２．職務への意識 | B19: =演算!K20 -> 0.7253333333 | C19: 1.3 | E19: 0.7142857143
A20: ３．人間関係への意識 | B20: =演算!K21 -> 0.8866666667 | C20: 1.125 | E20: 0.8714285714
A21: 経営姿勢への共感 | B21: =演算!K22 -> -0.52 | C21: 1 | E21: -0.5714285714
A22: 安全に関するコンプライアンスの浸透 | B22: =演算!K23 -> -0.04 | C22: 1.5 | E22: -0.08571428571
A23: 経営執行の監視（コーポレートガバナンス） | B23: =演算!K24 -> -0.1733333333 | C23: 1.5 | E23: -0.2428571429
A24: 継続的改善 | B24: =演算!K25 -> 0.3466666667 | C24: 1 | E24: 0.3285714286
A25: 管理者育成（人材育成） | B25: =演算!K26 -> -0.4266666667 | C25: 1.5 | E25: -0.5142857143
A26: 現場情報の活用 | B26: =演算!K27 -> -0.2266666667 | C26: 1.5 | E26: -0.3142857143
A27: 率先垂範への共感 | B27: =演算!K28 -> -0.1466666667 | C27: 1.5 | E27: -0.2
A28: 問題解決の意思決定 | B28: =演算!K29 -> -0.2266666667 | C28: 1.5 | E28: -0.3
A29: 安全理念・方針の浸透 | B29: =演算!K30 -> -0.2933333333 | C29: 1.5 | E29: -0.4
A30: 経営者による現場コミュニケーション | B30: =演算!K31 -> -0.1466666667 | C30: 1.5 | E30: -0.2142857143
A31: 安全の理念・方針の理解 | B31: =演算!K32 -> 0.3333333333 | C31: 1 | E31: 0.3285714286
A32: 安全目標の設定 | B32: =演算!K33 -> 0.44 | C32: 1 | E32: 0.4285714286
A33: 取り組み計画の具体化 | B33: =演算!K34 -> 0.08 | C33: 1 | E33: 0.07142857143
A34: 計画の遂行度合 | B34: =演算!K35 -> 0.24 | C34: 1 | E34: 0.2428571429
A35: 改善志向 | B35: =演算!K36 -> 1.04 | C35: 1 | E35: 1.071428571
A36: 見直しと次へのアクション | B36: =演算!K37 -> 0.4 | C36: 1 | E36: 0.4142857143
A37: 文書・記録の管理・活用 | B37: =演算!K38 -> 0.68 | C37: 1 | E37: 0.6857142857
A38: 職場の風通し | B38: =演算!K39 -> 0.8133333333 | C38: 1 | E38: 0.8142857143
A39: リーダーシップ | B39: =演算!K40 -> 0.3066666667 | C39: 0.5 | E39: 0.3
A40: 部署間コミュニケーション | B40: =演算!K41 -> 0.6933333333 | C40: 1.5 | E40: 0.6714285714
A41: 部署間連携 | B41: =演算!K42 -> 0.4133333333 | C41: 1.5 | E41: 0.4
